Workbook

Sheet Control
A1: Sheets | B1: Text File Names | C1: Description | E1: Notes: 50 sheets maximum
A2: Toes | B2: Basin_Toes.txt | C2: Loading rates from the FTB toes | E2: Referenced text files must be in same root folder as this spreadsheet
A3: FPs | B3: Flow_Paths.txt | C3: Loading rates from the three flow paths
A4: GW | B4: GW_Loading.txt | C4: Loading rates from natural groundwater
A5: SW | B5: SW_Loading.txt | C5: Loading rates from natural surface water
A6: PointSources | B6: Point_Sources.txt | C6: Loading rates from point sources
A7: WWTP_To_SW | B7: WWTP_To_SW.txt | C7: WWTP loading to surface water
A8: CL_To_SW | B8: CL_To_SW.txt | C8: Colby Lake Loading to surface water

Sheet PlotControl
A2: Model Name: | B2: Plant Site Version 6.0 | C2: =B2 & " Model " & IF(B4="P50", "Median", IF(B4="P10", "10th Percentile", "90th Percentile")) & " Loading Rates " & B6 & " to " & B9 & " at " & B8 -> Plant Site Version 6.0 Model Median Loading Rates Ag to the Embarrass River at PM-12
A4: Plot: | B4: P50 | C4: =MATCH(B4,$B$28:$B$30,0)+1 -> 3 | V4: Directory to save PDFs to: | W4: P:\Mpls\23 MN\69\2369862\WorkFiles\APA\Support Docs\Surface WQ\Workfiles\Models\GoldSim\Tailings Basin\2012 MODEL\Base Model\Output_Data\SurfaceWater\Culpability\plots
V5: Starting figure caption | W5: Figure A-1-0001
A6: Constituent to Plot (dropdown): | B6: Ag | C6: =MATCH(B6,$A$28:$A$55,0) -> 1
A8: Location to Plot (dropdown): | B8: PM-12 | C8: =(MATCH(B8,$A$12:$A$16,0))-1 -> 0 | D8: =C8*38 -> 0
B9: =INDEX($A$18:$A$22, $C$8+1) -> the Embarrass River
A11: Locations | B11: Sources
A12: PM-12 | B12: Cumulative GW rate | C12: 0 | D12: =(C12*108) -> 0 | E12: 1
A13: PM-13 | B13: Cumulative SW rate | C13: 1 | D13: =(C13*108) -> 108 | E13: =E12+1 -> 2
A14: PM-11 | B14: Babbitt WWTP | C14: 2 | D14: 216 | E14: =E13+1 -> 3
A15: PM-19 | B15: Area 5 NW | C15: 3 | D15: 324 | E15: 4
A16: MLC-2 | B16: FTB WWTP Effluent | C16: 4 | D16: 432 | E16: 5
B17: Colby Lake | C17: 5 | D17: 540 | E17: 6
A18: the Embarrass River | B18: North Flow Path | C18: 6 | D18: 648 | E18: 7
A19: the Embarrass River | B19: Northwest Flow Path | C19: 7 | D19: 756 | E19: 8
A20: Unnamed Creek | B20: West Flow Path | C20: 8 | D20: 864 | E20: 9
A21: Trimble Creek | B21: North Toe | C21: 9 | D21: 972 | E21: 10
A22: Mud Lake Creek | B22: Northwest Toe | C22: 10 | D22: 1080 | E22: 11
B23: West Toe | C23: 11 | D23: =(C23*108) -> 1188 | E23: 12
E26: Annual Project Results (tonne/yr loading)
A27: Constituent | B27: Percentile | D27: Time | E27: =$B$12 -> Cumulative GW rate | F27: =$B$13 -> Cumulative SW rate | G27: =$B$14 -> Babbitt WWTP | H27: =$B$15 -> Area 5 NW | I27: =$B$16 -> FTB WWTP Effluent | J27: =$B$17 -> Colby Lake | K27: =$B$18 -> North Flow Path | L27: =$B$19 -> Northwest Flow Path | M27: =$B$20 -> West Flow Path | N27: =$B$21 -> North Toe | O27: =$B$22 -> Northwest Toe | P27: =$B$23 -> West Toe
A28: Ag | B28: P10 | D28: 0 | E28: =VLOOKUP($D28,Point_Sources_All!$A$5:$GG$205,((3*(TRANSPOSE($E$12:$E$23)-1)+$C$4)+($D$8)))/1000*365.25 -> 5.637298938e-05 | F28: 0.0008428048785 | G28: 3.156161775e-05 | H28: 0 | I28: 0 | J28: 0 | K28: 0 | L28: 0 | M28: 0 | N28: 0 | O28: 0 | P28: 0
A29: Al | B29: P50 | D29: 1 | E29: =VLOOKUP($D29,Point_Sources_All!$A$5:$GG$205,((3*(TRANSPOSE($E$12:$E$23)-1)+$C$4)+($D$8)))/1000*365.25 -> 5.631181e-05 | F29: 0.0008269138554 | G29: 3.448462219e-05 | H29: 0 | I29: 0 | J29: 0 | K29: 0 | L29: 0 | M29: 0 | N29: 0 | O29: 0 | P29: 0
A30: Alkalinity | B30: P90 | D30: 2 | E30: =VLOOKUP($D30,Point_Sources_All!$A$5:$GG$205,((3*(TRANSPOSE($E$12:$E$23)-1)+$C$4)+($D$8)))/1000*365.25 -> 5.628654687e-05 | F30: 0.0008185382164 | G30: 3.446282894e-05 | H30: 0 | I30: 0 | J30: 0 | K30: 0 | L30: 0 | M30: 0 | N30: 0 | O30: 0 | P30: 0
A31: As | D31: 3 | E31: =VLOOKUP($D31,Point_Sources_All!$A$5:$GG$205,((3*(TRANSPOSE($E$12:$E$23)-1)+$C$4)+($D$8)))/1000*365.25 -> 5.63422475e-05 | F31: 0.0008322976709 | G31: 3.451289862e-05 | H31: 0 | I31: 0 | J31: 0 | K31: 0 | L31: 0 | M31: 0 | N31: 0 | O31: 0 | P31: 0
A32: B | D32: 4 | E32: =VLOOKUP($D32,Point_Sources_All!$A$5:$GG$205,((3*(TRANSPOSE($E$12:$E$23)-1)+$C$4)+($D$8)))/1000*365.25 -> 5.635594438e-05 | F32: 0.0008133012619 | G32: 3.439677956e-05 | H32: 0 | I32: 0 | J32: 0 | K32: 0 | L32: 0 | M32: 0 | N32: 0 | O32: 0 | P32: 0
A33: Ba | D33: 5 | E33: =VLOOKUP($D33,Point_Sources_All!$A$5:$GG$205,((3*(TRANSPOSE($E$12:$E$23)-1)+$C$4)+($D$8)))/1000*365.25 -> 5.640403563e-05 | F33: 0.0008177490937 | G33: 3.444417075e-05 | H33: 0 | I33: 0 | J33: 0 | K33: 0 | L33: 0 | M33: 0 | N33: 0 | O33: 0 | P33: 0
A34: Be | D34: 6 | E34: =VLOOKUP($D34,Point_Sources_All!$A$5:$GG$205,((3*(TRANSPOSE($E$12:$E$23)-1)+$C$4)+($D$8)))/1000*365.25 -> 5.630267875e-05 | F34: 0.0008354969565 | G34: 3.441915112e-05 | H34: 0 | I34: 0 | J34: 0 | K34: 0 | L34: 0 | M34: 0 | N34: 0 | O34: 0 | P34: 0
A35: Ca | D35: 7 | E35: =VLOOKUP($D35,Point_Sources_All!$A$5:$GG$205,((3*(TRANSPOSE($E$12:$E$23)-1)+$C$4)+($D$8)))/1000*365.25 -> 5.634924813e-05 | F35: 0.0008189354562 | G35: 3.448270463e-05 | H35: 0 | I35: 0 | J35: 0 | K35: 0 | L35: 0 | M35: 0 | N35: 0 | O35: 0 | P35: 0
A36: Cd | D36: 8 | E36: =VLOOKUP($D36,Point_Sources_All!$A$5:$GG$205,((3*(TRANSPOSE($E$12:$E$23)-1)+$C$4)+($D$8)))/1000*365.25 -> 5.634985688e-05 | F36: 0.0008633109266 | G36: 3.446292025e-05 | H36: 0 | I36: 0 | J36: 0 | K36: 0 | L36: 0 | M36: 0 | N36: 0 | O36: 0 | P36: 0
A37: Cl | D37: 9 | E37: =VLOOKUP($D37,Point_Sources_All!$A$5:$GG$205,((3*(TRANSPOSE($E$12:$E$23)-1)+$C$4)+($D$8)))/1000*365.25 -> 5.635350937e-05 | F37: 0.0008786966568 | G37: 3.446696844e-05 | H37: 0 | I37: 0 | J37: 0 | K37: 0 | L37: 0 | M37: 0 | N37: 0 | O37: 0 | P37: 0
A38: Co | D38: 10 | E38: =VLOOKUP($D38,Point_Sources_All!$A$5:$GG$205,((3*(TRANSPOSE($E$12:$E$23)-1)+$C$4)+($D$8)))/1000*365.25 -> 5.634376938e-05 | F38: 0.0008572837538 | G38: 3.444569263e-05 | H38: 0 | I38: 0 | J38: 0 | K38: 0 | L38: 0 | M38: 0 | N38: 0 | O38: 0 | P38: 0
A39: Cr | D39: 11 | E39: =VLOOKUP($D39,Point_Sources_All!$A$5:$GG$205,((3*(TRANSPOSE($E$12:$E$23)-1)+$C$4)+($D$8)))/1000*365.25 -> 5.63860775e-05 | F39: 0.0008510412964 | G39: 3.445022781e-05 | H39: 0 | I39: 0 | J39: 0 | K39: 0 | L39: 0 | M39: 0 | N39: 0 | O39: 0 | P39: 0
A40: Cu | D40: 12 | E40: =VLOOKUP($D40,Point_Sources_All!$A$5:$GG$205,((3*(TRANSPOSE($E$12:$E$23)-1)+$C$4)+($D$8)))/1000*365.25 -> 5.634042125e-05 | F40: 0.0008131139799 | G40: 3.443032169e-05 | H40: 0 | I40: 0 | J40: 0 | K40: 0 | L40: 0 | M40: 0 | N40: 0 | O40: 0 | P40: 0
A41: F | D41: 13 | E41: =VLOOKUP($D41,Point_Sources_All!$A$5:$GG$205,((3*(TRANSPOSE($E$12:$E$23)-1)+$C$4)+($D$8)))/1000*365.25 -> 5.630663563e-05 | F41: 0.0008564389914 | G41: 3.43921835e-05 | H41: 0 | I41: 0 | J41: 0 | K41: 0 | L41: 0 | M41: 0 | N41: 0 | O41: 0 | P41: 0
A42: Fe | D42: 14 | E42: =VLOOKUP($D42,Point_Sources_All!$A$5:$GG$205,((3*(TRANSPOSE($E$12:$E$23)-1)+$C$4)+($D$8)))/1000*365.25 -> 5.635350937e-05 | F42: 0.0008373413777 | G42: 3.456290744e-05 | H42: 0 | I42: 0 | J42: 0 | K42: 0 | L42: 0 | M42: 0 | N42: 0 | O42: 0 | P42: 0
A43: K | D43: 15 | E43: =VLOOKUP($D43,Point_Sources_All!$A$5:$GG$205,((3*(TRANSPOSE($E$12:$E$23)-1)+$C$4)+($D$8)))/1000*365.25 -> 5.634894375e-05 | F43: 0.0008348457462 | G43: 3.439793619e-05 | H43: 0 | I43: 0 | J43: 0 | K43: 0 | L43: 0 | M43: 0 | N43: 0 | O43: 0 | P43: 0
A44: Mg | D44: 16 | E44: =VLOOKUP($D44,Point_Sources_All!$A$5:$GG$205,((3*(TRANSPOSE($E$12:$E$23)-1)+$C$4)+($D$8)))/1000*365.25 -> 5.634103e-05 | F44: 0.000815089952 | G44: 3.443306106e-05 | H44: 0 | I44: 0 | J44: 0 | K44: 0 | L44: 0 | M44: 0 | N44: 0 | O44: 0 | P44: 0
A45: Mn | D45: 17 | E45: =VLOOKUP($D45,Point_Sources_All!$A$5:$GG$205,((3*(TRANSPOSE($E$12:$E$23)-1)+$C$4)+($D$8)))/1000*365.25 -> 5.643569063e-05 | F45: 0.0008102863971 | G45: 3.443911812e-05 | H45: 0 | I45: 0 | J45: 0 | K45: 0 | L45: 0 | M45: 0 | N45: 0 | O45: 0 | P45: 0
A46: Na | D46: 18 | E46: =VLOOKUP($D46,Point_Sources_All!$A$5:$GG$205,((3*(TRANSPOSE($E$12:$E$23)-1)+$C$4)+($D$8)))/1000*365.25 -> 5.639155625e-05 | F46: 0.0008294346283 | G46: 3.447816944e-05 | H46: 0 | I46: 0 | J46: 0 | K46: 0 | L46: 0 | M46: 0 | N46: 0 | O46: 0 | P46: 0
A47: Ni | D47: 19 | E47: =VLOOKUP($D47,Point_Sources_All!$A$5:$GG$205,((3*(TRANSPOSE($E$12:$E$23)-1)+$C$4)+($D$8)))/1000*365.25 -> 5.645090938e-05 | F47: 0.0008620614977 | G47: 3.441455506e-05 | H47: 0 | I47: 0 | J47: 0 | K47: 0 | L47: 0 | M47: 0 | N47: 0 | O47: 0 | P47: 0
A48: Pb | D48: 20 | E48: =VLOOKUP($D48,Point_Sources_All!$A$5:$GG$205,((3*(TRANSPOSE($E$12:$E$23)-1)+$C$4)+($D$8)))/1000*365.25 -> 5.628928625e-05 | F48: 0.0008147891078 | G48: 3.444146181e-05 | H48: 0 | I48: 0 | J48: 0 | K48: 0 | L48: 0 | M48: 0 | N48: 0 | O48: 0 | P48: 0
A49: Sb | D49: 21 | E49: =VLOOKUP($D49,Point_Sources_All!$A$5:$GG$205,((3*(TRANSPOSE($E$12:$E$23)-1)+$C$4)+($D$8)))/1000*365.25 -> 5.631272312e-05 | F49: 0.0008056336295 | G49: 3.442344281e-05 | H49: 0 | I49: 0 | J49: 0 | K49: 0 | L49: 0 | M49: 0 | N49: 0 | O49: 0 | P49: 0
A50: Se | D50: 22 | E50: =VLOOKUP($D50,Point_Sources_All!$A$5:$GG$205,((3*(TRANSPOSE($E$12:$E$23)-1)+$C$4)+($D$8)))/1000*365.25 -> 5.635046563e-05 | F50: 0.0008134379263 | G50: 3.442341237e-05 | H50: 0 | I50: 0 | J50: 0 | K50: 0 | L50: 0 | M50: 0 | N50: 0 | O50: 0 | P50: 0
A51: SO4 | D51: 23 | E51: =VLOOKUP($D51,Point_Sources_All!$A$5:$GG$205,((3*(TRANSPOSE($E$12:$E$23)-1)+$C$4)+($D$8)))/1000*365.25 -> 5.631881063e-05 | F51: 0.0008708445731 | G51: 3.442539081e-05 | H51: 0 | I51: 0 | J51: 0 | K51: 0 | L51: 0 | M51: 0 | N51: 0 | O51: 0 | P51: 0
A52: Tl | D52: 24 | E52: =VLOOKUP($D52,Point_Sources_All!$A$5:$GG$205,((3*(TRANSPOSE($E$12:$E$23)-1)+$C$4)+($D$8)))/1000*365.25 -> 5.636751062e-05 | F52: 0.0008270680214 | G52: 3.446212888e-05 | H52: 0 | I52: 0 | J52: 0 | K52: 0 | L52: 0 | M52: 0 | N52: 0 | O52: 0 | P52: 0
A53: V | D53: 25 | E53: =VLOOKUP($D53,Point_Sources_All!$A$5:$GG$205,((3*(TRANSPOSE($E$12:$E$23)-1)+$C$4)+($D$8)))/1000*365.25 -> 5.631637562e-05 | F53: 0.000828875948 | G53: 3.443303063e-05 | H53: 0 | I53: 0 | J53: 0 | K53: 0 | L53: 0 | M53: 0 | N53: 0 | O53: 0 | P53: 0
A54: Zn | D54: 26 | E54: =VLOOKUP($D54,Point_Sources_All!$A$5:$GG$205,((3*(TRANSPOSE($E$12:$E$23)-1)+$C$4)+($D$8)))/1000*365.25 -> 5.636629312e-05 | F54: 0.0008329332363 | G54: 3.44184815e-05 | H54: 0 | I54: 0 | J54: 0 | K54: 0 | L54: 0 | M54: 0 | N54: 0 | O54: 0 | P54: 0
D55: 27 | E55: =VLOOKUP($D55,Point_Sources_All!$A$5:$GG$205,((3*(TRANSPOSE($E$12:$E$23)-1)+$C$4)+($D$8)))/1000*365.25 -> 5.6319115e-05 | F55: 0.0007955433852 | G55: 3.437577769e-05 | H55: 0 | I55: 0 | J55: 0 | K55: 0 | L55: 0 | M55: 0 | N55: 0 | O55: 0 | P55: 0
D56: 28 | E56: =VLOOKUP($D56,Point_Sources_All!$A$5:$GG$205,((3*(TRANSPOSE($E$12:$E$23)-1)+$C$4)+($D$8)))/1000*365.25 -> 5.6406775e-05 | F56: 0.0008339888697 | G56: 3.449424044e-05 | H56: 0 | I56: 0 | J56: 0 | K56: 0 | L56: 0 | M56: 0 | N56: 0 | O56: 0 | P56: 0
D57: 29 | E57: =VLOOKUP($D57,Point_Sources_All!$A$5:$GG$205,((3*(TRANSPOSE($E$12:$E$23)-1)+$C$4)+($D$8)))/1000*365.25 -> 5.62886775e-05 | F57: 0.0008702955415 | G57: 3.437446888e-05 | H57: 0 | I57: 0 | J57: 0 | K57: 0 | L57: 0 | M57: 0 | N57: 0 | O57: 0 | P57: 0
D58: 30 | E58: =VLOOKUP($D58,Point_Sources_All!$A$5:$GG$205,((3*(TRANSPOSE($E$12:$E$23)-1)+$C$4)+($D$8)))/1000*365.25 -> 5.632672438e-05 | F58: 0.000854072841 | G58: 3.443555694e-05 | H58: 0 | I58: 0 | J58: 0 | K58: 0 | L58: 0 | M58: 0 | N58: 0 | O58: 0 | P58: 0
D59: 31 | E59: =VLOOKUP($D59,Point_Sources_All!$A$5:$GG$205,((3*(TRANSPOSE($E$12:$E$23)-1)+$C$4)+($D$8)))/1000*365.25 -> 5.633585563e-05 | F59: 0.0008493740519 | G59: 3.441793362e-05 | H59: 0 | I59: 0 | J59: 0 | K59: 0 | L59: 0 | M59: 0 | N59: 0 | O59: 0 | P59: 0
D60: 32 | E60: =VLOOKUP($D60,Point_Sources_All!$A$5:$GG$205,((3*(TRANSPOSE($E$12:$E$23)-1)+$C$4)+($D$8)))/1000*365.25 -> 5.633889937e-05 | F60: 0.0008261626275 | G60: 3.445512825e-05 | H60: 0 | I60: 0 | J60: 0 | K60: 0 | L60: 0 | M60: 0 | N60: 0 | O60: 0 | P60: 0
D61: 33 | E61: =VLOOKUP($D61,Point_Sources_All!$A$5:$GG$205,((3*(TRANSPOSE($E$12:$E$23)-1)+$C$4)+($D$8)))/1000*365.25 -> 5.626980625e-05 | F61: 0.0008345588119 | G61: 3.439610994e-05 | H61: 0 | I61: 0 | J61: 0 | K61: 0 | L61: 0 | M61: 0 | N61: 0 | O61: 0 | P61: 0
D62: 34 | E62: =VLOOKUP($D62,Point_Sources_All!$A$5:$GG$205,((3*(TRANSPOSE($E$12:$E$23)-1)+$C$4)+($D$8)))/1000*365.25 -> 5.637116312e-05 | F62: 0.000833474202 | G62: 3.445372813e-05 | H62: 0 | I62: 0 | J62: 0 | K62: 0 | L62: 0 | M62: 0 | N62: 0 | O62: 0 | P62: 0
D63: 35 | E63: =VLOOKUP($D63,Point_Sources_All!$A$5:$GG$205,((3*(TRANSPOSE($E$12:$E$23)-1)+$C$4)+($D$8)))/1000*365.25 -> 5.633098562e-05 | F63: 0.0008201884767 | G63: 3.439495331e-05 | H63: 0 | I63: 0 | J63: 0 | K63: 0 | L63: 0 | M63: 0 | N63: 0 | O63: 0 | P63: 0
D64: 36 | E64: =VLOOKUP($D64,Point_Sources_All!$A$5:$GG$205,((3*(TRANSPOSE($E$12:$E$23)-1)+$C$4)+($D$8)))/1000*365.25 -> 5.6372685e-05 | F64: 0.0008596149619 | G64: 3.441400719e-05 | H64: 0 | I64: 0 | J64: 0 | K64: 0 | L64: 0 | M64: 0 | N64: 0 | O64: 0 | P64: 0
D65: 37 | E65: =VLOOKUP($D65,Point_Sources_All!$A$5:$GG$205,((3*(TRANSPOSE($E$12:$E$23)-1)+$C$4)+($D$8)))/1000*365.25 -> 5.63446825e-05 | F65: 0.0008248432532 | G65: 3.440998944e-05 | H65: 0 | I65: 0 | J65: 0 | K65: 0 | L65: 0 | M65: 0 | N65: 0 | O65: 0 | P65: 0
D66: 38 | E66: =VLOOKUP($D66,Point_Sources_All!$A$5:$GG$205,((3*(TRANSPOSE($E$12:$E$23)-1)+$C$4)+($D$8)))/1000*365.25 -> 5.62618925e-05 | F66: 0.0008124340671 | G66: 3.440886325e-05 | H66: 0 | I66: 0 | J66: 0 | K66: 0 | L66: 0 | M66: 0 | N66: 0 | O66: 0 | P66: 0
D67: 39 | E67: =VLOOKUP($D67,Point_Sources_All!$A$5:$GG$205,((3*(TRANSPOSE($E$12:$E$23)-1)+$C$4)+($D$8)))/1000*365.25 -> 5.635777062e-05 | F67: 0.000836022673 | G67: 3.446915994e-05 | H67: 0 | I67: 0 | J67: 0 | K67: 0 | L67: 0 | M67: 0 | N67: 0 | O67: 0 | P67: 0
D68: 40 | E68: =VLOOKUP($D68,Point_Sources_All!$A$5:$GG$205,((3*(TRANSPOSE($E$12:$E$23)-1)+$C$4)+($D$8)))/1000*365.25 -> 5.635716188e-05 | F68: 0.0008285185204 | G68: 3.442143394e-05 | H68: 0 | I68: 0 | J68: 0 | K68: 0 | L68: 0 | M68: 0 | N68: 0 | O68: 0 | P68: 0
D69: 41 | E69: =VLOOKUP($D69,Point_Sources_All!$A$5:$GG$205,((3*(TRANSPOSE($E$12:$E$23)-1)+$C$4)+($D$8)))/1000*365.25 -> 5.626463188e-05 | F69: 0.0008068851891 | G69: 3.445436731e-05 | H69: 0 | I69: 0 | J69: 0 | K69: 0 | L69: 0 | M69: 0 | N69: 0 | O69: 0 | P69: 0
D70: 42 | E70: =VLOOKUP($D70,Point_Sources_All!$A$5:$GG$205,((3*(TRANSPOSE($E$12:$E$23)-1)+$C$4)+($D$8)))/1000*365.25 -> 5.629902625e-05 | F70: 0.0008291041075 | G70: 3.433331737e-05 | H70: 0 | I70: 0 | J70: 0 | K70: 0 | L70: 0 | M70: 0 | N70: 0 | O70: 0 | P70: 0
D71: 43 | E71: =VLOOKUP($D71,Point_Sources_All!$A$5:$GG$205,((3*(TRANSPOSE($E$12:$E$23)-1)+$C$4)+($D$8)))/1000*365.25 -> 5.62691975e-05 | F71: 0.0007991711091 | G71: 3.440892412e-05 | H71: 0 | I71: 0 | J71: 0 | K71: 0 | L71: 0 | M71: 0 | N71: 0 | O71: 0 | P71: 0
D72: 44 | E72: =VLOOKUP($D72,Point_Sources_All!$A$5:$GG$205,((3*(TRANSPOSE($E$12:$E$23)-1)+$C$4)+($D$8)))/1000*365.25 -> 5.634742187e-05 | F72: 0.0008487390039 | G72: 3.446225063e-05 | H72: 0 | I72: 0 | J72: 0 | K72: 0 | L72: 0 | M72: 0 | N72: 0 | O72: 0 | P72: 0
D73: 45 | E73: =VLOOKUP($D73,Point_Sources_All!$A$5:$GG$205,((3*(TRANSPOSE($E$12:$E$23)-1)+$C$4)+($D$8)))/1000*365.25 -> 5.639368687e-05 | F73: 0.0008287421752 | G73: 3.441738575e-05 | H73: 0 | I73: 0 | J73: 0 | K73: 0 | L73: 0 | M73: 0 | N73: 0 | O73: 0 | P73: 0
D74: 46 | E74: =VLOOKUP($D74,Point_Sources_All!$A$5:$GG$205,((3*(TRANSPOSE($E$12:$E$23)-1)+$C$4)+($D$8)))/1000*365.25 -> 5.635624875e-05 | F74: 0.0008059264687 | G74: 3.439857538e-05 | H74: 0 | I74: 0 | J74: 0 | K74: 0 | L74: 0 | M74: 0 | N74: 0 | O74: 0 | P74: 0
D75: 47 | E75: =VLOOKUP($D75,Point_Sources_All!$A$5:$GG$205,((3*(TRANSPOSE($E$12:$E$23)-1)+$C$4)+($D$8)))/1000*365.25 -> 5.620558312e-05 | F75: 0.0008380572981 | G75: 3.4384148e-05 | H75: 0 | I75: 0 | J75: 0 | K75: 0 | L75: 0 | M75: 0 | N75: 0 | O75: 0 | P75: 0
D76: 48 | E76: =VLOOKUP($D76,Point_Sources_All!$A$5:$GG$205,((3*(TRANSPOSE($E$12:$E$23)-1)+$C$4)+($D$8)))/1000*365.25 -> 5.636598875e-05 | F76: 0.0008653274719 | G76: 3.438971806e-05 | H76: 0 | I76: 0 | J76: 0 | K76: 0 | L76: 0 | M76: 0 | N76: 0 | O76: 0 | P76: 0
D77: 49 | E77: =VLOOKUP($D77,Point_Sources_All!$A$5:$GG$205,((3*(TRANSPOSE($E$12:$E$23)-1)+$C$4)+($D$8)))/1000*365.25 -> 5.631272312e-05 | F77: 0.0008144351196 | G77: 3.438436106e-05 | H77: 0 | I77: 0 | J77: 0 | K77: 0 | L77: 0 | M77: 0 | N77: 0 | O77: 0 | P77: 0
D78: 50 | E78: =VLOOKUP($D78,Point_Sources_All!$A$5:$GG$205,((3*(TRANSPOSE($E$12:$E$23)-1)+$C$4)+($D$8)))/1000*365.25 -> 5.634133437e-05 | F78: 0.0008564470269 | G78: 3.45007845e-05 | H78: 0 | I78: 0 | J78: 0 | K78: 0 | L78: 0 | M78: 0 | N78: 0 | O78: 0 | P78: 0
D79: 51 | E79: =VLOOKUP($D79,Point_Sources_All!$A$5:$GG$205,((3*(TRANSPOSE($E$12:$E$23)-1)+$C$4)+($D$8)))/1000*365.25 -> 5.634498688e-05 | F79: 0.0008675307816 | G79: 3.441905981e-05 | H79: 0 | I79: 0 | J79: 0 | K79: 0 | L79: 0 | M79: 0 | N79: 0 | O79: 0 | P79: 0
D80: 52 | E80: =VLOOKUP($D80,Point_Sources_All!$A$5:$GG$205,((3*(TRANSPOSE($E$12:$E$23)-1)+$C$4)+($D$8)))/1000*365.25 -> 5.651635e-05 | F80: 0.000862429761 | G80: 3.441501163e-05 | H80: 0 | I80: 0 | J80: 0 | K80: 0 | L80: 0 | M80: 0 | N80: 0 | O80: 0 | P80: 0
D81: 53 | E81: =VLOOKUP($D81,Point_Sources_All!$A$5:$GG$205,((3*(TRANSPOSE($E$12:$E$23)-1)+$C$4)+($D$8)))/1000*365.25 -> 5.636051e-05 | F81: 0.0008503745934 | G81: 3.44326045e-05 | H81: 0 | I81: 0 | J81: 0 | K81: 0 | L81: 0 | M81: 0 | N81: 0 | O81: 0 | P81: 0
D82: 54 | E82: =VLOOKUP($D82,Point_Sources_All!$A$5:$GG$205,((3*(TRANSPOSE($E$12:$E$23)-1)+$C$4)+($D$8)))/1000*365.25 -> 5.620162625e-05 | F82: 0.0008238065215 | G82: 3.446453344e-05 | H82: 0 | I82: 0 | J82: 0 | K82: 0 | L82: 0 | M82: 0 | N82: 0 | O82: 0 | P82: 0
D83: 55 | E83: =VLOOKUP($D83,Point_Sources_All!$A$5:$GG$205,((3*(TRANSPOSE($E$12:$E$23)-1)+$C$4)+($D$8)))/1000*365.25 -> 5.639916562e-05 | F83: 0.0008733882959 | G83: 3.437468194e-05 | H83: 0 | I83: 0 | J83: 0 | K83: 0 | L83: 0 | M83: 0 | N83: 0 | O83: 0 | P83: 0
D84: 56 | E84: =VLOOKUP($D84,Point_Sources_All!$A$5:$GG$205,((3*(TRANSPOSE($E$12:$E$23)-1)+$C$4)+($D$8)))/1000*365.25 -> 5.635016125e-05 | F84: 0.0007995936424 | G84: 3.441224181e-05 | H84: 0 | I84: 0 | J84: 0 | K84: 0 | L84: 0 | M84: 0 | N84: 0 | O84: 0 | P84: 0
D85: 57 | E85: =VLOOKUP($D85,Point_Sources_All!$A$5:$GG$205,((3*(TRANSPOSE($E$12:$E$23)-1)+$C$4)+($D$8)))/1000*365.25 -> 5.629172125e-05 | F85: 0.0008367651045 | G85: 3.446082006e-05 | H85: 0 | I85: 0 | J85: 0 | K85: 0 | L85: 0 | M85: 0 | N85: 0 | O85: 0 | P85: 0
D86: 58 | E86: =VLOOKUP($D86,Point_Sources_All!$A$5:$GG$205,((3*(TRANSPOSE($E$12:$E$23)-1)+$C$4)+($D$8)))/1000*365.25 -> 5.631759313e-05 | F86: 0.0008437183992 | G86: 3.4369051e-05 | H86: 0 | I86: 0 | J86: 0 | K86: 0 | L86: 0 | M86: 0 | N86: 0 | O86: 0 | P86: 0
D87: 59 | E87: =VLOOKUP($D87,Point_Sources_All!$A$5:$GG$205,((3*(TRANSPOSE($E$12:$E$23)-1)+$C$4)+($D$8)))/1000*365.25 -> 5.63471175e-05 | F87: 0.0008131125494 | G87: 3.437702562e-05 | H87: 0 | I87: 0 | J87: 0 | K87: 0 | L87: 0 | M87: 0 | N87: 0 | O87: 0 | P87: 0
D88: 60 | E88: =VLOOKUP($D88,Point_Sources_All!$A$5:$GG$205,((3*(TRANSPOSE($E$12:$E$23)-1)+$C$4)+($D$8)))/1000*365.25 -> 5.625032625e-05 | F88: 0.0008588635817 | G88: 3.4505898e-05 | H88: 0 | I88: 0 | J88: 0 | K88: 0 | L88: 0 | M88: 0 | N88: 0 | O88: 0 | P88: 0
D89: 61 | E89: =VLOOKUP($D89,Point_Sources_All!$A$5:$GG$205,((3*(TRANSPOSE($E$12:$E$23)-1)+$C$4)+($D$8)))/1000*365.25 -> 5.631515813e-05 | F89: 0.0008393630364 | G89: 3.449618844e-05 | H89: 0 | I89: 0 | J89: 0 | K89: 0 | L89: 0 | M89: 0 | N89: 0 | O89: 0 | P89: 0
D90: 62 | E90: =VLOOKUP($D90,Point_Sources_All!$A$5:$GG$205,((3*(TRANSPOSE($E$12:$E$23)-1)+$C$4)+($D$8)))/1000*365.25 -> 5.6280155e-05 | F90: 0.0008482884072 | G90: 3.437160775e-05 | H90: 0 | I90: 0 | J90: 0 | K90: 0 | L90: 0 | M90: 0 | N90: 0 | O90: 0 | P90: 0
D91: 63 | E91: =VLOOKUP($D91,Point_Sources_All!$A$5:$GG$205,((3*(TRANSPOSE($E$12:$E$23)-1)+$C$4)+($D$8)))/1000*365.25 -> 5.639125188e-05 | F91: 0.0008518053386 | G91: 3.438752656e-05 | H91: 0 | I91: 0 | J91: 0 | K91: 0 | L91: 0 | M91: 0 | N91: 0 | O91: 0 | P91: 0
D92: 64 | E92: =VLOOKUP($D92,Point_Sources_All!$A$5:$GG$205,((3*(TRANSPOSE($E$12:$E$23)-1)+$C$4)+($D$8)))/1000*365.25 -> 5.637785938e-05 | F92: 0.0008210501015 | G92: 3.435310175e-05 | H92: 0 | I92: 0 | J92: 0 | K92: 0 | L92: 0 | M92: 0 | N92: 0 | O92: 0 | P92: 0
D93: 65 | E93: =VLOOKUP($D93,Point_Sources_All!$A$5:$GG$205,((3*(TRANSPOSE($E$12:$E$23)-1)+$C$4)+($D$8)))/1000*365.25 -> 5.63105925e-05 | F93: 0.0008088849328 | G93: 3.441096344e-05 | H93: 0 | I93: 0 | J93: 0 | K93: 0 | L93: 0 | M93: 0 | N93: 0 | O93: 0 | P93: 0
D94: 66 | E94: =VLOOKUP($D94,Point_Sources_All!$A$5:$GG$205,((3*(TRANSPOSE($E$12:$E$23)-1)+$C$4)+($D$8)))/1000*365.25 -> 5.639064312e-05 | F94: 0.0008292588213 | G94: 3.441187656e-05 | H94: 0 | I94: 0 | J94: 0 | K94: 0 | L94: 0 | M94: 0 | N94: 0 | O94: 0 | P94: 0
D95: 67 | E95: =VLOOKUP($D95,Point_Sources_All!$A$5:$GG$205,((3*(TRANSPOSE($E$12:$E$23)-1)+$C$4)+($D$8)))/1000*365.25 -> 5.635381375e-05 | F95: 0.0008143455116 | G95: 3.441221137e-05 | H95: 0 | I95: 0 | J95: 0 | K95: 0 | L95: 0 | M95: 0 | N95: 0 | O95: 0 | P95: 0
D96: 68 | E96: =VLOOKUP($D96,Point_Sources_All!$A$5:$GG$205,((3*(TRANSPOSE($E$12:$E$23)-1)+$C$4)+($D$8)))/1000*365.25 -> 5.633920375e-05 | F96: 0.0008379099806 | G96: 3.439361406e-05 | H96: 0 | I96: 0 | J96: 0 | K96: 0 | L96: 0 | M96: 0 | N96: 0 | O96: 0 | P96: 0
D97: 69 | E97: =VLOOKUP($D97,Point_Sources_All!$A$5:$GG$205,((3*(TRANSPOSE($E$12:$E$23)-1)+$C$4)+($D$8)))/1000*365.25 -> 5.640007875e-05 | F97: 0.0008193787175 | G97: 3.444523606e-05 | H97: 0 | I97: 0 | J97: 0 | K97: 0 | L97: 0 | M97: 0 | N97: 0 | O97: 0 | P97: 0
D98: 70 | E98: =VLOOKUP($D98,Point_Sources_All!$A$5:$GG$205,((3*(TRANSPOSE($E$12:$E$23)-1)+$C$4)+($D$8)))/1000*365.25 -> 5.627071938e-05 | F98: 0.0008153349434 | G98: 3.447056006e-05 | H98: 0 | I98: 0 | J98: 0 | K98: 0 | L98: 0 | M98: 0 | N98: 0 | O98: 0 | P98: 0
D99: 71 | E99: =VLOOKUP($D99,Point_Sources_All!$A$5:$GG$205,((3*(TRANSPOSE($E$12:$E$23)-1)+$C$4)+($D$8)))/1000*365.25 -> 5.628198125e-05 | F99: 0.0008238487992 | G99: 3.444432294e-05 | H99: 0 | I99: 0 | J99: 0 | K99: 0 | L99: 0 | M99: 0 | N99: 0 | O99: 0 | P99: 0
D100: 72 | E100: =VLOOKUP($D100,Point_Sources_All!$A$5:$GG$205,((3*(TRANSPOSE($E$12:$E$23)-1)+$C$4)+($D$8)))/1000*365.25 -> 5.631728875e-05 | F100: 0.0008389016648 | G100: 3.43990015e-05 | H100: 0 | I100: 0 | J100: 0 | K100: 0 | L100: 0 | M100: 0 | N100: 0 | O100: 0 | P100: 0
D101: 73 | E101: =VLOOKUP($D101,Point_Sources_All!$A$5:$GG$205,((3*(TRANSPOSE($E$12:$E$23)-1)+$C$4)+($D$8)))/1000*365.25 -> 5.623449875e-05 | F101: 0.0007896559813 | G101: 3.446505087e-05 | H101: 0 | I101: 0 | J101: 0 | K101: 0 | L101: 0 | M101: 0 | N101: 0 | O101: 0 | P101: 0
D102: 74 | E102: =VLOOKUP($D102,Point_Sources_All!$A$5:$GG$205,((3*(TRANSPOSE($E$12:$E$23)-1)+$C$4)+($D$8)))/1000*365.25 -> 5.636355375e-05 | F102: 0.0008220378593 | G102: 3.441440287e-05 | H102: 0 | I102: 0 | J102: 0 | K102: 0 | L102: 0 | M102: 0 | N102: 0 | O102: 0 | P102: 0
D103: 75 | E103: =VLOOKUP($D103,Point_Sources_All!$A$5:$GG$205,((3*(TRANSPOSE($E$12:$E$23)-1)+$C$4)+($D$8)))/1000*365.25 -> 5.633281188e-05 | F103: 0.0008258990083 | G103: 3.439066162e-05 | H103: 0 | I103: 0 | J103: 0 | K103: 0 | L103: 0 | M103: 0 | N103: 0 | O103: 0 | P103: 0
D104: 76 | E104: =VLOOKUP($D104,Point_Sources_All!$A$5:$GG$205,((3*(TRANSPOSE($E$12:$E$23)-1)+$C$4)+($D$8)))/1000*365.25 -> 5.63300725e-05 | F104: 0.0008027916497 | G104: 3.443756581e-05 | H104: 0 | I104: 0 | J104: 0 | K104: 0 | L104: 0 | M104: 0 | N104: 0 | O104: 0 | P104: 0
D105: 77 | E105: =VLOOKUP($D105,Point_Sources_All!$A$5:$GG$205,((3*(TRANSPOSE($E$12:$E$23)-1)+$C$4)+($D$8)))/1000*365.25 -> 5.630541812e-05 | F105: 0.0008197413803 | G105: 3.438868319e-05 | H105: 0 | I105: 0 | J105: 0 | K105: 0 | L105: 0 | M105: 0 | N105: 0 | O105: 0 | P105: 0
D106: 78 | E106: =VLOOKUP($D106,Point_Sources_All!$A$5:$GG$205,((3*(TRANSPOSE($E$12:$E$23)-1)+$C$4)+($D$8)))/1000*365.25 -> 5.631668e-05 | F106: 0.0008013171963 | G106: 3.442496469e-05 | H106: 0 | I106: 0 | J106: 0 | K106: 0 | L106: 0 | M106: 0 | N106: 0 | O106: 0 | P106: 0
D107: 79 | E107: =VLOOKUP($D107,Point_Sources_All!$A$5:$GG$205,((3*(TRANSPOSE($E$12:$E$23)-1)+$C$4)+($D$8)))/1000*365.25 -> 5.63032875e-05 | F107: 0.0008238665747 | G107: 3.446721194e-05 | H107: 0 | I107: 0 | J107: 0 | K107: 0 | L107: 0 | M107: 0 | N107: 0 | O107: 0 | P107: 0
D108: 80 | E108: =VLOOKUP($D108,Point_Sources_All!$A$5:$GG$205,((3*(TRANSPOSE($E$12:$E$23)-1)+$C$4)+($D$8)))/1000*365.25 -> 5.632246312e-05 | F108: 0.0008226588451 | G108: 3.445996781e-05 | H108: 0 | I108: 0 | J108: 0 | K108: 0 | L108: 0 | M108: 0 | N108: 0 | O108: 0 | P108: 0
D109: 81 | E109: =VLOOKUP($D109,Point_Sources_All!$A$5:$GG$205,((3*(TRANSPOSE($E$12:$E$23)-1)+$C$4)+($D$8)))/1000*365.25 -> 5.62911125e-05 | F109: 0.0008303497013 | G109: 3.43663725e-05 | H109: 0 | I109: 0 | J109: 0 | K109: 0 | L109: 0 | M109: 0 | N109: 0 | O109: 0 | P109: 0
D110: 82 | E110: =VLOOKUP($D110,Point_Sources_All!$A$5:$GG$205,((3*(TRANSPOSE($E$12:$E$23)-1)+$C$4)+($D$8)))/1000*365.25 -> 5.6353205e-05 | F110: 0.0008361611941 | G110: 3.442326019e-05 | H110: 0 | I110: 0 | J110: 0 | K110: 0 | L110: 0 | M110: 0 | N110: 0 | O110: 0 | P110: 0
D111: 83 | E111: =VLOOKUP($D111,Point_Sources_All!$A$5:$GG$205,((3*(TRANSPOSE($E$12:$E$23)-1)+$C$4)+($D$8)))/1000*365.25 -> 5.633129e-05 | F111: 0.0008213813528 | G111: 3.439008331e-05 | H111: 0 | I111: 0 | J111: 0 | K111: 0 | L111: 0 | M111: 0 | N111: 0 | O111: 0 | P111: 0
D112: 84 | E112: =VLOOKUP($D112,Point_Sources_All!$A$5:$GG$205,((3*(TRANSPOSE($E$12:$E$23)-1)+$C$4)+($D$8)))/1000*365.25 -> 5.629446062e-05 | F112: 0.0008587160512 | G112: 3.446197669e-05 | H112: 0 | I112: 0 | J112: 0 | K112: 0 | L112: 0 | M112: 0 | N112: 0 | O112: 0 | P112: 0
D113: 85 | E113: =VLOOKUP($D113,Point_Sources_All!$A$5:$GG$205,((3*(TRANSPOSE($E$12:$E$23)-1)+$C$4)+($D$8)))/1000*365.25 -> 5.643203813e-05 | F113: 0.0008596675579 | G113: 3.444048781e-05 | H113: 0 | I113: 0 | J113: 0 | K113: 0 | L113: 0 | M113: 0 | N113: 0 | O113: 0 | P113: 0
D114: 86 | E114: =VLOOKUP($D114,Point_Sources_All!$A$5:$GG$205,((3*(TRANSPOSE($E$12:$E$23)-1)+$C$4)+($D$8)))/1000*365.25 -> 5.627832875e-05 | F114: 0.0007888849081 | G114: 3.439741875e-05 | H114: 0 | I114: 0 | J114: 0 | K114: 0 | L114: 0 | M114: 0 | N114: 0 | O114: 0 | P114: 0
D115: 87 | E115: =VLOOKUP($D115,Point_Sources_All!$A$5:$GG$205,((3*(TRANSPOSE($E$12:$E$23)-1)+$C$4)+($D$8)))/1000*365.25 -> 5.6246065e-05 | F115: 0.0008120918278 | G115: 3.441403763e-05 | H115: 0 | I115: 0 | J115: 0 | K115: 0 | L115: 0 | M115: 0 | N115: 0 | O115: 0 | P115: 0
D116: 88 | E116: =VLOOKUP($D116,Point_Sources_All!$A$5:$GG$205,((3*(TRANSPOSE($E$12:$E$23)-1)+$C$4)+($D$8)))/1000*365.25 -> 5.637785938e-05 | F116: 0.0007954591038 | G116: 3.439860581e-05 | H116: 0 | I116: 0 | J116: 0 | K116: 0 | L116: 0 | M116: 0 | N116: 0 | O116: 0 | P116: 0
D117: 89 | E117: =VLOOKUP($D117,Point_Sources_All!$A$5:$GG$205,((3*(TRANSPOSE($E$12:$E$23)-1)+$C$4)+($D$8)))/1000*365.25 -> 5.63471175e-05 | F117: 0.0008465647316 | G117: 3.445786763e-05 | H117: 0 | I117: 0 | J117: 0 | K117: 0 | L117: 0 | M117: 0 | N117: 0 | O117: 0 | P117: 0
D118: 90 | E118: =VLOOKUP($D118,Point_Sources_All!$A$5:$GG$205,((3*(TRANSPOSE($E$12:$E$23)-1)+$C$4)+($D$8)))/1000*365.25 -> 5.630024375e-05 | F118: 0.0008415538364 | G118: 3.436138075e-05 | H118: 0 | I118: 0 | J118: 0 | K118: 0 | L118: 0 | M118: 0 | N118: 0 | O118: 0 | P118: 0
D119: 91 | E119: =VLOOKUP($D119,Point_Sources_All!$A$5:$GG$205,((3*(TRANSPOSE($E$12:$E$23)-1)+$C$4)+($D$8)))/1000*365.25 -> 5.624180375e-05 | F119: 0.0008129279155 | G119: 3.439699262e-05 | H119: 0 | I119: 0 | J119: 0 | K119: 0 | L119: 0 | M119: 0 | N119: 0 | O119: 0 | P119: 0
D120: 92 | E120: =VLOOKUP($D120,Point_Sources_All!$A$5:$GG$205,((3*(TRANSPOSE($E$12:$E$23)-1)+$C$4)+($D$8)))/1000*365.25 -> 5.6319115e-05 | F120: 0.0008318724286 | G120: 3.437136425e-05 | H120: 0 | I120: 0 | J120: 0 | K120: 0 | L120: 0 | M120: 0 | N120: 0 | O120: 0 | P120: 0
D121: 93 | E121: =VLOOKUP($D121,Point_Sources_All!$A$5:$GG$205,((3*(TRANSPOSE($E$12:$E$23)-1)+$C$4)+($D$8)))/1000*365.25 -> 5.63592925e-05 | F121: 0.0008119715084 | G121: 3.439209219e-05 | H121: 0 | I121: 0 | J121: 0 | K121: 0 | L121: 0 | M121: 0 | N121: 0 | O121: 0 | P121: 0
D122: 94 | E122: =VLOOKUP($D122,Point_Sources_All!$A$5:$GG$205,((3*(TRANSPOSE($E$12:$E$23)-1)+$C$4)+($D$8)))/1000*365.25 -> 5.632185438e-05 | F122: 0.0008156864966 | G122: 3.447144275e-05 | H122: 0 | I122: 0 | J122: 0 | K122: 0 | L122: 0 | M122: 0 | N122: 0 | O122: 0 | P122: 0
D123: 95 | E123: =VLOOKUP($D123,Point_Sources_All!$A$5:$GG$205,((3*(TRANSPOSE($E$12:$E$23)-1)+$C$4)+($D$8)))/1000*365.25 -> 5.63787725e-05 | F123: 0.0007952665257 | G123: 3.440378019e-05 | H123: 0 | I123: 0 | J123: 0 | K123: 0 | L123: 0 | M123: 0 | N123: 0 | O123: 0 | P123: 0
D124: 96 | E124: =VLOOKUP($D124,Point_Sources_All!$A$5:$GG$205,((3*(TRANSPOSE($E$12:$E$23)-1)+$C$4)+($D$8)))/1000*365.25 -> 5.634194313e-05 | F124: 0.0008175925233 | G124: 3.444197925e-05 | H124: 0 | I124: 0 | J124: 0 | K124: 0 | L124: 0 | M124: 0 | N124: 0 | O124: 0 | P124: 0
D125: 97 | E125: =VLOOKUP($D125,Point_Sources_All!$A$5:$GG$205,((3*(TRANSPOSE($E$12:$E$23)-1)+$C$4)+($D$8)))/1000*365.25 -> 5.632459375e-05 | F125: 0.0008144349674 | G125: 3.444213144e-05 | H125: 0 | I125: 0 | J125: 0 | K125: 0 | L125: 0 | M125: 0 | N125: 0 | O125: 0 | P125: 0
D126: 98 | E126: =VLOOKUP($D126,Point_Sources_All!$A$5:$GG$205,((3*(TRANSPOSE($E$12:$E$23)-1)+$C$4)+($D$8)))/1000*365.25 -> 5.640342688e-05 | F126: 0.0008468502657 | G126: 3.446748588e-05 | H126: 0 | I126: 0 | J126: 0 | K126: 0 | L126: 0 | M126: 0 | N126: 0 | O126: 0 | P126: 0
D127: 99 | E127: =VLOOKUP($D127,Point_Sources_All!$A$5:$GG$205,((3*(TRANSPOSE($E$12:$E$23)-1)+$C$4)+($D$8)))/1000*365.25 -> 5.636051e-05 | F127: 0.0008445906771 | G127: 3.443482644e-05 | H127: 0 | I127: 0 | J127: 0 | K127: 0 | L127: 0 | M127: 0 | N127: 0 | O127: 0 | P127: 0
D128: 100 | E128: =VLOOKUP($D128,Point_Sources_All!$A$5:$GG$205,((3*(TRANSPOSE($E$12:$E$23)-1)+$C$4)+($D$8)))/1000*365.25 -> 5.626219688e-05 | F128: 0.0008281346427 | G128: 3.4412881e-05 | H128: 0 | I128: 0 | J128: 0 | K128: 0 | L128: 0 | M128: 0 | N128: 0 | O128: 0 | P128: 0
D129: 101 | E129: =VLOOKUP($D129,Point_Sources_All!$A$5:$GG$205,((3*(TRANSPOSE($E$12:$E$23)-1)+$C$4)+($D$8)))/1000*365.25 -> 5.635107438e-05 | F129: 0.0008359883091 | G129: 3.443774844e-05 | H129: 0 | I129: 0 | J129: 0 | K129: 0 | L129: 0 | M129: 0 | N129: 0 | O129: 0 | P129: 0
D130: 102 | E130: =VLOOKUP($D130,Point_Sources_All!$A$5:$GG$205,((3*(TRANSPOSE($E$12:$E$23)-1)+$C$4)+($D$8)))/1000*365.25 -> 5.63349425e-05 | F130: 0.0008239011821 | G130: 3.446392469e-05 | H130: 0 | I130: 0 | J130: 0 | K130: 0 | L130: 0 | M130: 0 | N130: 0 | O130: 0 | P130: 0
D131: 103 | E131: =VLOOKUP($D131,Point_Sources_All!$A$5:$GG$205,((3*(TRANSPOSE($E$12:$E$23)-1)+$C$4)+($D$8)))/1000*365.25 -> 5.637785938e-05 | F131: 0.0008366815536 | G131: 3.450501531e-05 | H131: 0 | I131: 0 | J131: 0 | K131: 0 | L131: 0 | M131: 0 | N131: 0 | O131: 0 | P131: 0
D132: 104 | E132: =VLOOKUP($D132,Point_Sources_All!$A$5:$GG$205,((3*(TRANSPOSE($E$12:$E$23)-1)+$C$4)+($D$8)))/1000*365.25 -> 5.63130275e-05 | F132: 0.0008696366914 | G132: 3.441260706e-05 | H132: 0 | I132: 0 | J132: 0 | K132: 0 | L132: 0 | M132: 0 | N132: 0 | O132: 0 | P132: 0
D133: 105 | E133: =VLOOKUP($D133,Point_Sources_All!$A$5:$GG$205,((3*(TRANSPOSE($E$12:$E$23)-1)+$C$4)+($D$8)))/1000*365.25 -> 5.634529125e-05 | F133: 0.0008658623805 | G133: 3.448100013e-05 | H133: 0 | I133: 0 | J133: 0 | K133: 0 | L133: 0 | M133: 0 | N133: 0 | O133: 0 | P133: 0
D134: 106 | E134: =VLOOKUP($D134,Point_Sources_All!$A$5:$GG$205,((3*(TRANSPOSE($E$12:$E$23)-1)+$C$4)+($D$8)))/1000*365.25 -> 5.631759313e-05 | F134: 0.0008299588229 | G134: 3.439845363e-05 | H134: 0 | I134: 0 | J134: 0 | K134: 0 | L134: 0 | M134: 0 | N134: 0 | O134: 0 | P134: 0
D135: 107 | E135: =VLOOKUP($D135,Point_Sources_All!$A$5:$GG$205,((3*(TRANSPOSE($E$12:$E$23)-1)+$C$4)+($D$8)))/1000*365.25 -> 5.629628687e-05 | F135: 0.0008430894996 | G135: 3.438932237e-05 | H135: 0 | I135: 0 | J135: 0 | K135: 0 | L135: 0 | M135: 0 | N135: 0 | O135: 0 | P135: 0
D136: 108 | E136: =VLOOKUP($D136,Point_Sources_All!$A$5:$GG$205,((3*(TRANSPOSE($E$12:$E$23)-1)+$C$4)+($D$8)))/1000*365.25 -> 5.631454937e-05 | F136: 0.0008372341159 | G136: 3.438551769e-05 | H136: 0 | I136: 0 | J136: 0 | K136: 0 | L136: 0 | M136: 0 | N136: 0 | O136: 0 | P136: 0
D137: 109 | E137: =VLOOKUP($D137,Point_Sources_All!$A$5:$GG$205,((3*(TRANSPOSE($E$12:$E$23)-1)+$C$4)+($D$8)))/1000*365.25 -> 5.632915938e-05 | F137: 0.0008152751033 | G137: 3.438247394e-05 | H137: 0 | I137: 0 | J137: 0 | K137: 0 | L137: 0 | M137: 0 | N137: 0 | O137: 0 | P137: 0
D138: 110 | E138: =VLOOKUP($D138,Point_Sources_All!$A$5:$GG$205,((3*(TRANSPOSE($E$12:$E$23)-1)+$C$4)+($D$8)))/1000*365.25 -> 5.63081575e-05 | F138: 0.0008214492893 | G138: 3.437599075e-05 | H138: 0 | I138: 0 | J138: 0 | K138: 0 | L138: 0 | M138: 0 | N138: 0 | O138: 0 | P138: 0
D139: 111 | E139: =VLOOKUP($D139,Point_Sources_All!$A$5:$GG$205,((3*(TRANSPOSE($E$12:$E$23)-1)+$C$4)+($D$8)))/1000*365.25 -> 5.631028813e-05 | F139: 0.0008284161896 | G139: 3.445482388e-05 | H139: 0 | I139: 0 | J139: 0 | K139: 0 | L139: 0 | M139: 0 | N139: 0 | O139: 0 | P139: 0
D140: 112 | E140: =VLOOKUP($D140,Point_Sources_All!$A$5:$GG$205,((3*(TRANSPOSE($E$12:$E$23)-1)+$C$4)+($D$8)))/1000*365.25 -> 5.634072562e-05 | F140: 0.0008087733489 | G140: 3.4425543e-05 | H140: 0 | I140: 0 | J140: 0 | K140: 0 | L140: 0 | M140: 0 | N140: 0 | O140: 0 | P140: 0
D141: 113 | E141: =VLOOKUP($D141,Point_Sources_All!$A$5:$GG$205,((3*(TRANSPOSE($E$12:$E$23)-1)+$C$4)+($D$8)))/1000*365.25 -> 5.633616e-05 | F141: 0.0008465220886 | G141: 3.440548469e-05 | H141: 0 | I141: 0 | J141: 0 | K141: 0 | L141: 0 | M141: 0 | N141: 0 | O141: 0 | P141: 0
D142: 114 | E142: =VLOOKUP($D142,Point_Sources_All!$A$5:$GG$205,((3*(TRANSPOSE($E$12:$E$23)-1)+$C$4)+($D$8)))/1000*365.25 -> 5.6328855e-05 | F142: 0.0008571846493 | G142: 3.442898244e-05 | H142: 0 | I142: 0 | J142: 0 | K142: 0 | L142: 0 | M142: 0 | N142: 0 | O142: 0 | P142: 0
D143: 115 | E143: =VLOOKUP($D143,Point_Sources_All!$A$5:$GG$205,((3*(TRANSPOSE($E$12:$E$23)-1)+$C$4)+($D$8)))/1000*365.25 -> 5.629263438e-05 | F143: 0.0007893187642 | G143: 3.4397784e-05 | H143: 0 | I143: 0 | J143: 0 | K143: 0 | L143: 0 | M143: 0 | N143: 0 | O143: 0 | P143: 0
D144: 116 | E144: =VLOOKUP($D144,Point_Sources_All!$A$5:$GG$205,((3*(TRANSPOSE($E$12:$E$23)-1)+$C$4)+($D$8)))/1000*365.25 -> 5.634437813e-05 | F144: 0.0008383894321 | G144: 3.4425056e-05 | H144: 0 | I144: 0 | J144: 0 | K144: 0 | L144: 0 | M144: 0 | N144: 0 | O144: 0 | P144: 0
D145: 117 | E145: =VLOOKUP($D145,Point_Sources_All!$A$5:$GG$205,((3*(TRANSPOSE($E$12:$E$23)-1)+$C$4)+($D$8)))/1000*365.25 -> 5.637298937e-05 | F145: 0.0008036379035 | G145: 3.444359244e-05 | H145: 0 | I145: 0 | J145: 0 | K145: 0 | L145: 0 | M145: 0 | N145: 0 | O145: 0 | P145: 0
D146: 118 | E146: =VLOOKUP($D146,Point_Sources_All!$A$5:$GG$205,((3*(TRANSPOSE($E$12:$E$23)-1)+$C$4)+($D$8)))/1000*365.25 -> 5.635777062e-05 | F146: 0.000805507253 | G146: 3.437809094e-05 | H146: 0 | I146: 0 | J146: 0 | K146: 0 | L146: 0 | M146: 0 | N146: 0 | O146: 0 | P146: 0
D147: 119 | E147: =VLOOKUP($D147,Point_Sources_All!$A$5:$GG$205,((3*(TRANSPOSE($E$12:$E$23)-1)+$C$4)+($D$8)))/1000*365.25 -> 5.636142312e-05 | F147: 0.0008531584681 | G147: 3.436765088e-05 | H147: 0 | I147: 0 | J147: 0 | K147: 0 | L147: 0 | M147: 0 | N147: 0 | O147: 0 | P147: 0
D148: 120 | E148: =VLOOKUP($D148,Point_Sources_All!$A$5:$GG$205,((3*(TRANSPOSE($E$12:$E$23)-1)+$C$4)+($D$8)))/1000*365.25 -> 5.634255187e-05 | F148: 0.0008643608073 | G148: 3.444511431e-05 | H148: 0 | I148: 0 | J148: 0 | K148: 0 | L148: 0 | M148: 0 | N148: 0 | O148: 0 | P148: 0
D149: 121 | E149: =VLOOKUP($D149,Point_Sources_All!$A$5:$GG$205,((3*(TRANSPOSE($E$12:$E$23)-1)+$C$4)+($D$8)))/1000*365.25 -> 5.63714675e-05 | F149: 0.0007987931971 | G149: 3.439078338e-05 | H149: 0 | I149: 0 | J149: 0 | K149: 0 | L149: 0 | M149: 0 | N149: 0 | O149: 0 | P149: 0
D150: 122 | E150: =VLOOKUP($D150,Point_Sources_All!$A$5:$GG$205,((3*(TRANSPOSE($E$12:$E$23)-1)+$C$4)+($D$8)))/1000*365.25 -> 5.635137875e-05 | F150: 0.0008364368969 | G150: 3.443421769e-05 | H150: 0 | I150: 0 | J150: 0 | K150: 0 | L150: 0 | M150: 0 | N150: 0 | O150: 0 | P150: 0
D151: 123 | E151: =VLOOKUP($D151,Point_Sources_All!$A$5:$GG$205,((3*(TRANSPOSE($E$12:$E$23)-1)+$C$4)+($D$8)))/1000*365.25 -> 5.633433375e-05 | F151: 0.0008022636808 | G151: 3.442167744e-05 | H151: 0 | I151: 0 | J151: 0 | K151: 0 | L151: 0 | M151: 0 | N151: 0 | O151: 0 | P151: 0
D152: 124 | E152: =VLOOKUP($D152,Point_Sources_All!$A$5:$GG$205,((3*(TRANSPOSE($E$12:$E$23)-1)+$C$4)+($D$8)))/1000*365.25 -> 5.62545875e-05 | F152: 0.0008451443656 | G152: 3.437751262e-05 | H152: 0 | I152: 0 | J152: 0 | K152: 0 | L152: 0 | M152: 0 | N152: 0 | O152: 0 | P152: 0
D153: 125 | E153: =VLOOKUP($D153,Point_Sources_All!$A$5:$GG$205,((3*(TRANSPOSE($E$12:$E$23)-1)+$C$4)+($D$8)))/1000*365.25 -> 5.63008525e-05 | F153: 0.0007984507448 | G153: 3.441546819e-05 | H153: 0 | I153: 0 | J153: 0 | K153: 0 | L153: 0 | M153: 0 | N153: 0 | O153: 0 | P153: 0
D154: 126 | E154: =VLOOKUP($D154,Point_Sources_All!$A$5:$GG$205,((3*(TRANSPOSE($E$12:$E$23)-1)+$C$4)+($D$8)))/1000*365.25 -> 5.636842375e-05 | F154: 0.0008508101236 | G154: 3.441269837e-05 | H154: 0 | I154: 0 | J154: 0 | K154: 0 | L154: 0 | M154: 0 | N154: 0 | O154: 0 | P154: 0
D155: 127 | E155: =VLOOKUP($D155,Point_Sources_All!$A$5:$GG$205,((3*(TRANSPOSE($E$12:$E$23)-1)+$C$4)+($D$8)))/1000*365.25 -> 5.633798625e-05 | F155: 0.0008641777257 | G155: 3.441893806e-05 | H155: 0 | I155: 0 | J155: 0 | K155: 0 | L155: 0 | M155: 0 | N155: 0 | O155: 0 | P155: 0
D156: 128 | E156: =VLOOKUP($D156,Point_Sources_All!$A$5:$GG$205,((3*(TRANSPOSE($E$12:$E$23)-1)+$C$4)+($D$8)))/1000*365.25 -> 5.633068125e-05 | F156: 0.0008134733251 | G156: 3.445089744e-05 | H156: 0 | I156: 0 | J156: 0 | K156: 0 | L156: 0 | M156: 0 | N156: 0 | O156: 0 | P156: 0
D157: 129 | E157: =VLOOKUP($D157,Point_Sources_All!$A$5:$GG$205,((3*(TRANSPOSE($E$12:$E$23)-1)+$C$4)+($D$8)))/1000*365.25 -> 5.636720625e-05 | F157: 0.0008435747646 | G157: 3.447366469e-05 | H157: 0 | I157: 0 | J157: 0 | K157: 0 | L157: 0 | M157: 0 | N157: 0 | O157: 0 | P157: 0
D158: 130 | E158: =VLOOKUP($D158,Point_Sources_All!$A$5:$GG$205,((3*(TRANSPOSE($E$12:$E$23)-1)+$C$4)+($D$8)))/1000*365.25 -> 5.63203325e-05 | F158: 0.000855675071 | G158: 3.437504719e-05 | H158: 0 | I158: 0 | J158: 0 | K158: 0 | L158: 0 | M158: 0 | N158: 0 | O158: 0 | P158: 0
D159: 131 | E159: =VLOOKUP($D159,Point_Sources_All!$A$5:$GG$205,((3*(TRANSPOSE($E$12:$E$23)-1)+$C$4)+($D$8)))/1000*365.25 -> 5.637816375e-05 | F159: 0.0008127525651 | G159: 3.440499769e-05 | H159: 0 | I159: 0 | J159: 0 | K159: 0 | L159: 0 | M159: 0 | N159: 0 | O159: 0 | P159: 0
D160: 132 | E160: =VLOOKUP($D160,Point_Sources_All!$A$5:$GG$205,((3*(TRANSPOSE($E$12:$E$23)-1)+$C$4)+($D$8)))/1000*365.25 -> 5.62813725e-05 | F160: 0.0008205477306 | G160: 3.434744037e-05 | H160: 0 | I160: 0 | J160: 0 | K160: 0 | L160: 0 | M160: 0 | N160: 0 | O160: 0 | P160: 0
D161: 133 | E161: =VLOOKUP($D161,Point_Sources_All!$A$5:$GG$205,((3*(TRANSPOSE($E$12:$E$23)-1)+$C$4)+($D$8)))/1000*365.25 -> 5.62716325e-05 | F161: 0.0008485621316 | G161: 3.447640406e-05 | H161: 0 | I161: 0 | J161: 0 | K161: 0 | L161: 0 | M161: 0 | N161: 0 | O161: 0 | P161: 0
D162: 134 | E162: =VLOOKUP($D162,Point_Sources_All!$A$5:$GG$205,((3*(TRANSPOSE($E$12:$E$23)-1)+$C$4)+($D$8)))/1000*365.25 -> 5.63495525e-05 | F162: 0.0008422646433 | G162: 3.446069831e-05 | H162: 0 | I162: 0 | J162: 0 | K162: 0 | L162: 0 | M162: 0 | N162: 0 | O162: 0 | P162: 0
D163: 135 | E163: =VLOOKUP($D163,Point_Sources_All!$A$5:$GG$205,((3*(TRANSPOSE($E$12:$E$23)-1)+$C$4)+($D$8)))/1000*365.25 -> 5.633889937e-05 | F163: 0.0008072312634 | G163: 3.442916506e-05 | H163: 0 | I163: 0 | J163: 0 | K163: 0 | L163: 0 | M163: 0 | N163: 0 | O163: 0 | P163: 0
D164: 136 | E164: =VLOOKUP($D164,Point_Sources_All!$A$5:$GG$205,((3*(TRANSPOSE($E$12:$E$23)-1)+$C$4)+($D$8)))/1000*365.25 -> 5.630480937e-05 | F164: 0.0008614649227 | G164: 3.446130706e-05 | H164: 0 | I164: 0 | J164: 0 | K164: 0 | L164: 0 | M164: 0 | N164: 0 | O164: 0 | P164: 0
D165: 137 | E165: =VLOOKUP($D165,Point_Sources_All!$A$5:$GG$205,((3*(TRANSPOSE($E$12:$E$23)-1)+$C$4)+($D$8)))/1000*365.25 -> 5.637177187e-05 | F165: 0.0008440458763 | G165: 3.440843713e-05 | H165: 0 | I165: 0 | J165: 0 | K165: 0 | L165: 0 | M165: 0 | N165: 0 | O165: 0 | P165: 0
D166: 138 | E166: =VLOOKUP($D166,Point_Sources_All!$A$5:$GG$205,((3*(TRANSPOSE($E$12:$E$23)-1)+$C$4)+($D$8)))/1000*365.25 -> 5.63081575e-05 | F166: 0.0007989658081 | G166: 3.439811881e-05 | H166: 0 | I166: 0 | J166: 0 | K166: 0 | L166: 0 | M166: 0 | N166: 0 | O166: 0 | P166: 0
D167: 139 | E167: =VLOOKUP($D167,Point_Sources_All!$A$5:$GG$205,((3*(TRANSPOSE($E$12:$E$23)-1)+$C$4)+($D$8)))/1000*365.25 -> 5.628654688e-05 | F167: 0.0008207729681 | G167: 3.449862344e-05 | H167: 0 | I167: 0 | J167: 0 | K167: 0 | L167: 0 | M167: 0 | N167: 0 | O167: 0 | P167: 0
D168: 140 | E168: =VLOOKUP($D168,Point_Sources_All!$A$5:$GG$205,((3*(TRANSPOSE($E$12:$E$23)-1)+$C$4)+($D$8)))/1000*365.25 -> 5.63422475e-05 | F168: 0.0008187825382 | G168: 3.43955925e-05 | H168: 0 | I168: 0 | J168: 0 | K168: 0 | L168: 0 | M168: 0 | N168: 0 | O168: 0 | P168: 0
D169: 141 | E169: =VLOOKUP($D169,Point_Sources_All!$A$5:$GG$205,((3*(TRANSPOSE($E$12:$E$23)-1)+$C$4)+($D$8)))/1000*365.25 -> 5.6328855e-05 | F169: 0.0008170096451 | G169: 3.446833813e-05 | H169: 0 | I169: 0 | J169: 0 | K169: 0 | L169: 0 | M169: 0 | N169: 0 | O169: 0 | P169: 0
D170: 142 | E170: =VLOOKUP($D170,Point_Sources_All!$A$5:$GG$205,((3*(TRANSPOSE($E$12:$E$23)-1)+$C$4)+($D$8)))/1000*365.25 -> 5.635259625e-05 | F170: 0.0008249035194 | G170: 3.44983495e-05 | H170: 0 | I170: 0 | J170: 0 | K170: 0 | L170: 0 | M170: 0 | N170: 0 | O170: 0 | P170: 0
D171: 143 | E171: =VLOOKUP($D171,Point_Sources_All!$A$5:$GG$205,((3*(TRANSPOSE($E$12:$E$23)-1)+$C$4)+($D$8)))/1000*365.25 -> 5.638942563e-05 | F171: 0.0008275669224 | G171: 3.440938069e-05 | H171: 0 | I171: 0 | J171: 0 | K171: 0 | L171: 0 | M171: 0 | N171: 0 | O171: 0 | P171: 0
D172: 144 | E172: =VLOOKUP($D172,Point_Sources_All!$A$5:$GG$205,((3*(TRANSPOSE($E$12:$E$23)-1)+$C$4)+($D$8)))/1000*365.25 -> 5.635503125e-05 | F172: 0.0008260938996 | G172: 3.445366725e-05 | H172: 0 | I172: 0 | J172: 0 | K172: 0 | L172: 0 | M172: 0 | N172: 0 | O172: 0 | P172: 0
D173: 145 | E173: =VLOOKUP($D173,Point_Sources_All!$A$5:$GG$205,((3*(TRANSPOSE($E$12:$E$23)-1)+$C$4)+($D$8)))/1000*365.25 -> 5.626706687e-05 | F173: 0.0008062656337 | G173: 3.441333756e-05 | H173: 0 | I173: 0 | J173: 0 | K173: 0 | L173: 0 | M173: 0 | N173: 0 | O173: 0 | P173: 0
D174: 146 | E174: =VLOOKUP($D174,Point_Sources_All!$A$5:$GG$205,((3*(TRANSPOSE($E$12:$E$23)-1)+$C$4)+($D$8)))/1000*365.25 -> 5.632459375e-05 | F174: 0.0008662318917 | G174: 3.442989556e-05 | H174: 0 | I174: 0 | J174: 0 | K174: 0 | L174: 0 | M174: 0 | N174: 0 | O174: 0 | P174: 0
D175: 147 | E175: =VLOOKUP($D175,Point_Sources_All!$A$5:$GG$205,((3*(TRANSPOSE($E$12:$E$23)-1)+$C$4)+($D$8)))/1000*365.25 -> 5.633098563e-05 | F175: 0.0008193513542 | G175: 3.438847013e-05 | H175: 0 | I175: 0 | J175: 0 | K175: 0 | L175: 0 | M175: 0 | N175: 0 | O175: 0 | P175: 0
D176: 148 | E176: =VLOOKUP($D176,Point_Sources_All!$A$5:$GG$205,((3*(TRANSPOSE($E$12:$E$23)-1)+$C$4)+($D$8)))/1000*365.25 -> 5.6426255e-05 | F176: 0.0008036240544 | G176: 3.4433822e-05 | H176: 0 | I176: 0 | J176: 0 | K176: 0 | L176: 0 | M176: 0 | N176: 0 | O176: 0 | P176: 0
D177: 149 | E177: =VLOOKUP($D177,Point_Sources_All!$A$5:$GG$205,((3*(TRANSPOSE($E$12:$E$23)-1)+$C$4)+($D$8)))/1000*365.25 -> 5.632428937e-05 | F177: 0.000823372848 | G177: 3.43994885e-05 | H177: 0 | I177: 0 | J177: 0 | K177: 0 | L177: 0 | M177: 0 | N177: 0 | O177: 0 | P177: 0
D178: 150 | E178: =VLOOKUP($D178,Point_Sources_All!$A$5:$GG$205,((3*(TRANSPOSE($E$12:$E$23)-1)+$C$4)+($D$8)))/1000*365.25 -> 5.6314245e-05 | F178: 0.0007948299606 | G178: 3.442195138e-05 | H178: 0 | I178: 0 | J178: 0 | K178: 0 | L178: 0 | M178: 0 | N178: 0 | O178: 0 | P178: 0
D179: 151 | E179: =VLOOKUP($D179,Point_Sources_All!$A$5:$GG$205,((3*(TRANSPOSE($E$12:$E$23)-1)+$C$4)+($D$8)))/1000*365.25 -> 5.635655312e-05 | F179: 0.0008529577023 | G179: 3.437720825e-05 | H179: 0 | I179: 0 | J179: 0 | K179: 0 | L179: 0 | M179: 0 | N179: 0 | O179: 0 | P179: 0
D180: 152 | E180: =VLOOKUP($D180,Point_Sources_All!$A$5:$GG$205,((3*(TRANSPOSE($E$12:$E$23)-1)+$C$4)+($D$8)))/1000*365.25 -> 5.635411812e-05 | F180: 0.0008408411423 | G180: 3.445141488e-05 | H180: 0 | I180: 0 | J180: 0 | K180: 0 | L180: 0 | M180: 0 | N180: 0 | O180: 0 | P180: 0
D181: 153 | E181: =VLOOKUP($D181,Point_Sources_All!$A$5:$GG$205,((3*(TRANSPOSE($E$12:$E$23)-1)+$C$4)+($D$8)))/1000*365.25 -> 5.638151187e-05 | F181: 0.0007984462096 | G181: 3.440198438e-05 | H181: 0 | I181: 0 | J181: 0 | K181: 0 | L181: 0 | M181: 0 | N181: 0 | O181: 0 | P181: 0
D182: 154 | E182: =VLOOKUP($D182,Point_Sources_All!$A$5:$GG$205,((3*(TRANSPOSE($E$12:$E$23)-1)+$C$4)+($D$8)))/1000*365.25 -> 5.635290063e-05 | F182: 0.0008354317594 | G182: 3.444243581e-05 | H182: 0 | I182: 0 | J182: 0 | K182: 0 | L182: 0 | M182: 0 | N182: 0 | O182: 0 | P182: 0
D183: 155 | E183: =VLOOKUP($D183,Point_Sources_All!$A$5:$GG$205,((3*(TRANSPOSE($E$12:$E$23)-1)+$C$4)+($D$8)))/1000*365.25 -> 5.635137875e-05 | F183: 0.000854740031 | G183: 3.44131245e-05 | H183: 0 | I183: 0 | J183: 0 | K183: 0 | L183: 0 | M183: 0 | N183: 0 | O183: 0 | P183: 0
D184: 156 | E184: =VLOOKUP($D184,Point_Sources_All!$A$5:$GG$205,((3*(TRANSPOSE($E$12:$E$23)-1)+$C$4)+($D$8)))/1000*365.25 -> 5.635259625e-05 | F184: 0.0008359741252 | G184: 3.442079475e-05 | H184: 0 | I184: 0 | J184: 0 | K184: 0 | L184: 0 | M184: 0 | N184: 0 | O184: 0 | P184: 0
D185: 157 | E185: =VLOOKUP($D185,Point_Sources_All!$A$5:$GG$205,((3*(TRANSPOSE($E$12:$E$23)-1)+$C$4)+($D$8)))/1000*365.25 -> 5.6250935e-05 | F185: 0.0008151619367 | G185: 3.438889625e-05 | H185: 0 | I185: 0 | J185: 0 | K185: 0 | L185: 0 | M185: 0 | N185: 0 | O185: 0 | P185: 0
D186: 158 | E186: =VLOOKUP($D186,Point_Sources_All!$A$5:$GG$205,((3*(TRANSPOSE($E$12:$E$23)-1)+$C$4)+($D$8)))/1000*365.25 -> 5.626767562e-05 | F186: 0.0008093511136 | G186: 3.437571681e-05 | H186: 0 | I186: 0 | J186: 0 | K186: 0 | L186: 0 | M186: 0 | N186: 0 | O186: 0 | P186: 0
D187: 159 | E187: =VLOOKUP($D187,Point_Sources_All!$A$5:$GG$205,((3*(TRANSPOSE($E$12:$E$23)-1)+$C$4)+($D$8)))/1000*365.25 -> 5.632337625e-05 | F187: 0.0008159535552 | G187: 3.438865275e-05 | H187: 0 | I187: 0 | J187: 0 | K187: 0 | L187: 0 | M187: 0 | N187: 0 | O187: 0 | P187: 0
D188: 160 | E188: =VLOOKUP($D188,Point_Sources_All!$A$5:$GG$205,((3*(TRANSPOSE($E$12:$E$23)-1)+$C$4)+($D$8)))/1000*365.25 -> 5.62984175e-05 | F188: 0.0008194980629 | G188: 3.445497606e-05 | H188: 0 | I188: 0 | J188: 0 | K188: 0 | L188: 0 | M188: 0 | N188: 0 | O188: 0 | P188: 0
D189: 161 | E189: =VLOOKUP($D189,Point_Sources_All!$A$5:$GG$205,((3*(TRANSPOSE($E$12:$E$23)-1)+$C$4)+($D$8)))/1000*365.25 -> 5.626858875e-05 | F189: 0.0008002538622 | G189: 3.447603881e-05 | H189: 0 | I189: 0 | J189: 0 | K189: 0 | L189: 0 | M189: 0 | N189: 0 | O189: 0 | P189: 0
D190: 162 | E190: =VLOOKUP($D190,Point_Sources_All!$A$5:$GG$205,((3*(TRANSPOSE($E$12:$E$23)-1)+$C$4)+($D$8)))/1000*365.25 -> 5.630907063e-05 | F190: 0.0008307105683 | G190: 3.444094438e-05 | H190: 0 | I190: 0 | J190: 0 | K190: 0 | L190: 0 | M190: 0 | N190: 0 | O190: 0 | P190: 0
D191: 163 | E191: =VLOOKUP($D191,Point_Sources_All!$A$5:$GG$205,((3*(TRANSPOSE($E$12:$E$23)-1)+$C$4)+($D$8)))/1000*365.25 -> 5.632002813e-05 | F191: 0.0008282802557 | G191: 3.439276181e-05 | H191: 0 | I191: 0 | J191: 0 | K191: 0 | L191: 0 | M191: 0 | N191: 0 | O191: 0 | P191: 0
D192: 164 | E192: =VLOOKUP($D192,Point_Sources_All!$A$5:$GG$205,((3*(TRANSPOSE($E$12:$E$23)-1)+$C$4)+($D$8)))/1000*365.25 -> 5.636598875e-05 | F192: 0.0007981875517 | G192: 3.446605531e-05 | H192: 0 | I192: 0 | J192: 0 | K192: 0 | L192: 0 | M192: 0 | N192: 0 | O192: 0 | P192: 0
D193: 165 | E193: =VLOOKUP($D193,Point_Sources_All!$A$5:$GG$205,((3*(TRANSPOSE($E$12:$E$23)-1)+$C$4)+($D$8)))/1000*365.25 -> 5.627680687e-05 | F193: 0.0007935848842 | G193: 3.445954169e-05 | H193: 0 | I193: 0 | J193: 0 | K193: 0 | L193: 0 | M193: 0 | N193: 0 | O193: 0 | P193: 0
D194: 166 | E194: =VLOOKUP($D194,Point_Sources_All!$A$5:$GG$205,((3*(TRANSPOSE($E$12:$E$23)-1)+$C$4)+($D$8)))/1000*365.25 -> 5.634498688e-05 | F194: 0.0008767129536 | G194: 3.440113212e-05 | H194: 0 | I194: 0 | J194: 0 | K194: 0 | L194: 0 | M194: 0 | N194: 0 | O194: 0 | P194: 0
D195: 167 | E195: =VLOOKUP($D195,Point_Sources_All!$A$5:$GG$205,((3*(TRANSPOSE($E$12:$E$23)-1)+$C$4)+($D$8)))/1000*365.25 -> 5.63860775e-05 | F195: 0.0007933394971 | G195: 3.446998175e-05 | H195: 0 | I195: 0 | J195: 0 | K195: 0 | L195: 0 | M195: 0 | N195: 0 | O195: 0 | P195: 0
D196: 168 | E196: =VLOOKUP($D196,Point_Sources_All!$A$5:$GG$205,((3*(TRANSPOSE($E$12:$E$23)-1)+$C$4)+($D$8)))/1000*365.25 -> 5.630541813e-05 | F196: 0.0008418980541 | G196: 3.443400462e-05 | H196: 0 | I196: 0 | J196: 0 | K196: 0 | L196: 0 | M196: 0 | N196: 0 | O196: 0 | P196: 0
D197: 169 | E197: =VLOOKUP($D197,Point_Sources_All!$A$5:$GG$205,((3*(TRANSPOSE($E$12:$E$23)-1)+$C$4)+($D$8)))/1000*365.25 -> 5.629780875e-05 | F197: 0.0008277471124 | G197: 3.440755444e-05 | H197: 0 | I197: 0 | J197: 0 | K197: 0 | L197: 0 | M197: 0 | N197: 0 | O197: 0 | P197: 0
D198: 170 | E198: =VLOOKUP($D198,Point_Sources_All!$A$5:$GG$205,((3*(TRANSPOSE($E$12:$E$23)-1)+$C$4)+($D$8)))/1000*365.25 -> 5.630511375e-05 | F198: 0.0007755792159 | G198: 3.447332988e-05 | H198: 0 | I198: 0 | J198: 0 | K198: 0 | L198: 0 | M198: 0 | N198: 0 | O198: 0 | P198: 0
D199: 171 | E199: =VLOOKUP($D199,Point_Sources_All!$A$5:$GG$205,((3*(TRANSPOSE($E$12:$E$23)-1)+$C$4)+($D$8)))/1000*365.25 -> 5.6289895e-05 | F199: 0.0008350069736 | G199: 3.43819565e-05 | H199: 0 | I199: 0 | J199: 0 | K199: 0 | L199: 0 | M199: 0 | N199: 0 | O199: 0 | P199: 0
D200: 172 | E200: =VLOOKUP($D200,Point_Sources_All!$A$5:$GG$205,((3*(TRANSPOSE($E$12:$E$23)-1)+$C$4)+($D$8)))/1000*365.25 -> 5.637938125e-05 | F200: 0.0008243026223 | G200: 3.439693175e-05 | H200: 0 | I200: 0 | J200: 0 | K200: 0 | L200: 0 | M200: 0 | N200: 0 | O200: 0 | P200: 0
D201: 173 | E201: =VLOOKUP($D201,Point_Sources_All!$A$5:$GG$205,((3*(TRANSPOSE($E$12:$E$23)-1)+$C$4)+($D$8)))/1000*365.25 -> 5.633950812e-05 | F201: 0.0008659490056 | G201: 3.444134006e-05 | H201: 0 | I201: 0 | J201: 0 | K201: 0 | L201: 0 | M201: 0 | N201: 0 | O201: 0 | P201: 0
D202: 174 | E202: =VLOOKUP($D202,Point_Sources_All!$A$5:$GG$205,((3*(TRANSPOSE($E$12:$E$23)-1)+$C$4)+($D$8)))/1000*365.25 -> 5.626706687e-05 | F202: 0.0008173063803 | G202: 3.445263238e-05 | H202: 0 | I202: 0 | J202: 0 | K202: 0 | L202: 0 | M202: 0 | N202: 0 | O202: 0 | P202: 0
D203: 175 | E203: =VLOOKUP($D203,Point_Sources_All!$A$5:$GG$205,((3*(TRANSPOSE($E$12:$E$23)-1)+$C$4)+($D$8)))/1000*365.25 -> 5.630967938e-05 | F203: 0.0008350263623 | G203: 3.441075038e-05 | H203: 0 | I203: 0 | J203: 0 | K203: 0 | L203: 0 | M203: 0 | N203: 0 | O203: 0 | P203: 0
D204: 176 | E204: =VLOOKUP($D204,Point_Sources_All!$A$5:$GG$205,((3*(TRANSPOSE($E$12:$E$23)-1)+$C$4)+($D$8)))/1000*365.25 -> 5.636324937e-05 | F204: 0.0008259782676 | G204: 3.440064512e-05 | H204: 0 | I204: 0 | J204: 0 | K204: 0 | L204: 0 | M204: 0 | N204: 0 | O204: 0 | P204: 0
D205: 177 | E205: =VLOOKUP($D205,Point_Sources_All!$A$5:$GG$205,((3*(TRANSPOSE($E$12:$E$23)-1)+$C$4)+($D$8)))/1000*365.25 -> 5.631241875e-05 | F205: 0.0008367167698 | G205: 3.442514731e-05 | H205: 0 | I205: 0 | J205: 0 | K205: 0 | L205: 0 | M205: 0 | N205: 0 | O205: 0 | P205: 0
D206: 178 | E206: =VLOOKUP($D206,Point_Sources_All!$A$5:$GG$205,((3*(TRANSPOSE($E$12:$E$23)-1)+$C$4)+($D$8)))/1000*365.25 -> 5.632459375e-05 | F206: 0.0008243996875 | G206: 3.447576487e-05 | H206: 0 | I206: 0 | J206: 0 | K206: 0 | L206: 0 | M206: 0 | N206: 0 | O206: 0 | P206: 0
... 21 more rows

Sheet Point_Sources_All
B1: Values shown for constituent selected on PlotControl tab | AN1: Values shown for constituent selected on PlotControl tab | BZ1: Values shown for constituent selected on PlotControl tab | DL1: Values shown for constituent selected on PlotControl tab | EX1: Values shown for constituent selected on PlotControl tab
B2: =PlotControl!$B$12 -> Cumulative GW rate | E2: =PlotControl!$B$13 -> Cumulative SW rate | H2: =PlotControl!$B$14 -> Babbitt WWTP | K2: =PlotControl!$B$15 -> Area 5 NW | N2: =PlotControl!$B$16 -> FTB WWTP Effluent | Q2: =PlotControl!$B$17 -> Colby Lake | T2: =PlotControl!$B$18 -> North Flow Path | W2: =PlotControl!$B$19 -> Northwest Flow Path | Z2: =PlotControl!$B$20 -> West Flow Path | AC2: =PlotControl!$B$21 -> North Toe | AF2: =PlotControl!$B$22 -> Northwest Toe | AI2: =PlotControl!$B$23 -> West Toe | AN2: =PlotControl!$B$12 -> Cumulative GW rate | AQ2: =PlotControl!$B$13 -> Cumulative SW rate | AT2: =PlotControl!$B$14 -> Babbitt WWTP | AW2: =PlotControl!$B$15 -> Area 5 NW | AZ2: =PlotControl!$B$16 -> FTB WWTP Effluent | BC2: =PlotControl!$B$17 -> Colby Lake | BF2: =PlotControl!$B$18 -> North Flow Path | BI2: =PlotControl!$B$19 -> Northwest Flow Path | BL2: =PlotControl!$B$20 -> West Flow Path | BO2: =PlotControl!$B$21 -> North Toe | BR2: =PlotControl!$B$22 -> Northwest Toe | BU2: =PlotControl!$B$23 -> West Toe | BZ2: =PlotControl!$B$12 -> Cumulative GW rate | CC2: =PlotControl!$B$13 -> Cumulative SW rate | CF2: =PlotControl!$B$14 -> Babbitt WWTP | CI2: =PlotControl!$B$15 -> Area 5 NW | CL2: =PlotControl!$B$16 -> FTB WWTP Effluent | CO2: =PlotControl!$B$17 -> Colby Lake | CR2: =PlotControl!$B$18 -> North Flow Path | CU2: =PlotControl!$B$19 -> Northwest Flow Path | CX2: =PlotControl!$B$20 -> West Flow Path | DA2: =PlotControl!$B$21 -> North Toe | DD2: =PlotControl!$B$22 -> Northwest Toe | DG2: =PlotControl!$B$23 -> West Toe | DL2: =PlotControl!$B$12 -> Cumulative GW rate | DO2: =PlotControl!$B$13 -> Cumulative SW rate | DR2: =PlotControl!$B$14 -> Babbitt WWTP | DU2: =PlotControl!$B$15 -> Area 5 NW | DX2: =PlotControl!$B$16 -> FTB WWTP Effluent | EA2: =PlotControl!$B$17 -> Colby Lake | ED2: =PlotControl!$B$18 -> North Flow Path | EG2: =PlotControl!$B$19 -> Northwest Flow Path | EJ2: =PlotControl!$B$20 -> West Flow Path | EM2: =PlotControl!$B$21 -> North Toe | EP2: =PlotControl!$B$22 -> Northwest Toe | ES2: =PlotControl!$B$23 -> West Toe | EX2: =PlotControl!$B$12 -> Cumulative GW rate | FA2: =PlotControl!$B$13 -> Cumulative SW rate | FD2: =PlotControl!$B$14 -> Babbitt WWTP | FG2: =PlotControl!$B$15 -> Area 5 NW | FJ2: =PlotControl!$B$16 -> FTB WWTP Effluent | FM2: =PlotControl!$B$17 -> Colby Lake | FP2: =PlotControl!$B$18 -> North Flow Path | FS2: =PlotControl!$B$19 -> Northwest Flow Path | FV2: =PlotControl!$B$20 -> West Flow Path | FY2: =PlotControl!$B$21 -> North Toe | GB2: =PlotControl!$B$22 -> Northwest Toe | GE2: =PlotControl!$B$23 -> West Toe
B3: Annual PM-12 Loading | E3: Annual PM-12 Loading | H3: Annual PM-12 Loading | K3: Annual PM-12 Loading | N3: Annual PM-12 Loading | Q3: Annual PM-12 Loading | T3: Annual PM-12 Loading | W3: Annual PM-12 Loading | Z3: Annual PM-12 Loading | AC3: Annual PM-12 Loading | AF3: Annual PM-12 Loading | AI3: Annual PM-12 Loading | AN3: Annual PM-13 Loading | AQ3: Annual PM-13 Loading | AT3: Annual PM-13 Loading | AW3: Annual PM-13 Loading | AZ3: Annual PM-13 Loading | BC3: Annual PM-13 Loading | BF3: Annual PM-13 Loading | BI3: Annual PM-13 Loading | BL3: Annual PM-13 Loading | BO3: Annual PM-13 Loading | BR3: Annual PM-13 Loading | BU3: Annual PM-13 Loading | BZ3: Annual PM-11 Loading | CC3: Annual PM-11 Loading | CF3: Annual PM-11 Loading | CI3: Annual PM-11 Loading | CL3: Annual PM-11 Loading | CO3: Annual PM-11 Loading | CR3: Annual PM-11 Loading | CU3: Annual PM-11 Loading | CX3: Annual PM-11 Loading | DA3: Annual PM-11 Loading | DD3: Annual PM-11 Loading | DG3: Annual PM-11 Loading | DL3: Annual PM-19 Loading | DO3: Annual PM-19 Loading | DR3: Annual PM-19 Loading | DU3: Annual PM-19 Loading | DX3: Annual PM-19 Loading | EA3: Annual PM-19 Loading | ED3: Annual PM-19 Loading | EG3: Annual PM-19 Loading | EJ3: Annual PM-19 Loading | EM3: Annual PM-19 Loading | EP3: Annual PM-19 Loading | ES3: Annual PM-19 Loading | EX3: Annual MLC-2 Loading | FA3: Annual MLC-2 Loading | FD3: Annual MLC-2 Loading | FG3: Annual MLC-2 Loading | FJ3: Annual MLC-2 Loading | FM3: Annual MLC-2 Loading | FP3: Annual MLC-2 Loading | FS3: Annual MLC-2 Loading | FV3: Annual MLC-2 Loading | FY3: Annual MLC-2 Loading | GB3: Annual MLC-2 Loading | GE3: Annual MLC-2 Loading
A4: Time | B4: P10 | C4: P50 | D4: P90 | E4: P10 | F4: P50 | G4: P90 | H4: P10 | I4: P50 | J4: P90 | K4: P10 | L4: P50 | M4: P90 | N4: P10 | O4: P50 | P4: P90 | Q4: P10 | R4: P50 | S4: P90 | T4: P10 | U4: P50 | V4: P90 | W4: P10 | X4: P50 | Y4: P90 | Z4: P10 | AA4: P50 | AB4: P90 | AC4: P10 | AD4: P50 | AE4: P90 | AF4: P10 | AG4: P50 | AH4: P90 | AI4: P10 | AJ4: P50 | AK4: P90 | AM4: Time | AN4: P10 | AO4: P50 | AP4: P90 | AQ4: P10 | AR4: P50 | AS4: P90 | AT4: P10 | AU4: P50 | AV4: P90 | AW4: P10 | AX4: P50 | AY4: P90 | AZ4: P10 | BA4: P50 | BB4: P90 | BC4: P10 | BD4: P50 | BE4: P90 | BF4: P10 | BG4: P50 | BH4: P90 | BI4: P10 | BJ4: P50 | BK4: P90 | BL4: P10 | BM4: P50 | BN4: P90 | BO4: P10 | BP4: P50 | BQ4: P90 | BR4: P10 | BS4: P50 | BT4: P90 | BU4: P10 | BV4: P50 | BW4: P90 | BY4: Time | BZ4: P10 | CA4: P50 | CB4: P90 | CC4: P10 | CD4: P50 | CE4: P90 | CF4: P10 | CG4: P50 | CH4: P90 | CI4: P10 | CJ4: P50 | CK4: P90 | CL4: P10 | CM4: P50 | CN4: P90 | CO4: P10 | CP4: P50 | CQ4: P90 | CR4: P10 | CS4: P50 | CT4: P90 | CU4: P10 | CV4: P50 | CW4: P90 | CX4: P10 | CY4: P50 | CZ4: P90 | DA4: P10 | DB4: P50 | DC4: P90 | DD4: P10 | DE4: P50 | DF4: P90 | DG4: P10 | DH4: P50 | DI4: P90 | DK4: Time | DL4: P10 | DM4: P50 | DN4: P90 | DO4: P10 | DP4: P50 | DQ4: P90 | DR4: P10 | DS4: P50 | DT4: P90 | DU4: P10 | DV4: P50 | DW4: P90 | DX4: P10 | DY4: P50 | DZ4: P90 | EA4: P10 | EB4: P50 | EC4: P90 | ED4: P10 | EE4: P50 | EF4: P90 | EG4: P10 | EH4: P50 | EI4: P90 | EJ4: P10 | EK4: P50 | EL4: P90 | EM4: P10 | EN4: P50 | EO4: P90 | EP4: P10 | EQ4: P50 | ER4: P90 | ES4: P10 | ET4: P50 | EU4: P90 | EW4: Time | EX4: P10 | EY4: P50 | EZ4: P90 | FA4: P10 | FB4: P50 | FC4: P90 | FD4: P10 | FE4: P50 | FF4: P90 | FG4: P10 | FH4: P50 | FI4: P90 | FJ4: P10 | FK4: P50 | FL4: P90 | FM4: P10 | FN4: P50 | FO4: P90 | FP4: P10 | FQ4: P50 | FR4: P90 | FS4: P10 | FT4: P50 | FU4: P90 | FV4: P10 | FW4: P50 | FX4: P90 | FY4: P10 | FZ4: P50 | GA4: P90 | GB4: P10 | GC4: P50 | GD4: P90 | GE4: P10 | GF4: P50 | GG4: P90
A5: 0 | B5: =AVERAGE(OFFSET(GW!$C$10,12*$A5,(4*(PlotControl!$C$6-1)),12,1)) -> 0.0001280689167 | C5: =AVERAGE(OFFSET(GW!$D$10,12*$A5,(4*(PlotControl!$C$6-1)),12,1)) -> 0.0001543408333 | D5: =AVERAGE(OFFSET(GW!$E$10,12*$A5,(4*(PlotControl!$C$6-1)),12,1)) -> 0.0001776808333 | E5: =AVERAGE(OFFSET(SW!$C$10,12*$A5,(4*(PlotControl!$C$6-1)),12,1)) -> 0.00044704525 | F5: =AVERAGE(OFFSET(SW!$D$10,12*$A5,(4*(PlotControl!$C$6-1)),12,1)) -> 0.002307474 | G5: =AVERAGE(OFFSET(SW!$E$10,12*$A5,(4*(PlotControl!$C$6-1)),12,1)) -> 0.008188073333 | H5: =AVERAGE(OFFSET(PointSources!$C$10,12*$A5,(4*(PlotControl!$C$6-1)),12,1)) -> 7.953775e-05 | I5: =AVERAGE(OFFSET(PointSources!$D$10,12*$A5,(4*(PlotControl!$C$6-1)),12,1)) -> 8.6411e-05 | J5: =AVERAGE(OFFSET(PointSources!$E$10,12*$A5,(4*(PlotControl!$C$6-1)),12,1)) -> 9.42875e-05 | AM5: 0 | AN5: =AVERAGE(OFFSET(GW!$DG$10,12*$A5,(4*(PlotControl!$C$6-1)),12,1)) -> 0.0006360991667 | AO5: =AVERAGE(OFFSET(GW!$DH$10,12*$A5,(4*(PlotControl!$C$6-1)),12,1)) -> 0.0007665733333 | AP5: =AVERAGE(OFFSET(GW!$DI$10,12*$A5,(4*(PlotControl!$C$6-1)),12,1)) -> 0.0008825016667 | AQ5: =AVERAGE(OFFSET(SW!$DG$10,12*$A5,(4*(PlotControl!$C$6-1)),12,1)) -> 0.002486935833 | AR5: =AVERAGE(OFFSET(SW!$DH$10,12*$A5,(4*(PlotControl!$C$6-1)),12,1)) -> 0.01283646 | AS5: =AVERAGE(OFFSET(SW!$DI$10,12*$A5,(4*(PlotControl!$C$6-1)),12,1)) -> 0.04555013333 | AT5: =AVERAGE(OFFSET(PointSources!$C$10,12*$A5,(4*(PlotControl!$C$6-1)),12,1)) -> 7.953775e-05 | AU5: =AVERAGE(OFFSET(PointSources!$D$10,12*$A5,(4*(PlotControl!$C$6-1)),12,1)) -> 8.6411e-05 | AV5: =AVERAGE(OFFSET(PointSources!$E$10,12*$A5,(4*(PlotControl!$C$6-1)),12,1)) -> 9.42875e-05 | AW5: =AVERAGE(OFFSET(PointSources!$DG$10,12*$A5,(4*(PlotControl!$C$6-1)),12,1)) -> 0.000201695 | AX5: =AVERAGE(OFFSET(PointSources!$DH$10,12*$A5,(4*(PlotControl!$C$6-1)),12,1)) -> 0.0005005908333 | AY5: =AVERAGE(OFFSET(PointSources!$DI$10,12*$A5,(4*(PlotControl!$C$6-1)),12,1)) -> 0.001162939167 | AZ5: =(AVERAGE(OFFSET(WWTP_To_SW!$C$10,12*$A5,(4*(PlotControl!$C$6-1)),12,1))) -> 0.0008187375 | BA5: =(AVERAGE(OFFSET(WWTP_To_SW!$D$10,12*$A5,(4*(PlotControl!$C$6-1)),12,1))) -> 0.0008265358333 | BB5: =(AVERAGE(OFFSET(WWTP_To_SW!$E$10,12*$A5,(4*(PlotControl!$C$6-1)),12,1))) -> 0.0008504216667 | BC5: =(AVERAGE(OFFSET(CL_To_SW!$C$10,12*$A5,(4*(PlotControl!$C$6-1)),12,1))) -> 0 | BD5: =(AVERAGE(OFFSET(CL_To_SW!$D$10,12*$A5,(4*(PlotControl!$C$6-1)),12,1))) -> 0 | BE5: =(AVERAGE(OFFSET(CL_To_SW!$E$10,12*$A5,(4*(PlotControl!$C$6-1)),12,1))) -> 0 | BF5: =(AVERAGE(OFFSET(FPs!$C$10,12*$A5,(4*(PlotControl!$C$6-1)),12,1))) -> 2.053808333e-05 | BG5: =(AVERAGE(OFFSET(FPs!$D$10,12*$A5,(4*(PlotControl!$C$6-1)),12,1))) -> 3.079483333e-05 | BH5: =(AVERAGE(OFFSET(FPs!$E$10,12*$A5,(4*(PlotControl!$C$6-1)),12,1))) -> 4.468516667e-05 | BI5: =(AVERAGE(OFFSET(FPs!$DG$10,12*$A5,(4*(PlotControl!$C$6-1)),12,1))) -> 2.321291667e-05 | BJ5: =(AVERAGE(OFFSET(FPs!$DH$10,12*$A5,(4*(PlotControl!$C$6-1)),12,1))) -> 3.492833333e-05 | BK5: =(AVERAGE(OFFSET(FPs!$DI$10,12*$A5,(4*(PlotControl!$C$6-1)),12,1))) -> 5.265966667e-05 | BL5: =(AVERAGE(OFFSET(FPs!$HK$10,12*$A5,(4*(PlotControl!$C$6-1)),12,1))) -> 4.956775e-05 | BM5: =(AVERAGE(OFFSET(FPs!$HL$10,12*$A5,(4*(PlotControl!$C$6-1)),12,1))) -> 7.469175e-05 | BN5: =(AVERAGE(OFFSET(FPs!$HM$10,12*$A5,(4*(PlotControl!$C$6-1)),12,1))) -> 0.000110405 | BO5: =(AVERAGE(OFFSET(Toes!$C$10,12*$A5,(4*(PlotControl!$C$6-1)),12,1))) + (AVERAGE(OFFSET(Toes!$DG$10,12*$A5,(4*(PlotControl!$C$6-1)),12,1))) -> 0 | BP5: =(AVERAGE(OFFSET(Toes!$D$10,12*$A5,(4*(PlotControl!$C$6-1)),12,1))) + (AVERAGE(OFFSET(Toes!$DH$10,12*$A5,(4*(PlotControl!$C$6-1)),12,1))) -> 0 | BQ5: =(AVERAGE(OFFSET(Toes!$E$10,12*$A5,(4*(PlotControl!$C$6-1)),12,1))) + (AVERAGE(OFFSET(Toes!$DI$10,12*$A5,(4*(PlotControl!$C$6-1)),12,1))) -> 0 | BR5: =(AVERAGE(OFFSET(Toes!$HK$10,12*$A5,(4*(PlotControl!$C$6-1)),12,1))) -> 0 | BS5: =(AVERAGE(OFFSET(Toes!$HL$10,12*$A5,(4*(PlotControl!$C$6-1)),12,1))) -> 0 | BT5: =(AVERAGE(OFFSET(Toes!$HM$10,12*$A5,(4*(PlotControl!$C$6-1)),12,1))) -> 0 | BU5: =(AVERAGE(OFFSET(Toes!$LO$10,12*$A5,(4*(PlotControl!$C$6-1)),12,1))) -> 0 | BV5: =(AVERAGE(OFFSET(Toes!$LP$10,12*$A5,(4*(PlotControl!$C$6-1)),12,1))) -> 0 | BW5: =(AVERAGE(OFFSET(Toes!$LQ$10,12*$A5,(4*(PlotControl!$C$6-1)),12,1))) -> 0 | BY5: 0 | BZ5: =AVERAGE(OFFSET(GW!$HK$10,12*$A5,(4*(PlotControl!$C$6-1)),12,1)) -> 0 | CA5: =AVERAGE(OFFSET(GW!$HL$10,12*$A5,(4*(PlotControl!$C$6-1)),12,1)) -> 0 | CB5: =AVERAGE(OFFSET(GW!$HM$10,12*$A5,(4*(PlotControl!$C$6-1)),12,1)) -> 0 | CC5: =AVERAGE(OFFSET(SW!$HK$10,12*$A5,(4*(PlotControl!$C$6-1)),12,1)) -> 6.763513333e-05 | CD5: =AVERAGE(OFFSET(SW!$HL$10,12*$A5,(4*(PlotControl!$C$6-1)),12,1)) -> 0.0003491050333 | CE5: =AVERAGE(OFFSET(SW!$HM$10,12*$A5,(4*(PlotControl!$C$6-1)),12,1)) -> 0.001238781 | CL5: =(AVERAGE(OFFSET(WWTP_To_SW!$DG$10,12*$A5,(4*(PlotControl!$C$6-1)),12,1))) -> 0.0001817083333 | CM5: =(AVERAGE(OFFSET(WWTP_To_SW!$DH$10,12*$A5,(4*(PlotControl!$C$6-1)),12,1))) -> 0.0001834383333 | CN5: =(AVERAGE(OFFSET(WWTP_To_SW!$DI$10,12*$A5,(4*(PlotControl!$C$6-1)),12,1))) -> 0.00018874 | CO5: =(AVERAGE(OFFSET(CL_To_SW!$DG$10,12*$A5,(4*(PlotControl!$C$6-1)),12,1))) -> 0 | CP5: =(AVERAGE(OFFSET(CL_To_SW!$DH$10,12*$A5,(4*(PlotControl!$C$6-1)),12,1))) -> 0 | CQ5: =(AVERAGE(OFFSET(CL_To_SW!$DI$10,12*$A5,(4*(PlotControl!$C$6-1)),12,1))) -> 0 | DG5: =(AVERAGE(OFFSET(Toes!$LO$10,12*$A5,(4*(PlotControl!$C$6-1)),12,1))) -> 0 | DH5: =(AVERAGE(OFFSET(Toes!$LP$10,12*$A5,(4*(PlotControl!$C$6-1)),12,1))) -> 0 | DI5: =(AVERAGE(OFFSET(Toes!$LQ$10,12*$A5,(4*(PlotControl!$C$6-1)),12,1))) -> 0 | DK5: 0 | DL5: =AVERAGE(OFFSET(GW!$LO$10,12*$A5,(4*(PlotControl!$C$6-1)),12,1)) -> 0 | DM5: =AVERAGE(OFFSET(GW!$LP$10,12*$A5,(4*(PlotControl!$C$6-1)),12,1)) -> 0 | DN5: =AVERAGE(OFFSET(GW!$LQ$10,12*$A5,(4*(PlotControl!$C$6-1)),12,1)) -> 0 | DO5: =AVERAGE(OFFSET(SW!$LO$10,12*$A5,(4*(PlotControl!$C$6-1)),12,1)) -> 8.460241667e-05 | DP5: =AVERAGE(OFFSET(SW!$LP$10,12*$A5,(4*(PlotControl!$C$6-1)),12,1)) -> 0.000436682525 | DQ5: =AVERAGE(OFFSET(SW!$LQ$10,12*$A5,(4*(PlotControl!$C$6-1)),12,1)) -> 0.00154955675 | DX5: =(AVERAGE(OFFSET(WWTP_To_SW!$HK$10,12*$A5,(4*(PlotControl!$C$6-1)),12,1))) -> 0.0006370308333 | DY5: =(AVERAGE(OFFSET(WWTP_To_SW!$HL$10,12*$A5,(4*(PlotControl!$C$6-1)),12,1))) -> 0.0006431008333 | DZ5: =(AVERAGE(OFFSET(WWTP_To_SW!$HM$10,12*$A5,(4*(PlotControl!$C$6-1)),12,1))) -> 0.000661685 | EA5: =(AVERAGE(OFFSET(CL_To_SW!$HK$10,12*$A5,(4*(PlotControl!$C$6-1)),12,1))) -> 0 | EB5: =(AVERAGE(OFFSET(CL_To_SW!$HL$10,12*$A5,(4*(PlotControl!$C$6-1)),12,1))) -> 0 | EC5: =(AVERAGE(OFFSET(CL_To_SW!$HM$10,12*$A5,(4*(PlotControl!$C$6-1)),12,1))) -> 0 | EG5: =(AVERAGE(OFFSET(FPs!$DG$10,12*$A5,(4*(PlotControl!$C$6-1)),12,1))) -> 2.321291667e-05 | EH5: =(AVERAGE(OFFSET(FPs!$DH$10,12*$A5,(4*(PlotControl!$C$6-1)),12,1))) -> 3.492833333e-05 | EI5: =(AVERAGE(OFFSET(FPs!$DI$10,12*$A5,(4*(PlotControl!$C$6-1)),12,1))) -> 5.265966667e-05 | EM5: =(AVERAGE(OFFSET(Toes!$DG$10,12*$A5,(4*(PlotControl!$C$6-1)),12,1))) -> 0 | EN5: =(AVERAGE(OFFSET(Toes!$DH$10,12*$A5,(4*(PlotControl!$C$6-1)),12,1))) -> 0 | EO5: =(AVERAGE(OFFSET(Toes!$DI$10,12*$A5,(4*(PlotControl!$C$6-1)),12,1))) -> 0 | EP5: =(AVERAGE(OFFSET(Toes!$HK$10,12*$A5,(4*(PlotControl!$C$6-1)),12,1))) -> 0 | EQ5: =(AVERAGE(OFFSET(Toes!$HL$10,12*$A5,(4*(PlotControl!$C$6-1)),12,1))) -> 0 | ER5: =(AVERAGE(OFFSET(Toes!$HM$10,12*$A5,(4*(PlotControl!$C$6-1)),12,1))) -> 0 | EW5: 0 | EX5: =AVERAGE(OFFSET(GW!$PS$10,12*$A5,(4*(PlotControl!$C$6-1)),12,1)) -> 1.816091667e-05 | EY5: =AVERAGE(OFFSET(GW!$PT$10,12*$A5,(4*(PlotControl!$C$6-1)),12,1)) -> 2.188583333e-05 | EZ5: =AVERAGE(OFFSET(GW!$PU$10,12*$A5,(4*(PlotControl!$C$6-1)),12,1)) -> 2.519541667e-05 | FA5: =AVERAGE(OFFSET(SW!$PS$10,12*$A5,(4*(PlotControl!$C$6-1)),12,1)) -> 0.0001039260833 | FB5: =AVERAGE(OFFSET(SW!$PT$10,12*$A5,(4*(PlotControl!$C$6-1)),12,1)) -> 0.0005364300917 | FC5: =AVERAGE(OFFSET(SW!$PU$10,12*$A5,(4*(PlotControl!$C$6-1)),12,1)) -> 0.001903489 | FJ5: =(AVERAGE(OFFSET(WWTP_To_SW!$LO$10,12*$A5,(4*(PlotControl!$C$6-1)),12,1))) -> 0 | FK5: =(AVERAGE(OFFSET(WWTP_To_SW!$LP$10,12*$A5,(4*(PlotControl!$C$6-1)),12,1))) -> 0 | FL5: =(AVERAGE(OFFSET(WWTP_To_SW!$LQ$10,12*$A5,(4*(PlotControl!$C$6-1)),12,1))) -> 0 | FM5: =(AVERAGE(OFFSET(CL_To_SW!$LO$10,12*$A5,(4*(PlotControl!$C$6-1)),12,1))) -> 0 | FN5: =(AVERAGE(OFFSET(CL_To_SW!$LP$10,12*$A5,(4*(PlotControl!$C$6-1)),12,1))) -> 0 | FO5: =(AVERAGE(OFFSET(CL_To_SW!$LQ$10,12*$A5,(4*(PlotControl!$C$6-1)),12,1))) -> 0 | FP5: =(AVERAGE(OFFSET(FPs!$C$10,12*$A5,(4*(PlotControl!$C$6-1)),12,1))) -> 2.053808333e-05 | FQ5: =(AVERAGE(OFFSET(FPs!$D$10,12*$A5,(4*(PlotControl!$C$6-1)),12,1))) -> 3.079483333e-05 | FR5: =(AVERAGE(OFFSET(FPs!$E$10,12*$A5,(4*(PlotControl!$C$6-1)),12,1))) -> 4.468516667e-05 | FY5: =(AVERAGE(OFFSET(Toes!$C$10,12*$A5,(4*(PlotControl!$C$6-1)),12,1))) -> 0 | FZ5: =(AVERAGE(OFFSET(Toes!$D$10,12*$A5,(4*(PlotControl!$C$6-1)),12,1))) -> 0 | GA5: =(AVERAGE(OFFSET(Toes!$E$10,12*$A5,(4*(PlotControl!$C$6-1)),12,1))) -> 0
A6: 1 | B6: =AVERAGE(OFFSET(GW!$C$10,12*$A6,(4*(PlotControl!$C$6-1)),12,1)) -> 0.0001273309167 | C6: =AVERAGE(OFFSET(GW!$D$10,12*$A6,(4*(PlotControl!$C$6-1)),12,1)) -> 0.0001541733333 | D6: =AVERAGE(OFFSET(GW!$E$10,12*$A6,(4*(PlotControl!$C$6-1)),12,1)) -> 0.0001778366667 | E6: =AVERAGE(OFFSET(SW!$C$10,12*$A6,(4*(PlotControl!$C$6-1)),12,1)) -> 0.0004170154167 | F6: =AVERAGE(OFFSET(SW!$D$10,12*$A6,(4*(PlotControl!$C$6-1)),12,1)) -> 0.00226396675 | G6: =AVERAGE(OFFSET(SW!$E$10,12*$A6,(4*(PlotControl!$C$6-1)),12,1)) -> 0.007977008333 | H6: =AVERAGE(OFFSET(PointSources!$C$10,12*$A6,(4*(PlotControl!$C$6-1)),12,1)) -> 8.664691667e-05 | I6: =AVERAGE(OFFSET(PointSources!$D$10,12*$A6,(4*(PlotControl!$C$6-1)),12,1)) -> 9.441375e-05 | J6: =AVERAGE(OFFSET(PointSources!$E$10,12*$A6,(4*(PlotControl!$C$6-1)),12,1)) -> 0.0001027875 | AM6: 1 | AN6: =AVERAGE(OFFSET(GW!$DG$10,12*$A6,(4*(PlotControl!$C$6-1)),12,1)) -> 0.0006324366667 | AO6: =AVERAGE(OFFSET(GW!$DH$10,12*$A6,(4*(PlotControl!$C$6-1)),12,1)) -> 0.000765745 | AP6: =AVERAGE(OFFSET(GW!$DI$10,12*$A6,(4*(PlotControl!$C$6-1)),12,1)) -> 0.0008832741667 | AQ6: =AVERAGE(OFFSET(SW!$DG$10,12*$A6,(4*(PlotControl!$C$6-1)),12,1)) -> 0.00231985 | AR6: =AVERAGE(OFFSET(SW!$DH$10,12*$A6,(4*(PlotControl!$C$6-1)),12,1)) -> 0.01259435917 | AS6: =AVERAGE(OFFSET(SW!$DI$10,12*$A6,(4*(PlotControl!$C$6-1)),12,1)) -> 0.04437584167 | AT6: =AVERAGE(OFFSET(PointSources!$C$10,12*$A6,(4*(PlotControl!$C$6-1)),12,1)) -> 8.664691667e-05 | AU6: =AVERAGE(OFFSET(PointSources!$D$10,12*$A6,(4*(PlotControl!$C$6-1)),12,1)) -> 9.441375e-05 | AV6: =AVERAGE(OFFSET(PointSources!$E$10,12*$A6,(4*(PlotControl!$C$6-1)),12,1)) -> 0.0001027875 | AW6: =AVERAGE(OFFSET(PointSources!$DG$10,12*$A6,(4*(PlotControl!$C$6-1)),12,1)) -> 0.000212585 | AX6: =AVERAGE(OFFSET(PointSources!$DH$10,12*$A6,(4*(PlotControl!$C$6-1)),12,1)) -> 0.0005355391667 | AY6: =AVERAGE(OFFSET(PointSources!$DI$10,12*$A6,(4*(PlotControl!$C$6-1)),12,1)) -> 0.0012450675 | AZ6: =(AVERAGE(OFFSET(WWTP_To_SW!$C$10,12*$A6,(4*(PlotControl!$C$6-1)),12,1))) -> 0.0009927616667 | BA6: =(AVERAGE(OFFSET(WWTP_To_SW!$D$10,12*$A6,(4*(PlotControl!$C$6-1)),12,1))) -> 0.0010023475 | BB6: =(AVERAGE(OFFSET(WWTP_To_SW!$E$10,12*$A6,(4*(PlotControl!$C$6-1)),12,1))) -> 0.001032816667 | BC6: =(AVERAGE(OFFSET(CL_To_SW!$C$10,12*$A6,(4*(PlotControl!$C$6-1)),12,1))) -> 0 | BD6: =(AVERAGE(OFFSET(CL_To_SW!$D$10,12*$A6,(4*(PlotControl!$C$6-1)),12,1))) -> 0 | BE6: =(AVERAGE(OFFSET(CL_To_SW!$E$10,12*$A6,(4*(PlotControl!$C$6-1)),12,1))) -> 0 | BF6: =(AVERAGE(OFFSET(FPs!$C$10,12*$A6,(4*(PlotControl!$C$6-1)),12,1))) -> 2.242016667e-05 | BG6: =(AVERAGE(OFFSET(FPs!$D$10,12*$A6,(4*(PlotControl!$C$6-1)),12,1))) -> 3.378666667e-05 | BH6: =(AVERAGE(OFFSET(FPs!$E$10,12*$A6,(4*(PlotControl!$C$6-1)),12,1))) -> 4.881425e-05 | BI6: =(AVERAGE(OFFSET(FPs!$DG$10,12*$A6,(4*(PlotControl!$C$6-1)),12,1))) -> 2.538333333e-05 | BJ6: =(AVERAGE(OFFSET(FPs!$DH$10,12*$A6,(4*(PlotControl!$C$6-1)),12,1))) -> 3.852208333e-05 | BK6: =(AVERAGE(OFFSET(FPs!$DI$10,12*$A6,(4*(PlotControl!$C$6-1)),12,1))) -> 5.777141667e-05 | BL6: =(AVERAGE(OFFSET(FPs!$HK$10,12*$A6,(4*(PlotControl!$C$6-1)),12,1))) -> 5.42755e-05 | BM6: =(AVERAGE(OFFSET(FPs!$HL$10,12*$A6,(4*(PlotControl!$C$6-1)),12,1))) -> 8.18185e-05 | BN6: =(AVERAGE(OFFSET(FPs!$HM$10,12*$A6,(4*(PlotControl!$C$6-1)),12,1))) -> 0.0001201308333 | BO6: =(AVERAGE(OFFSET(Toes!$C$10,12*$A6,(4*(PlotControl!$C$6-1)),12,1))) + (AVERAGE(OFFSET(Toes!$DG$10,12*$A6,(4*(PlotControl!$C$6-1)),12,1))) -> 0 | BP6: =(AVERAGE(OFFSET(Toes!$D$10,12*$A6,(4*(PlotControl!$C$6-1)),12,1))) + (AVERAGE(OFFSET(Toes!$DH$10,12*$A6,(4*(PlotControl!$C$6-1)),12,1))) -> 0 | BQ6: =(AVERAGE(OFFSET(Toes!$E$10,12*$A6,(4*(PlotControl!$C$6-1)),12,1))) + (AVERAGE(OFFSET(Toes!$DI$10,12*$A6,(4*(PlotControl!$C$6-1)),12,1))) -> 0 | BR6: =(AVERAGE(OFFSET(Toes!$HK$10,12*$A6,(4*(PlotControl!$C$6-1)),12,1))) -> 0 | BS6: =(AVERAGE(OFFSET(Toes!$HL$10,12*$A6,(4*(PlotControl!$C$6-1)),12,1))) -> 0 | BT6: =(AVERAGE(OFFSET(Toes!$HM$10,12*$A6,(4*(PlotControl!$C$6-1)),12,1))) -> 0 | BU6: =(AVERAGE(OFFSET(Toes!$LO$10,12*$A6,(4*(PlotControl!$C$6-1)),12,1))) -> 0 | BV6: =(AVERAGE(OFFSET(Toes!$LP$10,12*$A6,(4*(PlotControl!$C$6-1)),12,1))) -> 0 | BW6: =(AVERAGE(OFFSET(Toes!$LQ$10,12*$A6,(4*(PlotControl!$C$6-1)),12,1))) -> 0 | BY6: 1 | BZ6: =AVERAGE(OFFSET(GW!$HK$10,12*$A6,(4*(PlotControl!$C$6-1)),12,1)) -> 0 | CA6: =AVERAGE(OFFSET(GW!$HL$10,12*$A6,(4*(PlotControl!$C$6-1)),12,1)) -> 0 | CB6: =AVERAGE(OFFSET(GW!$HM$10,12*$A6,(4*(PlotControl!$C$6-1)),12,1)) -> 0 | CC6: =AVERAGE(OFFSET(SW!$HK$10,12*$A6,(4*(PlotControl!$C$6-1)),12,1)) -> 6.309065833e-05 | CD6: =AVERAGE(OFFSET(SW!$HL$10,12*$A6,(4*(PlotControl!$C$6-1)),12,1)) -> 0.000342509975 | CE6: =AVERAGE(OFFSET(SW!$HM$10,12*$A6,(4*(PlotControl!$C$6-1)),12,1)) -> 0.001206849417 | CL6: =(AVERAGE(OFFSET(WWTP_To_SW!$DG$10,12*$A6,(4*(PlotControl!$C$6-1)),12,1))) -> 0.0002203283333 | CM6: =(AVERAGE(OFFSET(WWTP_To_SW!$DH$10,12*$A6,(4*(PlotControl!$C$6-1)),12,1))) -> 0.000222455 | CN6: =(AVERAGE(OFFSET(WWTP_To_SW!$DI$10,12*$A6,(4*(PlotControl!$C$6-1)),12,1))) -> 0.0002292183333 | CO6: =(AVERAGE(OFFSET(CL_To_SW!$DG$10,12*$A6,(4*(PlotControl!$C$6-1)),12,1))) -> 0 | CP6: =(AVERAGE(OFFSET(CL_To_SW!$DH$10,12*$A6,(4*(PlotControl!$C$6-1)),12,1))) -> 0 | CQ6: =(AVERAGE(OFFSET(CL_To_SW!$DI$10,12*$A6,(4*(PlotControl!$C$6-1)),12,1))) -> 0 | DG6: =(AVERAGE(OFFSET(Toes!$LO$10,12*$A6,(4*(PlotControl!$C$6-1)),12,1))) -> 0 | DH6: =(AVERAGE(OFFSET(Toes!$LP$10,12*$A6,(4*(PlotControl!$C$6-1)),12,1))) -> 0 | DI6: =(AVERAGE(OFFSET(Toes!$LQ$10,12*$A6,(4*(PlotControl!$C$6-1)),12,1))) -> 0 | DK6: 1 | DL6: =AVERAGE(OFFSET(GW!$LO$10,12*$A6,(4*(PlotControl!$C$6-1)),12,1)) -> 0 | DM6: =AVERAGE(OFFSET(GW!$LP$10,12*$A6,(4*(PlotControl!$C$6-1)),12,1)) -> 0 | DN6: =AVERAGE(OFFSET(GW!$LQ$10,12*$A6,(4*(PlotControl!$C$6-1)),12,1)) -> 0 | DO6: =AVERAGE(OFFSET(SW!$LO$10,12*$A6,(4*(PlotControl!$C$6-1)),12,1)) -> 7.891861667e-05 | DP6: =AVERAGE(OFFSET(SW!$LP$10,12*$A6,(4*(PlotControl!$C$6-1)),12,1)) -> 0.0004284385333 | DQ6: =AVERAGE(OFFSET(SW!$LQ$10,12*$A6,(4*(PlotControl!$C$6-1)),12,1)) -> 0.001509618917 | DX6: =(AVERAGE(OFFSET(WWTP_To_SW!$HK$10,12*$A6,(4*(PlotControl!$C$6-1)),12,1))) -> 0.0007724325 | DY6: =(AVERAGE(OFFSET(WWTP_To_SW!$HL$10,12*$A6,(4*(PlotControl!$C$6-1)),12,1))) -> 0.0007798875 | DZ6: =(AVERAGE(OFFSET(WWTP_To_SW!$HM$10,12*$A6,(4*(PlotControl!$C$6-1)),12,1))) -> 0.0008035925 | EA6: =(AVERAGE(OFFSET(CL_To_SW!$HK$10,12*$A6,(4*(PlotControl!$C$6-1)),12,1))) -> 0 | EB6: =(AVERAGE(OFFSET(CL_To_SW!$HL$10,12*$A6,(4*(PlotControl!$C$6-1)),12,1))) -> 0 | EC6: =(AVERAGE(OFFSET(CL_To_SW!$HM$10,12*$A6,(4*(PlotControl!$C$6-1)),12,1))) -> 0 | EG6: =(AVERAGE(OFFSET(FPs!$DG$10,12*$A6,(4*(PlotControl!$C$6-1)),12,1))) -> 2.538333333e-05 | EH6: =(AVERAGE(OFFSET(FPs!$DH$10,12*$A6,(4*(PlotControl!$C$6-1)),12,1))) -> 3.852208333e-05 | EI6: =(AVERAGE(OFFSET(FPs!$DI$10,12*$A6,(4*(PlotControl!$C$6-1)),12,1))) -> 5.777141667e-05 | EM6: =(AVERAGE(OFFSET(Toes!$DG$10,12*$A6,(4*(PlotControl!$C$6-1)),12,1))) -> 0 | EN6: =(AVERAGE(OFFSET(Toes!$DH$10,12*$A6,(4*(PlotControl!$C$6-1)),12,1))) -> 0 | EO6: =(AVERAGE(OFFSET(Toes!$DI$10,12*$A6,(4*(PlotControl!$C$6-1)),12,1))) -> 0 | EP6: =(AVERAGE(OFFSET(Toes!$HK$10,12*$A6,(4*(PlotControl!$C$6-1)),12,1))) -> 0 | EQ6: =(AVERAGE(OFFSET(Toes!$HL$10,12*$A6,(4*(PlotControl!$C$6-1)),12,1))) -> 0 | ER6: =(AVERAGE(OFFSET(Toes!$HM$10,12*$A6,(4*(PlotControl!$C$6-1)),12,1))) -> 0 | EW6: 1 | EX6: =AVERAGE(OFFSET(GW!$PS$10,12*$A6,(4*(PlotControl!$C$6-1)),12,1)) -> 1.805625e-05 | EY6: =AVERAGE(OFFSET(GW!$PT$10,12*$A6,(4*(PlotControl!$C$6-1)),12,1)) -> 2.186208333e-05 | EZ6: =AVERAGE(OFFSET(GW!$PU$10,12*$A6,(4*(PlotControl!$C$6-1)),12,1)) -> 2.521758333e-05 | FA6: =AVERAGE(OFFSET(SW!$PS$10,12*$A6,(4*(PlotControl!$C$6-1)),12,1)) -> 9.694375e-05 | FB6: =AVERAGE(OFFSET(SW!$PT$10,12*$A6,(4*(PlotControl!$C$6-1)),12,1)) -> 0.0005263115 | FC6: =AVERAGE(OFFSET(SW!$PU$10,12*$A6,(4*(PlotControl!$C$6-1)),12,1)) -> 0.001854431917 | FJ6: =(AVERAGE(OFFSET(WWTP_To_SW!$LO$10,12*$A6,(4*(PlotControl!$C$6-1)),12,1))) -> 0 | FK6: =(AVERAGE(OFFSET(WWTP_To_SW!$LP$10,12*$A6,(4*(PlotControl!$C$6-1)),12,1))) -> 0 | FL6: =(AVERAGE(OFFSET(WWTP_To_SW!$LQ$10,12*$A6,(4*(PlotControl!$C$6-1)),12,1))) -> 0 | FM6: =(AVERAGE(OFFSET(CL_To_SW!$LO$10,12*$A6,(4*(PlotControl!$C$6-1)),12,1))) -> 0 | FN6: =(AVERAGE(OFFSET(CL_To_SW!$LP$10,12*$A6,(4*(PlotControl!$C$6-1)),12,1))) -> 0 | FO6: =(AVERAGE(OFFSET(CL_To_SW!$LQ$10,12*$A6,(4*(PlotControl!$C$6-1)),12,1))) -> 0 | FP6: =(AVERAGE(OFFSET(FPs!$C$10,12*$A6,(4*(PlotControl!$C$6-1)),12,1))) -> 2.242016667e-05 | FQ6: =(AVERAGE(OFFSET(FPs!$D$10,12*$A6,(4*(PlotControl!$C$6-1)),12,1))) -> 3.378666667e-05 | FR6: =(AVERAGE(OFFSET(FPs!$E$10,12*$A6,(4*(PlotControl!$C$6-1)),12,1))) -> 4.881425e-05 | FY6: =(AVERAGE(OFFSET(Toes!$C$10,12*$A6,(4*(PlotControl!$C$6-1)),12,1))) -> 0 | FZ6: =(AVERAGE(OFFSET(Toes!$D$10,12*$A6,(4*(PlotControl!$C$6-1)),12,1))) -> 0 | GA6: =(AVERAGE(OFFSET(Toes!$E$10,12*$A6,(4*(PlotControl!$C$6-1)),12,1))) -> 0
A7: 2 | B7: =AVERAGE(OFFSET(GW!$C$10,12*$A7,(4*(PlotControl!$C$6-1)),12,1)) -> 0.0001284305833 | C7: =AVERAGE(OFFSET(GW!$D$10,12*$A7,(4*(PlotControl!$C$6-1)),12,1)) -> 0.0001541041667 | D7: =AVERAGE(OFFSET(GW!$E$10,12*$A7,(4*(PlotControl!$C$6-1)),12,1)) -> 0.0001778316667 | E7: =AVERAGE(OFFSET(SW!$C$10,12*$A7,(4*(PlotControl!$C$6-1)),12,1)) -> 0.0004221204167 | F7: =AVERAGE(OFFSET(SW!$D$10,12*$A7,(4*(PlotControl!$C$6-1)),12,1)) -> 0.0022410355 | G7: =AVERAGE(OFFSET(SW!$E$10,12*$A7,(4*(PlotControl!$C$6-1)),12,1)) -> 0.008083740833 | H7: =AVERAGE(OFFSET(PointSources!$C$10,12*$A7,(4*(PlotControl!$C$6-1)),12,1)) -> 8.629125e-05 | I7: =AVERAGE(OFFSET(PointSources!$D$10,12*$A7,(4*(PlotControl!$C$6-1)),12,1)) -> 9.435408333e-05 | J7: =AVERAGE(OFFSET(PointSources!$E$10,12*$A7,(4*(PlotControl!$C$6-1)),12,1)) -> 0.0001025416667 | AM7: 2 | AN7: =AVERAGE(OFFSET(GW!$DG$10,12*$A7,(4*(PlotControl!$C$6-1)),12,1)) -> 0.0006378941667 | AO7: =AVERAGE(OFFSET(GW!$DH$10,12*$A7,(4*(PlotControl!$C$6-1)),12,1)) -> 0.0007653966667 | AP7: =AVERAGE(OFFSET(GW!$DI$10,12*$A7,(4*(PlotControl!$C$6-1)),12,1)) -> 0.0008832491667 | AQ7: =AVERAGE(OFFSET(SW!$DG$10,12*$A7,(4*(PlotControl!$C$6-1)),12,1)) -> 0.00234828025 | AR7: =AVERAGE(OFFSET(SW!$DH$10,12*$A7,(4*(PlotControl!$C$6-1)),12,1)) -> 0.01246674667 | AS7: =AVERAGE(OFFSET(SW!$DI$10,12*$A7,(4*(PlotControl!$C$6-1)),12,1)) -> 0.04496865 | AT7: =AVERAGE(OFFSET(PointSources!$C$10,12*$A7,(4*(PlotControl!$C$6-1)),12,1)) -> 8.629125e-05 | AU7: =AVERAGE(OFFSET(PointSources!$D$10,12*$A7,(4*(PlotControl!$C$6-1)),12,1)) -> 9.435408333e-05 | AV7: =AVERAGE(OFFSET(PointSources!$E$10,12*$A7,(4*(PlotControl!$C$6-1)),12,1)) -> 0.0001025416667 | AW7: =AVERAGE(OFFSET(PointSources!$DG$10,12*$A7,(4*(PlotControl!$C$6-1)),12,1)) -> 0.0002125983333 | AX7: =AVERAGE(OFFSET(PointSources!$DH$10,12*$A7,(4*(PlotControl!$C$6-1)),12,1)) -> 0.0005299908333 | AY7: =AVERAGE(OFFSET(PointSources!$DI$10,12*$A7,(4*(PlotControl!$C$6-1)),12,1)) -> 0.001245658333 | AZ7: =(AVERAGE(OFFSET(WWTP_To_SW!$C$10,12*$A7,(4*(PlotControl!$C$6-1)),12,1))) -> 0.0009882066667 | BA7: =(AVERAGE(OFFSET(WWTP_To_SW!$D$10,12*$A7,(4*(PlotControl!$C$6-1)),12,1))) -> 0.0009981966667 | BB7: =(AVERAGE(OFFSET(WWTP_To_SW!$E$10,12*$A7,(4*(PlotControl!$C$6-1)),12,1))) -> 0.001035691667 | BC7: =(AVERAGE(OFFSET(CL_To_SW!$C$10,12*$A7,(4*(PlotControl!$C$6-1)),12,1))) -> 0 | BD7: =(AVERAGE(OFFSET(CL_To_SW!$D$10,12*$A7,(4*(PlotControl!$C$6-1)),12,1))) -> 0 | BE7: =(AVERAGE(OFFSET(CL_To_SW!$E$10,12*$A7,(4*(PlotControl!$C$6-1)),12,1))) -> 0 | BF7: =(AVERAGE(OFFSET(FPs!$C$10,12*$A7,(4*(PlotControl!$C$6-1)),12,1))) -> 2.249883333e-05 | BG7: =(AVERAGE(OFFSET(FPs!$D$10,12*$A7,(4*(PlotControl!$C$6-1)),12,1))) -> 3.392766667e-05 | BH7: =(AVERAGE(OFFSET(FPs!$E$10,12*$A7,(4*(PlotControl!$C$6-1)),12,1))) -> 4.90925e-05 | BI7: =(AVERAGE(OFFSET(FPs!$DG$10,12*$A7,(4*(PlotControl!$C$6-1)),12,1))) -> 2.564308333e-05 | BJ7: =(AVERAGE(OFFSET(FPs!$DH$10,12*$A7,(4*(PlotControl!$C$6-1)),12,1))) -> 3.85105e-05 | BK7: =(AVERAGE(OFFSET(FPs!$DI$10,12*$A7,(4*(PlotControl!$C$6-1)),12,1))) -> 5.769766667e-05 | BL7: =(AVERAGE(OFFSET(FPs!$HK$10,12*$A7,(4*(PlotControl!$C$6-1)),12,1))) -> 5.458691667e-05 | BM7: =(AVERAGE(OFFSET(FPs!$HL$10,12*$A7,(4*(PlotControl!$C$6-1)),12,1))) -> 8.158891667e-05 | BN7: =(AVERAGE(OFFSET(FPs!$HM$10,12*$A7,(4*(PlotControl!$C$6-1)),12,1))) -> 0.0001197616667 | BO7: =(AVERAGE(OFFSET(Toes!$C$10,12*$A7,(4*(PlotControl!$C$6-1)),12,1))) + (AVERAGE(OFFSET(Toes!$DG$10,12*$A7,(4*(PlotControl!$C$6-1)),12,1))) -> 0 | BP7: =(AVERAGE(OFFSET(Toes!$D$10,12*$A7,(4*(PlotControl!$C$6-1)),12,1))) + (AVERAGE(OFFSET(Toes!$DH$10,12*$A7,(4*(PlotControl!$C$6-1)),12,1))) -> 0 | BQ7: =(AVERAGE(OFFSET(Toes!$E$10,12*$A7,(4*(PlotControl!$C$6-1)),12,1))) + (AVERAGE(OFFSET(Toes!$DI$10,12*$A7,(4*(PlotControl!$C$6-1)),12,1))) -> 0 | BR7: =(AVERAGE(OFFSET(Toes!$HK$10,12*$A7,(4*(PlotControl!$C$6-1)),12,1))) -> 0 | BS7: =(AVERAGE(OFFSET(Toes!$HL$10,12*$A7,(4*(PlotControl!$C$6-1)),12,1))) -> 0 | BT7: =(AVERAGE(OFFSET(Toes!$HM$10,12*$A7,(4*(PlotControl!$C$6-1)),12,1))) -> 0 | BU7: =(AVERAGE(OFFSET(Toes!$LO$10,12*$A7,(4*(PlotControl!$C$6-1)),12,1))) -> 0 | BV7: =(AVERAGE(OFFSET(Toes!$LP$10,12*$A7,(4*(PlotControl!$C$6-1)),12,1))) -> 0 | BW7: =(AVERAGE(OFFSET(Toes!$LQ$10,12*$A7,(4*(PlotControl!$C$6-1)),12,1))) -> 0 | BY7: 2 | BZ7: =AVERAGE(OFFSET(GW!$HK$10,12*$A7,(4*(PlotControl!$C$6-1)),12,1)) -> 0 | CA7: =AVERAGE(OFFSET(GW!$HL$10,12*$A7,(4*(PlotControl!$C$6-1)),12,1)) -> 0 | CB7: =AVERAGE(OFFSET(GW!$HM$10,12*$A7,(4*(PlotControl!$C$6-1)),12,1)) -> 0 | CC7: =AVERAGE(OFFSET(SW!$HK$10,12*$A7,(4*(PlotControl!$C$6-1)),12,1)) -> 6.386389167e-05 | CD7: =AVERAGE(OFFSET(SW!$HL$10,12*$A7,(4*(PlotControl!$C$6-1)),12,1)) -> 0.0003390413583 | CE7: =AVERAGE(OFFSET(SW!$HM$10,12*$A7,(4*(PlotControl!$C$6-1)),12,1)) -> 0.00122299575 | CL7: =(AVERAGE(OFFSET(WWTP_To_SW!$DG$10,12*$A7,(4*(PlotControl!$C$6-1)),12,1))) -> 0.0002193183333 | CM7: =(AVERAGE(OFFSET(WWTP_To_SW!$DH$10,12*$A7,(4*(PlotControl!$C$6-1)),12,1))) -> 0.0002215375 | CN7: =(AVERAGE(OFFSET(WWTP_To_SW!$DI$10,12*$A7,(4*(PlotControl!$C$6-1)),12,1))) -> 0.0002298591667 | CO7: =(AVERAGE(OFFSET(CL_To_SW!$DG$10,12*$A7,(4*(PlotControl!$C$6-1)),12,1))) -> 0 | CP7: =(AVERAGE(OFFSET(CL_To_SW!$DH$10,12*$A7,(4*(PlotControl!$C$6-1)),12,1))) -> 0 | CQ7: =(AVERAGE(OFFSET(CL_To_SW!$DI$10,12*$A7,(4*(PlotControl!$C$6-1)),12,1))) -> 0 | DG7: =(AVERAGE(OFFSET(Toes!$LO$10,12*$A7,(4*(PlotControl!$C$6-1)),12,1))) -> 0 | DH7: =(AVERAGE(OFFSET(Toes!$LP$10,12*$A7,(4*(PlotControl!$C$6-1)),12,1))) -> 0 | DI7: =(AVERAGE(OFFSET(Toes!$LQ$10,12*$A7,(4*(PlotControl!$C$6-1)),12,1))) -> 0 | DK7: 2 | DL7: =AVERAGE(OFFSET(GW!$LO$10,12*$A7,(4*(PlotControl!$C$6-1)),12,1)) -> 0 | DM7: =AVERAGE(OFFSET(GW!$LP$10,12*$A7,(4*(PlotControl!$C$6-1)),12,1)) -> 0 | DN7: =AVERAGE(OFFSET(GW!$LQ$10,12*$A7,(4*(PlotControl!$C$6-1)),12,1)) -> 0 | DO7: =AVERAGE(OFFSET(SW!$LO$10,12*$A7,(4*(PlotControl!$C$6-1)),12,1)) -> 7.988513333e-05 | DP7: =AVERAGE(OFFSET(SW!$LP$10,12*$A7,(4*(PlotControl!$C$6-1)),12,1)) -> 0.0004241038167 | DQ7: =AVERAGE(OFFSET(SW!$LQ$10,12*$A7,(4*(PlotControl!$C$6-1)),12,1)) -> 0.001529817333 | DX7: =(AVERAGE(OFFSET(WWTP_To_SW!$HK$10,12*$A7,(4*(PlotControl!$C$6-1)),12,1))) -> 0.00076889 | DY7: =(AVERAGE(OFFSET(WWTP_To_SW!$HL$10,12*$A7,(4*(PlotControl!$C$6-1)),12,1))) -> 0.0007766616667 | DZ7: =(AVERAGE(OFFSET(WWTP_To_SW!$HM$10,12*$A7,(4*(PlotControl!$C$6-1)),12,1))) -> 0.0008058383333 | EA7: =(AVERAGE(OFFSET(CL_To_SW!$HK$10,12*$A7,(4*(PlotControl!$C$6-1)),12,1))) -> 0 | EB7: =(AVERAGE(OFFSET(CL_To_SW!$HL$10,12*$A7,(4*(PlotControl!$C$6-1)),12,1))) -> 0 | EC7: =(AVERAGE(OFFSET(CL_To_SW!$HM$10,12*$A7,(4*(PlotControl!$C$6-1)),12,1))) -> 0 | EG7: =(AVERAGE(OFFSET(FPs!$DG$10,12*$A7,(4*(PlotControl!$C$6-1)),12,1))) -> 2.564308333e-05 | EH7: =(AVERAGE(OFFSET(FPs!$DH$10,12*$A7,(4*(PlotControl!$C$6-1)),12,1))) -> 3.85105e-05 | EI7: =(AVERAGE(OFFSET(FPs!$DI$10,12*$A7,(4*(PlotControl!$C$6-1)),12,1))) -> 5.769766667e-05 | EM7: =(AVERAGE(OFFSET(Toes!$DG$10,12*$A7,(4*(PlotControl!$C$6-1)),12,1))) -> 0 | EN7: =(AVERAGE(OFFSET(Toes!$DH$10,12*$A7,(4*(PlotControl!$C$6-1)),12,1))) -> 0 | EO7: =(AVERAGE(OFFSET(Toes!$DI$10,12*$A7,(4*(PlotControl!$C$6-1)),12,1))) -> 0 | EP7: =(AVERAGE(OFFSET(Toes!$HK$10,12*$A7,(4*(PlotControl!$C$6-1)),12,1))) -> 0 | EQ7: =(AVERAGE(OFFSET(Toes!$HL$10,12*$A7,(4*(PlotControl!$C$6-1)),12,1))) -> 0 | ER7: =(AVERAGE(OFFSET(Toes!$HM$10,12*$A7,(4*(PlotControl!$C$6-1)),12,1))) -> 0 | EW7: 2 | EX7: =AVERAGE(OFFSET(GW!$PS$10,12*$A7,(4*(PlotControl!$C$6-1)),12,1)) -> 1.821208333e-05 | EY7: =AVERAGE(OFFSET(GW!$PT$10,12*$A7,(4*(PlotControl!$C$6-1)),12,1)) -> 2.185225e-05 | EZ7: =AVERAGE(OFFSET(GW!$PU$10,12*$A7,(4*(PlotControl!$C$6-1)),12,1)) -> 2.521675e-05 | FA7: =AVERAGE(OFFSET(SW!$PS$10,12*$A7,(4*(PlotControl!$C$6-1)),12,1)) -> 9.813259167e-05 | FB7: =AVERAGE(OFFSET(SW!$PT$10,12*$A7,(4*(PlotControl!$C$6-1)),12,1)) -> 0.000520968 | FC7: =AVERAGE(OFFSET(SW!$PU$10,12*$A7,(4*(PlotControl!$C$6-1)),12,1)) -> 0.001879229083 | FJ7: =(AVERAGE(OFFSET(WWTP_To_SW!$LO$10,12*$A7,(4*(PlotControl!$C$6-1)),12,1))) -> 0 | FK7: =(AVERAGE(OFFSET(WWTP_To_SW!$LP$10,12*$A7,(4*(PlotControl!$C$6-1)),12,1))) -> 0 | FL7: =(AVERAGE(OFFSET(WWTP_To_SW!$LQ$10,12*$A7,(4*(PlotControl!$C$6-1)),12,1))) -> 0 | FM7: =(AVERAGE(OFFSET(CL_To_SW!$LO$10,12*$A7,(4*(PlotControl!$C$6-1)),12,1))) -> 0 | FN7: =(AVERAGE(OFFSET(CL_To_SW!$LP$10,12*$A7,(4*(PlotControl!$C$6-1)),12,1))) -> 0 | FO7: =(AVERAGE(OFFSET(CL_To_SW!$LQ$10,12*$A7,(4*(PlotControl!$C$6-1)),12,1))) -> 0 | FP7: =(AVERAGE(OFFSET(FPs!$C$10,12*$A7,(4*(PlotControl!$C$6-1)),12,1))) -> 2.249883333e-05 | FQ7: =(AVERAGE(OFFSET(FPs!$D$10,12*$A7,(4*(PlotControl!$C$6-1)),12,1))) -> 3.392766667e-05 | FR7: =(AVERAGE(OFFSET(FPs!$E$10,12*$A7,(4*(PlotControl!$C$6-1)),12,1))) -> 4.90925e-05 | FY7: =(AVERAGE(OFFSET(Toes!$C$10,12*$A7,(4*(PlotControl!$C$6-1)),12,1))) -> 0 | FZ7: =(AVERAGE(OFFSET(Toes!$D$10,12*$A7,(4*(PlotControl!$C$6-1)),12,1))) -> 0 | GA7: =(AVERAGE(OFFSET(Toes!$E$10,12*$A7,(4*(PlotControl!$C$6-1)),12,1))) -> 0
A8: 3 | B8: =AVERAGE(OFFSET(GW!$C$10,12*$A8,(4*(PlotControl!$C$6-1)),12,1)) -> 0.00012781125 | C8: =AVERAGE(OFFSET(GW!$D$10,12*$A8,(4*(PlotControl!$C$6-1)),12,1)) -> 0.0001542566667 | D8: =AVERAGE(OFFSET(GW!$E$10,12*$A8,(4*(PlotControl!$C$6-1)),12,1)) -> 0.0001779641667 | E8: =AVERAGE(OFFSET(SW!$C$10,12*$A8,(4*(PlotControl!$C$6-1)),12,1)) -> 0.0004221103333 | F8: =AVERAGE(OFFSET(SW!$D$10,12*$A8,(4*(PlotControl!$C$6-1)),12,1)) -> 0.002278706833 | G8: =AVERAGE(OFFSET(SW!$E$10,12*$A8,(4*(PlotControl!$C$6-1)),12,1)) -> 0.008147388333 | H8: =AVERAGE(OFFSET(PointSources!$C$10,12*$A8,(4*(PlotControl!$C$6-1)),12,1)) -> 8.637725e-05 | I8: =AVERAGE(OFFSET(PointSources!$D$10,12*$A8,(4*(PlotControl!$C$6-1)),12,1)) -> 9.449116667e-05 | J8: =AVERAGE(OFFSET(PointSources!$E$10,12*$A8,(4*(PlotControl!$C$6-1)),12,1)) -> 0.0001029883333 | AM8: 3 | AN8: =AVERAGE(OFFSET(GW!$DG$10,12*$A8,(4*(PlotControl!$C$6-1)),12,1)) -> 0.0006348175 | AO8: =AVERAGE(OFFSET(GW!$DH$10,12*$A8,(4*(PlotControl!$C$6-1)),12,1)) -> 0.0007661616667 | AP8: =AVERAGE(OFFSET(GW!$DI$10,12*$A8,(4*(PlotControl!$C$6-1)),12,1)) -> 0.0008839041667 | AQ8: =AVERAGE(OFFSET(SW!$DG$10,12*$A8,(4*(PlotControl!$C$6-1)),12,1)) -> 0.002348163833 | AR8: =AVERAGE(OFFSET(SW!$DH$10,12*$A8,(4*(PlotControl!$C$6-1)),12,1)) -> 0.01267644 | AS8: =AVERAGE(OFFSET(SW!$DI$10,12*$A8,(4*(PlotControl!$C$6-1)),12,1)) -> 0.045324025 | AT8: =AVERAGE(OFFSET(PointSources!$C$10,12*$A8,(4*(PlotControl!$C$6-1)),12,1)) -> 8.637725e-05 | AU8: =AVERAGE(OFFSET(PointSources!$D$10,12*$A8,(4*(PlotControl!$C$6-1)),12,1)) -> 9.449116667e-05 | AV8: =AVERAGE(OFFSET(PointSources!$E$10,12*$A8,(4*(PlotControl!$C$6-1)),12,1)) -> 0.0001029883333 | AW8: =AVERAGE(OFFSET(PointSources!$DG$10,12*$A8,(4*(PlotControl!$C$6-1)),12,1)) -> 0.0002126175 | AX8: =AVERAGE(OFFSET(PointSources!$DH$10,12*$A8,(4*(PlotControl!$C$6-1)),12,1)) -> 0.0005280083333 | AY8: =AVERAGE(OFFSET(PointSources!$DI$10,12*$A8,(4*(PlotControl!$C$6-1)),12,1)) -> 0.001274174167 | AZ8: =(AVERAGE(OFFSET(WWTP_To_SW!$C$10,12*$A8,(4*(PlotControl!$C$6-1)),12,1))) -> 0.0009825833333 | BA8: =(AVERAGE(OFFSET(WWTP_To_SW!$D$10,12*$A8,(4*(PlotControl!$C$6-1)),12,1))) -> 0.0009961733333 | BB8: =(AVERAGE(OFFSET(WWTP_To_SW!$E$10,12*$A8,(4*(PlotControl!$C$6-1)),12,1))) -> 0.001038519167 | BC8: =(AVERAGE(OFFSET(CL_To_SW!$C$10,12*$A8,(4*(PlotControl!$C$6-1)),12,1))) -> 0 | BD8: =(AVERAGE(OFFSET(CL_To_SW!$D$10,12*$A8,(4*(PlotControl!$C$6-1)),12,1))) -> 0 | BE8: =(AVERAGE(OFFSET(CL_To_SW!$E$10,12*$A8,(4*(PlotControl!$C$6-1)),12,1))) -> 0 | BF8: =(AVERAGE(OFFSET(FPs!$C$10,12*$A8,(4*(PlotControl!$C$6-1)),12,1))) -> 2.279391667e-05 | BG8: =(AVERAGE(OFFSET(FPs!$D$10,12*$A8,(4*(PlotControl!$C$6-1)),12,1))) -> 3.393966667e-05 | BH8: =(AVERAGE(OFFSET(FPs!$E$10,12*$A8,(4*(PlotControl!$C$6-1)),12,1))) -> 4.864016667e-05 | BI8: =(AVERAGE(OFFSET(FPs!$DG$10,12*$A8,(4*(PlotControl!$C$6-1)),12,1))) -> 2.555966667e-05 | BJ8: =(AVERAGE(OFFSET(FPs!$DH$10,12*$A8,(4*(PlotControl!$C$6-1)),12,1))) -> 3.858883333e-05 | BK8: =(AVERAGE(OFFSET(FPs!$DI$10,12*$A8,(4*(PlotControl!$C$6-1)),12,1))) -> 5.764366667e-05 | BL8: =(AVERAGE(OFFSET(FPs!$HK$10,12*$A8,(4*(PlotControl!$C$6-1)),12,1))) -> 5.442983333e-05 | BM8: =(AVERAGE(OFFSET(FPs!$HL$10,12*$A8,(4*(PlotControl!$C$6-1)),12,1))) -> 8.158525e-05 | BN8: =(AVERAGE(OFFSET(FPs!$HM$10,12*$A8,(4*(PlotControl!$C$6-1)),12,1))) -> 0.0001185975 | BO8: =(AVERAGE(OFFSET(Toes!$C$10,12*$A8,(4*(PlotControl!$C$6-1)),12,1))) + (AVERAGE(OFFSET(Toes!$DG$10,12*$A8,(4*(PlotControl!$C$6-1)),12,1))) -> 0 | BP8: =(AVERAGE(OFFSET(Toes!$D$10,12*$A8,(4*(PlotControl!$C$6-1)),12,1))) + (AVERAGE(OFFSET(Toes!$DH$10,12*$A8,(4*(PlotControl!$C$6-1)),12,1))) -> 0 | BQ8: =(AVERAGE(OFFSET(Toes!$E$10,12*$A8,(4*(PlotControl!$C$6-1)),12,1))) + (AVERAGE(OFFSET(Toes!$DI$10,12*$A8,(4*(PlotControl!$C$6-1)),12,1))) -> 0 | BR8: =(AVERAGE(OFFSET(Toes!$HK$10,12*$A8,(4*(PlotControl!$C$6-1)),12,1))) -> 0 | BS8: =(AVERAGE(OFFSET(Toes!$HL$10,12*$A8,(4*(PlotControl!$C$6-1)),12,1))) -> 0 | BT8: =(AVERAGE(OFFSET(Toes!$HM$10,12*$A8,(4*(PlotControl!$C$6-1)),12,1))) -> 0 | BU8: =(AVERAGE(OFFSET(Toes!$LO$10,12*$A8,(4*(PlotControl!$C$6-1)),12,1))) -> 0 | BV8: =(AVERAGE(OFFSET(Toes!$LP$10,12*$A8,(4*(PlotControl!$C$6-1)),12,1))) -> 0 | BW8: =(AVERAGE(OFFSET(Toes!$LQ$10,12*$A8,(4*(PlotControl!$C$6-1)),12,1))) -> 0 | BY8: 3 | BZ8: =AVERAGE(OFFSET(GW!$HK$10,12*$A8,(4*(PlotControl!$C$6-1)),12,1)) -> 0 | CA8: =AVERAGE(OFFSET(GW!$HL$10,12*$A8,(4*(PlotControl!$C$6-1)),12,1)) -> 0 | CB8: =AVERAGE(OFFSET(GW!$HM$10,12*$A8,(4*(PlotControl!$C$6-1)),12,1)) -> 0 | CC8: =AVERAGE(OFFSET(SW!$HK$10,12*$A8,(4*(PlotControl!$C$6-1)),12,1)) -> 6.386244167e-05 | CD8: =AVERAGE(OFFSET(SW!$HL$10,12*$A8,(4*(PlotControl!$C$6-1)),12,1)) -> 0.0003447501 | CE8: =AVERAGE(OFFSET(SW!$HM$10,12*$A8,(4*(PlotControl!$C$6-1)),12,1)) -> 0.0012326355 | CL8: =(AVERAGE(OFFSET(WWTP_To_SW!$DG$10,12*$A8,(4*(PlotControl!$C$6-1)),12,1))) -> 0.0002180691667 | CM8: =(AVERAGE(OFFSET(WWTP_To_SW!$DH$10,12*$A8,(4*(PlotControl!$C$6-1)),12,1))) -> 0.0002210841667 | CN8: =(AVERAGE(OFFSET(WWTP_To_SW!$DI$10,12*$A8,(4*(PlotControl!$C$6-1)),12,1))) -> 0.0002304841667 | CO8: =(AVERAGE(OFFSET(CL_To_SW!$DG$10,12*$A8,(4*(PlotControl!$C$6-1)),12,1))) -> 0 | CP8: =(AVERAGE(OFFSET(CL_To_SW!$DH$10,12*$A8,(4*(PlotControl!$C$6-1)),12,1))) -> 0 | CQ8: =(AVERAGE(OFFSET(CL_To_SW!$DI$10,12*$A8,(4*(PlotControl!$C$6-1)),12,1))) -> 0 | DG8: =(AVERAGE(OFFSET(Toes!$LO$10,12*$A8,(4*(PlotControl!$C$6-1)),12,1))) -> 0 | DH8: =(AVERAGE(OFFSET(Toes!$LP$10,12*$A8,(4*(PlotControl!$C$6-1)),12,1))) -> 0 | DI8: =(AVERAGE(OFFSET(Toes!$LQ$10,12*$A8,(4*(PlotControl!$C$6-1)),12,1))) -> 0 | DK8: 3 | DL8: =AVERAGE(OFFSET(GW!$LO$10,12*$A8,(4*(PlotControl!$C$6-1)),12,1)) -> 0 | DM8: =AVERAGE(OFFSET(GW!$LP$10,12*$A8,(4*(PlotControl!$C$6-1)),12,1)) -> 0 | DN8: =AVERAGE(OFFSET(GW!$LQ$10,12*$A8,(4*(PlotControl!$C$6-1)),12,1)) -> 0 | DO8: =AVERAGE(OFFSET(SW!$LO$10,12*$A8,(4*(PlotControl!$C$6-1)),12,1)) -> 7.9882575e-05 | DP8: =AVERAGE(OFFSET(SW!$LP$10,12*$A8,(4*(PlotControl!$C$6-1)),12,1)) -> 0.000431236675 | DQ8: =AVERAGE(OFFSET(SW!$LQ$10,12*$A8,(4*(PlotControl!$C$6-1)),12,1)) -> 0.001541868917 | DX8: =(AVERAGE(OFFSET(WWTP_To_SW!$HK$10,12*$A8,(4*(PlotControl!$C$6-1)),12,1))) -> 0.0007645075 | DY8: =(AVERAGE(OFFSET(WWTP_To_SW!$HL$10,12*$A8,(4*(PlotControl!$C$6-1)),12,1))) -> 0.0007750816667 | DZ8: =(AVERAGE(OFFSET(WWTP_To_SW!$HM$10,12*$A8,(4*(PlotControl!$C$6-1)),12,1))) -> 0.0008080333333 | EA8: =(AVERAGE(OFFSET(CL_To_SW!$HK$10,12*$A8,(4*(PlotControl!$C$6-1)),12,1))) -> 0 | EB8: =(AVERAGE(OFFSET(CL_To_SW!$HL$10,12*$A8,(4*(PlotControl!$C$6-1)),12,1))) -> 0 | EC8: =(AVERAGE(OFFSET(CL_To_SW!$HM$10,12*$A8,(4*(PlotControl!$C$6-1)),12,1))) -> 0 | EG8: =(AVERAGE(OFFSET(FPs!$DG$10,12*$A8,(4*(PlotControl!$C$6-1)),12,1))) -> 2.555966667e-05 | EH8: =(AVERAGE(OFFSET(FPs!$DH$10,12*$A8,(4*(PlotControl!$C$6-1)),12,1))) -> 3.858883333e-05 | EI8: =(AVERAGE(OFFSET(FPs!$DI$10,12*$A8,(4*(PlotControl!$C$6-1)),12,1))) -> 5.764366667e-05 | EM8: =(AVERAGE(OFFSET(Toes!$DG$10,12*$A8,(4*(PlotControl!$C$6-1)),12,1))) -> 0 | EN8: =(AVERAGE(OFFSET(Toes!$DH$10,12*$A8,(4*(PlotControl!$C$6-1)),12,1))) -> 0 | EO8: =(AVERAGE(OFFSET(Toes!$DI$10,12*$A8,(4*(PlotControl!$C$6-1)),12,1))) -> 0 | EP8: =(AVERAGE(OFFSET(Toes!$HK$10,12*$A8,(4*(PlotControl!$C$6-1)),12,1))) -> 0 | EQ8: =(AVERAGE(OFFSET(Toes!$HL$10,12*$A8,(4*(PlotControl!$C$6-1)),12,1))) -> 0 | ER8: =(AVERAGE(OFFSET(Toes!$HM$10,12*$A8,(4*(PlotControl!$C$6-1)),12,1))) -> 0 | EW8: 3 | EX8: =AVERAGE(OFFSET(GW!$PS$10,12*$A8,(4*(PlotControl!$C$6-1)),12,1)) -> 1.812433333e-05 | EY8: =AVERAGE(OFFSET(GW!$PT$10,12*$A8,(4*(PlotControl!$C$6-1)),12,1)) -> 2.1874e-05 | EZ8: =AVERAGE(OFFSET(GW!$PU$10,12*$A8,(4*(PlotControl!$C$6-1)),12,1)) -> 2.523541667e-05 | FA8: =AVERAGE(OFFSET(SW!$PS$10,12*$A8,(4*(PlotControl!$C$6-1)),12,1)) -> 9.813003333e-05 | FB8: =AVERAGE(OFFSET(SW!$PT$10,12*$A8,(4*(PlotControl!$C$6-1)),12,1)) -> 0.0005297357 | FC8: =AVERAGE(OFFSET(SW!$PU$10,12*$A8,(4*(PlotControl!$C$6-1)),12,1)) -> 0.001894051083 | FJ8: =(AVERAGE(OFFSET(WWTP_To_SW!$LO$10,12*$A8,(4*(PlotControl!$C$6-1)),12,1))) -> 0 | FK8: =(AVERAGE(OFFSET(WWTP_To_SW!$LP$10,12*$A8,(4*(PlotControl!$C$6-1)),12,1))) -> 0 | FL8: =(AVERAGE(OFFSET(WWTP_To_SW!$LQ$10,12*$A8,(4*(PlotControl!$C$6-1)),12,1))) -> 0 | FM8: =(AVERAGE(OFFSET(CL_To_SW!$LO$10,12*$A8,(4*(PlotControl!$C$6-1)),12,1))) -> 0 | FN8: =(AVERAGE(OFFSET(CL_To_SW!$LP$10,12*$A8,(4*(PlotControl!$C$6-1)),12,1))) -> 0 | FO8: =(AVERAGE(OFFSET(CL_To_SW!$LQ$10,12*$A8,(4*(PlotControl!$C$6-1)),12,1))) -> 0 | FP8: =(AVERAGE(OFFSET(FPs!$C$10,12*$A8,(4*(PlotControl!$C$6-1)),12,1))) -> 2.279391667e-05 | FQ8: =(AVERAGE(OFFSET(FPs!$D$10,12*$A8,(4*(PlotControl!$C$6-1)),12,1))) -> 3.393966667e-05 | FR8: =(AVERAGE(OFFSET(FPs!$E$10,12*$A8,(4*(PlotControl!$C$6-1)),12,1))) -> 4.864016667e-05 | FY8: =(AVERAGE(OFFSET(Toes!$C$10,12*$A8,(4*(PlotControl!$C$6-1)),12,1))) -> 0 | FZ8: =(AVERAGE(OFFSET(Toes!$D$10,12*$A8,(4*(PlotControl!$C$6-1)),12,1))) -> 0 | GA8: =(AVERAGE(OFFSET(Toes!$E$10,12*$A8,(4*(PlotControl!$C$6-1)),12,1))) -> 0
A9: 4 | B9: =AVERAGE(OFFSET(GW!$C$10,12*$A9,(4*(PlotControl!$C$6-1)),12,1)) -> 0.0001270405 | C9: =AVERAGE(OFFSET(GW!$D$10,12*$A9,(4*(PlotControl!$C$6-1)),12,1)) -> 0.0001542941667 | D9: =AVERAGE(OFFSET(GW!$E$10,12*$A9,(4*(PlotControl!$C$6-1)),12,1)) -> 0.0001779525 | E9: =AVERAGE(OFFSET(SW!$C$10,12*$A9,(4*(PlotControl!$C$6-1)),12,1)) -> 0.0004223299167 | F9: =AVERAGE(OFFSET(SW!$D$10,12*$A9,(4*(PlotControl!$C$6-1)),12,1)) -> 0.0022266975 | G9: =AVERAGE(OFFSET(SW!$E$10,12*$A9,(4*(PlotControl!$C$6-1)),12,1)) -> 0.0082894775 | H9: =AVERAGE(OFFSET(PointSources!$C$10,12*$A9,(4*(PlotControl!$C$6-1)),12,1)) -> 8.6363e-05 | I9: =AVERAGE(OFFSET(PointSources!$D$10,12*$A9,(4*(PlotControl!$C$6-1)),12,1)) -> 9.417325e-05 | J9: =AVERAGE(OFFSET(PointSources!$E$10,12*$A9,(4*(PlotControl!$C$6-1)),12,1)) -> 0.0001031383333 | AM9: 4 | AN9: =AVERAGE(OFFSET(GW!$DG$10,12*$A9,(4*(PlotControl!$C$6-1)),12,1)) -> 0.0006309916667 | AO9: =AVERAGE(OFFSET(GW!$DH$10,12*$A9,(4*(PlotControl!$C$6-1)),12,1)) -> 0.0007663516667 | AP9: =AVERAGE(OFFSET(GW!$DI$10,12*$A9,(4*(PlotControl!$C$6-1)),12,1)) -> 0.0008838466667 | AQ9: =AVERAGE(OFFSET(SW!$DG$10,12*$A9,(4*(PlotControl!$C$6-1)),12,1)) -> 0.002349385 | AR9: =AVERAGE(OFFSET(SW!$DH$10,12*$A9,(4*(PlotControl!$C$6-1)),12,1)) -> 0.01238710417 | AS9: =AVERAGE(OFFSET(SW!$DI$10,12*$A9,(4*(PlotControl!$C$6-1)),12,1)) -> 0.046114025 | AT9: =AVERAGE(OFFSET(PointSources!$C$10,12*$A9,(4*(PlotControl!$C$6-1)),12,1)) -> 8.6363e-05 | AU9: =AVERAGE(OFFSET(PointSources!$D$10,12*$A9,(4*(PlotControl!$C$6-1)),12,1)) -> 9.417325e-05 | AV9: =AVERAGE(OFFSET(PointSources!$E$10,12*$A9,(4*(PlotControl!$C$6-1)),12,1)) -> 0.0001031383333 | AW9: =AVERAGE(OFFSET(PointSources!$DG$10,12*$A9,(4*(PlotControl!$C$6-1)),12,1)) -> 0.0002121325 | AX9: =AVERAGE(OFFSET(PointSources!$DH$10,12*$A9,(4*(PlotControl!$C$6-1)),12,1)) -> 0.0005229541667 | AY9: =AVERAGE(OFFSET(PointSources!$DI$10,12*$A9,(4*(PlotControl!$C$6-1)),12,1)) -> 0.001263920833 | AZ9: =(AVERAGE(OFFSET(WWTP_To_SW!$C$10,12*$A9,(4*(PlotControl!$C$6-1)),12,1))) -> 0.0011568 | BA9: =(AVERAGE(OFFSET(WWTP_To_SW!$D$10,12*$A9,(4*(PlotControl!$C$6-1)),12,1))) -> 0.00118265 | BB9: =(AVERAGE(OFFSET(WWTP_To_SW!$E$10,12*$A9,(4*(PlotControl!$C$6-1)),12,1))) -> 0.001232358333 | BC9: =(AVERAGE(OFFSET(CL_To_SW!$C$10,12*$A9,(4*(PlotControl!$C$6-1)),12,1))) -> 0 | BD9: =(AVERAGE(OFFSET(CL_To_SW!$D$10,12*$A9,(4*(PlotControl!$C$6-1)),12,1))) -> 0 | BE9: =(AVERAGE(OFFSET(CL_To_SW!$E$10,12*$A9,(4*(PlotControl!$C$6-1)),12,1))) -> 0 | BF9: =(AVERAGE(OFFSET(FPs!$C$10,12*$A9,(4*(PlotControl!$C$6-1)),12,1))) -> 2.264491667e-05 | BG9: =(AVERAGE(OFFSET(FPs!$D$10,12*$A9,(4*(PlotControl!$C$6-1)),12,1))) -> 3.387683333e-05 | BH9: =(AVERAGE(OFFSET(FPs!$E$10,12*$A9,(4*(PlotControl!$C$6-1)),12,1))) -> 4.886766667e-05 | BI9: =(AVERAGE(OFFSET(FPs!$DG$10,12*$A9,(4*(PlotControl!$C$6-1)),12,1))) -> 2.561516667e-05 | BJ9: =(AVERAGE(OFFSET(FPs!$DH$10,12*$A9,(4*(PlotControl!$C$6-1)),12,1))) -> 3.849083333e-05 | BK9: =(AVERAGE(OFFSET(FPs!$DI$10,12*$A9,(4*(PlotControl!$C$6-1)),12,1))) -> 5.785841667e-05 | BL9: =(AVERAGE(OFFSET(FPs!$HK$10,12*$A9,(4*(PlotControl!$C$6-1)),12,1))) -> 5.450175e-05 | BM9: =(AVERAGE(OFFSET(FPs!$HL$10,12*$A9,(4*(PlotControl!$C$6-1)),12,1))) -> 8.148766667e-05 | BN9: =(AVERAGE(OFFSET(FPs!$HM$10,12*$A9,(4*(PlotControl!$C$6-1)),12,1))) -> 0.0001180083333 | BO9: =(AVERAGE(OFFSET(Toes!$C$10,12*$A9,(4*(PlotControl!$C$6-1)),12,1))) + (AVERAGE(OFFSET(Toes!$DG$10,12*$A9,(4*(PlotControl!$C$6-1)),12,1))) -> 0 | BP9: =(AVERAGE(OFFSET(Toes!$D$10,12*$A9,(4*(PlotControl!$C$6-1)),12,1))) + (AVERAGE(OFFSET(Toes!$DH$10,12*$A9,(4*(PlotControl!$C$6-1)),12,1))) -> 0 | BQ9: =(AVERAGE(OFFSET(Toes!$E$10,12*$A9,(4*(PlotControl!$C$6-1)),12,1))) + (AVERAGE(OFFSET(Toes!$DI$10,12*$A9,(4*(PlotControl!$C$6-1)),12,1))) -> 0 | BR9: =(AVERAGE(OFFSET(Toes!$HK$10,12*$A9,(4*(PlotControl!$C$6-1)),12,1))) -> 0 | BS9: =(AVERAGE(OFFSET(Toes!$HL$10,12*$A9,(4*(PlotControl!$C$6-1)),12,1))) -> 0 | BT9: =(AVERAGE(OFFSET(Toes!$HM$10,12*$A9,(4*(PlotControl!$C$6-1)),12,1))) -> 0 | BU9: =(AVERAGE(OFFSET(Toes!$LO$10,12*$A9,(4*(PlotControl!$C$6-1)),12,1))) -> 0 | BV9: =(AVERAGE(OFFSET(Toes!$LP$10,12*$A9,(4*(PlotControl!$C$6-1)),12,1))) -> 0 | BW9: =(AVERAGE(OFFSET(Toes!$LQ$10,12*$A9,(4*(PlotControl!$C$6-1)),12,1))) -> 0 | BY9: 4 | BZ9: =AVERAGE(OFFSET(GW!$HK$10,12*$A9,(4*(PlotControl!$C$6-1)),12,1)) -> 0 | CA9: =AVERAGE(OFFSET(GW!$HL$10,12*$A9,(4*(PlotControl!$C$6-1)),12,1)) -> 0 | CB9: =AVERAGE(OFFSET(GW!$HM$10,12*$A9,(4*(PlotControl!$C$6-1)),12,1)) -> 0 | CC9: =AVERAGE(OFFSET(SW!$HK$10,12*$A9,(4*(PlotControl!$C$6-1)),12,1)) -> 6.389434167e-05 | CD9: =AVERAGE(OFFSET(SW!$HL$10,12*$A9,(4*(PlotControl!$C$6-1)),12,1)) -> 0.0003368792083 | CE9: =AVERAGE(OFFSET(SW!$HM$10,12*$A9,(4*(PlotControl!$C$6-1)),12,1)) -> 0.001254135583 | CL9: =(AVERAGE(OFFSET(WWTP_To_SW!$DG$10,12*$A9,(4*(PlotControl!$C$6-1)),12,1))) -> 0.0002567308333 | CM9: =(AVERAGE(OFFSET(WWTP_To_SW!$DH$10,12*$A9,(4*(PlotControl!$C$6-1)),12,1))) -> 0.0002624716667 | CN9: =(AVERAGE(OFFSET(WWTP_To_SW!$DI$10,12*$A9,(4*(PlotControl!$C$6-1)),12,1))) -> 0.0002735025 | CO9: =(AVERAGE(OFFSET(CL_To_SW!$DG$10,12*$A9,(4*(PlotControl!$C$6-1)),12,1))) -> 0 | CP9: =(AVERAGE(OFFSET(CL_To_SW!$DH$10,12*$A9,(4*(PlotControl!$C$6-1)),12,1))) -> 0 | CQ9: =(AVERAGE(OFFSET(CL_To_SW!$DI$10,12*$A9,(4*(PlotControl!$C$6-1)),12,1))) -> 0 | DG9: =(AVERAGE(OFFSET(Toes!$LO$10,12*$A9,(4*(PlotControl!$C$6-1)),12,1))) -> 0 | DH9: =(AVERAGE(OFFSET(Toes!$LP$10,12*$A9,(4*(PlotControl!$C$6-1)),12,1))) -> 0 | DI9: =(AVERAGE(OFFSET(Toes!$LQ$10,12*$A9,(4*(PlotControl!$C$6-1)),12,1))) -> 0 | DK9: 4 | DL9: =AVERAGE(OFFSET(GW!$LO$10,12*$A9,(4*(PlotControl!$C$6-1)),12,1)) -> 0 | DM9: =AVERAGE(OFFSET(GW!$LP$10,12*$A9,(4*(PlotControl!$C$6-1)),12,1)) -> 0 | DN9: =AVERAGE(OFFSET(GW!$LQ$10,12*$A9,(4*(PlotControl!$C$6-1)),12,1)) -> 0 | DO9: =AVERAGE(OFFSET(SW!$LO$10,12*$A9,(4*(PlotControl!$C$6-1)),12,1)) -> 7.9923475e-05 | DP9: =AVERAGE(OFFSET(SW!$LP$10,12*$A9,(4*(PlotControl!$C$6-1)),12,1)) -> 0.0004213955583 | DQ9: =AVERAGE(OFFSET(SW!$LQ$10,12*$A9,(4*(PlotControl!$C$6-1)),12,1)) -> 0.001568764167 | DX9: =(AVERAGE(OFFSET(WWTP_To_SW!$HK$10,12*$A9,(4*(PlotControl!$C$6-1)),12,1))) -> 0.0009000516667 | DY9: =(AVERAGE(OFFSET(WWTP_To_SW!$HL$10,12*$A9,(4*(PlotControl!$C$6-1)),12,1))) -> 0.0009201833333 | DZ9: =(AVERAGE(OFFSET(WWTP_To_SW!$HM$10,12*$A9,(4*(PlotControl!$C$6-1)),12,1))) -> 0.0009588458333 | EA9: =(AVERAGE(OFFSET(CL_To_SW!$HK$10,12*$A9,(4*(PlotControl!$C$6-1)),12,1))) -> 0 | EB9: =(AVERAGE(OFFSET(CL_To_SW!$HL$10,12*$A9,(4*(PlotControl!$C$6-1)),12,1))) -> 0 | EC9: =(AVERAGE(OFFSET(CL_To_SW!$HM$10,12*$A9,(4*(PlotControl!$C$6-1)),12,1))) -> 0 | EG9: =(AVERAGE(OFFSET(FPs!$DG$10,12*$A9,(4*(PlotControl!$C$6-1)),12,1))) -> 2.561516667e-05 | EH9: =(AVERAGE(OFFSET(FPs!$DH$10,12*$A9,(4*(PlotControl!$C$6-1)),12,1))) -> 3.849083333e-05 | EI9: =(AVERAGE(OFFSET(FPs!$DI$10,12*$A9,(4*(PlotControl!$C$6-1)),12,1))) -> 5.785841667e-05 | EM9: =(AVERAGE(OFFSET(Toes!$DG$10,12*$A9,(4*(PlotControl!$C$6-1)),12,1))) -> 0 | EN9: =(AVERAGE(OFFSET(Toes!$DH$10,12*$A9,(4*(PlotControl!$C$6-1)),12,1))) -> 0 | EO9: =(AVERAGE(OFFSET(Toes!$DI$10,12*$A9,(4*(PlotControl!$C$6-1)),12,1))) -> 0 | EP9: =(AVERAGE(OFFSET(Toes!$HK$10,12*$A9,(4*(PlotControl!$C$6-1)),12,1))) -> 0 | EQ9: =(AVERAGE(OFFSET(Toes!$HL$10,12*$A9,(4*(PlotControl!$C$6-1)),12,1))) -> 0 | ER9: =(AVERAGE(OFFSET(Toes!$HM$10,12*$A9,(4*(PlotControl!$C$6-1)),12,1))) -> 0 | EW9: 4 | EX9: =AVERAGE(OFFSET(GW!$PS$10,12*$A9,(4*(PlotControl!$C$6-1)),12,1)) -> 1.8015e-05 | EY9: =AVERAGE(OFFSET(GW!$PT$10,12*$A9,(4*(PlotControl!$C$6-1)),12,1)) -> 2.187933333e-05 | EZ9: =AVERAGE(OFFSET(GW!$PU$10,12*$A9,(4*(PlotControl!$C$6-1)),12,1)) -> 2.523383333e-05 | FA9: =AVERAGE(OFFSET(SW!$PS$10,12*$A9,(4*(PlotControl!$C$6-1)),12,1)) -> 9.817915833e-05 | FB9: =AVERAGE(OFFSET(SW!$PT$10,12*$A9,(4*(PlotControl!$C$6-1)),12,1)) -> 0.00051764725 | FC9: =AVERAGE(OFFSET(SW!$PU$10,12*$A9,(4*(PlotControl!$C$6-1)),12,1)) -> 0.001927086167 | FJ9: =(AVERAGE(OFFSET(WWTP_To_SW!$LO$10,12*$A9,(4*(PlotControl!$C$6-1)),12,1))) -> 0 | FK9: =(AVERAGE(OFFSET(WWTP_To_SW!$LP$10,12*$A9,(4*(PlotControl!$C$6-1)),12,1))) -> 0 | FL9: =(AVERAGE(OFFSET(WWTP_To_SW!$LQ$10,12*$A9,(4*(PlotControl!$C$6-1)),12,1))) -> 0 | FM9: =(AVERAGE(OFFSET(CL_To_SW!$LO$10,12*$A9,(4*(PlotControl!$C$6-1)),12,1))) -> 0 | FN9: =(AVERAGE(OFFSET(CL_To_SW!$LP$10,12*$A9,(4*(PlotControl!$C$6-1)),12,1))) -> 0 | FO9: =(AVERAGE(OFFSET(CL_To_SW!$LQ$10,12*$A9,(4*(PlotControl!$C$6-1)),12,1))) -> 0 | FP9: =(AVERAGE(OFFSET(FPs!$C$10,12*$A9,(4*(PlotControl!$C$6-1)),12,1))) -> 2.264491667e-05 | FQ9: =(AVERAGE(OFFSET(FPs!$D$10,12*$A9,(4*(PlotControl!$C$6-1)),12,1))) -> 3.387683333e-05 | FR9: =(AVERAGE(OFFSET(FPs!$E$10,12*$A9,(4*(PlotControl!$C$6-1)),12,1))) -> 4.886766667e-05 | FY9: =(AVERAGE(OFFSET(Toes!$C$10,12*$A9,(4*(PlotControl!$C$6-1)),12,1))) -> 0 | FZ9: =(AVERAGE(OFFSET(Toes!$D$10,12*$A9,(4*(PlotControl!$C$6-1)),12,1))) -> 0 | GA9: =(AVERAGE(OFFSET(Toes!$E$10,12*$A9,(4*(PlotControl!$C$6-1)),12,1))) -> 0
A10: 5 | B10: =AVERAGE(OFFSET(GW!$C$10,12*$A10,(4*(PlotControl!$C$6-1)),12,1)) -> 0.00012876525 | C10: =AVERAGE(OFFSET(GW!$D$10,12*$A10,(4*(PlotControl!$C$6-1)),12,1)) -> 0.0001544258333 | D10: =AVERAGE(OFFSET(GW!$E$10,12*$A10,(4*(PlotControl!$C$6-1)),12,1)) -> 0.0001777225 | E10: =AVERAGE(OFFSET(SW!$C$10,12*$A10,(4*(PlotControl!$C$6-1)),12,1)) -> 0.00041289675 | F10: =AVERAGE(OFFSET(SW!$D$10,12*$A10,(4*(PlotControl!$C$6-1)),12,1)) -> 0.002238875 | G10: =AVERAGE(OFFSET(SW!$E$10,12*$A10,(4*(PlotControl!$C$6-1)),12,1)) -> 0.008547309167 | H10: =AVERAGE(OFFSET(PointSources!$C$10,12*$A10,(4*(PlotControl!$C$6-1)),12,1)) -> 8.63945e-05 | I10: =AVERAGE(OFFSET(PointSources!$D$10,12*$A10,(4*(PlotControl!$C$6-1)),12,1)) -> 9.4303e-05 | J10: =AVERAGE(OFFSET(PointSources!$E$10,12*$A10,(4*(PlotControl!$C$6-1)),12,1)) -> 0.00010289 | AM10: 5 | AN10: =AVERAGE(OFFSET(GW!$DG$10,12*$A10,(4*(PlotControl!$C$6-1)),12,1)) -> 0.0006395591667 | AO10: =AVERAGE(OFFSET(GW!$DH$10,12*$A10,(4*(PlotControl!$C$6-1)),12,1)) -> 0.0007669916667 | AP10: =AVERAGE(OFFSET(GW!$DI$10,12*$A10,(4*(PlotControl!$C$6-1)),12,1)) -> 0.0008827091667 | AQ10: =AVERAGE(OFFSET(SW!$DG$10,12*$A10,(4*(PlotControl!$C$6-1)),12,1)) -> 0.002296943333 | AR10: =AVERAGE(OFFSET(SW!$DH$10,12*$A10,(4*(PlotControl!$C$6-1)),12,1)) -> 0.01245484917 | AS10: =AVERAGE(OFFSET(SW!$DI$10,12*$A10,(4*(PlotControl!$C$6-1)),12,1)) -> 0.04754889167 | AT10: =AVERAGE(OFFSET(PointSources!$C$10,12*$A10,(4*(PlotControl!$C$6-1)),12,1)) -> 8.63945e-05 | AU10: =AVERAGE(OFFSET(PointSources!$D$10,12*$A10,(4*(PlotControl!$C$6-1)),12,1)) -> 9.4303e-05 | AV10: =AVERAGE(OFFSET(PointSources!$E$10,12*$A10,(4*(PlotControl!$C$6-1)),12,1)) -> 0.00010289 | AW10: =AVERAGE(OFFSET(PointSources!$DG$10,12*$A10,(4*(PlotControl!$C$6-1)),12,1)) -> 0.0002125308333 | AX10: =AVERAGE(OFFSET(PointSources!$DH$10,12*$A10,(4*(PlotControl!$C$6-1)),12,1)) -> 0.0005258575 | AY10: =AVERAGE(OFFSET(PointSources!$DI$10,12*$A10,(4*(PlotControl!$C$6-1)),12,1)) -> 0.0012829375 | AZ10: =(AVERAGE(OFFSET(WWTP_To_SW!$C$10,12*$A10,(4*(PlotControl!$C$6-1)),12,1))) -> 0.001723175 | BA10: =(AVERAGE(OFFSET(WWTP_To_SW!$D$10,12*$A10,(4*(PlotControl!$C$6-1)),12,1))) -> 0.00177585 | BB10: =(AVERAGE(OFFSET(WWTP_To_SW!$E$10,12*$A10,(4*(PlotControl!$C$6-1)),12,1))) -> 0.001845366667 | BC10: =(AVERAGE(OFFSET(CL_To_SW!$C$10,12*$A10,(4*(PlotControl!$C$6-1)),12,1))) -> 0 | BD10: =(AVERAGE(OFFSET(CL_To_SW!$D$10,12*$A10,(4*(PlotControl!$C$6-1)),12,1))) -> 0 | BE10: =(AVERAGE(OFFSET(CL_To_SW!$E$10,12*$A10,(4*(PlotControl!$C$6-1)),12,1))) -> 0 | BF10: =(AVERAGE(OFFSET(FPs!$C$10,12*$A10,(4*(PlotControl!$C$6-1)),12,1))) -> 2.280975e-05 | BG10: =(AVERAGE(OFFSET(FPs!$D$10,12*$A10,(4*(PlotControl!$C$6-1)),12,1))) -> 3.387925e-05 | BH10: =(AVERAGE(OFFSET(FPs!$E$10,12*$A10,(4*(PlotControl!$C$6-1)),12,1))) -> 4.877225e-05 | BI10: =(AVERAGE(OFFSET(FPs!$DG$10,12*$A10,(4*(PlotControl!$C$6-1)),12,1))) -> 2.56615e-05 | BJ10: =(AVERAGE(OFFSET(FPs!$DH$10,12*$A10,(4*(PlotControl!$C$6-1)),12,1))) -> 3.847866667e-05 | BK10: =(AVERAGE(OFFSET(FPs!$DI$10,12*$A10,(4*(PlotControl!$C$6-1)),12,1))) -> 5.773291667e-05 | BL10: =(AVERAGE(OFFSET(FPs!$HK$10,12*$A10,(4*(PlotControl!$C$6-1)),12,1))) -> 5.464391667e-05 | BM10: =(AVERAGE(OFFSET(FPs!$HL$10,12*$A10,(4*(PlotControl!$C$6-1)),12,1))) -> 8.110808333e-05 | BN10: =(AVERAGE(OFFSET(FPs!$HM$10,12*$A10,(4*(PlotControl!$C$6-1)),12,1))) -> 0.0001174858333 | BO10: =(AVERAGE(OFFSET(Toes!$C$10,12*$A10,(4*(PlotControl!$C$6-1)),12,1))) + (AVERAGE(OFFSET(Toes!$DG$10,12*$A10,(4*(PlotControl!$C$6-1)),12,1))) -> 0 | BP10: =(AVERAGE(OFFSET(Toes!$D$10,12*$A10,(4*(PlotControl!$C$6-1)),12,1))) + (AVERAGE(OFFSET(Toes!$DH$10,12*$A10,(4*(PlotControl!$C$6-1)),12,1))) -> 0 | BQ10: =(AVERAGE(OFFSET(Toes!$E$10,12*$A10,(4*(PlotControl!$C$6-1)),12,1))) + (AVERAGE(OFFSET(Toes!$DI$10,12*$A10,(4*(PlotControl!$C$6-1)),12,1))) -> 0 | BR10: =(AVERAGE(OFFSET(Toes!$HK$10,12*$A10,(4*(PlotControl!$C$6-1)),12,1))) -> 0 | BS10: =(AVERAGE(OFFSET(Toes!$HL$10,12*$A10,(4*(PlotControl!$C$6-1)),12,1))) -> 0 | BT10: =(AVERAGE(OFFSET(Toes!$HM$10,12*$A10,(4*(PlotControl!$C$6-1)),12,1))) -> 0 | BU10: =(AVERAGE(OFFSET(Toes!$LO$10,12*$A10,(4*(PlotControl!$C$6-1)),12,1))) -> 0 | BV10: =(AVERAGE(OFFSET(Toes!$LP$10,12*$A10,(4*(PlotControl!$C$6-1)),12,1))) -> 0 | BW10: =(AVERAGE(OFFSET(Toes!$LQ$10,12*$A10,(4*(PlotControl!$C$6-1)),12,1))) -> 0 | BY10: 5 | BZ10: =AVERAGE(OFFSET(GW!$HK$10,12*$A10,(4*(PlotControl!$C$6-1)),12,1)) -> 0 | CA10: =AVERAGE(OFFSET(GW!$HL$10,12*$A10,(4*(PlotControl!$C$6-1)),12,1)) -> 0 | CB10: =AVERAGE(OFFSET(GW!$HM$10,12*$A10,(4*(PlotControl!$C$6-1)),12,1)) -> 0 | CC10: =AVERAGE(OFFSET(SW!$HK$10,12*$A10,(4*(PlotControl!$C$6-1)),12,1)) -> 6.246805833e-05 | CD10: =AVERAGE(OFFSET(SW!$HL$10,12*$A10,(4*(PlotControl!$C$6-1)),12,1)) -> 0.000338720475 | CE10: =AVERAGE(OFFSET(SW!$HM$10,12*$A10,(4*(PlotControl!$C$6-1)),12,1)) -> 0.0012931395 | CL10: =(AVERAGE(OFFSET(WWTP_To_SW!$DG$10,12*$A10,(4*(PlotControl!$C$6-1)),12,1))) -> 0.0003824325 | CM10: =(AVERAGE(OFFSET(WWTP_To_SW!$DH$10,12*$A10,(4*(PlotControl!$C$6-1)),12,1))) -> 0.0003941225 | CN10: =(AVERAGE(OFFSET(WWTP_To_SW!$DI$10,12*$A10,(4*(PlotControl!$C$6-1)),12,1))) -> 0.0004095483333 | CO10: =(AVERAGE(OFFSET(CL_To_SW!$DG$10,12*$A10,(4*(PlotControl!$C$6-1)),12,1))) -> 0 | CP10: =(AVERAGE(OFFSET(CL_To_SW!$DH$10,12*$A10,(4*(PlotControl!$C$6-1)),12,1))) -> 0 | CQ10: =(AVERAGE(OFFSET(CL_To_SW!$DI$10,12*$A10,(4*(PlotControl!$C$6-1)),12,1))) -> 0 | DG10: =(AVERAGE(OFFSET(Toes!$LO$10,12*$A10,(4*(PlotControl!$C$6-1)),12,1))) -> 0 | DH10: =(AVERAGE(OFFSET(Toes!$LP$10,12*$A10,(4*(PlotControl!$C$6-1)),12,1))) -> 0 | DI10: =(AVERAGE(OFFSET(Toes!$LQ$10,12*$A10,(4*(PlotControl!$C$6-1)),12,1))) -> 0 | DK10: 5 | DL10: =AVERAGE(OFFSET(GW!$LO$10,12*$A10,(4*(PlotControl!$C$6-1)),12,1)) -> 0 | DM10: =AVERAGE(OFFSET(GW!$LP$10,12*$A10,(4*(PlotControl!$C$6-1)),12,1)) -> 0 | DN10: =AVERAGE(OFFSET(GW!$LQ$10,12*$A10,(4*(PlotControl!$C$6-1)),12,1)) -> 0 | DO10: =AVERAGE(OFFSET(SW!$LO$10,12*$A10,(4*(PlotControl!$C$6-1)),12,1)) -> 7.813983333e-05 | DP10: =AVERAGE(OFFSET(SW!$LP$10,12*$A10,(4*(PlotControl!$C$6-1)),12,1)) -> 0.0004236952417 | DQ10: =AVERAGE(OFFSET(SW!$LQ$10,12*$A10,(4*(PlotControl!$C$6-1)),12,1)) -> 0.001617572667 | DX10: =(AVERAGE(OFFSET(WWTP_To_SW!$HK$10,12*$A10,(4*(PlotControl!$C$6-1)),12,1))) -> 0.001340741667 | DY10: =(AVERAGE(OFFSET(WWTP_To_SW!$HL$10,12*$A10,(4*(PlotControl!$C$6-1)),12,1))) -> 0.001381725 | DZ10: =(AVERAGE(OFFSET(WWTP_To_SW!$HM$10,12*$A10,(4*(PlotControl!$C$6-1)),12,1))) -> 0.0014358 | EA10: =(AVERAGE(OFFSET(CL_To_SW!$HK$10,12*$A10,(4*(PlotControl!$C$6-1)),12,1))) -> 0 | EB10: =(AVERAGE(OFFSET(CL_To_SW!$HL$10,12*$A10,(4*(PlotControl!$C$6-1)),12,1))) -> 0 | EC10: =(AVERAGE(OFFSET(CL_To_SW!$HM$10,12*$A10,(4*(PlotControl!$C$6-1)),12,1))) -> 0 | EG10: =(AVERAGE(OFFSET(FPs!$DG$10,12*$A10,(4*(PlotControl!$C$6-1)),12,1))) -> 2.56615e-05 | EH10: =(AVERAGE(OFFSET(FPs!$DH$10,12*$A10,(4*(PlotControl!$C$6-1)),12,1))) -> 3.847866667e-05 | EI10: =(AVERAGE(OFFSET(FPs!$DI$10,12*$A10,(4*(PlotControl!$C$6-1)),12,1))) -> 5.773291667e-05 | EM10: =(AVERAGE(OFFSET(Toes!$DG$10,12*$A10,(4*(PlotControl!$C$6-1)),12,1))) -> 0 | EN10: =(AVERAGE(OFFSET(Toes!$DH$10,12*$A10,(4*(PlotControl!$C$6-1)),12,1))) -> 0 | EO10: =(AVERAGE(OFFSET(Toes!$DI$10,12*$A10,(4*(PlotControl!$C$6-1)),12,1))) -> 0 | EP10: =(AVERAGE(OFFSET(Toes!$HK$10,12*$A10,(4*(PlotControl!$C$6-1)),12,1))) -> 0 | EQ10: =(AVERAGE(OFFSET(Toes!$HL$10,12*$A10,(4*(PlotControl!$C$6-1)),12,1))) -> 0 | ER10: =(AVERAGE(OFFSET(Toes!$HM$10,12*$A10,(4*(PlotControl!$C$6-1)),12,1))) -> 0 | EW10: 5 | EX10: =AVERAGE(OFFSET(GW!$PS$10,12*$A10,(4*(PlotControl!$C$6-1)),12,1)) -> 1.825958333e-05 | EY10: =AVERAGE(OFFSET(GW!$PT$10,12*$A10,(4*(PlotControl!$C$6-1)),12,1)) -> 2.189783333e-05 | EZ10: =AVERAGE(OFFSET(GW!$PU$10,12*$A10,(4*(PlotControl!$C$6-1)),12,1)) -> 2.520141667e-05 | FA10: =AVERAGE(OFFSET(SW!$PS$10,12*$A10,(4*(PlotControl!$C$6-1)),12,1)) -> 9.598775e-05 | FB10: =AVERAGE(OFFSET(SW!$PT$10,12*$A10,(4*(PlotControl!$C$6-1)),12,1)) -> 0.0005204775 | FC10: =AVERAGE(OFFSET(SW!$PU$10,12*$A10,(4*(PlotControl!$C$6-1)),12,1)) -> 0.0019870415 | FJ10: =(AVERAGE(OFFSET(WWTP_To_SW!$LO$10,12*$A10,(4*(PlotControl!$C$6-1)),12,1))) -> 0 | FK10: =(AVERAGE(OFFSET(WWTP_To_SW!$LP$10,12*$A10,(4*(PlotControl!$C$6-1)),12,1))) -> 0 | FL10: =(AVERAGE(OFFSET(WWTP_To_SW!$LQ$10,12*$A10,(4*(PlotControl!$C$6-1)),12,1))) -> 0 | FM10: =(AVERAGE(OFFSET(CL_To_SW!$LO$10,12*$A10,(4*(PlotControl!$C$6-1)),12,1))) -> 0 | FN10: =(AVERAGE(OFFSET(CL_To_SW!$LP$10,12*$A10,(4*(PlotControl!$C$6-1)),12,1))) -> 0 | FO10: =(AVERAGE(OFFSET(CL_To_SW!$LQ$10,12*$A10,(4*(PlotControl!$C$6-1)),12,1))) -> 0 | FP10: =(AVERAGE(OFFSET(FPs!$C$10,12*$A10,(4*(PlotControl!$C$6-1)),12,1))) -> 2.280975e-05 | FQ10: =(AVERAGE(OFFSET(FPs!$D$10,12*$A10,(4*(PlotControl!$C$6-1)),12,1))) -> 3.387925e-05 | FR10: =(AVERAGE(OFFSET(FPs!$E$10,12*$A10,(4*(PlotControl!$C$6-1)),12,1))) -> 4.877225e-05 | FY10: =(AVERAGE(OFFSET(Toes!$C$10,12*$A10,(4*(PlotControl!$C$6-1)),12,1))) -> 0 | FZ10: =(AVERAGE(OFFSET(Toes!$D$10,12*$A10,(4*(PlotControl!$C$6-1)),12,1))) -> 0 | GA10: =(AVERAGE(OFFSET(Toes!$E$10,12*$A10,(4*(PlotControl!$C$6-1)),12,1))) -> 0
A11: 6 | B11: =AVERAGE(OFFSET(GW!$C$10,12*$A11,(4*(PlotControl!$C$6-1)),12,1)) -> 0.0001277195833 | C11: =AVERAGE(OFFSET(GW!$D$10,12*$A11,(4*(PlotControl!$C$6-1)),12,1)) -> 0.0001541483333 | D11: =AVERAGE(OFFSET(GW!$E$10,12*$A11,(4*(PlotControl!$C$6-1)),12,1)) -> 0.0001778966667 | E11: =AVERAGE(OFFSET(SW!$C$10,12*$A11,(4*(PlotControl!$C$6-1)),12,1)) -> 0.0004607016667 | F11: =AVERAGE(OFFSET(SW!$D$10,12*$A11,(4*(PlotControl!$C$6-1)),12,1)) -> 0.002287466 | G11: =AVERAGE(OFFSET(SW!$E$10,12*$A11,(4*(PlotControl!$C$6-1)),12,1)) -> 0.008006175833 | H11: =AVERAGE(OFFSET(PointSources!$C$10,12*$A11,(4*(PlotControl!$C$6-1)),12,1)) -> 8.633858333e-05 | I11: =AVERAGE(OFFSET(PointSources!$D$10,12*$A11,(4*(PlotControl!$C$6-1)),12,1)) -> 9.42345e-05 | J11: =AVERAGE(OFFSET(PointSources!$E$10,12*$A11,(4*(PlotControl!$C$6-1)),12,1)) -> 0.0001026741667 | AM11: 6 | AN11: =AVERAGE(OFFSET(GW!$DG$10,12*$A11,(4*(PlotControl!$C$6-1)),12,1)) -> 0.0006343683333 | AO11: =AVERAGE(OFFSET(GW!$DH$10,12*$A11,(4*(PlotControl!$C$6-1)),12,1)) -> 0.0007656225 | AP11: =AVERAGE(OFFSET(GW!$DI$10,12*$A11,(4*(PlotControl!$C$6-1)),12,1)) -> 0.0008835691667 | AQ11: =AVERAGE(OFFSET(SW!$DG$10,12*$A11,(4*(PlotControl!$C$6-1)),12,1)) -> 0.002562925833 | AR11: =AVERAGE(OFFSET(SW!$DH$10,12*$A11,(4*(PlotControl!$C$6-1)),12,1)) -> 0.012725165 | AS11: =AVERAGE(OFFSET(SW!$DI$10,12*$A11,(4*(PlotControl!$C$6-1)),12,1)) -> 0.04453843333 | AT11: =AVERAGE(OFFSET(PointSources!$C$10,12*$A11,(4*(PlotControl!$C$6-1)),12,1)) -> 8.633858333e-05 | AU11: =AVERAGE(OFFSET(PointSources!$D$10,12*$A11,(4*(PlotControl!$C$6-1)),12,1)) -> 9.42345e-05 | AV11: =AVERAGE(OFFSET(PointSources!$E$10,12*$A11,(4*(PlotControl!$C$6-1)),12,1)) -> 0.0001026741667 | AW11: =AVERAGE(OFFSET(PointSources!$DG$10,12*$A11,(4*(PlotControl!$C$6-1)),12,1)) -> 0.0002149766667 | AX11: =AVERAGE(OFFSET(PointSources!$DH$10,12*$A11,(4*(PlotControl!$C$6-1)),12,1)) -> 0.0005372725 | AY11: =AVERAGE(OFFSET(PointSources!$DI$10,12*$A11,(4*(PlotControl!$C$6-1)),12,1)) -> 0.001246560833 | AZ11: =(AVERAGE(OFFSET(WWTP_To_SW!$C$10,12*$A11,(4*(PlotControl!$C$6-1)),12,1))) -> 0.00236075 | BA11: =(AVERAGE(OFFSET(WWTP_To_SW!$D$10,12*$A11,(4*(PlotControl!$C$6-1)),12,1))) -> 0.002447283333 | BB11: =(AVERAGE(OFFSET(WWTP_To_SW!$E$10,12*$A11,(4*(PlotControl!$C$6-1)),12,1))) -> 0.002547883333 | BC11: =(AVERAGE(OFFSET(CL_To_SW!$C$10,12*$A11,(4*(PlotControl!$C$6-1)),12,1))) -> 0 | BD11: =(AVERAGE(OFFSET(CL_To_SW!$D$10,12*$A11,(4*(PlotControl!$C$6-1)),12,1))) -> 0 | BE11: =(AVERAGE(OFFSET(CL_To_SW!$E$10,12*$A11,(4*(PlotControl!$C$6-1)),12,1))) -> 0 | BF11: =(AVERAGE(OFFSET(FPs!$C$10,12*$A11,(4*(PlotControl!$C$6-1)),12,1))) -> 2.25945e-05 | BG11: =(AVERAGE(OFFSET(FPs!$D$10,12*$A11,(4*(PlotControl!$C$6-1)),12,1))) -> 3.372891667e-05 | BH11: =(AVERAGE(OFFSET(FPs!$E$10,12*$A11,(4*(PlotControl!$C$6-1)),12,1))) -> 4.8939e-05 | BI11: =(AVERAGE(OFFSET(FPs!$DG$10,12*$A11,(4*(PlotControl!$C$6-1)),12,1))) -> 2.544291667e-05 | BJ11: =(AVERAGE(OFFSET(FPs!$DH$10,12*$A11,(4*(PlotControl!$C$6-1)),12,1))) -> 3.847866667e-05 | BK11: =(AVERAGE(OFFSET(FPs!$DI$10,12*$A11,(4*(PlotControl!$C$6-1)),12,1))) -> 5.784816667e-05 | BL11: =(AVERAGE(OFFSET(FPs!$HK$10,12*$A11,(4*(PlotControl!$C$6-1)),12,1))) -> 5.409966667e-05 | BM11: =(AVERAGE(OFFSET(FPs!$HL$10,12*$A11,(4*(PlotControl!$C$6-1)),12,1))) -> 8.097975e-05 | BN11: =(AVERAGE(OFFSET(FPs!$HM$10,12*$A11,(4*(PlotControl!$C$6-1)),12,1))) -> 0.0001168041667 | BO11: =(AVERAGE(OFFSET(Toes!$C$10,12*$A11,(4*(PlotControl!$C$6-1)),12,1))) + (AVERAGE(OFFSET(Toes!$DG$10,12*$A11,(4*(PlotControl!$C$6-1)),12,1))) -> 0 | BP11: =(AVERAGE(OFFSET(Toes!$D$10,12*$A11,(4*(PlotControl!$C$6-1)),12,1))) + (AVERAGE(OFFSET(Toes!$DH$10,12*$A11,(4*(PlotControl!$C$6-1)),12,1))) -> 0 | BQ11: =(AVERAGE(OFFSET(Toes!$E$10,12*$A11,(4*(PlotControl!$C$6-1)),12,1))) + (AVERAGE(OFFSET(Toes!$DI$10,12*$A11,(4*(PlotControl!$C$6-1)),12,1))) -> 0 | BR11: =(AVERAGE(OFFSET(Toes!$HK$10,12*$A11,(4*(PlotControl!$C$6-1)),12,1))) -> 0 | BS11: =(AVERAGE(OFFSET(Toes!$HL$10,12*$A11,(4*(PlotControl!$C$6-1)),12,1))) -> 0 | BT11: =(AVERAGE(OFFSET(Toes!$HM$10,12*$A11,(4*(PlotControl!$C$6-1)),12,1))) -> 0 | BU11: =(AVERAGE(OFFSET(Toes!$LO$10,12*$A11,(4*(PlotControl!$C$6-1)),12,1))) -> 0 | BV11: =(AVERAGE(OFFSET(Toes!$LP$10,12*$A11,(4*(PlotControl!$C$6-1)),12,1))) -> 0 | BW11: =(AVERAGE(OFFSET(Toes!$LQ$10,12*$A11,(4*(PlotControl!$C$6-1)),12,1))) -> 0 | BY11: 6 | BZ11: =AVERAGE(OFFSET(GW!$HK$10,12*$A11,(4*(PlotControl!$C$6-1)),12,1)) -> 0 | CA11: =AVERAGE(OFFSET(GW!$HL$10,12*$A11,(4*(PlotControl!$C$6-1)),12,1)) -> 0 | CB11: =AVERAGE(OFFSET(GW!$HM$10,12*$A11,(4*(PlotControl!$C$6-1)),12,1)) -> 0 | CC11: =AVERAGE(OFFSET(SW!$HK$10,12*$A11,(4*(PlotControl!$C$6-1)),12,1)) -> 6.970161667e-05 | CD11: =AVERAGE(OFFSET(SW!$HL$10,12*$A11,(4*(PlotControl!$C$6-1)),12,1)) -> 0.0003460752833 | CE11: =AVERAGE(OFFSET(SW!$HM$10,12*$A11,(4*(PlotControl!$C$6-1)),12,1)) -> 0.001211262583 | CL11: =(AVERAGE(OFFSET(WWTP_To_SW!$DG$10,12*$A11,(4*(PlotControl!$C$6-1)),12,1))) -> 0.0005239375 | CM11: =(AVERAGE(OFFSET(WWTP_To_SW!$DH$10,12*$A11,(4*(PlotControl!$C$6-1)),12,1))) -> 0.0005431433333 | CN11: =(AVERAGE(OFFSET(WWTP_To_SW!$DI$10,12*$A11,(4*(PlotControl!$C$6-1)),12,1))) -> 0.0005654683333 | CO11: =(AVERAGE(OFFSET(CL_To_SW!$DG$10,12*$A11,(4*(PlotControl!$C$6-1)),12,1))) -> 0 | CP11: =(AVERAGE(OFFSET(CL_To_SW!$DH$10,12*$A11,(4*(PlotControl!$C$6-1)),12,1))) -> 0 | CQ11: =(AVERAGE(OFFSET(CL_To_SW!$DI$10,12*$A11,(4*(PlotControl!$C$6-1)),12,1))) -> 0 | DG11: =(AVERAGE(OFFSET(Toes!$LO$10,12*$A11,(4*(PlotControl!$C$6-1)),12,1))) -> 0 | DH11: =(AVERAGE(OFFSET(Toes!$LP$10,12*$A11,(4*(PlotControl!$C$6-1)),12,1))) -> 0 | DI11: =(AVERAGE(OFFSET(Toes!$LQ$10,12*$A11,(4*(PlotControl!$C$6-1)),12,1))) -> 0 | DK11: 6 | DL11: =AVERAGE(OFFSET(GW!$LO$10,12*$A11,(4*(PlotControl!$C$6-1)),12,1)) -> 0 | DM11: =AVERAGE(OFFSET(GW!$LP$10,12*$A11,(4*(PlotControl!$C$6-1)),12,1)) -> 0 | DN11: =AVERAGE(OFFSET(GW!$LQ$10,12*$A11,(4*(PlotControl!$C$6-1)),12,1)) -> 0 | DO11: =AVERAGE(OFFSET(SW!$LO$10,12*$A11,(4*(PlotControl!$C$6-1)),12,1)) -> 8.718783333e-05 | DP11: =AVERAGE(OFFSET(SW!$LP$10,12*$A11,(4*(PlotControl!$C$6-1)),12,1)) -> 0.0004328970333 | DQ11: =AVERAGE(OFFSET(SW!$LQ$10,12*$A11,(4*(PlotControl!$C$6-1)),12,1)) -> 0.001515136417 | DX11: =(AVERAGE(OFFSET(WWTP_To_SW!$HK$10,12*$A11,(4*(PlotControl!$C$6-1)),12,1))) -> 0.001836841667 | DY11: =(AVERAGE(OFFSET(WWTP_To_SW!$HL$10,12*$A11,(4*(PlotControl!$C$6-1)),12,1))) -> 0.00190415 | DZ11: =(AVERAGE(OFFSET(WWTP_To_SW!$HM$10,12*$A11,(4*(PlotControl!$C$6-1)),12,1))) -> 0.001982425 | EA11: =(AVERAGE(OFFSET(CL_To_SW!$HK$10,12*$A11,(4*(PlotControl!$C$6-1)),12,1))) -> 0 | EB11: =(AVERAGE(OFFSET(CL_To_SW!$HL$10,12*$A11,(4*(PlotControl!$C$6-1)),12,1))) -> 0 | EC11: =(AVERAGE(OFFSET(CL_To_SW!$HM$10,12*$A11,(4*(PlotControl!$C$6-1)),12,1))) -> 0 | EG11: =(AVERAGE(OFFSET(FPs!$DG$10,12*$A11,(4*(PlotControl!$C$6-1)),12,1))) -> 2.544291667e-05 | EH11: =(AVERAGE(OFFSET(FPs!$DH$10,12*$A11,(4*(PlotControl!$C$6-1)),12,1))) -> 3.847866667e-05 | EI11: =(AVERAGE(OFFSET(FPs!$DI$10,12*$A11,(4*(PlotControl!$C$6-1)),12,1))) -> 5.784816667e-05 | EM11: =(AVERAGE(OFFSET(Toes!$DG$10,12*$A11,(4*(PlotControl!$C$6-1)),12,1))) -> 0 | EN11: =(AVERAGE(OFFSET(Toes!$DH$10,12*$A11,(4*(PlotControl!$C$6-1)),12,1))) -> 0 | EO11: =(AVERAGE(OFFSET(Toes!$DI$10,12*$A11,(4*(PlotControl!$C$6-1)),12,1))) -> 0 | EP11: =(AVERAGE(OFFSET(Toes!$HK$10,12*$A11,(4*(PlotControl!$C$6-1)),12,1))) -> 0 | EQ11: =(AVERAGE(OFFSET(Toes!$HL$10,12*$A11,(4*(PlotControl!$C$6-1)),12,1))) -> 0 | ER11: =(AVERAGE(OFFSET(Toes!$HM$10,12*$A11,(4*(PlotControl!$C$6-1)),12,1))) -> 0 | EW11: 6 | EX11: =AVERAGE(OFFSET(GW!$PS$10,12*$A11,(4*(PlotControl!$C$6-1)),12,1)) -> 1.81115e-05 | EY11: =AVERAGE(OFFSET(GW!$PT$10,12*$A11,(4*(PlotControl!$C$6-1)),12,1)) -> 2.185866667e-05 | EZ11: =AVERAGE(OFFSET(GW!$PU$10,12*$A11,(4*(PlotControl!$C$6-1)),12,1)) -> 2.522591667e-05 | FA11: =AVERAGE(OFFSET(SW!$PS$10,12*$A11,(4*(PlotControl!$C$6-1)),12,1)) -> 0.000107102 | FB11: =AVERAGE(OFFSET(SW!$PT$10,12*$A11,(4*(PlotControl!$C$6-1)),12,1)) -> 0.0005317736667 | FC11: =AVERAGE(OFFSET(SW!$PU$10,12*$A11,(4*(PlotControl!$C$6-1)),12,1)) -> 0.001861213417 | FJ11: =(AVERAGE(OFFSET(WWTP_To_SW!$LO$10,12*$A11,(4*(PlotControl!$C$6-1)),12,1))) -> 0 | FK11: =(AVERAGE(OFFSET(WWTP_To_SW!$LP$10,12*$A11,(4*(PlotControl!$C$6-1)),12,1))) -> 0 | FL11: =(AVERAGE(OFFSET(WWTP_To_SW!$LQ$10,12*$A11,(4*(PlotControl!$C$6-1)),12,1))) -> 0 | FM11: =(AVERAGE(OFFSET(CL_To_SW!$LO$10,12*$A11,(4*(PlotControl!$C$6-1)),12,1))) -> 0 | FN11: =(AVERAGE(OFFSET(CL_To_SW!$LP$10,12*$A11,(4*(PlotControl!$C$6-1)),12,1))) -> 0 | FO11: =(AVERAGE(OFFSET(CL_To_SW!$LQ$10,12*$A11,(4*(PlotControl!$C$6-1)),12,1))) -> 0 | FP11: =(AVERAGE(OFFSET(FPs!$C$10,12*$A11,(4*(PlotControl!$C$6-1)),12,1))) -> 2.25945e-05 | FQ11: =(AVERAGE(OFFSET(FPs!$D$10,12*$A11,(4*(PlotControl!$C$6-1)),12,1))) -> 3.372891667e-05 | FR11: =(AVERAGE(OFFSET(FPs!$E$10,12*$A11,(4*(PlotControl!$C$6-1)),12,1))) -> 4.8939e-05 | FY11: =(AVERAGE(OFFSET(Toes!$C$10,12*$A11,(4*(PlotControl!$C$6-1)),12,1))) -> 0 | FZ11: =(AVERAGE(OFFSET(Toes!$D$10,12*$A11,(4*(PlotControl!$C$6-1)),12,1))) -> 0 | GA11: =(AVERAGE(OFFSET(Toes!$E$10,12*$A11,(4*(PlotControl!$C$6-1)),12,1))) -> 0
A12: 7 | B12: =AVERAGE(OFFSET(GW!$C$10,12*$A12,(4*(PlotControl!$C$6-1)),12,1)) -> 0.00012851575 | C12: =AVERAGE(OFFSET(GW!$D$10,12*$A12,(4*(PlotControl!$C$6-1)),12,1)) -> 0.0001542758333 | D12: =AVERAGE(OFFSET(GW!$E$10,12*$A12,(4*(PlotControl!$C$6-1)),12,1)) -> 0.0001780816667 | E12: =AVERAGE(OFFSET(SW!$C$10,12*$A12,(4*(PlotControl!$C$6-1)),12,1)) -> 0.0004351134167 | F12: =AVERAGE(OFFSET(SW!$D$10,12*$A12,(4*(PlotControl!$C$6-1)),12,1)) -> 0.002242123083 | G12: =AVERAGE(OFFSET(SW!$E$10,12*$A12,(4*(PlotControl!$C$6-1)),12,1)) -> 0.008331353333 | H12: =AVERAGE(OFFSET(PointSources!$C$10,12*$A12,(4*(PlotControl!$C$6-1)),12,1)) -> 8.631216667e-05 | I12: =AVERAGE(OFFSET(PointSources!$D$10,12*$A12,(4*(PlotControl!$C$6-1)),12,1)) -> 9.44085e-05 | J12: =AVERAGE(OFFSET(PointSources!$E$10,12*$A12,(4*(PlotControl!$C$6-1)),12,1)) -> 0.0001028258333 | AM12: 7 | AN12: =AVERAGE(OFFSET(GW!$DG$10,12*$A12,(4*(PlotControl!$C$6-1)),12,1)) -> 0.0006383166667 | AO12: =AVERAGE(OFFSET(GW!$DH$10,12*$A12,(4*(PlotControl!$C$6-1)),12,1)) -> 0.0007662516667 | AP12: =AVERAGE(OFFSET(GW!$DI$10,12*$A12,(4*(PlotControl!$C$6-1)),12,1)) -> 0.0008844875 | AQ12: =AVERAGE(OFFSET(SW!$DG$10,12*$A12,(4*(PlotControl!$C$6-1)),12,1)) -> 0.002420530833 | AR12: =AVERAGE(OFFSET(SW!$DH$10,12*$A12,(4*(PlotControl!$C$6-1)),12,1)) -> 0.01247287 | AS12: =AVERAGE(OFFSET(SW!$DI$10,12*$A12,(4*(PlotControl!$C$6-1)),12,1)) -> 0.046347275 | AT12: =AVERAGE(OFFSET(PointSources!$C$10,12*$A12,(4*(PlotControl!$C$6-1)),12,1)) -> 8.631216667e-05 | AU12: =AVERAGE(OFFSET(PointSources!$D$10,12*$A12,(4*(PlotControl!$C$6-1)),12,1)) -> 9.44085e-05 | AV12: =AVERAGE(OFFSET(PointSources!$E$10,12*$A12,(4*(PlotControl!$C$6-1)),12,1)) -> 0.0001028258333 | AW12: =AVERAGE(OFFSET(PointSources!$DG$10,12*$A12,(4*(PlotControl!$C$6-1)),12,1)) -> 0.0002160366667 | AX12: =AVERAGE(OFFSET(PointSources!$DH$10,12*$A12,(4*(PlotControl!$C$6-1)),12,1)) -> 0.0005273016667 | AY12: =AVERAGE(OFFSET(PointSources!$DI$10,12*$A12,(4*(PlotControl!$C$6-1)),12,1)) -> 0.001273605833 | AZ12: =(AVERAGE(OFFSET(WWTP_To_SW!$C$10,12*$A12,(4*(PlotControl!$C$6-1)),12,1))) -> 0.00244065 | BA12: =(AVERAGE(OFFSET(WWTP_To_SW!$D$10,12*$A12,(4*(PlotControl!$C$6-1)),12,1))) -> 0.002764216667 | BB12: =(AVERAGE(OFFSET(WWTP_To_SW!$E$10,12*$A12,(4*(PlotControl!$C$6-1)),12,1))) -> 0.003502133333 | BC12: =(AVERAGE(OFFSET(CL_To_SW!$C$10,12*$A12,(4*(PlotControl!$C$6-1)),12,1))) -> 0 | BD12: =(AVERAGE(OFFSET(CL_To_SW!$D$10,12*$A12,(4*(PlotControl!$C$6-1)),12,1))) -> 0 | BE12: =(AVERAGE(OFFSET(CL_To_SW!$E$10,12*$A12,(4*(PlotControl!$C$6-1)),12,1))) -> 0 | BF12: =(AVERAGE(OFFSET(FPs!$C$10,12*$A12,(4*(PlotControl!$C$6-1)),12,1))) -> 2.272375e-05 | BG12: =(AVERAGE(OFFSET(FPs!$D$10,12*$A12,(4*(PlotControl!$C$6-1)),12,1))) -> 3.384783333e-05 | BH12: =(AVERAGE(OFFSET(FPs!$E$10,12*$A12,(4*(PlotControl!$C$6-1)),12,1))) -> 4.925625e-05 | BI12: =(AVERAGE(OFFSET(FPs!$DG$10,12*$A12,(4*(PlotControl!$C$6-1)),12,1))) -> 2.558433333e-05 | BJ12: =(AVERAGE(OFFSET(FPs!$DH$10,12*$A12,(4*(PlotControl!$C$6-1)),12,1))) -> 3.851075e-05 | BK12: =(AVERAGE(OFFSET(FPs!$DI$10,12*$A12,(4*(PlotControl!$C$6-1)),12,1))) -> 5.76135e-05 | BL12: =(AVERAGE(OFFSET(FPs!$HK$10,12*$A12,(4*(PlotControl!$C$6-1)),12,1))) -> 5.423975e-05 | BM12: =(AVERAGE(OFFSET(FPs!$HL$10,12*$A12,(4*(PlotControl!$C$6-1)),12,1))) -> 8.045975e-05 | BN12: =(AVERAGE(OFFSET(FPs!$HM$10,12*$A12,(4*(PlotControl!$C$6-1)),12,1))) -> 0.000115895 | BO12: =(AVERAGE(OFFSET(Toes!$C$10,12*$A12,(4*(PlotControl!$C$6-1)),12,1))) + (AVERAGE(OFFSET(Toes!$DG$10,12*$A12,(4*(PlotControl!$C$6-1)),12,1))) -> 0 | BP12: =(AVERAGE(OFFSET(Toes!$D$10,12*$A12,(4*(PlotControl!$C$6-1)),12,1))) + (AVERAGE(OFFSET(Toes!$DH$10,12*$A12,(4*(PlotControl!$C$6-1)),12,1))) -> 0 | BQ12: =(AVERAGE(OFFSET(Toes!$E$10,12*$A12,(4*(PlotControl!$C$6-1)),12,1))) + (AVERAGE(OFFSET(Toes!$DI$10,12*$A12,(4*(PlotControl!$C$6-1)),12,1))) -> 0 | BR12: =(AVERAGE(OFFSET(Toes!$HK$10,12*$A12,(4*(PlotControl!$C$6-1)),12,1))) -> 0 | BS12: =(AVERAGE(OFFSET(Toes!$HL$10,12*$A12,(4*(PlotControl!$C$6-1)),12,1))) -> 0 | BT12: =(AVERAGE(OFFSET(Toes!$HM$10,12*$A12,(4*(PlotControl!$C$6-1)),12,1))) -> 0 | BU12: =(AVERAGE(OFFSET(Toes!$LO$10,12*$A12,(4*(PlotControl!$C$6-1)),12,1))) -> 0 | BV12: =(AVERAGE(OFFSET(Toes!$LP$10,12*$A12,(4*(PlotControl!$C$6-1)),12,1))) -> 0 | BW12: =(AVERAGE(OFFSET(Toes!$LQ$10,12*$A12,(4*(PlotControl!$C$6-1)),12,1))) -> 0 | BY12: 7 | BZ12: =AVERAGE(OFFSET(GW!$HK$10,12*$A12,(4*(PlotControl!$C$6-1)),12,1)) -> 0 | CA12: =AVERAGE(OFFSET(GW!$HL$10,12*$A12,(4*(PlotControl!$C$6-1)),12,1)) -> 0 | CB12: =AVERAGE(OFFSET(GW!$HM$10,12*$A12,(4*(PlotControl!$C$6-1)),12,1)) -> 0 | CC12: =AVERAGE(OFFSET(SW!$HK$10,12*$A12,(4*(PlotControl!$C$6-1)),12,1)) -> 6.582866667e-05 | CD12: =AVERAGE(OFFSET(SW!$HL$10,12*$A12,(4*(PlotControl!$C$6-1)),12,1)) -> 0.0003392116 | CE12: =AVERAGE(OFFSET(SW!$HM$10,12*$A12,(4*(PlotControl!$C$6-1)),12,1)) -> 0.001260457917 | CL12: =(AVERAGE(OFFSET(WWTP_To_SW!$DG$10,12*$A12,(4*(PlotControl!$C$6-1)),12,1))) -> 0.0005416658333 | CM12: =(AVERAGE(OFFSET(WWTP_To_SW!$DH$10,12*$A12,(4*(PlotControl!$C$6-1)),12,1))) -> 0.0006134783333 | CN12: =(AVERAGE(OFFSET(WWTP_To_SW!$DI$10,12*$A12,(4*(PlotControl!$C$6-1)),12,1))) -> 0.0007772466667 | CO12: =(AVERAGE(OFFSET(CL_To_SW!$DG$10,12*$A12,(4*(PlotControl!$C$6-1)),12,1))) -> 0 | CP12: =(AVERAGE(OFFSET(CL_To_SW!$DH$10,12*$A12,(4*(PlotControl!$C$6-1)),12,1))) -> 0 | CQ12: =(AVERAGE(OFFSET(CL_To_SW!$DI$10,12*$A12,(4*(PlotControl!$C$6-1)),12,1))) -> 0 | DG12: =(AVERAGE(OFFSET(Toes!$LO$10,12*$A12,(4*(PlotControl!$C$6-1)),12,1))) -> 0 | DH12: =(AVERAGE(OFFSET(Toes!$LP$10,12*$A12,(4*(PlotControl!$C$6-1)),12,1))) -> 0 | DI12: =(AVERAGE(OFFSET(Toes!$LQ$10,12*$A12,(4*(PlotControl!$C$6-1)),12,1))) -> 0 | DK12: 7 | DL12: =AVERAGE(OFFSET(GW!$LO$10,12*$A12,(4*(PlotControl!$C$6-1)),12,1)) -> 0 | DM12: =AVERAGE(OFFSET(GW!$LP$10,12*$A12,(4*(PlotControl!$C$6-1)),12,1)) -> 0 | DN12: =AVERAGE(OFFSET(GW!$LQ$10,12*$A12,(4*(PlotControl!$C$6-1)),12,1)) -> 0 | DO12: =AVERAGE(OFFSET(SW!$LO$10,12*$A12,(4*(PlotControl!$C$6-1)),12,1)) -> 8.234358333e-05 | DP12: =AVERAGE(OFFSET(SW!$LP$10,12*$A12,(4*(PlotControl!$C$6-1)),12,1)) -> 0.0004243148667 | DQ12: =AVERAGE(OFFSET(SW!$LQ$10,12*$A12,(4*(PlotControl!$C$6-1)),12,1)) -> 0.001576678917 | DX12: =(AVERAGE(OFFSET(WWTP_To_SW!$HK$10,12*$A12,(4*(PlotControl!$C$6-1)),12,1))) -> 0.001898966667 | DY12: =(AVERAGE(OFFSET(WWTP_To_SW!$HL$10,12*$A12,(4*(PlotControl!$C$6-1)),12,1))) -> 0.002150741667 | DZ12: =(AVERAGE(OFFSET(WWTP_To_SW!$HM$10,12*$A12,(4*(PlotControl!$C$6-1)),12,1))) -> 0.002724891667 | EA12: =(AVERAGE(OFFSET(CL_To_SW!$HK$10,12*$A12,(4*(PlotControl!$C$6-1)),12,1))) -> 0 | EB12: =(AVERAGE(OFFSET(CL_To_SW!$HL$10,12*$A12,(4*(PlotControl!$C$6-1)),12,1))) -> 0 | EC12: =(AVERAGE(OFFSET(CL_To_SW!$HM$10,12*$A12,(4*(PlotControl!$C$6-1)),12,1))) -> 0 | EG12: =(AVERAGE(OFFSET(FPs!$DG$10,12*$A12,(4*(PlotControl!$C$6-1)),12,1))) -> 2.558433333e-05 | EH12: =(AVERAGE(OFFSET(FPs!$DH$10,12*$A12,(4*(PlotControl!$C$6-1)),12,1))) -> 3.851075e-05 | EI12: =(AVERAGE(OFFSET(FPs!$DI$10,12*$A12,(4*(PlotControl!$C$6-1)),12,1))) -> 5.76135e-05 | EM12: =(AVERAGE(OFFSET(Toes!$DG$10,12*$A12,(4*(PlotControl!$C$6-1)),12,1))) -> 0 | EN12: =(AVERAGE(OFFSET(Toes!$DH$10,12*$A12,(4*(PlotControl!$C$6-1)),12,1))) -> 0 | EO12: =(AVERAGE(OFFSET(Toes!$DI$10,12*$A12,(4*(PlotControl!$C$6-1)),12,1))) -> 0 | EP12: =(AVERAGE(OFFSET(Toes!$HK$10,12*$A12,(4*(PlotControl!$C$6-1)),12,1))) -> 0 | EQ12: =(AVERAGE(OFFSET(Toes!$HL$10,12*$A12,(4*(PlotControl!$C$6-1)),12,1))) -> 0 | ER12: =(AVERAGE(OFFSET(Toes!$HM$10,12*$A12,(4*(PlotControl!$C$6-1)),12,1))) -> 0 | EW12: 7 | EX12: =AVERAGE(OFFSET(GW!$PS$10,12*$A12,(4*(PlotControl!$C$6-1)),12,1)) -> 1.822416667e-05 | EY12: =AVERAGE(OFFSET(GW!$PT$10,12*$A12,(4*(PlotControl!$C$6-1)),12,1)) -> 2.187666667e-05 | EZ12: =AVERAGE(OFFSET(GW!$PU$10,12*$A12,(4*(PlotControl!$C$6-1)),12,1)) -> 2.525216667e-05 | FA12: =AVERAGE(OFFSET(SW!$PS$10,12*$A12,(4*(PlotControl!$C$6-1)),12,1)) -> 0.0001011516667 | FB12: =AVERAGE(OFFSET(SW!$PT$10,12*$A12,(4*(PlotControl!$C$6-1)),12,1)) -> 0.0005212304167 | FC12: =AVERAGE(OFFSET(SW!$PU$10,12*$A12,(4*(PlotControl!$C$6-1)),12,1)) -> 0.00193680325 | FJ12: =(AVERAGE(OFFSET(WWTP_To_SW!$LO$10,12*$A12,(4*(PlotControl!$C$6-1)),12,1))) -> 0 | FK12: =(AVERAGE(OFFSET(WWTP_To_SW!$LP$10,12*$A12,(4*(PlotControl!$C$6-1)),12,1))) -> 0 | FL12: =(AVERAGE(OFFSET(WWTP_To_SW!$LQ$10,12*$A12,(4*(PlotControl!$C$6-1)),12,1))) -> 0 | FM12: =(AVERAGE(OFFSET(CL_To_SW!$LO$10,12*$A12,(4*(PlotControl!$C$6-1)),12,1))) -> 0 | FN12: =(AVERAGE(OFFSET(CL_To_SW!$LP$10,12*$A12,(4*(PlotControl!$C$6-1)),12,1))) -> 0 | FO12: =(AVERAGE(OFFSET(CL_To_SW!$LQ$10,12*$A12,(4*(PlotControl!$C$6-1)),12,1))) -> 0 | FP12: =(AVERAGE(OFFSET(FPs!$C$10,12*$A12,(4*(PlotControl!$C$6-1)),12,1))) -> 2.272375e-05 | FQ12: =(AVERAGE(OFFSET(FPs!$D$10,12*$A12,(4*(PlotControl!$C$6-1)),12,1))) -> 3.384783333e-05 | FR12: =(AVERAGE(OFFSET(FPs!$E$10,12*$A12,(4*(PlotControl!$C$6-1)),12,1))) -> 4.925625e-05 | FY12: =(AVERAGE(OFFSET(Toes!$C$10,12*$A12,(4*(PlotControl!$C$6-1)),12,1))) -> 0 | FZ12: =(AVERAGE(OFFSET(Toes!$D$10,12*$A12,(4*(PlotControl!$C$6-1)),12,1))) -> 0 | GA12: =(AVERAGE(OFFSET(Toes!$E$10,12*$A12,(4*(PlotControl!$C$6-1)),12,1))) -> 0
A13: 8 | B13: =AVERAGE(OFFSET(GW!$C$10,12*$A13,(4*(PlotControl!$C$6-1)),12,1)) -> 0.0001289913333 | C13: =AVERAGE(OFFSET(GW!$D$10,12*$A13,(4*(PlotControl!$C$6-1)),12,1)) -> 0.0001542775 | D13: =AVERAGE(OFFSET(GW!$E$10,12*$A13,(4*(PlotControl!$C$6-1)),12,1)) -> 0.00017795 | E13: =AVERAGE(OFFSET(SW!$C$10,12*$A13,(4*(PlotControl!$C$6-1)),12,1)) -> 0.00044793125 | F13: =AVERAGE(OFFSET(SW!$D$10,12*$A13,(4*(PlotControl!$C$6-1)),12,1)) -> 0.0023636165 | G13: =AVERAGE(OFFSET(SW!$E$10,12*$A13,(4*(PlotControl!$C$6-1)),12,1)) -> 0.0078776625 | H13: =AVERAGE(OFFSET(PointSources!$C$10,12*$A13,(4*(PlotControl!$C$6-1)),12,1)) -> 8.654483333e-05 | I13: =AVERAGE(OFFSET(PointSources!$D$10,12*$A13,(4*(PlotControl!$C$6-1)),12,1)) -> 9.435433333e-05 | J13: =AVERAGE(OFFSET(PointSources!$E$10,12*$A13,(4*(PlotControl!$C$6-1)),12,1)) -> 0.0001027 | AM13: 8 | AN13: =AVERAGE(OFFSET(GW!$DG$10,12*$A13,(4*(PlotControl!$C$6-1)),12,1)) -> 0.0006406766667 | AO13: =AVERAGE(OFFSET(GW!$DH$10,12*$A13,(4*(PlotControl!$C$6-1)),12,1)) -> 0.00076626 | AP13: =AVERAGE(OFFSET(GW!$DI$10,12*$A13,(4*(PlotControl!$C$6-1)),12,1)) -> 0.0008838366667 | AQ13: =AVERAGE(OFFSET(SW!$DG$10,12*$A13,(4*(PlotControl!$C$6-1)),12,1)) -> 0.002491871167 | AR13: =AVERAGE(OFFSET(SW!$DH$10,12*$A13,(4*(PlotControl!$C$6-1)),12,1)) -> 0.01314870583 | AS13: =AVERAGE(OFFSET(SW!$DI$10,12*$A13,(4*(PlotControl!$C$6-1)),12,1)) -> 0.043823625 | AT13: =AVERAGE(OFFSET(PointSources!$C$10,12*$A13,(4*(PlotControl!$C$6-1)),12,1)) -> 8.654483333e-05 | AU13: =AVERAGE(OFFSET(PointSources!$D$10,12*$A13,(4*(PlotControl!$C$6-1)),12,1)) -> 9.435433333e-05 | AV13: =AVERAGE(OFFSET(PointSources!$E$10,12*$A13,(4*(PlotControl!$C$6-1)),12,1)) -> 0.0001027 | AW13: =AVERAGE(OFFSET(PointSources!$DG$10,12*$A13,(4*(PlotControl!$C$6-1)),12,1)) -> 0.0002212091667 | AX13: =AVERAGE(OFFSET(PointSources!$DH$10,12*$A13,(4*(PlotControl!$C$6-1)),12,1)) -> 0.0005406275 | AY13: =AVERAGE(OFFSET(PointSources!$DI$10,12*$A13,(4*(PlotControl!$C$6-1)),12,1)) -> 0.001234505 | AZ13: =(AVERAGE(OFFSET(WWTP_To_SW!$C$10,12*$A13,(4*(PlotControl!$C$6-1)),12,1))) -> 0.002236566667 | BA13: =(AVERAGE(OFFSET(WWTP_To_SW!$D$10,12*$A13,(4*(PlotControl!$C$6-1)),12,1))) -> 0.002845483333 | BB13: =(AVERAGE(OFFSET(WWTP_To_SW!$E$10,12*$A13,(4*(PlotControl!$C$6-1)),12,1))) -> 0.003563191667 | BC13: =(AVERAGE(OFFSET(CL_To_SW!$C$10,12*$A13,(4*(PlotControl!$C$6-1)),12,1))) -> 0 | BD13: =(AVERAGE(OFFSET(CL_To_SW!$D$10,12*$A13,(4*(PlotControl!$C$6-1)),12,1))) -> 0 | BE13: =(AVERAGE(OFFSET(CL_To_SW!$E$10,12*$A13,(4*(PlotControl!$C$6-1)),12,1))) -> 0 | BF13: =(AVERAGE(OFFSET(FPs!$C$10,12*$A13,(4*(PlotControl!$C$6-1)),12,1))) -> 2.275341667e-05 | BG13: =(AVERAGE(OFFSET(FPs!$D$10,12*$A13,(4*(PlotControl!$C$6-1)),12,1))) -> 3.384508333e-05 | BH13: =(AVERAGE(OFFSET(FPs!$E$10,12*$A13,(4*(PlotControl!$C$6-1)),12,1))) -> 4.874741667e-05 | BI13: =(AVERAGE(OFFSET(FPs!$DG$10,12*$A13,(4*(PlotControl!$C$6-1)),12,1))) -> 2.572008333e-05 | BJ13: =(AVERAGE(OFFSET(FPs!$DH$10,12*$A13,(4*(PlotControl!$C$6-1)),12,1))) -> 3.844483333e-05 | BK13: =(AVERAGE(OFFSET(FPs!$DI$10,12*$A13,(4*(PlotControl!$C$6-1)),12,1))) -> 5.787583333e-05 | BL13: =(AVERAGE(OFFSET(FPs!$HK$10,12*$A13,(4*(PlotControl!$C$6-1)),12,1))) -> 5.4362e-05 | BM13: =(AVERAGE(OFFSET(FPs!$HL$10,12*$A13,(4*(PlotControl!$C$6-1)),12,1))) -> 8.056766667e-05 | BN13: =(AVERAGE(OFFSET(FPs!$HM$10,12*$A13,(4*(PlotControl!$C$6-1)),12,1))) -> 0.000115105 | BO13: =(AVERAGE(OFFSET(Toes!$C$10,12*$A13,(4*(PlotControl!$C$6-1)),12,1))) + (AVERAGE(OFFSET(Toes!$DG$10,12*$A13,(4*(PlotControl!$C$6-1)),12,1))) -> 0 | BP13: =(AVERAGE(OFFSET(Toes!$D$10,12*$A13,(4*(PlotControl!$C$6-1)),12,1))) + (AVERAGE(OFFSET(Toes!$DH$10,12*$A13,(4*(PlotControl!$C$6-1)),12,1))) -> 0 | BQ13: =(AVERAGE(OFFSET(Toes!$E$10,12*$A13,(4*(PlotControl!$C$6-1)),12,1))) + (AVERAGE(OFFSET(Toes!$DI$10,12*$A13,(4*(PlotControl!$C$6-1)),12,1))) -> 0 | BR13: =(AVERAGE(OFFSET(Toes!$HK$10,12*$A13,(4*(PlotControl!$C$6-1)),12,1))) -> 0 | BS13: =(AVERAGE(OFFSET(Toes!$HL$10,12*$A13,(4*(PlotControl!$C$6-1)),12,1))) -> 0 | BT13: =(AVERAGE(OFFSET(Toes!$HM$10,12*$A13,(4*(PlotControl!$C$6-1)),12,1))) -> 0 | BU13: =(AVERAGE(OFFSET(Toes!$LO$10,12*$A13,(4*(PlotControl!$C$6-1)),12,1))) -> 0 | BV13: =(AVERAGE(OFFSET(Toes!$LP$10,12*$A13,(4*(PlotControl!$C$6-1)),12,1))) -> 0 | BW13: =(AVERAGE(OFFSET(Toes!$LQ$10,12*$A13,(4*(PlotControl!$C$6-1)),12,1))) -> 0 | BY13: 8 | BZ13: =AVERAGE(OFFSET(GW!$HK$10,12*$A13,(4*(PlotControl!$C$6-1)),12,1)) -> 0 | CA13: =AVERAGE(OFFSET(GW!$HL$10,12*$A13,(4*(PlotControl!$C$6-1)),12,1)) -> 0 | CB13: =AVERAGE(OFFSET(GW!$HM$10,12*$A13,(4*(PlotControl!$C$6-1)),12,1)) -> 0 | CC13: =AVERAGE(OFFSET(SW!$HK$10,12*$A13,(4*(PlotControl!$C$6-1)),12,1)) -> 6.776824167e-05 | CD13: =AVERAGE(OFFSET(SW!$HL$10,12*$A13,(4*(PlotControl!$C$6-1)),12,1)) -> 0.0003576002583 | CE13: =AVERAGE(OFFSET(SW!$HM$10,12*$A13,(4*(PlotControl!$C$6-1)),12,1)) -> 0.001191833833 | CL13: =(AVERAGE(OFFSET(WWTP_To_SW!$DG$10,12*$A13,(4*(PlotControl!$C$6-1)),12,1))) -> 0.0004963716667 | CM13: =(AVERAGE(OFFSET(WWTP_To_SW!$DH$10,12*$A13,(4*(PlotControl!$C$6-1)),12,1))) -> 0.0006315133333 | CN13: =(AVERAGE(OFFSET(WWTP_To_SW!$DI$10,12*$A13,(4*(PlotControl!$C$6-1)),12,1))) -> 0.0007908 | CO13: =(AVERAGE(OFFSET(CL_To_SW!$DG$10,12*$A13,(4*(PlotControl!$C$6-1)),12,1))) -> 0 | CP13: =(AVERAGE(OFFSET(CL_To_SW!$DH$10,12*$A13,(4*(PlotControl!$C$6-1)),12,1))) -> 0 | CQ13: =(AVERAGE(OFFSET(CL_To_SW!$DI$10,12*$A13,(4*(PlotControl!$C$6-1)),12,1))) -> 0 | DG13: =(AVERAGE(OFFSET(Toes!$LO$10,12*$A13,(4*(PlotControl!$C$6-1)),12,1))) -> 0 | DH13: =(AVERAGE(OFFSET(Toes!$LP$10,12*$A13,(4*(PlotControl!$C$6-1)),12,1))) -> 0 | DI13: =(AVERAGE(OFFSET(Toes!$LQ$10,12*$A13,(4*(PlotControl!$C$6-1)),12,1))) -> 0 | DK13: 8 | DL13: =AVERAGE(OFFSET(GW!$LO$10,12*$A13,(4*(PlotControl!$C$6-1)),12,1)) -> 0 | DM13: =AVERAGE(OFFSET(GW!$LP$10,12*$A13,(4*(PlotControl!$C$6-1)),12,1)) -> 0 | DN13: =AVERAGE(OFFSET(GW!$LQ$10,12*$A13,(4*(PlotControl!$C$6-1)),12,1)) -> 0 | DO13: =AVERAGE(OFFSET(SW!$LO$10,12*$A13,(4*(PlotControl!$C$6-1)),12,1)) -> 8.476838333e-05 | DP13: =AVERAGE(OFFSET(SW!$LP$10,12*$A13,(4*(PlotControl!$C$6-1)),12,1)) -> 0.000447306075 | DQ13: =AVERAGE(OFFSET(SW!$LQ$10,12*$A13,(4*(PlotControl!$C$6-1)),12,1)) -> 0.001490819917 | DX13: =(AVERAGE(OFFSET(WWTP_To_SW!$HK$10,12*$A13,(4*(PlotControl!$C$6-1)),12,1))) -> 0.001740175 | DY13: =(AVERAGE(OFFSET(WWTP_To_SW!$HL$10,12*$A13,(4*(PlotControl!$C$6-1)),12,1))) -> 0.002213966667 | DZ13: =(AVERAGE(OFFSET(WWTP_To_SW!$HM$10,12*$A13,(4*(PlotControl!$C$6-1)),12,1))) -> 0.002772391667 | EA13: =(AVERAGE(OFFSET(CL_To_SW!$HK$10,12*$A13,(4*(PlotControl!$C$6-1)),12,1))) -> 0 | EB13: =(AVERAGE(OFFSET(CL_To_SW!$HL$10,12*$A13,(4*(PlotControl!$C$6-1)),12,1))) -> 0 | EC13: =(AVERAGE(OFFSET(CL_To_SW!$HM$10,12*$A13,(4*(PlotControl!$C$6-1)),12,1))) -> 0 | EG13: =(AVERAGE(OFFSET(FPs!$DG$10,12*$A13,(4*(PlotControl!$C$6-1)),12,1))) -> 2.572008333e-05 | EH13: =(AVERAGE(OFFSET(FPs!$DH$10,12*$A13,(4*(PlotControl!$C$6-1)),12,1))) -> 3.844483333e-05 | EI13: =(AVERAGE(OFFSET(FPs!$DI$10,12*$A13,(4*(PlotControl!$C$6-1)),12,1))) -> 5.787583333e-05 | EM13: =(AVERAGE(OFFSET(Toes!$DG$10,12*$A13,(4*(PlotControl!$C$6-1)),12,1))) -> 0 | EN13: =(AVERAGE(OFFSET(Toes!$DH$10,12*$A13,(4*(PlotControl!$C$6-1)),12,1))) -> 0 | EO13: =(AVERAGE(OFFSET(Toes!$DI$10,12*$A13,(4*(PlotControl!$C$6-1)),12,1))) -> 0 | EP13: =(AVERAGE(OFFSET(Toes!$HK$10,12*$A13,(4*(PlotControl!$C$6-1)),12,1))) -> 0 | EQ13: =(AVERAGE(OFFSET(Toes!$HL$10,12*$A13,(4*(PlotControl!$C$6-1)),12,1))) -> 0 | ER13: =(AVERAGE(OFFSET(Toes!$HM$10,12*$A13,(4*(PlotControl!$C$6-1)),12,1))) -> 0 | EW13: 8 | EX13: =AVERAGE(OFFSET(GW!$PS$10,12*$A13,(4*(PlotControl!$C$6-1)),12,1)) -> 1.829158333e-05 | EY13: =AVERAGE(OFFSET(GW!$PT$10,12*$A13,(4*(PlotControl!$C$6-1)),12,1)) -> 2.187691667e-05 | EZ13: =AVERAGE(OFFSET(GW!$PU$10,12*$A13,(4*(PlotControl!$C$6-1)),12,1)) -> 2.52335e-05 | FA13: =AVERAGE(OFFSET(SW!$PS$10,12*$A13,(4*(PlotControl!$C$6-1)),12,1)) -> 0.000104130925 | FB13: =AVERAGE(OFFSET(SW!$PT$10,12*$A13,(4*(PlotControl!$C$6-1)),12,1)) -> 0.0005494708333 | FC13: =AVERAGE(OFFSET(SW!$PU$10,12*$A13,(4*(PlotControl!$C$6-1)),12,1)) -> 0.001831341 | FJ13: =(AVERAGE(OFFSET(WWTP_To_SW!$LO$10,12*$A13,(4*(PlotControl!$C$6-1)),12,1))) -> 0 | FK13: =(AVERAGE(OFFSET(WWTP_To_SW!$LP$10,12*$A13,(4*(PlotControl!$C$6-1)),12,1))) -> 0 | FL13: =(AVERAGE(OFFSET(WWTP_To_SW!$LQ$10,12*$A13,(4*(PlotControl!$C$6-1)),12,1))) -> 0 | FM13: =(AVERAGE(OFFSET(CL_To_SW!$LO$10,12*$A13,(4*(PlotControl!$C$6-1)),12,1))) -> 0 | FN13: =(AVERAGE(OFFSET(CL_To_SW!$LP$10,12*$A13,(4*(PlotControl!$C$6-1)),12,1))) -> 0 | FO13: =(AVERAGE(OFFSET(CL_To_SW!$LQ$10,12*$A13,(4*(PlotControl!$C$6-1)),12,1))) -> 0 | FP13: =(AVERAGE(OFFSET(FPs!$C$10,12*$A13,(4*(PlotControl!$C$6-1)),12,1))) -> 2.275341667e-05 | FQ13: =(AVERAGE(OFFSET(FPs!$D$10,12*$A13,(4*(PlotControl!$C$6-1)),12,1))) -> 3.384508333e-05 | FR13: =(AVERAGE(OFFSET(FPs!$E$10,12*$A13,(4*(PlotControl!$C$6-1)),12,1))) -> 4.874741667e-05 | FY13: =(AVERAGE(OFFSET(Toes!$C$10,12*$A13,(4*(PlotControl!$C$6-1)),12,1))) -> 0 | FZ13: =(AVERAGE(OFFSET(Toes!$D$10,12*$A13,(4*(PlotControl!$C$6-1)),12,1))) -> 0 | GA13: =(AVERAGE(OFFSET(Toes!$E$10,12*$A13,(4*(PlotControl!$C$6-1)),12,1))) -> 0
A14: 9 | B14: =AVERAGE(OFFSET(GW!$C$10,12*$A14,(4*(PlotControl!$C$6-1)),12,1)) -> 0.0001286086667 | C14: =AVERAGE(OFFSET(GW!$D$10,12*$A14,(4*(PlotControl!$C$6-1)),12,1)) -> 0.0001542875 | D14: =AVERAGE(OFFSET(GW!$E$10,12*$A14,(4*(PlotControl!$C$6-1)),12,1)) -> 0.00017779 | E14: =AVERAGE(OFFSET(SW!$C$10,12*$A14,(4*(PlotControl!$C$6-1)),12,1)) -> 0.0004350055833 | F14: =AVERAGE(OFFSET(SW!$D$10,12*$A14,(4*(PlotControl!$C$6-1)),12,1)) -> 0.002405740333 | G14: =AVERAGE(OFFSET(SW!$E$10,12*$A14,(4*(PlotControl!$C$6-1)),12,1)) -> 0.008338575833 | H14: =AVERAGE(OFFSET(PointSources!$C$10,12*$A14,(4*(PlotControl!$C$6-1)),12,1)) -> 8.655516667e-05 | I14: =AVERAGE(OFFSET(PointSources!$D$10,12*$A14,(4*(PlotControl!$C$6-1)),12,1)) -> 9.436541667e-05 | J14: =AVERAGE(OFFSET(PointSources!$E$10,12*$A14,(4*(PlotControl!$C$6-1)),12,1)) -> 0.0001028566667 | AM14: 9 | AN14: =AVERAGE(OFFSET(GW!$DG$10,12*$A14,(4*(PlotControl!$C$6-1)),12,1)) -> 0.0006387733333 | AO14: =AVERAGE(OFFSET(GW!$DH$10,12*$A14,(4*(PlotControl!$C$6-1)),12,1)) -> 0.0007663141667 | AP14: =AVERAGE(OFFSET(GW!$DI$10,12*$A14,(4*(PlotControl!$C$6-1)),12,1)) -> 0.00088304 | AQ14: =AVERAGE(OFFSET(SW!$DG$10,12*$A14,(4*(PlotControl!$C$6-1)),12,1)) -> 0.002419921667 | AR14: =AVERAGE(OFFSET(SW!$DH$10,12*$A14,(4*(PlotControl!$C$6-1)),12,1)) -> 0.0133830775 | AS14: =AVERAGE(OFFSET(SW!$DI$10,12*$A14,(4*(PlotControl!$C$6-1)),12,1)) -> 0.046388025 | AT14: =AVERAGE(OFFSET(PointSources!$C$10,12*$A14,(4*(PlotControl!$C$6-1)),12,1)) -> 8.655516667e-05 | AU14: =AVERAGE(OFFSET(PointSources!$D$10,12*$A14,(4*(PlotControl!$C$6-1)),12,1)) -> 9.436541667e-05 | AV14: =AVERAGE(OFFSET(PointSources!$E$10,12*$A14,(4*(PlotControl!$C$6-1)),12,1)) -> 0.0001028566667 | AW14: =AVERAGE(OFFSET(PointSources!$DG$10,12*$A14,(4*(PlotControl!$C$6-1)),12,1)) -> 0.000214645 | AX14: =AVERAGE(OFFSET(PointSources!$DH$10,12*$A14,(4*(PlotControl!$C$6-1)),12,1)) -> 0.0005422458333 | AY14: =AVERAGE(OFFSET(PointSources!$DI$10,12*$A14,(4*(PlotControl!$C$6-1)),12,1)) -> 0.00126212 | AZ14: =(AVERAGE(OFFSET(WWTP_To_SW!$C$10,12*$A14,(4*(PlotControl!$C$6-1)),12,1))) -> 0.002135516667 | BA14: =(AVERAGE(OFFSET(WWTP_To_SW!$D$10,12*$A14,(4*(PlotControl!$C$6-1)),12,1))) -> 0.002728225 | BB14: =(AVERAGE(OFFSET(WWTP_To_SW!$E$10,12*$A14,(4*(PlotControl!$C$6-1)),12,1))) -> 0.003379691667 | BC14: =(AVERAGE(OFFSET(CL_To_SW!$C$10,12*$A14,(4*(PlotControl!$C$6-1)),12,1))) -> 0 | BD14: =(AVERAGE(OFFSET(CL_To_SW!$D$10,12*$A14,(4*(PlotControl!$C$6-1)),12,1))) -> 0 | BE14: =(AVERAGE(OFFSET(CL_To_SW!$E$10,12*$A14,(4*(PlotControl!$C$6-1)),12,1))) -> 0 | BF14: =(AVERAGE(OFFSET(FPs!$C$10,12*$A14,(4*(PlotControl!$C$6-1)),12,1))) -> 2.278675e-05 | BG14: =(AVERAGE(OFFSET(FPs!$D$10,12*$A14,(4*(PlotControl!$C$6-1)),12,1))) -> 3.383208333e-05 | BH14: =(AVERAGE(OFFSET(FPs!$E$10,12*$A14,(4*(PlotControl!$C$6-1)),12,1))) -> 4.883616667e-05 | BI14: =(AVERAGE(OFFSET(FPs!$DG$10,12*$A14,(4*(PlotControl!$C$6-1)),12,1))) -> 2.569325e-05 | BJ14: =(AVERAGE(OFFSET(FPs!$DH$10,12*$A14,(4*(PlotControl!$C$6-1)),12,1))) -> 3.836083333e-05 | BK14: =(AVERAGE(OFFSET(FPs!$DI$10,12*$A14,(4*(PlotControl!$C$6-1)),12,1))) -> 5.781516667e-05 | BL14: =(AVERAGE(OFFSET(FPs!$HK$10,12*$A14,(4*(PlotControl!$C$6-1)),12,1))) -> 5.426358333e-05 | BM14: =(AVERAGE(OFFSET(FPs!$HL$10,12*$A14,(4*(PlotControl!$C$6-1)),12,1))) -> 8.033725e-05 | BN14: =(AVERAGE(OFFSET(FPs!$HM$10,12*$A14,(4*(PlotControl!$C$6-1)),12,1))) -> 0.0001140883333 | BO14: =(AVERAGE(OFFSET(Toes!$C$10,12*$A14,(4*(PlotControl!$C$6-1)),12,1))) + (AVERAGE(OFFSET(Toes!$DG$10,12*$A14,(4*(PlotControl!$C$6-1)),12,1))) -> 0 | BP14: =(AVERAGE(OFFSET(Toes!$D$10,12*$A14,(4*(PlotControl!$C$6-1)),12,1))) + (AVERAGE(OFFSET(Toes!$DH$10,12*$A14,(4*(PlotControl!$C$6-1)),12,1))) -> 0 | BQ14: =(AVERAGE(OFFSET(Toes!$E$10,12*$A14,(4*(PlotControl!$C$6-1)),12,1))) + (AVERAGE(OFFSET(Toes!$DI$10,12*$A14,(4*(PlotControl!$C$6-1)),12,1))) -> 0 | BR14: =(AVERAGE(OFFSET(Toes!$HK$10,12*$A14,(4*(PlotControl!$C$6-1)),12,1))) -> 0 | BS14: =(AVERAGE(OFFSET(Toes!$HL$10,12*$A14,(4*(PlotControl!$C$6-1)),12,1))) -> 0 | BT14: =(AVERAGE(OFFSET(Toes!$HM$10,12*$A14,(4*(PlotControl!$C$6-1)),12,1))) -> 0 | BU14: =(AVERAGE(OFFSET(Toes!$LO$10,12*$A14,(4*(PlotControl!$C$6-1)),12,1))) -> 0 | BV14: =(AVERAGE(OFFSET(Toes!$LP$10,12*$A14,(4*(PlotControl!$C$6-1)),12,1))) -> 0 | BW14: =(AVERAGE(OFFSET(Toes!$LQ$10,12*$A14,(4*(PlotControl!$C$6-1)),12,1))) -> 0 | BY14: 9 | BZ14: =AVERAGE(OFFSET(GW!$HK$10,12*$A14,(4*(PlotControl!$C$6-1)),12,1)) -> 0 | CA14: =AVERAGE(OFFSET(GW!$HL$10,12*$A14,(4*(PlotControl!$C$6-1)),12,1)) -> 0 | CB14: =AVERAGE(OFFSET(GW!$HM$10,12*$A14,(4*(PlotControl!$C$6-1)),12,1)) -> 0 | CC14: =AVERAGE(OFFSET(SW!$HK$10,12*$A14,(4*(PlotControl!$C$6-1)),12,1)) -> 6.581276667e-05 | CD14: =AVERAGE(OFFSET(SW!$HL$10,12*$A14,(4*(PlotControl!$C$6-1)),12,1)) -> 0.0003639685 | CE14: =AVERAGE(OFFSET(SW!$HM$10,12*$A14,(4*(PlotControl!$C$6-1)),12,1)) -> 0.00126155475 | CL14: =(AVERAGE(OFFSET(WWTP_To_SW!$DG$10,12*$A14,(4*(PlotControl!$C$6-1)),12,1))) -> 0.0004739508333 | CM14: =(AVERAGE(OFFSET(WWTP_To_SW!$DH$10,12*$A14,(4*(PlotControl!$C$6-1)),12,1))) -> 0.0006054933333 | CN14: =(AVERAGE(OFFSET(WWTP_To_SW!$DI$10,12*$A14,(4*(PlotControl!$C$6-1)),12,1))) -> 0.0007500733333 | CO14: =(AVERAGE(OFFSET(CL_To_SW!$DG$10,12*$A14,(4*(PlotControl!$C$6-1)),12,1))) -> 0 | CP14: =(AVERAGE(OFFSET(CL_To_SW!$DH$10,12*$A14,(4*(PlotControl!$C$6-1)),12,1))) -> 0 | CQ14: =(AVERAGE(OFFSET(CL_To_SW!$DI$10,12*$A14,(4*(PlotControl!$C$6-1)),12,1))) -> 0 | DG14: =(AVERAGE(OFFSET(Toes!$LO$10,12*$A14,(4*(PlotControl!$C$6-1)),12,1))) -> 0 | DH14: =(AVERAGE(OFFSET(Toes!$LP$10,12*$A14,(4*(PlotControl!$C$6-1)),12,1))) -> 0 | DI14: =(AVERAGE(OFFSET(Toes!$LQ$10,12*$A14,(4*(PlotControl!$C$6-1)),12,1))) -> 0 | DK14: 9 | DL14: =AVERAGE(OFFSET(GW!$LO$10,12*$A14,(4*(PlotControl!$C$6-1)),12,1)) -> 0 | DM14: =AVERAGE(OFFSET(GW!$LP$10,12*$A14,(4*(PlotControl!$C$6-1)),12,1)) -> 0 | DN14: =AVERAGE(OFFSET(GW!$LQ$10,12*$A14,(4*(PlotControl!$C$6-1)),12,1)) -> 0 | DO14: =AVERAGE(OFFSET(SW!$LO$10,12*$A14,(4*(PlotControl!$C$6-1)),12,1)) -> 8.232371667e-05 | DP14: =AVERAGE(OFFSET(SW!$LP$10,12*$A14,(4*(PlotControl!$C$6-1)),12,1)) -> 0.0004552778333 | DQ14: =AVERAGE(OFFSET(SW!$LQ$10,12*$A14,(4*(PlotControl!$C$6-1)),12,1)) -> 0.001578048917 | DX14: =(AVERAGE(OFFSET(WWTP_To_SW!$HK$10,12*$A14,(4*(PlotControl!$C$6-1)),12,1))) -> 0.001661575 | DY14: =(AVERAGE(OFFSET(WWTP_To_SW!$HL$10,12*$A14,(4*(PlotControl!$C$6-1)),12,1))) -> 0.002122725 | DZ14: =(AVERAGE(OFFSET(WWTP_To_SW!$HM$10,12*$A14,(4*(PlotControl!$C$6-1)),12,1))) -> 0.002629616667 | EA14: =(AVERAGE(OFFSET(CL_To_SW!$HK$10,12*$A14,(4*(PlotControl!$C$6-1)),12,1))) -> 0 | EB14: =(AVERAGE(OFFSET(CL_To_SW!$HL$10,12*$A14,(4*(PlotControl!$C$6-1)),12,1))) -> 0 | EC14: =(AVERAGE(OFFSET(CL_To_SW!$HM$10,12*$A14,(4*(PlotControl!$C$6-1)),12,1))) -> 0 | EG14: =(AVERAGE(OFFSET(FPs!$DG$10,12*$A14,(4*(PlotControl!$C$6-1)),12,1))) -> 2.569325e-05 | EH14: =(AVERAGE(OFFSET(FPs!$DH$10,12*$A14,(4*(PlotControl!$C$6-1)),12,1))) -> 3.836083333e-05 | EI14: =(AVERAGE(OFFSET(FPs!$DI$10,12*$A14,(4*(PlotControl!$C$6-1)),12,1))) -> 5.781516667e-05 | EM14: =(AVERAGE(OFFSET(Toes!$DG$10,12*$A14,(4*(PlotControl!$C$6-1)),12,1))) -> 0 | EN14: =(AVERAGE(OFFSET(Toes!$DH$10,12*$A14,(4*(PlotControl!$C$6-1)),12,1))) -> 0 | EO14: =(AVERAGE(OFFSET(Toes!$DI$10,12*$A14,(4*(PlotControl!$C$6-1)),12,1))) -> 0 | EP14: =(AVERAGE(OFFSET(Toes!$HK$10,12*$A14,(4*(PlotControl!$C$6-1)),12,1))) -> 0 | EQ14: =(AVERAGE(OFFSET(Toes!$HL$10,12*$A14,(4*(PlotControl!$C$6-1)),12,1))) -> 0 | ER14: =(AVERAGE(OFFSET(Toes!$HM$10,12*$A14,(4*(PlotControl!$C$6-1)),12,1))) -> 0 | EW14: 9 | EX14: =AVERAGE(OFFSET(GW!$PS$10,12*$A14,(4*(PlotControl!$C$6-1)),12,1)) -> 1.823733333e-05 | EY14: =AVERAGE(OFFSET(GW!$PT$10,12*$A14,(4*(PlotControl!$C$6-1)),12,1)) -> 2.187833333e-05 | EZ14: =AVERAGE(OFFSET(GW!$PU$10,12*$A14,(4*(PlotControl!$C$6-1)),12,1)) -> 2.521075e-05 | FA14: =AVERAGE(OFFSET(SW!$PS$10,12*$A14,(4*(PlotControl!$C$6-1)),12,1)) -> 0.00010112635 | FB14: =AVERAGE(OFFSET(SW!$PT$10,12*$A14,(4*(PlotControl!$C$6-1)),12,1)) -> 0.0005592688333 | FC14: =AVERAGE(OFFSET(SW!$PU$10,12*$A14,(4*(PlotControl!$C$6-1)),12,1)) -> 0.0019384835 | FJ14: =(AVERAGE(OFFSET(WWTP_To_SW!$LO$10,12*$A14,(4*(PlotControl!$C$6-1)),12,1))) -> 0 | FK14: =(AVERAGE(OFFSET(WWTP_To_SW!$LP$10,12*$A14,(4*(PlotControl!$C$6-1)),12,1))) -> 0 | FL14: =(AVERAGE(OFFSET(WWTP_To_SW!$LQ$10,12*$A14,(4*(PlotControl!$C$6-1)),12,1))) -> 0 | FM14: =(AVERAGE(OFFSET(CL_To_SW!$LO$10,12*$A14,(4*(PlotControl!$C$6-1)),12,1))) -> 0 | FN14: =(AVERAGE(OFFSET(CL_To_SW!$LP$10,12*$A14,(4*(PlotControl!$C$6-1)),12,1))) -> 0 | FO14: =(AVERAGE(OFFSET(CL_To_SW!$LQ$10,12*$A14,(4*(PlotControl!$C$6-1)),12,1))) -> 0 | FP14: =(AVERAGE(OFFSET(FPs!$C$10,12*$A14,(4*(PlotControl!$C$6-1)),12,1))) -> 2.278675e-05 | FQ14: =(AVERAGE(OFFSET(FPs!$D$10,12*$A14,(4*(PlotControl!$C$6-1)),12,1))) -> 3.383208333e-05 | FR14: =(AVERAGE(OFFSET(FPs!$E$10,12*$A14,(4*(PlotControl!$C$6-1)),12,1))) -> 4.883616667e-05 | FY14: =(AVERAGE(OFFSET(Toes!$C$10,12*$A14,(4*(PlotControl!$C$6-1)),12,1))) -> 0 | FZ14: =(AVERAGE(OFFSET(Toes!$D$10,12*$A14,(4*(PlotControl!$C$6-1)),12,1))) -> 0 | GA14: =(AVERAGE(OFFSET(Toes!$E$10,12*$A14,(4*(PlotControl!$C$6-1)),12,1))) -> 0
A15: 10 | B15: =AVERAGE(OFFSET(GW!$C$10,12*$A15,(4*(PlotControl!$C$6-1)),12,1)) -> 0.0001272309167 | C15: =AVERAGE(OFFSET(GW!$D$10,12*$A15,(4*(PlotControl!$C$6-1)),12,1)) -> 0.0001542608333 | D15: =AVERAGE(OFFSET(GW!$E$10,12*$A15,(4*(PlotControl!$C$6-1)),12,1)) -> 0.0001780975 | E15: =AVERAGE(OFFSET(SW!$C$10,12*$A15,(4*(PlotControl!$C$6-1)),12,1)) -> 0.0004536044167 | F15: =AVERAGE(OFFSET(SW!$D$10,12*$A15,(4*(PlotControl!$C$6-1)),12,1)) -> 0.002347115 | G15: =AVERAGE(OFFSET(SW!$E$10,12*$A15,(4*(PlotControl!$C$6-1)),12,1)) -> 0.0081815025 | H15: =AVERAGE(OFFSET(PointSources!$C$10,12*$A15,(4*(PlotControl!$C$6-1)),12,1)) -> 8.639325e-05 | I15: =AVERAGE(OFFSET(PointSources!$D$10,12*$A15,(4*(PlotControl!$C$6-1)),12,1)) -> 9.430716667e-05 | J15: =AVERAGE(OFFSET(PointSources!$E$10,12*$A15,(4*(PlotControl!$C$6-1)),12,1)) -> 0.0001029658333 | AM15: 10 | AN15: =AVERAGE(OFFSET(GW!$DG$10,12*$A15,(4*(PlotControl!$C$6-1)),12,1)) -> 0.00063194 | AO15: =AVERAGE(OFFSET(GW!$DH$10,12*$A15,(4*(PlotControl!$C$6-1)),12,1)) -> 0.0007661825 | AP15: =AVERAGE(OFFSET(GW!$DI$10,12*$A15,(4*(PlotControl!$C$6-1)),12,1)) -> 0.0008845675 | AQ15: =AVERAGE(OFFSET(SW!$DG$10,12*$A15,(4*(PlotControl!$C$6-1)),12,1)) -> 0.0025234025 | AR15: =AVERAGE(OFFSET(SW!$DH$10,12*$A15,(4*(PlotControl!$C$6-1)),12,1)) -> 0.01305705417 | AS15: =AVERAGE(OFFSET(SW!$DI$10,12*$A15,(4*(PlotControl!$C$6-1)),12,1)) -> 0.04551339167 | AT15: =AVERAGE(OFFSET(PointSources!$C$10,12*$A15,(4*(PlotControl!$C$6-1)),12,1)) -> 8.639325e-05 | AU15: =AVERAGE(OFFSET(PointSources!$D$10,12*$A15,(4*(PlotControl!$C$6-1)),12,1)) -> 9.430716667e-05 | AV15: =AVERAGE(OFFSET(PointSources!$E$10,12*$A15,(4*(PlotControl!$C$6-1)),12,1)) -> 0.0001029658333 | AW15: =AVERAGE(OFFSET(PointSources!$DG$10,12*$A15,(4*(PlotControl!$C$6-1)),12,1)) -> 0.0002188141667 | AX15: =AVERAGE(OFFSET(PointSources!$DH$10,12*$A15,(4*(PlotControl!$C$6-1)),12,1)) -> 0.0005324991667 | AY15: =AVERAGE(OFFSET(PointSources!$DI$10,12*$A15,(4*(PlotControl!$C$6-1)),12,1)) -> 0.001254615833 | AZ15: =(AVERAGE(OFFSET(WWTP_To_SW!$C$10,12*$A15,(4*(PlotControl!$C$6-1)),12,1))) -> 0.001819891667 | BA15: =(AVERAGE(OFFSET(WWTP_To_SW!$D$10,12*$A15,(4*(PlotControl!$C$6-1)),12,1))) -> 0.002390683333 | BB15: =(AVERAGE(OFFSET(WWTP_To_SW!$E$10,12*$A15,(4*(PlotControl!$C$6-1)),12,1))) -> 0.003093716667 | BC15: =(AVERAGE(OFFSET(CL_To_SW!$C$10,12*$A15,(4*(PlotControl!$C$6-1)),12,1))) -> 0 | BD15: =(AVERAGE(OFFSET(CL_To_SW!$D$10,12*$A15,(4*(PlotControl!$C$6-1)),12,1))) -> 0 | BE15: =(AVERAGE(OFFSET(CL_To_SW!$E$10,12*$A15,(4*(PlotControl!$C$6-1)),12,1))) -> 0 | BF15: =(AVERAGE(OFFSET(FPs!$C$10,12*$A15,(4*(PlotControl!$C$6-1)),12,1))) -> 2.270716667e-05 | BG15: =(AVERAGE(OFFSET(FPs!$D$10,12*$A15,(4*(PlotControl!$C$6-1)),12,1))) -> 3.3612e-05 | BH15: =(AVERAGE(OFFSET(FPs!$E$10,12*$A15,(4*(PlotControl!$C$6-1)),12,1))) -> 4.865616667e-05 | BI15: =(AVERAGE(OFFSET(FPs!$DG$10,12*$A15,(4*(PlotControl!$C$6-1)),12,1))) -> 2.545075e-05 | BJ15: =(AVERAGE(OFFSET(FPs!$DH$10,12*$A15,(4*(PlotControl!$C$6-1)),12,1))) -> 3.845158333e-05 | BK15: =(AVERAGE(OFFSET(FPs!$DI$10,12*$A15,(4*(PlotControl!$C$6-1)),12,1))) -> 5.800258333e-05 | BL15: =(AVERAGE(OFFSET(FPs!$HK$10,12*$A15,(4*(PlotControl!$C$6-1)),12,1))) -> 5.38255e-05 | BM15: =(AVERAGE(OFFSET(FPs!$HL$10,12*$A15,(4*(PlotControl!$C$6-1)),12,1))) -> 8.012858333e-05 | BN15: =(AVERAGE(OFFSET(FPs!$HM$10,12*$A15,(4*(PlotControl!$C$6-1)),12,1))) -> 0.0001130966667 | BO15: =(AVERAGE(OFFSET(Toes!$C$10,12*$A15,(4*(PlotControl!$C$6-1)),12,1))) + (AVERAGE(OFFSET(Toes!$DG$10,12*$A15,(4*(PlotControl!$C$6-1)),12,1))) -> 0 | BP15: =(AVERAGE(OFFSET(Toes!$D$10,12*$A15,(4*(PlotControl!$C$6-1)),12,1))) + (AVERAGE(OFFSET(Toes!$DH$10,12*$A15,(4*(PlotControl!$C$6-1)),12,1))) -> 0 | BQ15: =(AVERAGE(OFFSET(Toes!$E$10,12*$A15,(4*(PlotControl!$C$6-1)),12,1))) + (AVERAGE(OFFSET(Toes!$DI$10,12*$A15,(4*(PlotControl!$C$6-1)),12,1))) -> 0 | BR15: =(AVERAGE(OFFSET(Toes!$HK$10,12*$A15,(4*(PlotControl!$C$6-1)),12,1))) -> 0 | BS15: =(AVERAGE(OFFSET(Toes!$HL$10,12*$A15,(4*(PlotControl!$C$6-1)),12,1))) -> 0 | BT15: =(AVERAGE(OFFSET(Toes!$HM$10,12*$A15,(4*(PlotControl!$C$6-1)),12,1))) -> 0 | BU15: =(AVERAGE(OFFSET(Toes!$LO$10,12*$A15,(4*(PlotControl!$C$6-1)),12,1))) -> 0 | BV15: =(AVERAGE(OFFSET(Toes!$LP$10,12*$A15,(4*(PlotControl!$C$6-1)),12,1))) -> 0 | BW15: =(AVERAGE(OFFSET(Toes!$LQ$10,12*$A15,(4*(PlotControl!$C$6-1)),12,1))) -> 0 | BY15: 10 | BZ15: =AVERAGE(OFFSET(GW!$HK$10,12*$A15,(4*(PlotControl!$C$6-1)),12,1)) -> 0 | CA15: =AVERAGE(OFFSET(GW!$HL$10,12*$A15,(4*(PlotControl!$C$6-1)),12,1)) -> 0 | CB15: =AVERAGE(OFFSET(GW!$HM$10,12*$A15,(4*(PlotControl!$C$6-1)),12,1)) -> 0 | CC15: =AVERAGE(OFFSET(SW!$HK$10,12*$A15,(4*(PlotControl!$C$6-1)),12,1)) -> 6.862525e-05 | CD15: =AVERAGE(OFFSET(SW!$HL$10,12*$A15,(4*(PlotControl!$C$6-1)),12,1)) -> 0.0003550986083 | CE15: =AVERAGE(OFFSET(SW!$HM$10,12*$A15,(4*(PlotControl!$C$6-1)),12,1)) -> 0.0012377925 | CL15: =(AVERAGE(OFFSET(WWTP_To_SW!$DG$10,12*$A15,(4*(PlotControl!$C$6-1)),12,1))) -> 0.0004038991667 | CM15: =(AVERAGE(OFFSET(WWTP_To_SW!$DH$10,12*$A15,(4*(PlotControl!$C$6-1)),12,1))) -> 0.0005305775 | CN15: =(AVERAGE(OFFSET(WWTP_To_SW!$DI$10,12*$A15,(4*(PlotControl!$C$6-1)),12,1))) -> 0.0006866066667 | CO15: =(AVERAGE(OFFSET(CL_To_SW!$DG$10,12*$A15,(4*(PlotControl!$C$6-1)),12,1))) -> 0 | CP15: =(AVERAGE(OFFSET(CL_To_SW!$DH$10,12*$A15,(4*(PlotControl!$C$6-1)),12,1))) -> 0 | CQ15: =(AVERAGE(OFFSET(CL_To_SW!$DI$10,12*$A15,(4*(PlotControl!$C$6-1)),12,1))) -> 0 | DG15: =(AVERAGE(OFFSET(Toes!$LO$10,12*$A15,(4*(PlotControl!$C$6-1)),12,1))) -> 0 | DH15: =(AVERAGE(OFFSET(Toes!$LP$10,12*$A15,(4*(PlotControl!$C$6-1)),12,1))) -> 0 | DI15: =(AVERAGE(OFFSET(Toes!$LQ$10,12*$A15,(4*(PlotControl!$C$6-1)),12,1))) -> 0 | DK15: 10 | DL15: =AVERAGE(OFFSET(GW!$LO$10,12*$A15,(4*(PlotControl!$C$6-1)),12,1)) -> 0 | DM15: =AVERAGE(OFFSET(GW!$LP$10,12*$A15,(4*(PlotControl!$C$6-1)),12,1)) -> 0 | DN15: =AVERAGE(OFFSET(GW!$LQ$10,12*$A15,(4*(PlotControl!$C$6-1)),12,1)) -> 0 | DO15: =AVERAGE(OFFSET(SW!$LO$10,12*$A15,(4*(PlotControl!$C$6-1)),12,1)) -> 8.5841825e-05 | DP15: =AVERAGE(OFFSET(SW!$LP$10,12*$A15,(4*(PlotControl!$C$6-1)),12,1)) -> 0.0004441796167 | DQ15: =AVERAGE(OFFSET(SW!$LQ$10,12*$A15,(4*(PlotControl!$C$6-1)),12,1)) -> 0.001548317417 | DX15: =(AVERAGE(OFFSET(WWTP_To_SW!$HK$10,12*$A15,(4*(PlotControl!$C$6-1)),12,1))) -> 0.001415991667 | DY15: =(AVERAGE(OFFSET(WWTP_To_SW!$HL$10,12*$A15,(4*(PlotControl!$C$6-1)),12,1))) -> 0.001860083333 | DZ15: =(AVERAGE(OFFSET(WWTP_To_SW!$HM$10,12*$A15,(4*(PlotControl!$C$6-1)),12,1))) -> 0.002407108333 | EA15: =(AVERAGE(OFFSET(CL_To_SW!$HK$10,12*$A15,(4*(PlotControl!$C$6-1)),12,1))) -> 0 | EB15: =(AVERAGE(OFFSET(CL_To_SW!$HL$10,12*$A15,(4*(PlotControl!$C$6-1)),12,1))) -> 0 | EC15: =(AVERAGE(OFFSET(CL_To_SW!$HM$10,12*$A15,(4*(PlotControl!$C$6-1)),12,1))) -> 0 | EG15: =(AVERAGE(OFFSET(FPs!$DG$10,12*$A15,(4*(PlotControl!$C$6-1)),12,1))) -> 2.545075e-05 | EH15: =(AVERAGE(OFFSET(FPs!$DH$10,12*$A15,(4*(PlotControl!$C$6-1)),12,1))) -> 3.845158333e-05 | EI15: =(AVERAGE(OFFSET(FPs!$DI$10,12*$A15,(4*(PlotControl!$C$6-1)),12,1))) -> 5.800258333e-05 | EM15: =(AVERAGE(OFFSET(Toes!$DG$10,12*$A15,(4*(PlotControl!$C$6-1)),12,1))) -> 0 | EN15: =(AVERAGE(OFFSET(Toes!$DH$10,12*$A15,(4*(PlotControl!$C$6-1)),12,1))) -> 0 | EO15: =(AVERAGE(OFFSET(Toes!$DI$10,12*$A15,(4*(PlotControl!$C$6-1)),12,1))) -> 0 | EP15: =(AVERAGE(OFFSET(Toes!$HK$10,12*$A15,(4*(PlotControl!$C$6-1)),12,1))) -> 0 | EQ15: =(AVERAGE(OFFSET(Toes!$HL$10,12*$A15,(4*(PlotControl!$C$6-1)),12,1))) -> 0 | ER15: =(AVERAGE(OFFSET(Toes!$HM$10,12*$A15,(4*(PlotControl!$C$6-1)),12,1))) -> 0 | EW15: 10 | EX15: =AVERAGE(OFFSET(GW!$PS$10,12*$A15,(4*(PlotControl!$C$6-1)),12,1)) -> 1.804216667e-05 | EY15: =AVERAGE(OFFSET(GW!$PT$10,12*$A15,(4*(PlotControl!$C$6-1)),12,1)) -> 2.187458333e-05 | EZ15: =AVERAGE(OFFSET(GW!$PU$10,12*$A15,(4*(PlotControl!$C$6-1)),12,1)) -> 2.525441667e-05 | FA15: =AVERAGE(OFFSET(SW!$PS$10,12*$A15,(4*(PlotControl!$C$6-1)),12,1)) -> 0.0001054483917 | FB15: =AVERAGE(OFFSET(SW!$PT$10,12*$A15,(4*(PlotControl!$C$6-1)),12,1)) -> 0.0005456461833 | FC15: =AVERAGE(OFFSET(SW!$PU$10,12*$A15,(4*(PlotControl!$C$6-1)),12,1)) -> 0.001901968667 | FJ15: =(AVERAGE(OFFSET(WWTP_To_SW!$LO$10,12*$A15,(4*(PlotControl!$C$6-1)),12,1))) -> 0 | FK15: =(AVERAGE(OFFSET(WWTP_To_SW!$LP$10,12*$A15,(4*(PlotControl!$C$6-1)),12,1))) -> 0 | FL15: =(AVERAGE(OFFSET(WWTP_To_SW!$LQ$10,12*$A15,(4*(PlotControl!$C$6-1)),12,1))) -> 0 | FM15: =(AVERAGE(OFFSET(CL_To_SW!$LO$10,12*$A15,(4*(PlotControl!$C$6-1)),12,1))) -> 0 | FN15: =(AVERAGE(OFFSET(CL_To_SW!$LP$10,12*$A15,(4*(PlotControl!$C$6-1)),12,1))) -> 0 | FO15: =(AVERAGE(OFFSET(CL_To_SW!$LQ$10,12*$A15,(4*(PlotControl!$C$6-1)),12,1))) -> 0 | FP15: =(AVERAGE(OFFSET(FPs!$C$10,12*$A15,(4*(PlotControl!$C$6-1)),12,1))) -> 2.270716667e-05 | FQ15: =(AVERAGE(OFFSET(FPs!$D$10,12*$A15,(4*(PlotControl!$C$6-1)),12,1))) -> 3.3612e-05 | FR15: =(AVERAGE(OFFSET(FPs!$E$10,12*$A15,(4*(PlotControl!$C$6-1)),12,1))) -> 4.865616667e-05 | FY15: =(AVERAGE(OFFSET(Toes!$C$10,12*$A15,(4*(PlotControl!$C$6-1)),12,1))) -> 0 | FZ15: =(AVERAGE(OFFSET(Toes!$D$10,12*$A15,(4*(PlotControl!$C$6-1)),12,1))) -> 0 | GA15: =(AVERAGE(OFFSET(Toes!$E$10,12*$A15,(4*(PlotControl!$C$6-1)),12,1))) -> 0
A16: 11 | B16: =AVERAGE(OFFSET(GW!$C$10,12*$A16,(4*(PlotControl!$C$6-1)),12,1)) -> 0.00012892975 | C16: =AVERAGE(OFFSET(GW!$D$10,12*$A16,(4*(PlotControl!$C$6-1)),12,1)) -> 0.0001543766667 | D16: =AVERAGE(OFFSET(GW!$E$10,12*$A16,(4*(PlotControl!$C$6-1)),12,1)) -> 0.0001779125 | E16: =AVERAGE(OFFSET(SW!$C$10,12*$A16,(4*(PlotControl!$C$6-1)),12,1)) -> 0.0004159234417 | F16: =AVERAGE(OFFSET(SW!$D$10,12*$A16,(4*(PlotControl!$C$6-1)),12,1)) -> 0.002330024083 | G16: =AVERAGE(OFFSET(SW!$E$10,12*$A16,(4*(PlotControl!$C$6-1)),12,1)) -> 0.0084198725 | H16: =AVERAGE(OFFSET(PointSources!$C$10,12*$A16,(4*(PlotControl!$C$6-1)),12,1)) -> 8.643925e-05 | I16: =AVERAGE(OFFSET(PointSources!$D$10,12*$A16,(4*(PlotControl!$C$6-1)),12,1)) -> 9.431958333e-05 | J16: =AVERAGE(OFFSET(PointSources!$E$10,12*$A16,(4*(PlotControl!$C$6-1)),12,1)) -> 0.0001028366667 | AM16: 11 | AN16: =AVERAGE(OFFSET(GW!$DG$10,12*$A16,(4*(PlotControl!$C$6-1)),12,1)) -> 0.0006403783333 | AO16: =AVERAGE(OFFSET(GW!$DH$10,12*$A16,(4*(PlotControl!$C$6-1)),12,1)) -> 0.0007667608333 | AP16: =AVERAGE(OFFSET(GW!$DI$10,12*$A16,(4*(PlotControl!$C$6-1)),12,1)) -> 0.0008836441667 | AQ16: =AVERAGE(OFFSET(SW!$DG$10,12*$A16,(4*(PlotControl!$C$6-1)),12,1)) -> 0.002313805667 | AR16: =AVERAGE(OFFSET(SW!$DH$10,12*$A16,(4*(PlotControl!$C$6-1)),12,1)) -> 0.01296191083 | AS16: =AVERAGE(OFFSET(SW!$DI$10,12*$A16,(4*(PlotControl!$C$6-1)),12,1)) -> 0.04683936667 | AT16: =AVERAGE(OFFSET(PointSources!$C$10,12*$A16,(4*(PlotControl!$C$6-1)),12,1)) -> 8.643925e-05 | AU16: =AVERAGE(OFFSET(PointSources!$D$10,12*$A16,(4*(PlotControl!$C$6-1)),12,1)) -> 9.431958333e-05 | AV16: =AVERAGE(OFFSET(PointSources!$E$10,12*$A16,(4*(PlotControl!$C$6-1)),12,1)) -> 0.0001028366667 | AW16: =AVERAGE(OFFSET(PointSources!$DG$10,12*$A16,(4*(PlotControl!$C$6-1)),12,1)) -> 0.000215795 | AX16: =AVERAGE(OFFSET(PointSources!$DH$10,12*$A16,(4*(PlotControl!$C$6-1)),12,1)) -> 0.000541485 | AY16: =AVERAGE(OFFSET(PointSources!$DI$10,12*$A16,(4*(PlotControl!$C$6-1)),12,1)) -> 0.0012651675 | AZ16: =(AVERAGE(OFFSET(WWTP_To_SW!$C$10,12*$A16,(4*(PlotControl!$C$6-1)),12,1))) -> 0.00177565 | BA16: =(AVERAGE(OFFSET(WWTP_To_SW!$D$10,12*$A16,(4*(PlotControl!$C$6-1)),12,1))) -> 0.002329691667 | BB16: =(AVERAGE(OFFSET(WWTP_To_SW!$E$10,12*$A16,(4*(PlotControl!$C$6-1)),12,1))) -> 0.003019516667 | BC16: =(AVERAGE(OFFSET(CL_To_SW!$C$10,12*$A16,(4*(PlotControl!$C$6-1)),12,1))) -> 0 | BD16: =(AVERAGE(OFFSET(CL_To_SW!$D$10,12*$A16,(4*(PlotControl!$C$6-1)),12,1))) -> 0 | BE16: =(AVERAGE(OFFSET(CL_To_SW!$E$10,12*$A16,(4*(PlotControl!$C$6-1)),12,1))) -> 0 | BF16: =(AVERAGE(OFFSET(FPs!$C$10,12*$A16,(4*(PlotControl!$C$6-1)),12,1))) -> 2.278916667e-05 | BG16: =(AVERAGE(OFFSET(FPs!$D$10,12*$A16,(4*(PlotControl!$C$6-1)),12,1))) -> 3.352591667e-05 | BH16: =(AVERAGE(OFFSET(FPs!$E$10,12*$A16,(4*(PlotControl!$C$6-1)),12,1))) -> 4.8977e-05 | BI16: =(AVERAGE(OFFSET(FPs!$DG$10,12*$A16,(4*(PlotControl!$C$6-1)),12,1))) -> 2.566241667e-05 | BJ16: =(AVERAGE(OFFSET(FPs!$DH$10,12*$A16,(4*(PlotControl!$C$6-1)),12,1))) -> 3.848633333e-05 | BK16: =(AVERAGE(OFFSET(FPs!$DI$10,12*$A16,(4*(PlotControl!$C$6-1)),12,1))) -> 5.76315e-05 | BL16: =(AVERAGE(OFFSET(FPs!$HK$10,12*$A16,(4*(PlotControl!$C$6-1)),12,1))) -> 5.435983333e-05 | BM16: =(AVERAGE(OFFSET(FPs!$HL$10,12*$A16,(4*(PlotControl!$C$6-1)),12,1))) -> 7.979666667e-05 | BN16: =(AVERAGE(OFFSET(FPs!$HM$10,12*$A16,(4*(PlotControl!$C$6-1)),12,1))) -> 0.0001120408333 | BO16: =(AVERAGE(OFFSET(Toes!$C$10,12*$A16,(4*(PlotControl!$C$6-1)),12,1))) + (AVERAGE(OFFSET(Toes!$DG$10,12*$A16,(4*(PlotControl!$C$6-1)),12,1))) -> 0 | BP16: =(AVERAGE(OFFSET(Toes!$D$10,12*$A16,(4*(PlotControl!$C$6-1)),12,1))) + (AVERAGE(OFFSET(Toes!$DH$10,12*$A16,(4*(PlotControl!$C$6-1)),12,1))) -> 0 | BQ16: =(AVERAGE(OFFSET(Toes!$E$10,12*$A16,(4*(PlotControl!$C$6-1)),12,1))) + (AVERAGE(OFFSET(Toes!$DI$10,12*$A16,(4*(PlotControl!$C$6-1)),12,1))) -> 0 | BR16: =(AVERAGE(OFFSET(Toes!$HK$10,12*$A16,(4*(PlotControl!$C$6-1)),12,1))) -> 0 | BS16: =(AVERAGE(OFFSET(Toes!$HL$10,12*$A16,(4*(PlotControl!$C$6-1)),12,1))) -> 0 | BT16: =(AVERAGE(OFFSET(Toes!$HM$10,12*$A16,(4*(PlotControl!$C$6-1)),12,1))) -> 0 | BU16: =(AVERAGE(OFFSET(Toes!$LO$10,12*$A16,(4*(PlotControl!$C$6-1)),12,1))) -> 0 | BV16: =(AVERAGE(OFFSET(Toes!$LP$10,12*$A16,(4*(PlotControl!$C$6-1)),12,1))) -> 0 | BW16: =(AVERAGE(OFFSET(Toes!$LQ$10,12*$A16,(4*(PlotControl!$C$6-1)),12,1))) -> 0 | BY16: 11 | BZ16: =AVERAGE(OFFSET(GW!$HK$10,12*$A16,(4*(PlotControl!$C$6-1)),12,1)) -> 0 | CA16: =AVERAGE(OFFSET(GW!$HL$10,12*$A16,(4*(PlotControl!$C$6-1)),12,1)) -> 0 | CB16: =AVERAGE(OFFSET(GW!$HM$10,12*$A16,(4*(PlotControl!$C$6-1)),12,1)) -> 0 | CC16: =AVERAGE(OFFSET(SW!$HK$10,12*$A16,(4*(PlotControl!$C$6-1)),12,1)) -> 6.292581083e-05 | CD16: =AVERAGE(OFFSET(SW!$HL$10,12*$A16,(4*(PlotControl!$C$6-1)),12,1)) -> 0.000352510975 | CE16: =AVERAGE(OFFSET(SW!$HM$10,12*$A16,(4*(PlotControl!$C$6-1)),12,1)) -> 0.001273843167 | CL16: =(AVERAGE(OFFSET(WWTP_To_SW!$DG$10,12*$A16,(4*(PlotControl!$C$6-1)),12,1))) -> 0.0003940791667 | CM16: =(AVERAGE(OFFSET(WWTP_To_SW!$DH$10,12*$A16,(4*(PlotControl!$C$6-1)),12,1))) -> 0.00051704 | CN16: =(AVERAGE(OFFSET(WWTP_To_SW!$DI$10,12*$A16,(4*(PlotControl!$C$6-1)),12,1))) -> 0.0006701366667 | CO16: =(AVERAGE(OFFSET(CL_To_SW!$DG$10,12*$A16,(4*(PlotControl!$C$6-1)),12,1))) -> 0 | CP16: =(AVERAGE(OFFSET(CL_To_SW!$DH$10,12*$A16,(4*(PlotControl!$C$6-1)),12,1))) -> 0 | CQ16: =(AVERAGE(OFFSET(CL_To_SW!$DI$10,12*$A16,(4*(PlotControl!$C$6-1)),12,1))) -> 0 | DG16: =(AVERAGE(OFFSET(Toes!$LO$10,12*$A16,(4*(PlotControl!$C$6-1)),12,1))) -> 0 | DH16: =(AVERAGE(OFFSET(Toes!$LP$10,12*$A16,(4*(PlotControl!$C$6-1)),12,1))) -> 0 | DI16: =(AVERAGE(OFFSET(Toes!$LQ$10,12*$A16,(4*(PlotControl!$C$6-1)),12,1))) -> 0 | DK16: 11 | DL16: =AVERAGE(OFFSET(GW!$LO$10,12*$A16,(4*(PlotControl!$C$6-1)),12,1)) -> 0 | DM16: =AVERAGE(OFFSET(GW!$LP$10,12*$A16,(4*(PlotControl!$C$6-1)),12,1)) -> 0 | DN16: =AVERAGE(OFFSET(GW!$LQ$10,12*$A16,(4*(PlotControl!$C$6-1)),12,1)) -> 0 | DO16: =AVERAGE(OFFSET(SW!$LO$10,12*$A16,(4*(PlotControl!$C$6-1)),12,1)) -> 7.87124425e-05 | DP16: =AVERAGE(OFFSET(SW!$LP$10,12*$A16,(4*(PlotControl!$C$6-1)),12,1)) -> 0.0004409451833 | DQ16: =AVERAGE(OFFSET(SW!$LQ$10,12*$A16,(4*(PlotControl!$C$6-1)),12,1)) -> 0.001593423833 | DX16: =(AVERAGE(OFFSET(WWTP_To_SW!$HK$10,12*$A16,(4*(PlotControl!$C$6-1)),12,1))) -> 0.001381558333 | DY16: =(AVERAGE(OFFSET(WWTP_To_SW!$HL$10,12*$A16,(4*(PlotControl!$C$6-1)),12,1))) -> 0.001812658333 | DZ16: =(AVERAGE(OFFSET(WWTP_To_SW!$HM$10,12*$A16,(4*(PlotControl!$C$6-1)),12,1))) -> 0.00234935 | EA16: =(AVERAGE(OFFSET(CL_To_SW!$HK$10,12*$A16,(4*(PlotControl!$C$6-1)),12,1))) -> 0 | EB16: =(AVERAGE(OFFSET(CL_To_SW!$HL$10,12*$A16,(4*(PlotControl!$C$6-1)),12,1))) -> 0 | EC16: =(AVERAGE(OFFSET(CL_To_SW!$HM$10,12*$A16,(4*(PlotControl!$C$6-1)),12,1))) -> 0 | EG16: =(AVERAGE(OFFSET(FPs!$DG$10,12*$A16,(4*(PlotControl!$C$6-1)),12,1))) -> 2.566241667e-05 | EH16: =(AVERAGE(OFFSET(FPs!$DH$10,12*$A16,(4*(PlotControl!$C$6-1)),12,1))) -> 3.848633333e-05 | EI16: =(AVERAGE(OFFSET(FPs!$DI$10,12*$A16,(4*(PlotControl!$C$6-1)),12,1))) -> 5.76315e-05 | EM16: =(AVERAGE(OFFSET(Toes!$DG$10,12*$A16,(4*(PlotControl!$C$6-1)),12,1))) -> 0 | EN16: =(AVERAGE(OFFSET(Toes!$DH$10,12*$A16,(4*(PlotControl!$C$6-1)),12,1))) -> 0 | EO16: =(AVERAGE(OFFSET(Toes!$DI$10,12*$A16,(4*(PlotControl!$C$6-1)),12,1))) -> 0 | EP16: =(AVERAGE(OFFSET(Toes!$HK$10,12*$A16,(4*(PlotControl!$C$6-1)),12,1))) -> 0 | EQ16: =(AVERAGE(OFFSET(Toes!$HL$10,12*$A16,(4*(PlotControl!$C$6-1)),12,1))) -> 0 | ER16: =(AVERAGE(OFFSET(Toes!$HM$10,12*$A16,(4*(PlotControl!$C$6-1)),12,1))) -> 0 | EW16: 11 | EX16: =AVERAGE(OFFSET(GW!$PS$10,12*$A16,(4*(PlotControl!$C$6-1)),12,1)) -> 1.828308333e-05 | EY16: =AVERAGE(OFFSET(GW!$PT$10,12*$A16,(4*(PlotControl!$C$6-1)),12,1)) -> 2.189108333e-05 | EZ16: =AVERAGE(OFFSET(GW!$PU$10,12*$A16,(4*(PlotControl!$C$6-1)),12,1)) -> 2.522808333e-05 | FA16: =AVERAGE(OFFSET(SW!$PS$10,12*$A16,(4*(PlotControl!$C$6-1)),12,1)) -> 9.6690975e-05 | FB16: =AVERAGE(OFFSET(SW!$PT$10,12*$A16,(4*(PlotControl!$C$6-1)),12,1)) -> 0.0005416651583 | FC16: =AVERAGE(OFFSET(SW!$PU$10,12*$A16,(4*(PlotControl!$C$6-1)),12,1)) -> 0.001957378417 | FJ16: =(AVERAGE(OFFSET(WWTP_To_SW!$LO$10,12*$A16,(4*(PlotControl!$C$6-1)),12,1))) -> 0 | FK16: =(AVERAGE(OFFSET(WWTP_To_SW!$LP$10,12*$A16,(4*(PlotControl!$C$6-1)),12,1))) -> 0 | FL16: =(AVERAGE(OFFSET(WWTP_To_SW!$LQ$10,12*$A16,(4*(PlotControl!$C$6-1)),12,1))) -> 0 | FM16: =(AVERAGE(OFFSET(CL_To_SW!$LO$10,12*$A16,(4*(PlotControl!$C$6-1)),12,1))) -> 0 | FN16: =(AVERAGE(OFFSET(CL_To_SW!$LP$10,12*$A16,(4*(PlotControl!$C$6-1)),12,1))) -> 0 | FO16: =(AVERAGE(OFFSET(CL_To_SW!$LQ$10,12*$A16,(4*(PlotControl!$C$6-1)),12,1))) -> 0 | FP16: =(AVERAGE(OFFSET(FPs!$C$10,12*$A16,(4*(PlotControl!$C$6-1)),12,1))) -> 2.278916667e-05 | FQ16: =(AVERAGE(OFFSET(FPs!$D$10,12*$A16,(4*(PlotControl!$C$6-1)),12,1))) -> 3.352591667e-05 | FR16: =(AVERAGE(OFFSET(FPs!$E$10,12*$A16,(4*(PlotControl!$C$6-1)),12,1))) -> 4.8977e-05 | FY16: =(AVERAGE(OFFSET(Toes!$C$10,12*$A16,(4*(PlotControl!$C$6-1)),12,1))) -> 0 | FZ16: =(AVERAGE(OFFSET(Toes!$D$10,12*$A16,(4*(PlotControl!$C$6-1)),12,1))) -> 0 | GA16: =(AVERAGE(OFFSET(Toes!$E$10,12*$A16,(4*(PlotControl!$C$6-1)),12,1))) -> 0
A17: 12 | B17: =AVERAGE(OFFSET(GW!$C$10,12*$A17,(4*(PlotControl!$C$6-1)),12,1)) -> 0.000127655 | C17: =AVERAGE(OFFSET(GW!$D$10,12*$A17,(4*(PlotControl!$C$6-1)),12,1)) -> 0.0001542516667 | D17: =AVERAGE(OFFSET(GW!$E$10,12*$A17,(4*(PlotControl!$C$6-1)),12,1)) -> 0.0001778725 | E17: =AVERAGE(OFFSET(SW!$C$10,12*$A17,(4*(PlotControl!$C$6-1)),12,1)) -> 0.0004390453333 | F17: =AVERAGE(OFFSET(SW!$D$10,12*$A17,(4*(PlotControl!$C$6-1)),12,1)) -> 0.00222618475 | G17: =AVERAGE(OFFSET(SW!$E$10,12*$A17,(4*(PlotControl!$C$6-1)),12,1)) -> 0.0082713925 | H17: =AVERAGE(OFFSET(PointSources!$C$10,12*$A17,(4*(PlotControl!$C$6-1)),12,1)) -> 8.643208333e-05 | I17: =AVERAGE(OFFSET(PointSources!$D$10,12*$A17,(4*(PlotControl!$C$6-1)),12,1)) -> 9.426508333e-05 | J17: =AVERAGE(OFFSET(PointSources!$E$10,12*$A17,(4*(PlotControl!$C$6-1)),12,1)) -> 0.000102635 | AM17: 12 | AN17: =AVERAGE(OFFSET(GW!$DG$10,12*$A17,(4*(PlotControl!$C$6-1)),12,1)) -> 0.0006340333333 | AO17: =AVERAGE(OFFSET(GW!$DH$10,12*$A17,(4*(PlotControl!$C$6-1)),12,1)) -> 0.0007661358333 | AP17: =AVERAGE(OFFSET(GW!$DI$10,12*$A17,(4*(PlotControl!$C$6-1)),12,1)) -> 0.0008834516667 | AQ17: =AVERAGE(OFFSET(SW!$DG$10,12*$A17,(4*(PlotControl!$C$6-1)),12,1)) -> 0.002442366167 | AR17: =AVERAGE(OFFSET(SW!$DH$10,12*$A17,(4*(PlotControl!$C$6-1)),12,1)) -> 0.012384205 | AS17: =AVERAGE(OFFSET(SW!$DI$10,12*$A17,(4*(PlotControl!$C$6-1)),12,1)) -> 0.04601405833 | AT17: =AVERAGE(OFFSET(PointSources!$C$10,12*$A17,(4*(PlotControl!$C$6-1)),12,1)) -> 8.643208333e-05 | AU17: =AVERAGE(OFFSET(PointSources!$D$10,12*$A17,(4*(PlotControl!$C$6-1)),12,1)) -> 9.426508333e-05 | AV17: =AVERAGE(OFFSET(PointSources!$E$10,12*$A17,(4*(PlotControl!$C$6-1)),12,1)) -> 0.000102635 | AW17: =AVERAGE(OFFSET(PointSources!$DG$10,12*$A17,(4*(PlotControl!$C$6-1)),12,1)) -> 0.0002142183333 | AX17: =AVERAGE(OFFSET(PointSources!$DH$10,12*$A17,(4*(PlotControl!$C$6-1)),12,1)) -> 0.0005222058333 | AY17: =AVERAGE(OFFSET(PointSources!$DI$10,12*$A17,(4*(PlotControl!$C$6-1)),12,1)) -> 0.001264810833 | AZ17: =(AVERAGE(OFFSET(WWTP_To_SW!$C$10,12*$A17,(4*(PlotControl!$C$6-1)),12,1))) -> 0.001740833333 | BA17: =(AVERAGE(OFFSET(WWTP_To_SW!$D$10,12*$A17,(4*(PlotControl!$C$6-1)),12,1))) -> 0.002256366667 | BB17: =(AVERAGE(OFFSET(WWTP_To_SW!$E$10,12*$A17,(4*(PlotControl!$C$6-1)),12,1))) -> 0.002855791667 | BC17: =(AVERAGE(OFFSET(CL_To_SW!$C$10,12*$A17,(4*(PlotControl!$C$6-1)),12,1))) -> 0 | BD17: =(AVERAGE(OFFSET(CL_To_SW!$D$10,12*$A17,(4*(PlotControl!$C$6-1)),12,1))) -> 0 | BE17: =(AVERAGE(OFFSET(CL_To_SW!$E$10,12*$A17,(4*(PlotControl!$C$6-1)),12,1))) -> 0 | BF17: =(AVERAGE(OFFSET(FPs!$C$10,12*$A17,(4*(PlotControl!$C$6-1)),12,1))) -> 2.268833333e-05 | BG17: =(AVERAGE(OFFSET(FPs!$D$10,12*$A17,(4*(PlotControl!$C$6-1)),12,1))) -> 3.366575e-05 | BH17: =(AVERAGE(OFFSET(FPs!$E$10,12*$A17,(4*(PlotControl!$C$6-1)),12,1))) -> 4.887766667e-05 | BI17: =(AVERAGE(OFFSET(FPs!$DG$10,12*$A17,(4*(PlotControl!$C$6-1)),12,1))) -> 2.557683333e-05 | BJ17: =(AVERAGE(OFFSET(FPs!$DH$10,12*$A17,(4*(PlotControl!$C$6-1)),12,1))) -> 3.837175e-05 | BK17: =(AVERAGE(OFFSET(FPs!$DI$10,12*$A17,(4*(PlotControl!$C$6-1)),12,1))) -> 5.7597e-05 | BL17: =(AVERAGE(OFFSET(FPs!$HK$10,12*$A17,(4*(PlotControl!$C$6-1)),12,1))) -> 5.378633333e-05 | BM17: =(AVERAGE(OFFSET(FPs!$HL$10,12*$A17,(4*(PlotControl!$C$6-1)),12,1))) -> 7.93375e-05 | BN17: =(AVERAGE(OFFSET(FPs!$HM$10,12*$A17,(4*(PlotControl!$C$6-1)),12,1))) -> 0.00011156 | BO17: =(AVERAGE(OFFSET(Toes!$C$10,12*$A17,(4*(PlotControl!$C$6-1)),12,1))) + (AVERAGE(OFFSET(Toes!$DG$10,12*$A17,(4*(PlotControl!$C$6-1)),12,1))) -> 0 | BP17: =(AVERAGE(OFFSET(Toes!$D$10,12*$A17,(4*(PlotControl!$C$6-1)),12,1))) + (AVERAGE(OFFSET(Toes!$DH$10,12*$A17,(4*(PlotControl!$C$6-1)),12,1))) -> 0 | BQ17: =(AVERAGE(OFFSET(Toes!$E$10,12*$A17,(4*(PlotControl!$C$6-1)),12,1))) + (AVERAGE(OFFSET(Toes!$DI$10,12*$A17,(4*(PlotControl!$C$6-1)),12,1))) -> 0 | BR17: =(AVERAGE(OFFSET(Toes!$HK$10,12*$A17,(4*(PlotControl!$C$6-1)),12,1))) -> 0 | BS17: =(AVERAGE(OFFSET(Toes!$HL$10,12*$A17,(4*(PlotControl!$C$6-1)),12,1))) -> 0 | BT17: =(AVERAGE(OFFSET(Toes!$HM$10,12*$A17,(4*(PlotControl!$C$6-1)),12,1))) -> 0 | BU17: =(AVERAGE(OFFSET(Toes!$LO$10,12*$A17,(4*(PlotControl!$C$6-1)),12,1))) -> 0 | BV17: =(AVERAGE(OFFSET(Toes!$LP$10,12*$A17,(4*(PlotControl!$C$6-1)),12,1))) -> 0 | BW17: =(AVERAGE(OFFSET(Toes!$LQ$10,12*$A17,(4*(PlotControl!$C$6-1)),12,1))) -> 0 | BY17: 12 | BZ17: =AVERAGE(OFFSET(GW!$HK$10,12*$A17,(4*(PlotControl!$C$6-1)),12,1)) -> 0 | CA17: =AVERAGE(OFFSET(GW!$HL$10,12*$A17,(4*(PlotControl!$C$6-1)),12,1)) -> 0 | CB17: =AVERAGE(OFFSET(GW!$HM$10,12*$A17,(4*(PlotControl!$C$6-1)),12,1)) -> 0 | CC17: =AVERAGE(OFFSET(SW!$HK$10,12*$A17,(4*(PlotControl!$C$6-1)),12,1)) -> 6.642325e-05 | CD17: =AVERAGE(OFFSET(SW!$HL$10,12*$A17,(4*(PlotControl!$C$6-1)),12,1)) -> 0.0003368017583 | CE17: =AVERAGE(OFFSET(SW!$HM$10,12*$A17,(4*(PlotControl!$C$6-1)),12,1)) -> 0.00125139625 | CL17: =(AVERAGE(OFFSET(WWTP_To_SW!$DG$10,12*$A17,(4*(PlotControl!$C$6-1)),12,1))) -> 0.0003863533333 | CM17: =(AVERAGE(OFFSET(WWTP_To_SW!$DH$10,12*$A17,(4*(PlotControl!$C$6-1)),12,1))) -> 0.0005007691667 | CN17: =(AVERAGE(OFFSET(WWTP_To_SW!$DI$10,12*$A17,(4*(PlotControl!$C$6-1)),12,1))) -> 0.0006337991667 | CO17: =(AVERAGE(OFFSET(CL_To_SW!$DG$10,12*$A17,(4*(PlotControl!$C$6-1)),12,1))) -> 0 | CP17: =(AVERAGE(OFFSET(CL_To_SW!$DH$10,12*$A17,(4*(PlotControl!$C$6-1)),12,1))) -> 0 | CQ17: =(AVERAGE(OFFSET(CL_To_SW!$DI$10,12*$A17,(4*(PlotControl!$C$6-1)),12,1))) -> 0 | DG17: =(AVERAGE(OFFSET(Toes!$LO$10,12*$A17,(4*(PlotControl!$C$6-1)),12,1))) -> 0 | DH17: =(AVERAGE(OFFSET(Toes!$LP$10,12*$A17,(4*(PlotControl!$C$6-1)),12,1))) -> 0 | DI17: =(AVERAGE(OFFSET(Toes!$LQ$10,12*$A17,(4*(PlotControl!$C$6-1)),12,1))) -> 0 | DK17: 12 | DL17: =AVERAGE(OFFSET(GW!$LO$10,12*$A17,(4*(PlotControl!$C$6-1)),12,1)) -> 0 | DM17: =AVERAGE(OFFSET(GW!$LP$10,12*$A17,(4*(PlotControl!$C$6-1)),12,1)) -> 0 | DN17: =AVERAGE(OFFSET(GW!$LQ$10,12*$A17,(4*(PlotControl!$C$6-1)),12,1)) -> 0 | DO17: =AVERAGE(OFFSET(SW!$LO$10,12*$A17,(4*(PlotControl!$C$6-1)),12,1)) -> 8.308639167e-05 | DP17: =AVERAGE(OFFSET(SW!$LP$10,12*$A17,(4*(PlotControl!$C$6-1)),12,1)) -> 0.0004213020583 | DQ17: =AVERAGE(OFFSET(SW!$LQ$10,12*$A17,(4*(PlotControl!$C$6-1)),12,1)) -> 0.001565330333 | DX17: =(AVERAGE(OFFSET(WWTP_To_SW!$HK$10,12*$A17,(4*(PlotControl!$C$6-1)),12,1))) -> 0.001354475 | DY17: =(AVERAGE(OFFSET(WWTP_To_SW!$HL$10,12*$A17,(4*(PlotControl!$C$6-1)),12,1))) -> 0.001755616667 | DZ17: =(AVERAGE(OFFSET(WWTP_To_SW!$HM$10,12*$A17,(4*(PlotControl!$C$6-1)),12,1))) -> 0.002222 | EA17: =(AVERAGE(OFFSET(CL_To_SW!$HK$10,12*$A17,(4*(PlotControl!$C$6-1)),12,1))) -> 0 | EB17: =(AVERAGE(OFFSET(CL_To_SW!$HL$10,12*$A17,(4*(PlotControl!$C$6-1)),12,1))) -> 0 | EC17: =(AVERAGE(OFFSET(CL_To_SW!$HM$10,12*$A17,(4*(PlotControl!$C$6-1)),12,1))) -> 0 | EG17: =(AVERAGE(OFFSET(FPs!$DG$10,12*$A17,(4*(PlotControl!$C$6-1)),12,1))) -> 2.557683333e-05 | EH17: =(AVERAGE(OFFSET(FPs!$DH$10,12*$A17,(4*(PlotControl!$C$6-1)),12,1))) -> 3.837175e-05 | EI17: =(AVERAGE(OFFSET(FPs!$DI$10,12*$A17,(4*(PlotControl!$C$6-1)),12,1))) -> 5.7597e-05 | EM17: =(AVERAGE(OFFSET(Toes!$DG$10,12*$A17,(4*(PlotControl!$C$6-1)),12,1))) -> 0 | EN17: =(AVERAGE(OFFSET(Toes!$DH$10,12*$A17,(4*(PlotControl!$C$6-1)),12,1))) -> 0 | EO17: =(AVERAGE(OFFSET(Toes!$DI$10,12*$A17,(4*(PlotControl!$C$6-1)),12,1))) -> 0 | EP17: =(AVERAGE(OFFSET(Toes!$HK$10,12*$A17,(4*(PlotControl!$C$6-1)),12,1))) -> 0 | EQ17: =(AVERAGE(OFFSET(Toes!$HL$10,12*$A17,(4*(PlotControl!$C$6-1)),12,1))) -> 0 | ER17: =(AVERAGE(OFFSET(Toes!$HM$10,12*$A17,(4*(PlotControl!$C$6-1)),12,1))) -> 0 | EW17: 12 | EX17: =AVERAGE(OFFSET(GW!$PS$10,12*$A17,(4*(PlotControl!$C$6-1)),12,1)) -> 1.8102e-05 | EY17: =AVERAGE(OFFSET(GW!$PT$10,12*$A17,(4*(PlotControl!$C$6-1)),12,1)) -> 2.187325e-05 | EZ17: =AVERAGE(OFFSET(GW!$PU$10,12*$A17,(4*(PlotControl!$C$6-1)),12,1)) -> 2.522266667e-05 | FA17: =AVERAGE(OFFSET(SW!$PS$10,12*$A17,(4*(PlotControl!$C$6-1)),12,1)) -> 0.000102065275 | FB17: =AVERAGE(OFFSET(SW!$PT$10,12*$A17,(4*(PlotControl!$C$6-1)),12,1)) -> 0.00051753105 | FC17: =AVERAGE(OFFSET(SW!$PU$10,12*$A17,(4*(PlotControl!$C$6-1)),12,1)) -> 0.001922875667 | FJ17: =(AVERAGE(OFFSET(WWTP_To_SW!$LO$10,12*$A17,(4*(PlotControl!$C$6-1)),12,1))) -> 0 | FK17: =(AVERAGE(OFFSET(WWTP_To_SW!$LP$10,12*$A17,(4*(PlotControl!$C$6-1)),12,1))) -> 0 | FL17: =(AVERAGE(OFFSET(WWTP_To_SW!$LQ$10,12*$A17,(4*(PlotControl!$C$6-1)),12,1))) -> 0 | FM17: =(AVERAGE(OFFSET(CL_To_SW!$LO$10,12*$A17,(4*(PlotControl!$C$6-1)),12,1))) -> 0 | FN17: =(AVERAGE(OFFSET(CL_To_SW!$LP$10,12*$A17,(4*(PlotControl!$C$6-1)),12,1))) -> 0 | FO17: =(AVERAGE(OFFSET(CL_To_SW!$LQ$10,12*$A17,(4*(PlotControl!$C$6-1)),12,1))) -> 0 | FP17: =(AVERAGE(OFFSET(FPs!$C$10,12*$A17,(4*(PlotControl!$C$6-1)),12,1))) -> 2.268833333e-05 | FQ17: =(AVERAGE(OFFSET(FPs!$D$10,12*$A17,(4*(PlotControl!$C$6-1)),12,1))) -> 3.366575e-05 | FR17: =(AVERAGE(OFFSET(FPs!$E$10,12*$A17,(4*(PlotControl!$C$6-1)),12,1))) -> 4.887766667e-05 | FY17: =(AVERAGE(OFFSET(Toes!$C$10,12*$A17,(4*(PlotControl!$C$6-1)),12,1))) -> 0 | FZ17: =(AVERAGE(OFFSET(Toes!$D$10,12*$A17,(4*(PlotControl!$C$6-1)),12,1))) -> 0 | GA17: =(AVERAGE(OFFSET(Toes!$E$10,12*$A17,(4*(PlotControl!$C$6-1)),12,1))) -> 0
A18: 13 | B18: =AVERAGE(OFFSET(GW!$C$10,12*$A18,(4*(PlotControl!$C$6-1)),12,1)) -> 0.0001280200833 | C18: =AVERAGE(OFFSET(GW!$D$10,12*$A18,(4*(PlotControl!$C$6-1)),12,1)) -> 0.0001541591667 | D18: =AVERAGE(OFFSET(GW!$E$10,12*$A18,(4*(PlotControl!$C$6-1)),12,1)) -> 0.000177975 | E18: =AVERAGE(OFFSET(SW!$C$10,12*$A18,(4*(PlotControl!$C$6-1)),12,1)) -> 0.00042283825 | F18: =AVERAGE(OFFSET(SW!$D$10,12*$A18,(4*(PlotControl!$C$6-1)),12,1)) -> 0.002344802167 | G18: =AVERAGE(OFFSET(SW!$E$10,12*$A18,(4*(PlotControl!$C$6-1)),12,1)) -> 0.008290270833 | H18: =AVERAGE(OFFSET(PointSources!$C$10,12*$A18,(4*(PlotControl!$C$6-1)),12,1)) -> 8.624641667e-05 | I18: =AVERAGE(OFFSET(PointSources!$D$10,12*$A18,(4*(PlotControl!$C$6-1)),12,1)) -> 9.416066667e-05 | J18: =AVERAGE(OFFSET(PointSources!$E$10,12*$A18,(4*(PlotControl!$C$6-1)),12,1)) -> 0.0001026333333 | AM18: 13 | AN18: =AVERAGE(OFFSET(GW!$DG$10,12*$A18,(4*(PlotControl!$C$6-1)),12,1)) -> 0.0006358558333 | AO18: =AVERAGE(OFFSET(GW!$DH$10,12*$A18,(4*(PlotControl!$C$6-1)),12,1)) -> 0.0007656791667 | AP18: =AVERAGE(OFFSET(GW!$DI$10,12*$A18,(4*(PlotControl!$C$6-1)),12,1)) -> 0.0008839575 | AQ18: =AVERAGE(OFFSET(SW!$DG$10,12*$A18,(4*(PlotControl!$C$6-1)),12,1)) -> 0.002352246667 | AR18: =AVERAGE(OFFSET(SW!$DH$10,12*$A18,(4*(PlotControl!$C$6-1)),12,1)) -> 0.01304408333 | AS18: =AVERAGE(OFFSET(SW!$DI$10,12*$A18,(4*(PlotControl!$C$6-1)),12,1)) -> 0.046118075 | AT18: =AVERAGE(OFFSET(PointSources!$C$10,12*$A18,(4*(PlotControl!$C$6-1)),12,1)) -> 8.624641667e-05 | AU18: =AVERAGE(OFFSET(PointSources!$D$10,12*$A18,(4*(PlotControl!$C$6-1)),12,1)) -> 9.416066667e-05 | AV18: =AVERAGE(OFFSET(PointSources!$E$10,12*$A18,(4*(PlotControl!$C$6-1)),12,1)) -> 0.0001026333333 | AW18: =AVERAGE(OFFSET(PointSources!$DG$10,12*$A18,(4*(PlotControl!$C$6-1)),12,1)) -> 0.0002086358333 | AX18: =AVERAGE(OFFSET(PointSources!$DH$10,12*$A18,(4*(PlotControl!$C$6-1)),12,1)) -> 0.0005367175 | AY18: =AVERAGE(OFFSET(PointSources!$DI$10,12*$A18,(4*(PlotControl!$C$6-1)),12,1)) -> 0.001262661667 | AZ18: =(AVERAGE(OFFSET(WWTP_To_SW!$C$10,12*$A18,(4*(PlotControl!$C$6-1)),12,1))) -> 0.001768491667 | BA18: =(AVERAGE(OFFSET(WWTP_To_SW!$D$10,12*$A18,(4*(PlotControl!$C$6-1)),12,1))) -> 0.002252625 | BB18: =(AVERAGE(OFFSET(WWTP_To_SW!$E$10,12*$A18,(4*(PlotControl!$C$6-1)),12,1))) -> 0.00289135 | BC18: =(AVERAGE(OFFSET(CL_To_SW!$C$10,12*$A18,(4*(PlotControl!$C$6-1)),12,1))) -> 0 | BD18: =(AVERAGE(OFFSET(CL_To_SW!$D$10,12*$A18,(4*(PlotControl!$C$6-1)),12,1))) -> 0 | BE18: =(AVERAGE(OFFSET(CL_To_SW!$E$10,12*$A18,(4*(PlotControl!$C$6-1)),12,1))) -> 0 | BF18: =(AVERAGE(OFFSET(FPs!$C$10,12*$A18,(4*(PlotControl!$C$6-1)),12,1))) -> 2.252366667e-05 | BG18: =(AVERAGE(OFFSET(FPs!$D$10,12*$A18,(4*(PlotControl!$C$6-1)),12,1))) -> 3.36585e-05 | BH18: =(AVERAGE(OFFSET(FPs!$E$10,12*$A18,(4*(PlotControl!$C$6-1)),12,1))) -> 4.858908333e-05 | BI18: =(AVERAGE(OFFSET(FPs!$DG$10,12*$A18,(4*(PlotControl!$C$6-1)),12,1))) -> 2.56115e-05 | BJ18: =(AVERAGE(OFFSET(FPs!$DH$10,12*$A18,(4*(PlotControl!$C$6-1)),12,1))) -> 3.809833333e-05 | BK18: =(AVERAGE(OFFSET(FPs!$DI$10,12*$A18,(4*(PlotControl!$C$6-1)),12,1))) -> 5.72575e-05 | BL18: =(AVERAGE(OFFSET(FPs!$HK$10,12*$A18,(4*(PlotControl!$C$6-1)),12,1))) -> 5.395908333e-05 | BM18: =(AVERAGE(OFFSET(FPs!$HL$10,12*$A18,(4*(PlotControl!$C$6-1)),12,1))) -> 7.896966667e-05 | BN18: =(AVERAGE(OFFSET(FPs!$HM$10,12*$A18,(4*(PlotControl!$C$6-1)),12,1))) -> 0.000111045 | BO18: =(AVERAGE(OFFSET(Toes!$C$10,12*$A18,(4*(PlotControl!$C$6-1)),12,1))) + (AVERAGE(OFFSET(Toes!$DG$10,12*$A18,(4*(PlotControl!$C$6-1)),12,1))) -> 0 | BP18: =(AVERAGE(OFFSET(Toes!$D$10,12*$A18,(4*(PlotControl!$C$6-1)),12,1))) + (AVERAGE(OFFSET(Toes!$DH$10,12*$A18,(4*(PlotControl!$C$6-1)),12,1))) -> 0 | BQ18: =(AVERAGE(OFFSET(Toes!$E$10,12*$A18,(4*(PlotControl!$C$6-1)),12,1))) + (AVERAGE(OFFSET(Toes!$DI$10,12*$A18,(4*(PlotControl!$C$6-1)),12,1))) -> 0 | BR18: =(AVERAGE(OFFSET(Toes!$HK$10,12*$A18,(4*(PlotControl!$C$6-1)),12,1))) -> 0 | BS18: =(AVERAGE(OFFSET(Toes!$HL$10,12*$A18,(4*(PlotControl!$C$6-1)),12,1))) -> 0 | BT18: =(AVERAGE(OFFSET(Toes!$HM$10,12*$A18,(4*(PlotControl!$C$6-1)),12,1))) -> 0 | BU18: =(AVERAGE(OFFSET(Toes!$LO$10,12*$A18,(4*(PlotControl!$C$6-1)),12,1))) -> 0 | BV18: =(AVERAGE(OFFSET(Toes!$LP$10,12*$A18,(4*(PlotControl!$C$6-1)),12,1))) -> 0 | BW18: =(AVERAGE(OFFSET(Toes!$LQ$10,12*$A18,(4*(PlotControl!$C$6-1)),12,1))) -> 0 | BY18: 13 | BZ18: =AVERAGE(OFFSET(GW!$HK$10,12*$A18,(4*(PlotControl!$C$6-1)),12,1)) -> 0 | CA18: =AVERAGE(OFFSET(GW!$HL$10,12*$A18,(4*(PlotControl!$C$6-1)),12,1)) -> 0 | CB18: =AVERAGE(OFFSET(GW!$HM$10,12*$A18,(4*(PlotControl!$C$6-1)),12,1)) -> 0 | CC18: =AVERAGE(OFFSET(SW!$HK$10,12*$A18,(4*(PlotControl!$C$6-1)),12,1)) -> 6.397116667e-05 | CD18: =AVERAGE(OFFSET(SW!$HL$10,12*$A18,(4*(PlotControl!$C$6-1)),12,1)) -> 0.000354744225 | CE18: =AVERAGE(OFFSET(SW!$HM$10,12*$A18,(4*(PlotControl!$C$6-1)),12,1)) -> 0.001254253917 | CL18: =(AVERAGE(OFFSET(WWTP_To_SW!$DG$10,12*$A18,(4*(PlotControl!$C$6-1)),12,1))) -> 0.0003924925 | CM18: =(AVERAGE(OFFSET(WWTP_To_SW!$DH$10,12*$A18,(4*(PlotControl!$C$6-1)),12,1))) -> 0.0004999416667 | CN18: =(AVERAGE(OFFSET(WWTP_To_SW!$DI$10,12*$A18,(4*(PlotControl!$C$6-1)),12,1))) -> 0.0006416925 | CO18: =(AVERAGE(OFFSET(CL_To_SW!$DG$10,12*$A18,(4*(PlotControl!$C$6-1)),12,1))) -> 0 | CP18: =(AVERAGE(OFFSET(CL_To_SW!$DH$10,12*$A18,(4*(PlotControl!$C$6-1)),12,1))) -> 0 | CQ18: =(AVERAGE(OFFSET(CL_To_SW!$DI$10,12*$A18,(4*(PlotControl!$C$6-1)),12,1))) -> 0 | DG18: =(AVERAGE(OFFSET(Toes!$LO$10,12*$A18,(4*(PlotControl!$C$6-1)),12,1))) -> 0 | DH18: =(AVERAGE(OFFSET(Toes!$LP$10,12*$A18,(4*(PlotControl!$C$6-1)),12,1))) -> 0 | DI18: =(AVERAGE(OFFSET(Toes!$LQ$10,12*$A18,(4*(PlotControl!$C$6-1)),12,1))) -> 0 | DK18: 13 | DL18: =AVERAGE(OFFSET(GW!$LO$10,12*$A18,(4*(PlotControl!$C$6-1)),12,1)) -> 0 | DM18: =AVERAGE(OFFSET(GW!$LP$10,12*$A18,(4*(PlotControl!$C$6-1)),12,1)) -> 0 | DN18: =AVERAGE(OFFSET(GW!$LQ$10,12*$A18,(4*(PlotControl!$C$6-1)),12,1)) -> 0 | DO18: =AVERAGE(OFFSET(SW!$LO$10,12*$A18,(4*(PlotControl!$C$6-1)),12,1)) -> 8.002041667e-05 | DP18: =AVERAGE(OFFSET(SW!$LP$10,12*$A18,(4*(PlotControl!$C$6-1)),12,1)) -> 0.000443739375 | DQ18: =AVERAGE(OFFSET(SW!$LQ$10,12*$A18,(4*(PlotControl!$C$6-1)),12,1)) -> 0.001568896417 | DX18: =(AVERAGE(OFFSET(WWTP_To_SW!$HK$10,12*$A18,(4*(PlotControl!$C$6-1)),12,1))) -> 0.001376 | DY18: =(AVERAGE(OFFSET(WWTP_To_SW!$HL$10,12*$A18,(4*(PlotControl!$C$6-1)),12,1))) -> 0.0017527 | DZ18: =(AVERAGE(OFFSET(WWTP_To_SW!$HM$10,12*$A18,(4*(PlotControl!$C$6-1)),12,1))) -> 0.002249641667 | EA18: =(AVERAGE(OFFSET(CL_To_SW!$HK$10,12*$A18,(4*(PlotControl!$C$6-1)),12,1))) -> 0 | EB18: =(AVERAGE(OFFSET(CL_To_SW!$HL$10,12*$A18,(4*(PlotControl!$C$6-1)),12,1))) -> 0 | EC18: =(AVERAGE(OFFSET(CL_To_SW!$HM$10,12*$A18,(4*(PlotControl!$C$6-1)),12,1))) -> 0 | EG18: =(AVERAGE(OFFSET(FPs!$DG$10,12*$A18,(4*(PlotControl!$C$6-1)),12,1))) -> 2.56115e-05 | EH18: =(AVERAGE(OFFSET(FPs!$DH$10,12*$A18,(4*(PlotControl!$C$6-1)),12,1))) -> 3.809833333e-05 | EI18: =(AVERAGE(OFFSET(FPs!$DI$10,12*$A18,(4*(PlotControl!$C$6-1)),12,1))) -> 5.72575e-05 | EM18: =(AVERAGE(OFFSET(Toes!$DG$10,12*$A18,(4*(PlotControl!$C$6-1)),12,1))) -> 0 | EN18: =(AVERAGE(OFFSET(Toes!$DH$10,12*$A18,(4*(PlotControl!$C$6-1)),12,1))) -> 0 | EO18: =(AVERAGE(OFFSET(Toes!$DI$10,12*$A18,(4*(PlotControl!$C$6-1)),12,1))) -> 0 | EP18: =(AVERAGE(OFFSET(Toes!$HK$10,12*$A18,(4*(PlotControl!$C$6-1)),12,1))) -> 0 | EQ18: =(AVERAGE(OFFSET(Toes!$HL$10,12*$A18,(4*(PlotControl!$C$6-1)),12,1))) -> 0 | ER18: =(AVERAGE(OFFSET(Toes!$HM$10,12*$A18,(4*(PlotControl!$C$6-1)),12,1))) -> 0 | EW18: 13 | EX18: =AVERAGE(OFFSET(GW!$PS$10,12*$A18,(4*(PlotControl!$C$6-1)),12,1)) -> 1.815391667e-05 | EY18: =AVERAGE(OFFSET(GW!$PT$10,12*$A18,(4*(PlotControl!$C$6-1)),12,1)) -> 2.186025e-05 | EZ18: =AVERAGE(OFFSET(GW!$PU$10,12*$A18,(4*(PlotControl!$C$6-1)),12,1)) -> 2.5237e-05 | FA18: =AVERAGE(OFFSET(SW!$PS$10,12*$A18,(4*(PlotControl!$C$6-1)),12,1)) -> 9.829691667e-05 | FB18: =AVERAGE(OFFSET(SW!$PT$10,12*$A18,(4*(PlotControl!$C$6-1)),12,1)) -> 0.0005451003333 | FC18: =AVERAGE(OFFSET(SW!$PU$10,12*$A18,(4*(PlotControl!$C$6-1)),12,1)) -> 0.001927262 | FJ18: =(AVERAGE(OFFSET(WWTP_To_SW!$LO$10,12*$A18,(4*(PlotControl!$C$6-1)),12,1))) -> 0 | FK18: =(AVERAGE(OFFSET(WWTP_To_SW!$LP$10,12*$A18,(4*(PlotControl!$C$6-1)),12,1))) -> 0 | FL18: =(AVERAGE(OFFSET(WWTP_To_SW!$LQ$10,12*$A18,(4*(PlotControl!$C$6-1)),12,1))) -> 0 | FM18: =(AVERAGE(OFFSET(CL_To_SW!$LO$10,12*$A18,(4*(PlotControl!$C$6-1)),12,1))) -> 0 | FN18: =(AVERAGE(OFFSET(CL_To_SW!$LP$10,12*$A18,(4*(PlotControl!$C$6-1)),12,1))) -> 0 | FO18: =(AVERAGE(OFFSET(CL_To_SW!$LQ$10,12*$A18,(4*(PlotControl!$C$6-1)),12,1))) -> 0 | FP18: =(AVERAGE(OFFSET(FPs!$C$10,12*$A18,(4*(PlotControl!$C$6-1)),12,1))) -> 2.252366667e-05 | FQ18: =(AVERAGE(OFFSET(FPs!$D$10,12*$A18,(4*(PlotControl!$C$6-1)),12,1))) -> 3.36585e-05 | FR18: =(AVERAGE(OFFSET(FPs!$E$10,12*$A18,(4*(PlotControl!$C$6-1)),12,1))) -> 4.858908333e-05 | FY18: =(AVERAGE(OFFSET(Toes!$C$10,12*$A18,(4*(PlotControl!$C$6-1)),12,1))) -> 0 | FZ18: =(AVERAGE(OFFSET(Toes!$D$10,12*$A18,(4*(PlotControl!$C$6-1)),12,1))) -> 0 | GA18: =(AVERAGE(OFFSET(Toes!$E$10,12*$A18,(4*(PlotControl!$C$6-1)),12,1))) -> 0
A19: 14 | B19: =AVERAGE(OFFSET(GW!$C$10,12*$A19,(4*(PlotControl!$C$6-1)),12,1)) -> 0.00012709875 | C19: =AVERAGE(OFFSET(GW!$D$10,12*$A19,(4*(PlotControl!$C$6-1)),12,1)) -> 0.0001542875 | D19: =AVERAGE(OFFSET(GW!$E$10,12*$A19,(4*(PlotControl!$C$6-1)),12,1)) -> 0.0001780391667 | E19: =AVERAGE(OFFSET(SW!$C$10,12*$A19,(4*(PlotControl!$C$6-1)),12,1)) -> 0.0004321499167 | F19: =AVERAGE(OFFSET(SW!$D$10,12*$A19,(4*(PlotControl!$C$6-1)),12,1)) -> 0.00229251575 | G19: =AVERAGE(OFFSET(SW!$E$10,12*$A19,(4*(PlotControl!$C$6-1)),12,1)) -> 0.007903224167 | H19: =AVERAGE(OFFSET(PointSources!$C$10,12*$A19,(4*(PlotControl!$C$6-1)),12,1)) -> 8.651716667e-05 | I19: =AVERAGE(OFFSET(PointSources!$D$10,12*$A19,(4*(PlotControl!$C$6-1)),12,1)) -> 9.462808333e-05 | J19: =AVERAGE(OFFSET(PointSources!$E$10,12*$A19,(4*(PlotControl!$C$6-1)),12,1)) -> 0.0001031516667 | AM19: 14 | AN19: =AVERAGE(OFFSET(GW!$DG$10,12*$A19,(4*(PlotControl!$C$6-1)),12,1)) -> 0.0006312783333 | AO19: =AVERAGE(OFFSET(GW!$DH$10,12*$A19,(4*(PlotControl!$C$6-1)),12,1)) -> 0.0007663183333 | AP19: =AVERAGE(OFFSET(GW!$DI$10,12*$A19,(4*(PlotControl!$C$6-1)),12,1)) -> 0.0008842775 | AQ19: =AVERAGE(OFFSET(SW!$DG$10,12*$A19,(4*(PlotControl!$C$6-1)),12,1)) -> 0.002404058333 | AR19: =AVERAGE(OFFSET(SW!$DH$10,12*$A19,(4*(PlotControl!$C$6-1)),12,1)) -> 0.01275321667 | AS19: =AVERAGE(OFFSET(SW!$DI$10,12*$A19,(4*(PlotControl!$C$6-1)),12,1)) -> 0.04396601667 | AT19: =AVERAGE(OFFSET(PointSources!$C$10,12*$A19,(4*(PlotControl!$C$6-1)),12,1)) -> 8.651716667e-05 | AU19: =AVERAGE(OFFSET(PointSources!$D$10,12*$A19,(4*(PlotControl!$C$6-1)),12,1)) -> 9.462808333e-05 | AV19: =AVERAGE(OFFSET(PointSources!$E$10,12*$A19,(4*(PlotControl!$C$6-1)),12,1)) -> 0.0001031516667 | AW19: =AVERAGE(OFFSET(PointSources!$DG$10,12*$A19,(4*(PlotControl!$C$6-1)),12,1)) -> 0.0002167666667 | AX19: =AVERAGE(OFFSET(PointSources!$DH$10,12*$A19,(4*(PlotControl!$C$6-1)),12,1)) -> 0.0005279758333 | AY19: =AVERAGE(OFFSET(PointSources!$DI$10,12*$A19,(4*(PlotControl!$C$6-1)),12,1)) -> 0.001231179167 | AZ19: =(AVERAGE(OFFSET(WWTP_To_SW!$C$10,12*$A19,(4*(PlotControl!$C$6-1)),12,1))) -> 0.00168675 | BA19: =(AVERAGE(OFFSET(WWTP_To_SW!$D$10,12*$A19,(4*(PlotControl!$C$6-1)),12,1))) -> 0.002130841667 | BB19: =(AVERAGE(OFFSET(WWTP_To_SW!$E$10,12*$A19,(4*(PlotControl!$C$6-1)),12,1))) -> 0.002780966667 | BC19: =(AVERAGE(OFFSET(CL_To_SW!$C$10,12*$A19,(4*(PlotControl!$C$6-1)),12,1))) -> 0 | BD19: =(AVERAGE(OFFSET(CL_To_SW!$D$10,12*$A19,(4*(PlotControl!$C$6-1)),12,1))) -> 0 | BE19: =(AVERAGE(OFFSET(CL_To_SW!$E$10,12*$A19,(4*(PlotControl!$C$6-1)),12,1))) -> 0 | BF19: =(AVERAGE(OFFSET(FPs!$C$10,12*$A19,(4*(PlotControl!$C$6-1)),12,1))) -> 2.243783333e-05 | BG19: =(AVERAGE(OFFSET(FPs!$D$10,12*$A19,(4*(PlotControl!$C$6-1)),12,1))) -> 3.371825e-05 | BH19: =(AVERAGE(OFFSET(FPs!$E$10,12*$A19,(4*(PlotControl!$C$6-1)),12,1))) -> 4.847833333e-05 | BI19: =(AVERAGE(OFFSET(FPs!$DG$10,12*$A19,(4*(PlotControl!$C$6-1)),12,1))) -> 2.553208333e-05 | BJ19: =(AVERAGE(OFFSET(FPs!$DH$10,12*$A19,(4*(PlotControl!$C$6-1)),12,1))) -> 3.823566667e-05 | BK19: =(AVERAGE(OFFSET(FPs!$DI$10,12*$A19,(4*(PlotControl!$C$6-1)),12,1))) -> 5.731108333e-05 | BL19: =(AVERAGE(OFFSET(FPs!$HK$10,12*$A19,(4*(PlotControl!$C$6-1)),12,1))) -> 5.391058333e-05 | BM19: =(AVERAGE(OFFSET(FPs!$HL$10,12*$A19,(4*(PlotControl!$C$6-1)),12,1))) -> 7.891475e-05 | BN19: =(AVERAGE(OFFSET(FPs!$HM$10,12*$A19,(4*(PlotControl!$C$6-1)),12,1))) -> 0.0001098983333 | BO19: =(AVERAGE(OFFSET(Toes!$C$10,12*$A19,(4*(PlotControl!$C$6-1)),12,1))) + (AVERAGE(OFFSET(Toes!$DG$10,12*$A19,(4*(PlotControl!$C$6-1)),12,1))) -> 0 | BP19: =(AVERAGE(OFFSET(Toes!$D$10,12*$A19,(4*(PlotControl!$C$6-1)),12,1))) + (AVERAGE(OFFSET(Toes!$DH$10,12*$A19,(4*(PlotControl!$C$6-1)),12,1))) -> 0 | BQ19: =(AVERAGE(OFFSET(Toes!$E$10,12*$A19,(4*(PlotControl!$C$6-1)),12,1))) + (AVERAGE(OFFSET(Toes!$DI$10,12*$A19,(4*(PlotControl!$C$6-1)),12,1))) -> 0 | BR19: =(AVERAGE(OFFSET(Toes!$HK$10,12*$A19,(4*(PlotControl!$C$6-1)),12,1))) -> 0 | BS19: =(AVERAGE(OFFSET(Toes!$HL$10,12*$A19,(4*(PlotControl!$C$6-1)),12,1))) -> 0 | BT19: =(AVERAGE(OFFSET(Toes!$HM$10,12*$A19,(4*(PlotControl!$C$6-1)),12,1))) -> 0 | BU19: =(AVERAGE(OFFSET(Toes!$LO$10,12*$A19,(4*(PlotControl!$C$6-1)),12,1))) -> 0 | BV19: =(AVERAGE(OFFSET(Toes!$LP$10,12*$A19,(4*(PlotControl!$C$6-1)),12,1))) -> 0 | BW19: =(AVERAGE(OFFSET(Toes!$LQ$10,12*$A19,(4*(PlotControl!$C$6-1)),12,1))) -> 0 | BY19: 14 | BZ19: =AVERAGE(OFFSET(GW!$HK$10,12*$A19,(4*(PlotControl!$C$6-1)),12,1)) -> 0 | CA19: =AVERAGE(OFFSET(GW!$HL$10,12*$A19,(4*(PlotControl!$C$6-1)),12,1)) -> 0 | CB19: =AVERAGE(OFFSET(GW!$HM$10,12*$A19,(4*(PlotControl!$C$6-1)),12,1)) -> 0 | CC19: =AVERAGE(OFFSET(SW!$HK$10,12*$A19,(4*(PlotControl!$C$6-1)),12,1)) -> 6.538060833e-05 | CD19: =AVERAGE(OFFSET(SW!$HL$10,12*$A19,(4*(PlotControl!$C$6-1)),12,1)) -> 0.0003468349667 | CE19: =AVERAGE(OFFSET(SW!$HM$10,12*$A19,(4*(PlotControl!$C$6-1)),12,1)) -> 0.001195680833 | CL19: =(AVERAGE(OFFSET(WWTP_To_SW!$DG$10,12*$A19,(4*(PlotControl!$C$6-1)),12,1))) -> 0.00037435 | CM19: =(AVERAGE(OFFSET(WWTP_To_SW!$DH$10,12*$A19,(4*(PlotControl!$C$6-1)),12,1))) -> 0.0004729116667 | CN19: =(AVERAGE(OFFSET(WWTP_To_SW!$DI$10,12*$A19,(4*(PlotControl!$C$6-1)),12,1))) -> 0.0006171933333 | CO19: =(AVERAGE(OFFSET(CL_To_SW!$DG$10,12*$A19,(4*(PlotControl!$C$6-1)),12,1))) -> 0 | CP19: =(AVERAGE(OFFSET(CL_To_SW!$DH$10,12*$A19,(4*(PlotControl!$C$6-1)),12,1))) -> 0 | CQ19: =(AVERAGE(OFFSET(CL_To_SW!$DI$10,12*$A19,(4*(PlotControl!$C$6-1)),12,1))) -> 0 | DG19: =(AVERAGE(OFFSET(Toes!$LO$10,12*$A19,(4*(PlotControl!$C$6-1)),12,1))) -> 0 | DH19: =(AVERAGE(OFFSET(Toes!$LP$10,12*$A19,(4*(PlotControl!$C$6-1)),12,1))) -> 0 | DI19: =(AVERAGE(OFFSET(Toes!$LQ$10,12*$A19,(4*(PlotControl!$C$6-1)),12,1))) -> 0 | DK19: 14 | DL19: =AVERAGE(OFFSET(GW!$LO$10,12*$A19,(4*(PlotControl!$C$6-1)),12,1)) -> 0 | DM19: =AVERAGE(OFFSET(GW!$LP$10,12*$A19,(4*(PlotControl!$C$6-1)),12,1)) -> 0 | DN19: =AVERAGE(OFFSET(GW!$LQ$10,12*$A19,(4*(PlotControl!$C$6-1)),12,1)) -> 0 | DO19: =AVERAGE(OFFSET(SW!$LO$10,12*$A19,(4*(PlotControl!$C$6-1)),12,1)) -> 8.178278333e-05 | DP19: =AVERAGE(OFFSET(SW!$LP$10,12*$A19,(4*(PlotControl!$C$6-1)),12,1)) -> 0.0004338553167 | DQ19: =AVERAGE(OFFSET(SW!$LQ$10,12*$A19,(4*(PlotControl!$C$6-1)),12,1)) -> 0.001495643 | DX19: =(AVERAGE(OFFSET(WWTP_To_SW!$HK$10,12*$A19,(4*(PlotControl!$C$6-1)),12,1))) -> 0.0013124 | DY19: =(AVERAGE(OFFSET(WWTP_To_SW!$HL$10,12*$A19,(4*(PlotControl!$C$6-1)),12,1))) -> 0.001657933333 | DZ19: =(AVERAGE(OFFSET(WWTP_To_SW!$HM$10,12*$A19,(4*(PlotControl!$C$6-1)),12,1))) -> 0.002163758333 | EA19: =(AVERAGE(OFFSET(CL_To_SW!$HK$10,12*$A19,(4*(PlotControl!$C$6-1)),12,1))) -> 0 | EB19: =(AVERAGE(OFFSET(CL_To_SW!$HL$10,12*$A19,(4*(PlotControl!$C$6-1)),12,1))) -> 0 | EC19: =(AVERAGE(OFFSET(CL_To_SW!$HM$10,12*$A19,(4*(PlotControl!$C$6-1)),12,1))) -> 0 | EG19: =(AVERAGE(OFFSET(FPs!$DG$10,12*$A19,(4*(PlotControl!$C$6-1)),12,1))) -> 2.553208333e-05 | EH19: =(AVERAGE(OFFSET(FPs!$DH$10,12*$A19,(4*(PlotControl!$C$6-1)),12,1))) -> 3.823566667e-05 | EI19: =(AVERAGE(OFFSET(FPs!$DI$10,12*$A19,(4*(PlotControl!$C$6-1)),12,1))) -> 5.731108333e-05 | EM19: =(AVERAGE(OFFSET(Toes!$DG$10,12*$A19,(4*(PlotControl!$C$6-1)),12,1))) -> 0 | EN19: =(AVERAGE(OFFSET(Toes!$DH$10,12*$A19,(4*(PlotControl!$C$6-1)),12,1))) -> 0 | EO19: =(AVERAGE(OFFSET(Toes!$DI$10,12*$A19,(4*(PlotControl!$C$6-1)),12,1))) -> 0 | EP19: =(AVERAGE(OFFSET(Toes!$HK$10,12*$A19,(4*(PlotControl!$C$6-1)),12,1))) -> 0 | EQ19: =(AVERAGE(OFFSET(Toes!$HL$10,12*$A19,(4*(PlotControl!$C$6-1)),12,1))) -> 0 | ER19: =(AVERAGE(OFFSET(Toes!$HM$10,12*$A19,(4*(PlotControl!$C$6-1)),12,1))) -> 0 | EW19: 14 | EX19: =AVERAGE(OFFSET(GW!$PS$10,12*$A19,(4*(PlotControl!$C$6-1)),12,1)) -> 1.802325e-05 | EY19: =AVERAGE(OFFSET(GW!$PT$10,12*$A19,(4*(PlotControl!$C$6-1)),12,1)) -> 2.18785e-05 | EZ19: =AVERAGE(OFFSET(GW!$PU$10,12*$A19,(4*(PlotControl!$C$6-1)),12,1)) -> 2.524608333e-05 | FA19: =AVERAGE(OFFSET(SW!$PS$10,12*$A19,(4*(PlotControl!$C$6-1)),12,1)) -> 0.000100462275 | FB19: =AVERAGE(OFFSET(SW!$PT$10,12*$A19,(4*(PlotControl!$C$6-1)),12,1)) -> 0.0005329396 | FC19: =AVERAGE(OFFSET(SW!$PU$10,12*$A19,(4*(PlotControl!$C$6-1)),12,1)) -> 0.00183725575 | FJ19: =(AVERAGE(OFFSET(WWTP_To_SW!$LO$10,12*$A19,(4*(PlotControl!$C$6-1)),12,1))) -> 0 | FK19: =(AVERAGE(OFFSET(WWTP_To_SW!$LP$10,12*$A19,(4*(PlotControl!$C$6-1)),12,1))) -> 0 | FL19: =(AVERAGE(OFFSET(WWTP_To_SW!$LQ$10,12*$A19,(4*(PlotControl!$C$6-1)),12,1))) -> 0 | FM19: =(AVERAGE(OFFSET(CL_To_SW!$LO$10,12*$A19,(4*(PlotControl!$C$6-1)),12,1))) -> 0 | FN19: =(AVERAGE(OFFSET(CL_To_SW!$LP$10,12*$A19,(4*(PlotControl!$C$6-1)),12,1))) -> 0 | FO19: =(AVERAGE(OFFSET(CL_To_SW!$LQ$10,12*$A19,(4*(PlotControl!$C$6-1)),12,1))) -> 0 | FP19: =(AVERAGE(OFFSET(FPs!$C$10,12*$A19,(4*(PlotControl!$C$6-1)),12,1))) -> 2.243783333e-05 | FQ19: =(AVERAGE(OFFSET(FPs!$D$10,12*$A19,(4*(PlotControl!$C$6-1)),12,1))) -> 3.371825e-05 | FR19: =(AVERAGE(OFFSET(FPs!$E$10,12*$A19,(4*(PlotControl!$C$6-1)),12,1))) -> 4.847833333e-05 | FY19: =(AVERAGE(OFFSET(Toes!$C$10,12*$A19,(4*(PlotControl!$C$6-1)),12,1))) -> 0 | FZ19: =(AVERAGE(OFFSET(Toes!$D$10,12*$A19,(4*(PlotControl!$C$6-1)),12,1))) -> 0 | GA19: =(AVERAGE(OFFSET(Toes!$E$10,12*$A19,(4*(PlotControl!$C$6-1)),12,1))) -> 0
A20: 15 | B20: =AVERAGE(OFFSET(GW!$C$10,12*$A20,(4*(PlotControl!$C$6-1)),12,1)) -> 0.000128415 | C20: =AVERAGE(OFFSET(GW!$D$10,12*$A20,(4*(PlotControl!$C$6-1)),12,1)) -> 0.000154275 | D20: =AVERAGE(OFFSET(GW!$E$10,12*$A20,(4*(PlotControl!$C$6-1)),12,1)) -> 0.0001779875 | E20: =AVERAGE(OFFSET(SW!$C$10,12*$A20,(4*(PlotControl!$C$6-1)),12,1)) -> 0.0004998872583 | F20: =AVERAGE(OFFSET(SW!$D$10,12*$A20,(4*(PlotControl!$C$6-1)),12,1)) -> 0.002285683083 | G20: =AVERAGE(OFFSET(SW!$E$10,12*$A20,(4*(PlotControl!$C$6-1)),12,1)) -> 0.008206718333 | H20: =AVERAGE(OFFSET(PointSources!$C$10,12*$A20,(4*(PlotControl!$C$6-1)),12,1)) -> 8.649625e-05 | I20: =AVERAGE(OFFSET(PointSources!$D$10,12*$A20,(4*(PlotControl!$C$6-1)),12,1)) -> 9.417641667e-05 | J20: =AVERAGE(OFFSET(PointSources!$E$10,12*$A20,(4*(PlotControl!$C$6-1)),12,1)) -> 0.0001025616667 | AM20: 15 | AN20: =AVERAGE(OFFSET(GW!$DG$10,12*$A20,(4*(PlotControl!$C$6-1)),12,1)) -> 0.0006378175 | AO20: =AVERAGE(OFFSET(GW!$DH$10,12*$A20,(4*(PlotControl!$C$6-1)),12,1)) -> 0.0007662483333 | AP20: =AVERAGE(OFFSET(GW!$DI$10,12*$A20,(4*(PlotControl!$C$6-1)),12,1)) -> 0.00088402 | AQ20: =AVERAGE(OFFSET(SW!$DG$10,12*$A20,(4*(PlotControl!$C$6-1)),12,1)) -> 0.00278085475 | AR20: =AVERAGE(OFFSET(SW!$DH$10,12*$A20,(4*(PlotControl!$C$6-1)),12,1)) -> 0.012715235 | AS20: =AVERAGE(OFFSET(SW!$DI$10,12*$A20,(4*(PlotControl!$C$6-1)),12,1)) -> 0.045654225 | AT20: =AVERAGE(OFFSET(PointSources!$C$10,12*$A20,(4*(PlotControl!$C$6-1)),12,1)) -> 8.649625e-05 | AU20: =AVERAGE(OFFSET(PointSources!$D$10,12*$A20,(4*(PlotControl!$C$6-1)),12,1)) -> 9.417641667e-05 | AV20: =AVERAGE(OFFSET(PointSources!$E$10,12*$A20,(4*(PlotControl!$C$6-1)),12,1)) -> 0.0001025616667 | AW20: =AVERAGE(OFFSET(PointSources!$DG$10,12*$A20,(4*(PlotControl!$C$6-1)),12,1)) -> 0.0002193325 | AX20: =AVERAGE(OFFSET(PointSources!$DH$10,12*$A20,(4*(PlotControl!$C$6-1)),12,1)) -> 0.0005339358333 | AY20: =AVERAGE(OFFSET(PointSources!$DI$10,12*$A20,(4*(PlotControl!$C$6-1)),12,1)) -> 0.001261835833 | AZ20: =(AVERAGE(OFFSET(WWTP_To_SW!$C$10,12*$A20,(4*(PlotControl!$C$6-1)),12,1))) -> 0.00150775 | BA20: =(AVERAGE(OFFSET(WWTP_To_SW!$D$10,12*$A20,(4*(PlotControl!$C$6-1)),12,1))) -> 0.001586041667 | BB20: =(AVERAGE(OFFSET(WWTP_To_SW!$E$10,12*$A20,(4*(PlotControl!$C$6-1)),12,1))) -> 0.001737108333 | BC20: =(AVERAGE(OFFSET(CL_To_SW!$C$10,12*$A20,(4*(PlotControl!$C$6-1)),12,1))) -> 0 | BD20: =(AVERAGE(OFFSET(CL_To_SW!$D$10,12*$A20,(4*(PlotControl!$C$6-1)),12,1))) -> 0 | BE20: =(AVERAGE(OFFSET(CL_To_SW!$E$10,12*$A20,(4*(PlotControl!$C$6-1)),12,1))) -> 0 | BF20: =(AVERAGE(OFFSET(FPs!$C$10,12*$A20,(4*(PlotControl!$C$6-1)),12,1))) -> 2.264575e-05 | BG20: =(AVERAGE(OFFSET(FPs!$D$10,12*$A20,(4*(PlotControl!$C$6-1)),12,1))) -> 3.371091667e-05 | BH20: =(AVERAGE(OFFSET(FPs!$E$10,12*$A20,(4*(PlotControl!$C$6-1)),12,1))) -> 4.869133333e-05 | BI20: =(AVERAGE(OFFSET(FPs!$DG$10,12*$A20,(4*(PlotControl!$C$6-1)),12,1))) -> 2.560125e-05 | BJ20: =(AVERAGE(OFFSET(FPs!$DH$10,12*$A20,(4*(PlotControl!$C$6-1)),12,1))) -> 3.847558333e-05 | BK20: =(AVERAGE(OFFSET(FPs!$DI$10,12*$A20,(4*(PlotControl!$C$6-1)),12,1))) -> 5.750566667e-05 | BL20: =(AVERAGE(OFFSET(FPs!$HK$10,12*$A20,(4*(PlotControl!$C$6-1)),12,1))) -> 5.438225e-05 | BM20: =(AVERAGE(OFFSET(FPs!$HL$10,12*$A20,(4*(PlotControl!$C$6-1)),12,1))) -> 7.866491667e-05 | BN20: =(AVERAGE(OFFSET(FPs!$HM$10,12*$A20,(4*(PlotControl!$C$6-1)),12,1))) -> 0.0001093575 | BO20: =(AVERAGE(OFFSET(Toes!$C$10,12*$A20,(4*(PlotControl!$C$6-1)),12,1))) + (AVERAGE(OFFSET(Toes!$DG$10,12*$A20,(4*(PlotControl!$C$6-1)),12,1))) -> 0 | BP20: =(AVERAGE(OFFSET(Toes!$D$10,12*$A20,(4*(PlotControl!$C$6-1)),12,1))) + (AVERAGE(OFFSET(Toes!$DH$10,12*$A20,(4*(PlotControl!$C$6-1)),12,1))) -> 0 | BQ20: =(AVERAGE(OFFSET(Toes!$E$10,12*$A20,(4*(PlotControl!$C$6-1)),12,1))) + (AVERAGE(OFFSET(Toes!$DI$10,12*$A20,(4*(PlotControl!$C$6-1)),12,1))) -> 0 | BR20: =(AVERAGE(OFFSET(Toes!$HK$10,12*$A20,(4*(PlotControl!$C$6-1)),12,1))) -> 0 | BS20: =(AVERAGE(OFFSET(Toes!$HL$10,12*$A20,(4*(PlotControl!$C$6-1)),12,1))) -> 0 | BT20: =(AVERAGE(OFFSET(Toes!$HM$10,12*$A20,(4*(PlotControl!$C$6-1)),12,1))) -> 0 | BU20: =(AVERAGE(OFFSET(Toes!$LO$10,12*$A20,(4*(PlotControl!$C$6-1)),12,1))) -> 0 | BV20: =(AVERAGE(OFFSET(Toes!$LP$10,12*$A20,(4*(PlotControl!$C$6-1)),12,1))) -> 0 | BW20: =(AVERAGE(OFFSET(Toes!$LQ$10,12*$A20,(4*(PlotControl!$C$6-1)),12,1))) -> 0 | BY20: 15 | BZ20: =AVERAGE(OFFSET(GW!$HK$10,12*$A20,(4*(PlotControl!$C$6-1)),12,1)) -> 0 | CA20: =AVERAGE(OFFSET(GW!$HL$10,12*$A20,(4*(PlotControl!$C$6-1)),12,1)) -> 0 | CB20: =AVERAGE(OFFSET(GW!$HM$10,12*$A20,(4*(PlotControl!$C$6-1)),12,1)) -> 0 | CC20: =AVERAGE(OFFSET(SW!$HK$10,12*$A20,(4*(PlotControl!$C$6-1)),12,1)) -> 7.56281e-05 | CD20: =AVERAGE(OFFSET(SW!$HL$10,12*$A20,(4*(PlotControl!$C$6-1)),12,1)) -> 0.00034580095 | CE20: =AVERAGE(OFFSET(SW!$HM$10,12*$A20,(4*(PlotControl!$C$6-1)),12,1)) -> 0.00124161775 | CL20: =(AVERAGE(OFFSET(WWTP_To_SW!$DG$10,12*$A20,(4*(PlotControl!$C$6-1)),12,1))) -> 0.0003346233333 | CM20: =(AVERAGE(OFFSET(WWTP_To_SW!$DH$10,12*$A20,(4*(PlotControl!$C$6-1)),12,1))) -> 0.0003519991667 | CN20: =(AVERAGE(OFFSET(WWTP_To_SW!$DI$10,12*$A20,(4*(PlotControl!$C$6-1)),12,1))) -> 0.0003855258333 | CO20: =(AVERAGE(OFFSET(CL_To_SW!$DG$10,12*$A20,(4*(PlotControl!$C$6-1)),12,1))) -> 0 | CP20: =(AVERAGE(OFFSET(CL_To_SW!$DH$10,12*$A20,(4*(PlotControl!$C$6-1)),12,1))) -> 0 | CQ20: =(AVERAGE(OFFSET(CL_To_SW!$DI$10,12*$A20,(4*(PlotControl!$C$6-1)),12,1))) -> 0 | DG20: =(AVERAGE(OFFSET(Toes!$LO$10,12*$A20,(4*(PlotControl!$C$6-1)),12,1))) -> 0 | DH20: =(AVERAGE(OFFSET(Toes!$LP$10,12*$A20,(4*(PlotControl!$C$6-1)),12,1))) -> 0 | DI20: =(AVERAGE(OFFSET(Toes!$LQ$10,12*$A20,(4*(PlotControl!$C$6-1)),12,1))) -> 0 | DK20: 15 | DL20: =AVERAGE(OFFSET(GW!$LO$10,12*$A20,(4*(PlotControl!$C$6-1)),12,1)) -> 0 | DM20: =AVERAGE(OFFSET(GW!$LP$10,12*$A20,(4*(PlotControl!$C$6-1)),12,1)) -> 0 | DN20: =AVERAGE(OFFSET(GW!$LQ$10,12*$A20,(4*(PlotControl!$C$6-1)),12,1)) -> 0 | DO20: =AVERAGE(OFFSET(SW!$LO$10,12*$A20,(4*(PlotControl!$C$6-1)),12,1)) -> 9.460115833e-05 | DP20: =AVERAGE(OFFSET(SW!$LP$10,12*$A20,(4*(PlotControl!$C$6-1)),12,1)) -> 0.0004325533917 | DQ20: =AVERAGE(OFFSET(SW!$LQ$10,12*$A20,(4*(PlotControl!$C$6-1)),12,1)) -> 0.001553100917 | DX20: =(AVERAGE(OFFSET(WWTP_To_SW!$HK$10,12*$A20,(4*(PlotControl!$C$6-1)),12,1))) -> 0.001173133333 | DY20: =(AVERAGE(OFFSET(WWTP_To_SW!$HL$10,12*$A20,(4*(PlotControl!$C$6-1)),12,1))) -> 0.001234058333 | DZ20: =(AVERAGE(OFFSET(WWTP_To_SW!$HM$10,12*$A20,(4*(PlotControl!$C$6-1)),12,1))) -> 0.001351566667 | EA20: =(AVERAGE(OFFSET(CL_To_SW!$HK$10,12*$A20,(4*(PlotControl!$C$6-1)),12,1))) -> 0 | EB20: =(AVERAGE(OFFSET(CL_To_SW!$HL$10,12*$A20,(4*(PlotControl!$C$6-1)),12,1))) -> 0 | EC20: =(AVERAGE(OFFSET(CL_To_SW!$HM$10,12*$A20,(4*(PlotControl!$C$6-1)),12,1))) -> 0 | EG20: =(AVERAGE(OFFSET(FPs!$DG$10,12*$A20,(4*(PlotControl!$C$6-1)),12,1))) -> 2.560125e-05 | EH20: =(AVERAGE(OFFSET(FPs!$DH$10,12*$A20,(4*(PlotControl!$C$6-1)),12,1))) -> 3.847558333e-05 | EI20: =(AVERAGE(OFFSET(FPs!$DI$10,12*$A20,(4*(PlotControl!$C$6-1)),12,1))) -> 5.750566667e-05 | EM20: =(AVERAGE(OFFSET(Toes!$DG$10,12*$A20,(4*(PlotControl!$C$6-1)),12,1))) -> 0 | EN20: =(AVERAGE(OFFSET(Toes!$DH$10,12*$A20,(4*(PlotControl!$C$6-1)),12,1))) -> 0 | EO20: =(AVERAGE(OFFSET(Toes!$DI$10,12*$A20,(4*(PlotControl!$C$6-1)),12,1))) -> 0 | EP20: =(AVERAGE(OFFSET(Toes!$HK$10,12*$A20,(4*(PlotControl!$C$6-1)),12,1))) -> 0 | EQ20: =(AVERAGE(OFFSET(Toes!$HL$10,12*$A20,(4*(PlotControl!$C$6-1)),12,1))) -> 0 | ER20: =(AVERAGE(OFFSET(Toes!$HM$10,12*$A20,(4*(PlotControl!$C$6-1)),12,1))) -> 0 | EW20: 15 | EX20: =AVERAGE(OFFSET(GW!$PS$10,12*$A20,(4*(PlotControl!$C$6-1)),12,1)) -> 1.821e-05 | EY20: =AVERAGE(OFFSET(GW!$PT$10,12*$A20,(4*(PlotControl!$C$6-1)),12,1)) -> 2.18765e-05 | EZ20: =AVERAGE(OFFSET(GW!$PU$10,12*$A20,(4*(PlotControl!$C$6-1)),12,1)) -> 2.523875e-05 | FA20: =AVERAGE(OFFSET(SW!$PS$10,12*$A20,(4*(PlotControl!$C$6-1)),12,1)) -> 0.00011621025 | FB20: =AVERAGE(OFFSET(SW!$PT$10,12*$A20,(4*(PlotControl!$C$6-1)),12,1)) -> 0.0005313641667 | FC20: =AVERAGE(OFFSET(SW!$PU$10,12*$A20,(4*(PlotControl!$C$6-1)),12,1)) -> 0.00190783625 | FJ20: =(AVERAGE(OFFSET(WWTP_To_SW!$LO$10,12*$A20,(4*(PlotControl!$C$6-1)),12,1))) -> 0 | FK20: =(AVERAGE(OFFSET(WWTP_To_SW!$LP$10,12*$A20,(4*(PlotControl!$C$6-1)),12,1))) -> 0 | FL20: =(AVERAGE(OFFSET(WWTP_To_SW!$LQ$10,12*$A20,(4*(PlotControl!$C$6-1)),12,1))) -> 0 | FM20: =(AVERAGE(OFFSET(CL_To_SW!$LO$10,12*$A20,(4*(PlotControl!$C$6-1)),12,1))) -> 0 | FN20: =(AVERAGE(OFFSET(CL_To_SW!$LP$10,12*$A20,(4*(PlotControl!$C$6-1)),12,1))) -> 0 | FO20: =(AVERAGE(OFFSET(CL_To_SW!$LQ$10,12*$A20,(4*(PlotControl!$C$6-1)),12,1))) -> 0 | FP20: =(AVERAGE(OFFSET(FPs!$C$10,12*$A20,(4*(PlotControl!$C$6-1)),12,1))) -> 2.264575e-05 | FQ20: =(AVERAGE(OFFSET(FPs!$D$10,12*$A20,(4*(PlotControl!$C$6-1)),12,1))) -> 3.371091667e-05 | FR20: =(AVERAGE(OFFSET(FPs!$E$10,12*$A20,(4*(PlotControl!$C$6-1)),12,1))) -> 4.869133333e-05 | FY20: =(AVERAGE(OFFSET(Toes!$C$10,12*$A20,(4*(PlotControl!$C$6-1)),12,1))) -> 0 | FZ20: =(AVERAGE(OFFSET(Toes!$D$10,12*$A20,(4*(PlotControl!$C$6-1)),12,1))) -> 0 | GA20: =(AVERAGE(OFFSET(Toes!$E$10,12*$A20,(4*(PlotControl!$C$6-1)),12,1))) -> 0
A21: 16 | B21: =AVERAGE(OFFSET(GW!$C$10,12*$A21,(4*(PlotControl!$C$6-1)),12,1)) -> 0.0001270638333 | C21: =AVERAGE(OFFSET(GW!$D$10,12*$A21,(4*(PlotControl!$C$6-1)),12,1)) -> 0.0001542533333 | D21: =AVERAGE(OFFSET(GW!$E$10,12*$A21,(4*(PlotControl!$C$6-1)),12,1)) -> 0.00017787 | E21: =AVERAGE(OFFSET(SW!$C$10,12*$A21,(4*(PlotControl!$C$6-1)),12,1)) -> 0.0004544340833 | F21: =AVERAGE(OFFSET(SW!$D$10,12*$A21,(4*(PlotControl!$C$6-1)),12,1)) -> 0.002231594667 | G21: =AVERAGE(OFFSET(SW!$E$10,12*$A21,(4*(PlotControl!$C$6-1)),12,1)) -> 0.008270851667 | H21: =AVERAGE(OFFSET(PointSources!$C$10,12*$A21,(4*(PlotControl!$C$6-1)),12,1)) -> 8.663108333e-05 | I21: =AVERAGE(OFFSET(PointSources!$D$10,12*$A21,(4*(PlotControl!$C$6-1)),12,1)) -> 9.427258333e-05 | J21: =AVERAGE(OFFSET(PointSources!$E$10,12*$A21,(4*(PlotControl!$C$6-1)),12,1)) -> 0.0001026175 | AM21: 16 | AN21: =AVERAGE(OFFSET(GW!$DG$10,12*$A21,(4*(PlotControl!$C$6-1)),12,1)) -> 0.0006311066667 | AO21: =AVERAGE(OFFSET(GW!$DH$10,12*$A21,(4*(PlotControl!$C$6-1)),12,1)) -> 0.0007661483333 | AP21: =AVERAGE(OFFSET(GW!$DI$10,12*$A21,(4*(PlotControl!$C$6-1)),12,1)) -> 0.0008834333333 | AQ21: =AVERAGE(OFFSET(SW!$DG$10,12*$A21,(4*(PlotControl!$C$6-1)),12,1)) -> 0.002527984167 | AR21: =AVERAGE(OFFSET(SW!$DH$10,12*$A21,(4*(PlotControl!$C$6-1)),12,1)) -> 0.01241436667 | AS21: =AVERAGE(OFFSET(SW!$DI$10,12*$A21,(4*(PlotControl!$C$6-1)),12,1)) -> 0.046010475 | AT21: =AVERAGE(OFFSET(PointSources!$C$10,12*$A21,(4*(PlotControl!$C$6-1)),12,1)) -> 8.663108333e-05 | AU21: =AVERAGE(OFFSET(PointSources!$D$10,12*$A21,(4*(PlotControl!$C$6-1)),12,1)) -> 9.427258333e-05 | AV21: =AVERAGE(OFFSET(PointSources!$E$10,12*$A21,(4*(PlotControl!$C$6-1)),12,1)) -> 0.0001026175 | AW21: =AVERAGE(OFFSET(PointSources!$DG$10,12*$A21,(4*(PlotControl!$C$6-1)),12,1)) -> 0.0002175141667 | AX21: =AVERAGE(OFFSET(PointSources!$DH$10,12*$A21,(4*(PlotControl!$C$6-1)),12,1)) -> 0.0005283908333 | AY21: =AVERAGE(OFFSET(PointSources!$DI$10,12*$A21,(4*(PlotControl!$C$6-1)),12,1)) -> 0.001264468333 | AZ21: =(AVERAGE(OFFSET(WWTP_To_SW!$C$10,12*$A21,(4*(PlotControl!$C$6-1)),12,1))) -> 0.001508766667 | BA21: =(AVERAGE(OFFSET(WWTP_To_SW!$D$10,12*$A21,(4*(PlotControl!$C$6-1)),12,1))) -> 0.001557433333 | BB21: =(AVERAGE(OFFSET(WWTP_To_SW!$E$10,12*$A21,(4*(PlotControl!$C$6-1)),12,1))) -> 0.001656225 | BC21: =(AVERAGE(OFFSET(CL_To_SW!$C$10,12*$A21,(4*(PlotControl!$C$6-1)),12,1))) -> 0 | BD21: =(AVERAGE(OFFSET(CL_To_SW!$D$10,12*$A21,(4*(PlotControl!$C$6-1)),12,1))) -> 0 | BE21: =(AVERAGE(OFFSET(CL_To_SW!$E$10,12*$A21,(4*(PlotControl!$C$6-1)),12,1))) -> 0 | BF21: =(AVERAGE(OFFSET(FPs!$C$10,12*$A21,(4*(PlotControl!$C$6-1)),12,1))) -> 2.251366667e-05 | BG21: =(AVERAGE(OFFSET(FPs!$D$10,12*$A21,(4*(PlotControl!$C$6-1)),12,1))) -> 3.3569e-05 | BH21: =(AVERAGE(OFFSET(FPs!$E$10,12*$A21,(4*(PlotControl!$C$6-1)),12,1))) -> 4.861958333e-05 | BI21: =(AVERAGE(OFFSET(FPs!$DG$10,12*$A21,(4*(PlotControl!$C$6-1)),12,1))) -> 2.548116667e-05 | BJ21: =(AVERAGE(OFFSET(FPs!$DH$10,12*$A21,(4*(PlotControl!$C$6-1)),12,1))) -> 3.828808333e-05 | BK21: =(AVERAGE(OFFSET(FPs!$DI$10,12*$A21,(4*(PlotControl!$C$6-1)),12,1))) -> 5.750166667e-05 | BL21: =(AVERAGE(OFFSET(FPs!$HK$10,12*$A21,(4*(PlotControl!$C$6-1)),12,1))) -> 5.387191667e-05 | BM21: =(AVERAGE(OFFSET(FPs!$HL$10,12*$A21,(4*(PlotControl!$C$6-1)),12,1))) -> 7.838425e-05 | BN21: =(AVERAGE(OFFSET(FPs!$HM$10,12*$A21,(4*(PlotControl!$C$6-1)),12,1))) -> 0.0001085483333 | BO21: =(AVERAGE(OFFSET(Toes!$C$10,12*$A21,(4*(PlotControl!$C$6-1)),12,1))) + (AVERAGE(OFFSET(Toes!$DG$10,12*$A21,(4*(PlotControl!$C$6-1)),12,1))) -> 0 | BP21: =(AVERAGE(OFFSET(Toes!$D$10,12*$A21,(4*(PlotControl!$C$6-1)),12,1))) + (AVERAGE(OFFSET(Toes!$DH$10,12*$A21,(4*(PlotControl!$C$6-1)),12,1))) -> 0 | BQ21: =(AVERAGE(OFFSET(Toes!$E$10,12*$A21,(4*(PlotControl!$C$6-1)),12,1))) + (AVERAGE(OFFSET(Toes!$DI$10,12*$A21,(4*(PlotControl!$C$6-1)),12,1))) -> 0 | BR21: =(AVERAGE(OFFSET(Toes!$HK$10,12*$A21,(4*(PlotControl!$C$6-1)),12,1))) -> 0 | BS21: =(AVERAGE(OFFSET(Toes!$HL$10,12*$A21,(4*(PlotControl!$C$6-1)),12,1))) -> 0 | BT21: =(AVERAGE(OFFSET(Toes!$HM$10,12*$A21,(4*(PlotControl!$C$6-1)),12,1))) -> 0 | BU21: =(AVERAGE(OFFSET(Toes!$LO$10,12*$A21,(4*(PlotControl!$C$6-1)),12,1))) -> 0 | BV21: =(AVERAGE(OFFSET(Toes!$LP$10,12*$A21,(4*(PlotControl!$C$6-1)),12,1))) -> 0 | BW21: =(AVERAGE(OFFSET(Toes!$LQ$10,12*$A21,(4*(PlotControl!$C$6-1)),12,1))) -> 0 | BY21: 16 | BZ21: =AVERAGE(OFFSET(GW!$HK$10,12*$A21,(4*(PlotControl!$C$6-1)),12,1)) -> 0 | CA21: =AVERAGE(OFFSET(GW!$HL$10,12*$A21,(4*(PlotControl!$C$6-1)),12,1)) -> 0 | CB21: =AVERAGE(OFFSET(GW!$HM$10,12*$A21,(4*(PlotControl!$C$6-1)),12,1)) -> 0 | CC21: =AVERAGE(OFFSET(SW!$HK$10,12*$A21,(4*(PlotControl!$C$6-1)),12,1)) -> 6.875109167e-05 | CD21: =AVERAGE(OFFSET(SW!$HL$10,12*$A21,(4*(PlotControl!$C$6-1)),12,1)) -> 0.0003376260083 | CE21: =AVERAGE(OFFSET(SW!$HM$10,12*$A21,(4*(PlotControl!$C$6-1)),12,1)) -> 0.00125130925 | CL21: =(AVERAGE(OFFSET(WWTP_To_SW!$DG$10,12*$A21,(4*(PlotControl!$C$6-1)),12,1))) -> 0.0003348483333 | CM21: =(AVERAGE(OFFSET(WWTP_To_SW!$DH$10,12*$A21,(4*(PlotControl!$C$6-1)),12,1))) -> 0.0003456475 | CN21: =(AVERAGE(OFFSET(WWTP_To_SW!$DI$10,12*$A21,(4*(PlotControl!$C$6-1)),12,1))) -> 0.0003675766667 | CO21: =(AVERAGE(OFFSET(CL_To_SW!$DG$10,12*$A21,(4*(PlotControl!$C$6-1)),12,1))) -> 0 | CP21: =(AVERAGE(OFFSET(CL_To_SW!$DH$10,12*$A21,(4*(PlotControl!$C$6-1)),12,1))) -> 0 | CQ21: =(AVERAGE(OFFSET(CL_To_SW!$DI$10,12*$A21,(4*(PlotControl!$C$6-1)),12,1))) -> 0 | DG21: =(AVERAGE(OFFSET(Toes!$LO$10,12*$A21,(4*(PlotControl!$C$6-1)),12,1))) -> 0 | DH21: =(AVERAGE(OFFSET(Toes!$LP$10,12*$A21,(4*(PlotControl!$C$6-1)),12,1))) -> 0 | DI21: =(AVERAGE(OFFSET(Toes!$LQ$10,12*$A21,(4*(PlotControl!$C$6-1)),12,1))) -> 0 | DK21: 16 | DL21: =AVERAGE(OFFSET(GW!$LO$10,12*$A21,(4*(PlotControl!$C$6-1)),12,1)) -> 0 | DM21: =AVERAGE(OFFSET(GW!$LP$10,12*$A21,(4*(PlotControl!$C$6-1)),12,1)) -> 0 | DN21: =AVERAGE(OFFSET(GW!$LQ$10,12*$A21,(4*(PlotControl!$C$6-1)),12,1)) -> 0 | DO21: =AVERAGE(OFFSET(SW!$LO$10,12*$A21,(4*(PlotControl!$C$6-1)),12,1)) -> 8.599935e-05 | DP21: =AVERAGE(OFFSET(SW!$LP$10,12*$A21,(4*(PlotControl!$C$6-1)),12,1)) -> 0.000422321175 | DQ21: =AVERAGE(OFFSET(SW!$LQ$10,12*$A21,(4*(PlotControl!$C$6-1)),12,1)) -> 0.001565237833 | DX21: =(AVERAGE(OFFSET(WWTP_To_SW!$HK$10,12*$A21,(4*(PlotControl!$C$6-1)),12,1))) -> 0.001173908333 | DY21: =(AVERAGE(OFFSET(WWTP_To_SW!$HL$10,12*$A21,(4*(PlotControl!$C$6-1)),12,1))) -> 0.001211783333 | DZ21: =(AVERAGE(OFFSET(WWTP_To_SW!$HM$10,12*$A21,(4*(PlotControl!$C$6-1)),12,1))) -> 0.001288675 | EA21: =(AVERAGE(OFFSET(CL_To_SW!$HK$10,12*$A21,(4*(PlotControl!$C$6-1)),12,1))) -> 0 | EB21: =(AVERAGE(OFFSET(CL_To_SW!$HL$10,12*$A21,(4*(PlotControl!$C$6-1)),12,1))) -> 0 | EC21: =(AVERAGE(OFFSET(CL_To_SW!$HM$10,12*$A21,(4*(PlotControl!$C$6-1)),12,1))) -> 0 | EG21: =(AVERAGE(OFFSET(FPs!$DG$10,12*$A21,(4*(PlotControl!$C$6-1)),12,1))) -> 2.548116667e-05 | EH21: =(AVERAGE(OFFSET(FPs!$DH$10,12*$A21,(4*(PlotControl!$C$6-1)),12,1))) -> 3.828808333e-05 | EI21: =(AVERAGE(OFFSET(FPs!$DI$10,12*$A21,(4*(PlotControl!$C$6-1)),12,1))) -> 5.750166667e-05 | EM21: =(AVERAGE(OFFSET(Toes!$DG$10,12*$A21,(4*(PlotControl!$C$6-1)),12,1))) -> 0 | EN21: =(AVERAGE(OFFSET(Toes!$DH$10,12*$A21,(4*(PlotControl!$C$6-1)),12,1))) -> 0 | EO21: =(AVERAGE(OFFSET(Toes!$DI$10,12*$A21,(4*(PlotControl!$C$6-1)),12,1))) -> 0 | EP21: =(AVERAGE(OFFSET(Toes!$HK$10,12*$A21,(4*(PlotControl!$C$6-1)),12,1))) -> 0 | EQ21: =(AVERAGE(OFFSET(Toes!$HL$10,12*$A21,(4*(PlotControl!$C$6-1)),12,1))) -> 0 | ER21: =(AVERAGE(OFFSET(Toes!$HM$10,12*$A21,(4*(PlotControl!$C$6-1)),12,1))) -> 0 | EW21: 16 | EX21: =AVERAGE(OFFSET(GW!$PS$10,12*$A21,(4*(PlotControl!$C$6-1)),12,1)) -> 1.801841667e-05 | EY21: =AVERAGE(OFFSET(GW!$PT$10,12*$A21,(4*(PlotControl!$C$6-1)),12,1)) -> 2.187358333e-05 | EZ21: =AVERAGE(OFFSET(GW!$PU$10,12*$A21,(4*(PlotControl!$C$6-1)),12,1)) -> 2.522208333e-05 | FA21: =AVERAGE(OFFSET(SW!$PS$10,12*$A21,(4*(PlotControl!$C$6-1)),12,1)) -> 0.0001056426167 | FB21: =AVERAGE(OFFSET(SW!$PT$10,12*$A21,(4*(PlotControl!$C$6-1)),12,1)) -> 0.0005187796667 | FC21: =AVERAGE(OFFSET(SW!$PU$10,12*$A21,(4*(PlotControl!$C$6-1)),12,1)) -> 0.0019227585 | FJ21: =(AVERAGE(OFFSET(WWTP_To_SW!$LO$10,12*$A21,(4*(PlotControl!$C$6-1)),12,1))) -> 0 | FK21: =(AVERAGE(OFFSET(WWTP_To_SW!$LP$10,12*$A21,(4*(PlotControl!$C$6-1)),12,1))) -> 0 | FL21: =(AVERAGE(OFFSET(WWTP_To_SW!$LQ$10,12*$A21,(4*(PlotControl!$C$6-1)),12,1))) -> 0 | FM21: =(AVERAGE(OFFSET(CL_To_SW!$LO$10,12*$A21,(4*(PlotControl!$C$6-1)),12,1))) -> 0 | FN21: =(AVERAGE(OFFSET(CL_To_SW!$LP$10,12*$A21,(4*(PlotControl!$C$6-1)),12,1))) -> 0 | FO21: =(AVERAGE(OFFSET(CL_To_SW!$LQ$10,12*$A21,(4*(PlotControl!$C$6-1)),12,1))) -> 0 | FP21: =(AVERAGE(OFFSET(FPs!$C$10,12*$A21,(4*(PlotControl!$C$6-1)),12,1))) -> 2.251366667e-05 | FQ21: =(AVERAGE(OFFSET(FPs!$D$10,12*$A21,(4*(PlotControl!$C$6-1)),12,1))) -> 3.3569e-05 | FR21: =(AVERAGE(OFFSET(FPs!$E$10,12*$A21,(4*(PlotControl!$C$6-1)),12,1))) -> 4.861958333e-05 | FY21: =(AVERAGE(OFFSET(Toes!$C$10,12*$A21,(4*(PlotControl!$C$6-1)),12,1))) -> 0 | FZ21: =(AVERAGE(OFFSET(Toes!$D$10,12*$A21,(4*(PlotControl!$C$6-1)),12,1))) -> 0 | GA21: =(AVERAGE(OFFSET(Toes!$E$10,12*$A21,(4*(PlotControl!$C$6-1)),12,1))) -> 0
A22: 17 | B22: =AVERAGE(OFFSET(GW!$C$10,12*$A22,(4*(PlotControl!$C$6-1)),12,1)) -> 0.000128367 | C22: =AVERAGE(OFFSET(GW!$D$10,12*$A22,(4*(PlotControl!$C$6-1)),12,1)) -> 0.0001545125 | D22: =AVERAGE(OFFSET(GW!$E$10,12*$A22,(4*(PlotControl!$C$6-1)),12,1)) -> 0.00017815 | E22: =AVERAGE(OFFSET(SW!$C$10,12*$A22,(4*(PlotControl!$C$6-1)),12,1)) -> 0.00042918875 | F22: =AVERAGE(OFFSET(SW!$D$10,12*$A22,(4*(PlotControl!$C$6-1)),12,1)) -> 0.00221844325 | G22: =AVERAGE(OFFSET(SW!$E$10,12*$A22,(4*(PlotControl!$C$6-1)),12,1)) -> 0.008453026667 | H22: =AVERAGE(OFFSET(PointSources!$C$10,12*$A22,(4*(PlotControl!$C$6-1)),12,1)) -> 8.652575e-05 | I22: =AVERAGE(OFFSET(PointSources!$D$10,12*$A22,(4*(PlotControl!$C$6-1)),12,1)) -> 9.428916667e-05 | J22: =AVERAGE(OFFSET(PointSources!$E$10,12*$A22,(4*(PlotControl!$C$6-1)),12,1)) -> 0.0001026966667 | AM22: 17 | AN22: =AVERAGE(OFFSET(GW!$DG$10,12*$A22,(4*(PlotControl!$C$6-1)),12,1)) -> 0.0006375808333 | AO22: =AVERAGE(OFFSET(GW!$DH$10,12*$A22,(4*(PlotControl!$C$6-1)),12,1)) -> 0.0007674283333 | AP22: =AVERAGE(OFFSET(GW!$DI$10,12*$A22,(4*(PlotControl!$C$6-1)),12,1)) -> 0.0008848266667 | AQ22: =AVERAGE(OFFSET(SW!$DG$10,12*$A22,(4*(PlotControl!$C$6-1)),12,1)) -> 0.002387585 | AR22: =AVERAGE(OFFSET(SW!$DH$10,12*$A22,(4*(PlotControl!$C$6-1)),12,1)) -> 0.01234118333 | AS22: =AVERAGE(OFFSET(SW!$DI$10,12*$A22,(4*(PlotControl!$C$6-1)),12,1)) -> 0.04702534167 | AT22: =AVERAGE(OFFSET(PointSources!$C$10,12*$A22,(4*(PlotControl!$C$6-1)),12,1)) -> 8.652575e-05 | AU22: =AVERAGE(OFFSET(PointSources!$D$10,12*$A22,(4*(PlotControl!$C$6-1)),12,1)) -> 9.428916667e-05 | AV22: =AVERAGE(OFFSET(PointSources!$E$10,12*$A22,(4*(PlotControl!$C$6-1)),12,1)) -> 0.0001026966667 | AW22: =AVERAGE(OFFSET(PointSources!$DG$10,12*$A22,(4*(PlotControl!$C$6-1)),12,1)) -> 0.0002187283333 | AX22: =AVERAGE(OFFSET(PointSources!$DH$10,12*$A22,(4*(PlotControl!$C$6-1)),12,1)) -> 0.0005309825 | AY22: =AVERAGE(OFFSET(PointSources!$DI$10,12*$A22,(4*(PlotControl!$C$6-1)),12,1)) -> 0.001275899167 | AZ22: =(AVERAGE(OFFSET(WWTP_To_SW!$C$10,12*$A22,(4*(PlotControl!$C$6-1)),12,1))) -> 0.001478941667 | BA22: =(AVERAGE(OFFSET(WWTP_To_SW!$D$10,12*$A22,(4*(PlotControl!$C$6-1)),12,1))) -> 0.00152585 | BB22: =(AVERAGE(OFFSET(WWTP_To_SW!$E$10,12*$A22,(4*(PlotControl!$C$6-1)),12,1))) -> 0.001640908333 | BC22: =(AVERAGE(OFFSET(CL_To_SW!$C$10,12*$A22,(4*(PlotControl!$C$6-1)),12,1))) -> 0 | BD22: =(AVERAGE(OFFSET(CL_To_SW!$D$10,12*$A22,(4*(PlotControl!$C$6-1)),12,1))) -> 0 | BE22: =(AVERAGE(OFFSET(CL_To_SW!$E$10,12*$A22,(4*(PlotControl!$C$6-1)),12,1))) -> 0 | BF22: =(AVERAGE(OFFSET(FPs!$C$10,12*$A22,(4*(PlotControl!$C$6-1)),12,1))) -> 2.273875e-05 | BG22: =(AVERAGE(OFFSET(FPs!$D$10,12*$A22,(4*(PlotControl!$C$6-1)),12,1))) -> 3.36175e-05 | BH22: =(AVERAGE(OFFSET(FPs!$E$10,12*$A22,(4*(PlotControl!$C$6-1)),12,1))) -> 4.851083333e-05 | BI22: =(AVERAGE(OFFSET(FPs!$DG$10,12*$A22,(4*(PlotControl!$C$6-1)),12,1))) -> 2.555625e-05 | BJ22: =(AVERAGE(OFFSET(FPs!$DH$10,12*$A22,(4*(PlotControl!$C$6-1)),12,1))) -> 3.809275e-05 | BK22: =(AVERAGE(OFFSET(FPs!$DI$10,12*$A22,(4*(PlotControl!$C$6-1)),12,1))) -> 5.752091667e-05 | BL22: =(AVERAGE(OFFSET(FPs!$HK$10,12*$A22,(4*(PlotControl!$C$6-1)),12,1))) -> 5.404375e-05 | BM22: =(AVERAGE(OFFSET(FPs!$HL$10,12*$A22,(4*(PlotControl!$C$6-1)),12,1))) -> 7.816308333e-05 | BN22: =(AVERAGE(OFFSET(FPs!$HM$10,12*$A22,(4*(PlotControl!$C$6-1)),12,1))) -> 0.0001075975 | BO22: =(AVERAGE(OFFSET(Toes!$C$10,12*$A22,(4*(PlotControl!$C$6-1)),12,1))) + (AVERAGE(OFFSET(Toes!$DG$10,12*$A22,(4*(PlotControl!$C$6-1)),12,1))) -> 0 | BP22: =(AVERAGE(OFFSET(Toes!$D$10,12*$A22,(4*(PlotControl!$C$6-1)),12,1))) + (AVERAGE(OFFSET(Toes!$DH$10,12*$A22,(4*(PlotControl!$C$6-1)),12,1))) -> 0 | BQ22: =(AVERAGE(OFFSET(Toes!$E$10,12*$A22,(4*(PlotControl!$C$6-1)),12,1))) + (AVERAGE(OFFSET(Toes!$DI$10,12*$A22,(4*(PlotControl!$C$6-1)),12,1))) -> 0 | BR22: =(AVERAGE(OFFSET(Toes!$HK$10,12*$A22,(4*(PlotControl!$C$6-1)),12,1))) -> 0 | BS22: =(AVERAGE(OFFSET(Toes!$HL$10,12*$A22,(4*(PlotControl!$C$6-1)),12,1))) -> 0 | BT22: =(AVERAGE(OFFSET(Toes!$HM$10,12*$A22,(4*(PlotControl!$C$6-1)),12,1))) -> 0 | BU22: =(AVERAGE(OFFSET(Toes!$LO$10,12*$A22,(4*(PlotControl!$C$6-1)),12,1))) -> 0 | BV22: =(AVERAGE(OFFSET(Toes!$LP$10,12*$A22,(4*(PlotControl!$C$6-1)),12,1))) -> 0 | BW22: =(AVERAGE(OFFSET(Toes!$LQ$10,12*$A22,(4*(PlotControl!$C$6-1)),12,1))) -> 0 | BY22: 17 | BZ22: =AVERAGE(OFFSET(GW!$HK$10,12*$A22,(4*(PlotControl!$C$6-1)),12,1)) -> 0 | CA22: =AVERAGE(OFFSET(GW!$HL$10,12*$A22,(4*(PlotControl!$C$6-1)),12,1)) -> 0 | CB22: =AVERAGE(OFFSET(GW!$HM$10,12*$A22,(4*(PlotControl!$C$6-1)),12,1)) -> 0 | CC22: =AVERAGE(OFFSET(SW!$HK$10,12*$A22,(4*(PlotControl!$C$6-1)),12,1)) -> 6.4932075e-05 | CD22: =AVERAGE(OFFSET(SW!$HL$10,12*$A22,(4*(PlotControl!$C$6-1)),12,1)) -> 0.0003356301 | CE22: =AVERAGE(OFFSET(SW!$HM$10,12*$A22,(4*(PlotControl!$C$6-1)),12,1)) -> 0.001278875583 | CL22: =(AVERAGE(OFFSET(WWTP_To_SW!$DG$10,12*$A22,(4*(PlotControl!$C$6-1)),12,1))) -> 0.0003282275 | CM22: =(AVERAGE(OFFSET(WWTP_To_SW!$DH$10,12*$A22,(4*(PlotControl!$C$6-1)),12,1))) -> 0.0003386408333 | CN22: =(AVERAGE(OFFSET(WWTP_To_SW!$DI$10,12*$A22,(4*(PlotControl!$C$6-1)),12,1))) -> 0.0003641775 | CO22: =(AVERAGE(OFFSET(CL_To_SW!$DG$10,12*$A22,(4*(PlotControl!$C$6-1)),12,1))) -> 0 | CP22: =(AVERAGE(OFFSET(CL_To_SW!$DH$10,12*$A22,(4*(PlotControl!$C$6-1)),12,1))) -> 0 | CQ22: =(AVERAGE(OFFSET(CL_To_SW!$DI$10,12*$A22,(4*(PlotControl!$C$6-1)),12,1))) -> 0 | DG22: =(AVERAGE(OFFSET(Toes!$LO$10,12*$A22,(4*(PlotControl!$C$6-1)),12,1))) -> 0 | DH22: =(AVERAGE(OFFSET(Toes!$LP$10,12*$A22,(4*(PlotControl!$C$6-1)),12,1))) -> 0 | DI22: =(AVERAGE(OFFSET(Toes!$LQ$10,12*$A22,(4*(PlotControl!$C$6-1)),12,1))) -> 0 | DK22: 17 | DL22: =AVERAGE(OFFSET(GW!$LO$10,12*$A22,(4*(PlotControl!$C$6-1)),12,1)) -> 0 | DM22: =AVERAGE(OFFSET(GW!$LP$10,12*$A22,(4*(PlotControl!$C$6-1)),12,1)) -> 0 | DN22: =AVERAGE(OFFSET(GW!$LQ$10,12*$A22,(4*(PlotControl!$C$6-1)),12,1)) -> 0 | DO22: =AVERAGE(OFFSET(SW!$LO$10,12*$A22,(4*(PlotControl!$C$6-1)),12,1)) -> 8.122243333e-05 | DP22: =AVERAGE(OFFSET(SW!$LP$10,12*$A22,(4*(PlotControl!$C$6-1)),12,1)) -> 0.000419829 | DQ22: =AVERAGE(OFFSET(SW!$LQ$10,12*$A22,(4*(PlotControl!$C$6-1)),12,1)) -> 0.001599732167 | DX22: =(AVERAGE(OFFSET(WWTP_To_SW!$HK$10,12*$A22,(4*(PlotControl!$C$6-1)),12,1))) -> 0.001150691667 | DY22: =(AVERAGE(OFFSET(WWTP_To_SW!$HL$10,12*$A22,(4*(PlotControl!$C$6-1)),12,1))) -> 0.001187216667 | DZ22: =(AVERAGE(OFFSET(WWTP_To_SW!$HM$10,12*$A22,(4*(PlotControl!$C$6-1)),12,1))) -> 0.001276733333 | EA22: =(AVERAGE(OFFSET(CL_To_SW!$HK$10,12*$A22,(4*(PlotControl!$C$6-1)),12,1))) -> 0 | EB22: =(AVERAGE(OFFSET(CL_To_SW!$HL$10,12*$A22,(4*(PlotControl!$C$6-1)),12,1))) -> 0 | EC22: =(AVERAGE(OFFSET(CL_To_SW!$HM$10,12*$A22,(4*(PlotControl!$C$6-1)),12,1))) -> 0 | EG22: =(AVERAGE(OFFSET(FPs!$DG$10,12*$A22,(4*(PlotControl!$C$6-1)),12,1))) -> 2.555625e-05 | EH22: =(AVERAGE(OFFSET(FPs!$DH$10,12*$A22,(4*(PlotControl!$C$6-1)),12,1))) -> 3.809275e-05 | EI22: =(AVERAGE(OFFSET(FPs!$DI$10,12*$A22,(4*(PlotControl!$C$6-1)),12,1))) -> 5.752091667e-05 | EM22: =(AVERAGE(OFFSET(Toes!$DG$10,12*$A22,(4*(PlotControl!$C$6-1)),12,1))) -> 0 | EN22: =(AVERAGE(OFFSET(Toes!$DH$10,12*$A22,(4*(PlotControl!$C$6-1)),12,1))) -> 0 | EO22: =(AVERAGE(OFFSET(Toes!$DI$10,12*$A22,(4*(PlotControl!$C$6-1)),12,1))) -> 0 | EP22: =(AVERAGE(OFFSET(Toes!$HK$10,12*$A22,(4*(PlotControl!$C$6-1)),12,1))) -> 0 | EQ22: =(AVERAGE(OFFSET(Toes!$HL$10,12*$A22,(4*(PlotControl!$C$6-1)),12,1))) -> 0 | ER22: =(AVERAGE(OFFSET(Toes!$HM$10,12*$A22,(4*(PlotControl!$C$6-1)),12,1))) -> 0 | EW22: 17 | EX22: =AVERAGE(OFFSET(GW!$PS$10,12*$A22,(4*(PlotControl!$C$6-1)),12,1)) -> 1.820316667e-05 | EY22: =AVERAGE(OFFSET(GW!$PT$10,12*$A22,(4*(PlotControl!$C$6-1)),12,1)) -> 2.191016667e-05 | EZ22: =AVERAGE(OFFSET(GW!$PU$10,12*$A22,(4*(PlotControl!$C$6-1)),12,1)) -> 2.526175e-05 | FA22: =AVERAGE(OFFSET(SW!$PS$10,12*$A22,(4*(PlotControl!$C$6-1)),12,1)) -> 9.977501667e-05 | FB22: =AVERAGE(OFFSET(SW!$PT$10,12*$A22,(4*(PlotControl!$C$6-1)),12,1)) -> 0.0005157343333 | FC22: =AVERAGE(OFFSET(SW!$PU$10,12*$A22,(4*(PlotControl!$C$6-1)),12,1)) -> 0.00196513075 | FJ22: =(AVERAGE(OFFSET(WWTP_To_SW!$LO$10,12*$A22,(4*(PlotControl!$C$6-1)),12,1))) -> 0 | FK22: =(AVERAGE(OFFSET(WWTP_To_SW!$LP$10,12*$A22,(4*(PlotControl!$C$6-1)),12,1))) -> 0 | FL22: =(AVERAGE(OFFSET(WWTP_To_SW!$LQ$10,12*$A22,(4*(PlotControl!$C$6-1)),12,1))) -> 0 | FM22: =(AVERAGE(OFFSET(CL_To_SW!$LO$10,12*$A22,(4*(PlotControl!$C$6-1)),12,1))) -> 0 | FN22: =(AVERAGE(OFFSET(CL_To_SW!$LP$10,12*$A22,(4*(PlotControl!$C$6-1)),12,1))) -> 0 | FO22: =(AVERAGE(OFFSET(CL_To_SW!$LQ$10,12*$A22,(4*(PlotControl!$C$6-1)),12,1))) -> 0 | FP22: =(AVERAGE(OFFSET(FPs!$C$10,12*$A22,(4*(PlotControl!$C$6-1)),12,1))) -> 2.273875e-05 | FQ22: =(AVERAGE(OFFSET(FPs!$D$10,12*$A22,(4*(PlotControl!$C$6-1)),12,1))) -> 3.36175e-05 | FR22: =(AVERAGE(OFFSET(FPs!$E$10,12*$A22,(4*(PlotControl!$C$6-1)),12,1))) -> 4.851083333e-05 | FY22: =(AVERAGE(OFFSET(Toes!$C$10,12*$A22,(4*(PlotControl!$C$6-1)),12,1))) -> 0 | FZ22: =(AVERAGE(OFFSET(Toes!$D$10,12*$A22,(4*(PlotControl!$C$6-1)),12,1))) -> 0 | GA22: =(AVERAGE(OFFSET(Toes!$E$10,12*$A22,(4*(PlotControl!$C$6-1)),12,1))) -> 0
A23: 18 | B23: =AVERAGE(OFFSET(GW!$C$10,12*$A23,(4*(PlotControl!$C$6-1)),12,1)) -> 0.0001280935 | C23: =AVERAGE(OFFSET(GW!$D$10,12*$A23,(4*(PlotControl!$C$6-1)),12,1)) -> 0.0001543916667 | D23: =AVERAGE(OFFSET(GW!$E$10,12*$A23,(4*(PlotControl!$C$6-1)),12,1)) -> 0.0001780166667 | E23: =AVERAGE(OFFSET(SW!$C$10,12*$A23,(4*(PlotControl!$C$6-1)),12,1)) -> 0.0004167663333 | F23: =AVERAGE(OFFSET(SW!$D$10,12*$A23,(4*(PlotControl!$C$6-1)),12,1)) -> 0.00227086825 | G23: =AVERAGE(OFFSET(SW!$E$10,12*$A23,(4*(PlotControl!$C$6-1)),12,1)) -> 0.008172906667 | H23: =AVERAGE(OFFSET(PointSources!$C$10,12*$A23,(4*(PlotControl!$C$6-1)),12,1)) -> 8.6367e-05 | I23: =AVERAGE(OFFSET(PointSources!$D$10,12*$A23,(4*(PlotControl!$C$6-1)),12,1)) -> 9.439608333e-05 | J23: =AVERAGE(OFFSET(PointSources!$E$10,12*$A23,(4*(PlotControl!$C$6-1)),12,1)) -> 0.0001026458333 | AM23: 18 | AN23: =AVERAGE(OFFSET(GW!$DG$10,12*$A23,(4*(PlotControl!$C$6-1)),12,1)) -> 0.00063622 | AO23: =AVERAGE(OFFSET(GW!$DH$10,12*$A23,(4*(PlotControl!$C$6-1)),12,1)) -> 0.0007668341667 | AP23: =AVERAGE(OFFSET(GW!$DI$10,12*$A23,(4*(PlotControl!$C$6-1)),12,1)) -> 0.0008841633333 | AQ23: =AVERAGE(OFFSET(SW!$DG$10,12*$A23,(4*(PlotControl!$C$6-1)),12,1)) -> 0.002318441083 | AR23: =AVERAGE(OFFSET(SW!$DH$10,12*$A23,(4*(PlotControl!$C$6-1)),12,1)) -> 0.01263287667 | AS23: =AVERAGE(OFFSET(SW!$DI$10,12*$A23,(4*(PlotControl!$C$6-1)),12,1)) -> 0.04546633333 | AT23: =AVERAGE(OFFSET(PointSources!$C$10,12*$A23,(4*(PlotControl!$C$6-1)),12,1)) -> 8.6367e-05 | AU23: =AVERAGE(OFFSET(PointSources!$D$10,12*$A23,(4*(PlotControl!$C$6-1)),12,1)) -> 9.439608333e-05 | AV23: =AVERAGE(OFFSET(PointSources!$E$10,12*$A23,(4*(PlotControl!$C$6-1)),12,1)) -> 0.0001026458333 | AW23: =AVERAGE(OFFSET(PointSources!$DG$10,12*$A23,(4*(PlotControl!$C$6-1)),12,1)) -> 0.0002137675 | AX23: =AVERAGE(OFFSET(PointSources!$DH$10,12*$A23,(4*(PlotControl!$C$6-1)),12,1)) -> 0.0005289466667 | AY23: =AVERAGE(OFFSET(PointSources!$DI$10,12*$A23,(4*(PlotControl!$C$6-1)),12,1)) -> 0.001261004167 | AZ23: =(AVERAGE(OFFSET(WWTP_To_SW!$C$10,12*$A23,(4*(PlotControl!$C$6-1)),12,1))) -> 0.001726833333 | BA23: =(AVERAGE(OFFSET(WWTP_To_SW!$D$10,12*$A23,(4*(PlotControl!$C$6-1)),12,1))) -> 0.002052525 | BB23: =(AVERAGE(OFFSET(WWTP_To_SW!$E$10,12*$A23,(4*(PlotControl!$C$6-1)),12,1))) -> 0.002485 | BC23: =(AVERAGE(OFFSET(CL_To_SW!$C$10,12*$A23,(4*(PlotControl!$C$6-1)),12,1))) -> 0 | BD23: =(AVERAGE(OFFSET(CL_To_SW!$D$10,12*$A23,(4*(PlotControl!$C$6-1)),12,1))) -> 0 | BE23: =(AVERAGE(OFFSET(CL_To_SW!$E$10,12*$A23,(4*(PlotControl!$C$6-1)),12,1))) -> 0 | BF23: =(AVERAGE(OFFSET(FPs!$C$10,12*$A23,(4*(PlotControl!$C$6-1)),12,1))) -> 2.244633333e-05 | BG23: =(AVERAGE(OFFSET(FPs!$D$10,12*$A23,(4*(PlotControl!$C$6-1)),12,1))) -> 3.360366667e-05 | BH23: =(AVERAGE(OFFSET(FPs!$E$10,12*$A23,(4*(PlotControl!$C$6-1)),12,1))) -> 4.8576e-05 | BI23: =(AVERAGE(OFFSET(FPs!$DG$10,12*$A23,(4*(PlotControl!$C$6-1)),12,1))) -> 2.544258333e-05 | BJ23: =(AVERAGE(OFFSET(FPs!$DH$10,12*$A23,(4*(PlotControl!$C$6-1)),12,1))) -> 3.823916667e-05 | BK23: =(AVERAGE(OFFSET(FPs!$DI$10,12*$A23,(4*(PlotControl!$C$6-1)),12,1))) -> 5.732875e-05 | BL23: =(AVERAGE(OFFSET(FPs!$HK$10,12*$A23,(4*(PlotControl!$C$6-1)),12,1))) -> 5.380433333e-05 | BM23: =(AVERAGE(OFFSET(FPs!$HL$10,12*$A23,(4*(PlotControl!$C$6-1)),12,1))) -> 7.779066667e-05 | BN23: =(AVERAGE(OFFSET(FPs!$HM$10,12*$A23,(4*(PlotControl!$C$6-1)),12,1))) -> 0.0001068975 | BO23: =(AVERAGE(OFFSET(Toes!$C$10,12*$A23,(4*(PlotControl!$C$6-1)),12,1))) + (AVERAGE(OFFSET(Toes!$DG$10,12*$A23,(4*(PlotControl!$C$6-1)),12,1))) -> 0 | BP23: =(AVERAGE(OFFSET(Toes!$D$10,12*$A23,(4*(PlotControl!$C$6-1)),12,1))) + (AVERAGE(OFFSET(Toes!$DH$10,12*$A23,(4*(PlotControl!$C$6-1)),12,1))) -> 0 | BQ23: =(AVERAGE(OFFSET(Toes!$E$10,12*$A23,(4*(PlotControl!$C$6-1)),12,1))) + (AVERAGE(OFFSET(Toes!$DI$10,12*$A23,(4*(PlotControl!$C$6-1)),12,1))) -> 0 | BR23: =(AVERAGE(OFFSET(Toes!$HK$10,12*$A23,(4*(PlotControl!$C$6-1)),12,1))) -> 0 | BS23: =(AVERAGE(OFFSET(Toes!$HL$10,12*$A23,(4*(PlotControl!$C$6-1)),12,1))) -> 0 | BT23: =(AVERAGE(OFFSET(Toes!$HM$10,12*$A23,(4*(PlotControl!$C$6-1)),12,1))) -> 0 | BU23: =(AVERAGE(OFFSET(Toes!$LO$10,12*$A23,(4*(PlotControl!$C$6-1)),12,1))) -> 0 | BV23: =(AVERAGE(OFFSET(Toes!$LP$10,12*$A23,(4*(PlotControl!$C$6-1)),12,1))) -> 0 | BW23: =(AVERAGE(OFFSET(Toes!$LQ$10,12*$A23,(4*(PlotControl!$C$6-1)),12,1))) -> 0 | BY23: 18 | BZ23: =AVERAGE(OFFSET(GW!$HK$10,12*$A23,(4*(PlotControl!$C$6-1)),12,1)) -> 0 | CA23: =AVERAGE(OFFSET(GW!$HL$10,12*$A23,(4*(PlotControl!$C$6-1)),12,1)) -> 0 | CB23: =AVERAGE(OFFSET(GW!$HM$10,12*$A23,(4*(PlotControl!$C$6-1)),12,1)) -> 0 | CC23: =AVERAGE(OFFSET(SW!$HK$10,12*$A23,(4*(PlotControl!$C$6-1)),12,1)) -> 6.305341667e-05 | CD23: =AVERAGE(OFFSET(SW!$HL$10,12*$A23,(4*(PlotControl!$C$6-1)),12,1)) -> 0.0003435677417 | CE23: =AVERAGE(OFFSET(SW!$HM$10,12*$A23,(4*(PlotControl!$C$6-1)),12,1)) -> 0.0012364905 | CL23: =(AVERAGE(OFFSET(WWTP_To_SW!$DG$10,12*$A23,(4*(PlotControl!$C$6-1)),12,1))) -> 0.0003832433333 | CM23: =(AVERAGE(OFFSET(WWTP_To_SW!$DH$10,12*$A23,(4*(PlotControl!$C$6-1)),12,1))) -> 0.0004555325 | CN23: =(AVERAGE(OFFSET(WWTP_To_SW!$DI$10,12*$A23,(4*(PlotControl!$C$6-1)),12,1))) -> 0.0005515091667 | CO23: =(AVERAGE(OFFSET(CL_To_SW!$DG$10,12*$A23,(4*(PlotControl!$C$6-1)),12,1))) -> 0 | CP23: =(AVERAGE(OFFSET(CL_To_SW!$DH$10,12*$A23,(4*(PlotControl!$C$6-1)),12,1))) -> 0 | CQ23: =(AVERAGE(OFFSET(CL_To_SW!$DI$10,12*$A23,(4*(PlotControl!$C$6-1)),12,1))) -> 0 | DG23: =(AVERAGE(OFFSET(Toes!$LO$10,12*$A23,(4*(PlotControl!$C$6-1)),12,1))) -> 0 | DH23: =(AVERAGE(OFFSET(Toes!$LP$10,12*$A23,(4*(PlotControl!$C$6-1)),12,1))) -> 0 | DI23: =(AVERAGE(OFFSET(Toes!$LQ$10,12*$A23,(4*(PlotControl!$C$6-1)),12,1))) -> 0 | DK23: 18 | DL23: =AVERAGE(OFFSET(GW!$LO$10,12*$A23,(4*(PlotControl!$C$6-1)),12,1)) -> 0 | DM23: =AVERAGE(OFFSET(GW!$LP$10,12*$A23,(4*(PlotControl!$C$6-1)),12,1)) -> 0 | DN23: =AVERAGE(OFFSET(GW!$LQ$10,12*$A23,(4*(PlotControl!$C$6-1)),12,1)) -> 0 | DO23: =AVERAGE(OFFSET(SW!$LO$10,12*$A23,(4*(PlotControl!$C$6-1)),12,1)) -> 7.8871925e-05 | DP23: =AVERAGE(OFFSET(SW!$LP$10,12*$A23,(4*(PlotControl!$C$6-1)),12,1)) -> 0.000429750575 | DQ23: =AVERAGE(OFFSET(SW!$LQ$10,12*$A23,(4*(PlotControl!$C$6-1)),12,1)) -> 0.001546699333 | DX23: =(AVERAGE(OFFSET(WWTP_To_SW!$HK$10,12*$A23,(4*(PlotControl!$C$6-1)),12,1))) -> 0.001343571667 | DY23: =(AVERAGE(OFFSET(WWTP_To_SW!$HL$10,12*$A23,(4*(PlotControl!$C$6-1)),12,1))) -> 0.001597 | DZ23: =(AVERAGE(OFFSET(WWTP_To_SW!$HM$10,12*$A23,(4*(PlotControl!$C$6-1)),12,1))) -> 0.0019335 | EA23: =(AVERAGE(OFFSET(CL_To_SW!$HK$10,12*$A23,(4*(PlotControl!$C$6-1)),12,1))) -> 0 | EB23: =(AVERAGE(OFFSET(CL_To_SW!$HL$10,12*$A23,(4*(PlotControl!$C$6-1)),12,1))) -> 0 | EC23: =(AVERAGE(OFFSET(CL_To_SW!$HM$10,12*$A23,(4*(PlotControl!$C$6-1)),12,1))) -> 0 | EG23: =(AVERAGE(OFFSET(FPs!$DG$10,12*$A23,(4*(PlotControl!$C$6-1)),12,1))) -> 2.544258333e-05 | EH23: =(AVERAGE(OFFSET(FPs!$DH$10,12*$A23,(4*(PlotControl!$C$6-1)),12,1))) -> 3.823916667e-05 | EI23: =(AVERAGE(OFFSET(FPs!$DI$10,12*$A23,(4*(PlotControl!$C$6-1)),12,1))) -> 5.732875e-05 | EM23: =(AVERAGE(OFFSET(Toes!$DG$10,12*$A23,(4*(PlotControl!$C$6-1)),12,1))) -> 0 | EN23: =(AVERAGE(OFFSET(Toes!$DH$10,12*$A23,(4*(PlotControl!$C$6-1)),12,1))) -> 0 | EO23: =(AVERAGE(OFFSET(Toes!$DI$10,12*$A23,(4*(PlotControl!$C$6-1)),12,1))) -> 0 | EP23: =(AVERAGE(OFFSET(Toes!$HK$10,12*$A23,(4*(PlotControl!$C$6-1)),12,1))) -> 0 | EQ23: =(AVERAGE(OFFSET(Toes!$HL$10,12*$A23,(4*(PlotControl!$C$6-1)),12,1))) -> 0 | ER23: =(AVERAGE(OFFSET(Toes!$HM$10,12*$A23,(4*(PlotControl!$C$6-1)),12,1))) -> 0 | EW23: 18 | EX23: =AVERAGE(OFFSET(GW!$PS$10,12*$A23,(4*(PlotControl!$C$6-1)),12,1)) -> 1.816441667e-05 | EY23: =AVERAGE(OFFSET(GW!$PT$10,12*$A23,(4*(PlotControl!$C$6-1)),12,1)) -> 2.189325e-05 | EZ23: =AVERAGE(OFFSET(GW!$PU$10,12*$A23,(4*(PlotControl!$C$6-1)),12,1)) -> 2.524283333e-05 | FA23: =AVERAGE(OFFSET(SW!$PS$10,12*$A23,(4*(PlotControl!$C$6-1)),12,1)) -> 9.688714167e-05 | FB23: =AVERAGE(OFFSET(SW!$PT$10,12*$A23,(4*(PlotControl!$C$6-1)),12,1)) -> 0.000527912 | FC23: =AVERAGE(OFFSET(SW!$PU$10,12*$A23,(4*(PlotControl!$C$6-1)),12,1)) -> 0.001899958833 | FJ23: =(AVERAGE(OFFSET(WWTP_To_SW!$LO$10,12*$A23,(4*(PlotControl!$C$6-1)),12,1))) -> 0 | FK23: =(AVERAGE(OFFSET(WWTP_To_SW!$LP$10,12*$A23,(4*(PlotControl!$C$6-1)),12,1))) -> 0 | FL23: =(AVERAGE(OFFSET(WWTP_To_SW!$LQ$10,12*$A23,(4*(PlotControl!$C$6-1)),12,1))) -> 0 | FM23: =(AVERAGE(OFFSET(CL_To_SW!$LO$10,12*$A23,(4*(PlotControl!$C$6-1)),12,1))) -> 0 | FN23: =(AVERAGE(OFFSET(CL_To_SW!$LP$10,12*$A23,(4*(PlotControl!$C$6-1)),12,1))) -> 0 | FO23: =(AVERAGE(OFFSET(CL_To_SW!$LQ$10,12*$A23,(4*(PlotControl!$C$6-1)),12,1))) -> 0 | FP23: =(AVERAGE(OFFSET(FPs!$C$10,12*$A23,(4*(PlotControl!$C$6-1)),12,1))) -> 2.244633333e-05 | FQ23: =(AVERAGE(OFFSET(FPs!$D$10,12*$A23,(4*(PlotControl!$C$6-1)),12,1))) -> 3.360366667e-05 | FR23: =(AVERAGE(OFFSET(FPs!$E$10,12*$A23,(4*(PlotControl!$C$6-1)),12,1))) -> 4.8576e-05 | FY23: =(AVERAGE(OFFSET(Toes!$C$10,12*$A23,(4*(PlotControl!$C$6-1)),12,1))) -> 0 | FZ23: =(AVERAGE(OFFSET(Toes!$D$10,12*$A23,(4*(PlotControl!$C$6-1)),12,1))) -> 0 | GA23: =(AVERAGE(OFFSET(Toes!$E$10,12*$A23,(4*(PlotControl!$C$6-1)),12,1))) -> 0
A24: 19 | B24: =AVERAGE(OFFSET(GW!$C$10,12*$A24,(4*(PlotControl!$C$6-1)),12,1)) -> 0.0001287093333 | C24: =AVERAGE(OFFSET(GW!$D$10,12*$A24,(4*(PlotControl!$C$6-1)),12,1)) -> 0.0001545541667 | D24: =AVERAGE(OFFSET(GW!$E$10,12*$A24,(4*(PlotControl!$C$6-1)),12,1)) -> 0.0001781891667 | E24: =AVERAGE(OFFSET(SW!$C$10,12*$A24,(4*(PlotControl!$C$6-1)),12,1)) -> 0.00042811275 | F24: =AVERAGE(OFFSET(SW!$D$10,12*$A24,(4*(PlotControl!$C$6-1)),12,1)) -> 0.00236019575 | G24: =AVERAGE(OFFSET(SW!$E$10,12*$A24,(4*(PlotControl!$C$6-1)),12,1)) -> 0.008744686667 | H24: =AVERAGE(OFFSET(PointSources!$C$10,12*$A24,(4*(PlotControl!$C$6-1)),12,1)) -> 8.645833333e-05 | I24: =AVERAGE(OFFSET(PointSources!$D$10,12*$A24,(4*(PlotControl!$C$6-1)),12,1)) -> 9.422191667e-05 | J24: =AVERAGE(OFFSET(PointSources!$E$10,12*$A24,(4*(PlotControl!$C$6-1)),12,1)) -> 0.0001026725 | AM24: 19 | AN24: =AVERAGE(OFFSET(GW!$DG$10,12*$A24,(4*(PlotControl!$C$6-1)),12,1)) -> 0.0006392791667 | AO24: =AVERAGE(OFFSET(GW!$DH$10,12*$A24,(4*(PlotControl!$C$6-1)),12,1)) -> 0.0007676366667 | AP24: =AVERAGE(OFFSET(GW!$DI$10,12*$A24,(4*(PlotControl!$C$6-1)),12,1)) -> 0.0008850208333 | AQ24: =AVERAGE(OFFSET(SW!$DG$10,12*$A24,(4*(PlotControl!$C$6-1)),12,1)) -> 0.00238163975 | AR24: =AVERAGE(OFFSET(SW!$DH$10,12*$A24,(4*(PlotControl!$C$6-1)),12,1)) -> 0.01312971083 | AS24: =AVERAGE(OFFSET(SW!$DI$10,12*$A24,(4*(PlotControl!$C$6-1)),12,1)) -> 0.04864661667 | AT24: =AVERAGE(OFFSET(PointSources!$C$10,12*$A24,(4*(PlotControl!$C$6-1)),12,1)) -> 8.645833333e-05 | AU24: =AVERAGE(OFFSET(PointSources!$D$10,12*$A24,(4*(PlotControl!$C$6-1)),12,1)) -> 9.422191667e-05 | AV24: =AVERAGE(OFFSET(PointSources!$E$10,12*$A24,(4*(PlotControl!$C$6-1)),12,1)) -> 0.0001026725 | AW24: =AVERAGE(OFFSET(PointSources!$DG$10,12*$A24,(4*(PlotControl!$C$6-1)),12,1)) -> 0.0002148875 | AX24: =AVERAGE(OFFSET(PointSources!$DH$10,12*$A24,(4*(PlotControl!$C$6-1)),12,1)) -> 0.0005345891667 | AY24: =AVERAGE(OFFSET(PointSources!$DI$10,12*$A24,(4*(PlotControl!$C$6-1)),12,1)) -> 0.001285896667 | AZ24: =(AVERAGE(OFFSET(WWTP_To_SW!$C$10,12*$A24,(4*(PlotControl!$C$6-1)),12,1))) -> 0.001452991667 | BA24: =(AVERAGE(OFFSET(WWTP_To_SW!$D$10,12*$A24,(4*(PlotControl!$C$6-1)),12,1))) -> 0.001518933333 | BB24: =(AVERAGE(OFFSET(WWTP_To_SW!$E$10,12*$A24,(4*(PlotControl!$C$6-1)),12,1))) -> 0.001794733333 | BC24: =(AVERAGE(OFFSET(CL_To_SW!$C$10,12*$A24,(4*(PlotControl!$C$6-1)),12,1))) -> 0 | BD24: =(AVERAGE(OFFSET(CL_To_SW!$D$10,12*$A24,(4*(PlotControl!$C$6-1)),12,1))) -> 0 | BE24: =(AVERAGE(OFFSET(CL_To_SW!$E$10,12*$A24,(4*(PlotControl!$C$6-1)),12,1))) -> 0 | BF24: =(AVERAGE(OFFSET(FPs!$C$10,12*$A24,(4*(PlotControl!$C$6-1)),12,1))) -> 2.26185e-05 | BG24: =(AVERAGE(OFFSET(FPs!$D$10,12*$A24,(4*(PlotControl!$C$6-1)),12,1))) -> 3.347791667e-05 | BH24: =(AVERAGE(OFFSET(FPs!$E$10,12*$A24,(4*(PlotControl!$C$6-1)),12,1))) -> 4.8581e-05 | BI24: =(AVERAGE(OFFSET(FPs!$DG$10,12*$A24,(4*(PlotControl!$C$6-1)),12,1))) -> 2.555875e-05 | BJ24: =(AVERAGE(OFFSET(FPs!$DH$10,12*$A24,(4*(PlotControl!$C$6-1)),12,1))) -> 3.822725e-05 | BK24: =(AVERAGE(OFFSET(FPs!$DI$10,12*$A24,(4*(PlotControl!$C$6-1)),12,1))) -> 5.732133333e-05 | BL24: =(AVERAGE(OFFSET(FPs!$HK$10,12*$A24,(4*(PlotControl!$C$6-1)),12,1))) -> 5.392758333e-05 | BM24: =(AVERAGE(OFFSET(FPs!$HL$10,12*$A24,(4*(PlotControl!$C$6-1)),12,1))) -> 7.77855e-05 | BN24: =(AVERAGE(OFFSET(FPs!$HM$10,12*$A24,(4*(PlotControl!$C$6-1)),12,1))) -> 0.0001058891667 | BO24: =(AVERAGE(OFFSET(Toes!$C$10,12*$A24,(4*(PlotControl!$C$6-1)),12,1))) + (AVERAGE(OFFSET(Toes!$DG$10,12*$A24,(4*(PlotControl!$C$6-1)),12,1))) -> 0 | BP24: =(AVERAGE(OFFSET(Toes!$D$10,12*$A24,(4*(PlotControl!$C$6-1)),12,1))) + (AVERAGE(OFFSET(Toes!$DH$10,12*$A24,(4*(PlotControl!$C$6-1)),12,1))) -> 0 | BQ24: =(AVERAGE(OFFSET(Toes!$E$10,12*$A24,(4*(PlotControl!$C$6-1)),12,1))) + (AVERAGE(OFFSET(Toes!$DI$10,12*$A24,(4*(PlotControl!$C$6-1)),12,1))) -> 0 | BR24: =(AVERAGE(OFFSET(Toes!$HK$10,12*$A24,(4*(PlotControl!$C$6-1)),12,1))) -> 0 | BS24: =(AVERAGE(OFFSET(Toes!$HL$10,12*$A24,(4*(PlotControl!$C$6-1)),12,1))) -> 0 | BT24: =(AVERAGE(OFFSET(Toes!$HM$10,12*$A24,(4*(PlotControl!$C$6-1)),12,1))) -> 0 | BU24: =(AVERAGE(OFFSET(Toes!$LO$10,12*$A24,(4*(PlotControl!$C$6-1)),12,1))) -> 0 | BV24: =(AVERAGE(OFFSET(Toes!$LP$10,12*$A24,(4*(PlotControl!$C$6-1)),12,1))) -> 0 | BW24: =(AVERAGE(OFFSET(Toes!$LQ$10,12*$A24,(4*(PlotControl!$C$6-1)),12,1))) -> 0 | BY24: 19 | BZ24: =AVERAGE(OFFSET(GW!$HK$10,12*$A24,(4*(PlotControl!$C$6-1)),12,1)) -> 0 | CA24: =AVERAGE(OFFSET(GW!$HL$10,12*$A24,(4*(PlotControl!$C$6-1)),12,1)) -> 0 | CB24: =AVERAGE(OFFSET(GW!$HM$10,12*$A24,(4*(PlotControl!$C$6-1)),12,1)) -> 0 | CC24: =AVERAGE(OFFSET(SW!$HK$10,12*$A24,(4*(PlotControl!$C$6-1)),12,1)) -> 6.477011667e-05 | CD24: =AVERAGE(OFFSET(SW!$HL$10,12*$A24,(4*(PlotControl!$C$6-1)),12,1)) -> 0.0003570785833 | CE24: =AVERAGE(OFFSET(SW!$HM$10,12*$A24,(4*(PlotControl!$C$6-1)),12,1)) -> 0.00132300125 | CL24: =(AVERAGE(OFFSET(WWTP_To_SW!$DG$10,12*$A24,(4*(PlotControl!$C$6-1)),12,1))) -> 0.0003224725 | CM24: =(AVERAGE(OFFSET(WWTP_To_SW!$DH$10,12*$A24,(4*(PlotControl!$C$6-1)),12,1))) -> 0.0003371033333 | CN24: =(AVERAGE(OFFSET(WWTP_To_SW!$DI$10,12*$A24,(4*(PlotControl!$C$6-1)),12,1))) -> 0.000398315 | CO24: =(AVERAGE(OFFSET(CL_To_SW!$DG$10,12*$A24,(4*(PlotControl!$C$6-1)),12,1))) -> 0 | CP24: =(AVERAGE(OFFSET(CL_To_SW!$DH$10,12*$A24,(4*(PlotControl!$C$6-1)),12,1))) -> 0 | CQ24: =(AVERAGE(OFFSET(CL_To_SW!$DI$10,12*$A24,(4*(PlotControl!$C$6-1)),12,1))) -> 0 | DG24: =(AVERAGE(OFFSET(Toes!$LO$10,12*$A24,(4*(PlotControl!$C$6-1)),12,1))) -> 0 | DH24: =(AVERAGE(OFFSET(Toes!$LP$10,12*$A24,(4*(PlotControl!$C$6-1)),12,1))) -> 0 | DI24: =(AVERAGE(OFFSET(Toes!$LQ$10,12*$A24,(4*(PlotControl!$C$6-1)),12,1))) -> 0 | DK24: 19 | DL24: =AVERAGE(OFFSET(GW!$LO$10,12*$A24,(4*(PlotControl!$C$6-1)),12,1)) -> 0 | DM24: =AVERAGE(OFFSET(GW!$LP$10,12*$A24,(4*(PlotControl!$C$6-1)),12,1)) -> 0 | DN24: =AVERAGE(OFFSET(GW!$LQ$10,12*$A24,(4*(PlotControl!$C$6-1)),12,1)) -> 0 | DO24: =AVERAGE(OFFSET(SW!$LO$10,12*$A24,(4*(PlotControl!$C$6-1)),12,1)) -> 8.1019775e-05 | DP24: =AVERAGE(OFFSET(SW!$LP$10,12*$A24,(4*(PlotControl!$C$6-1)),12,1)) -> 0.00044665975 | DQ24: =AVERAGE(OFFSET(SW!$LQ$10,12*$A24,(4*(PlotControl!$C$6-1)),12,1)) -> 0.001654893667 | DX24: =(AVERAGE(OFFSET(WWTP_To_SW!$HK$10,12*$A24,(4*(PlotControl!$C$6-1)),12,1))) -> 0.001130533333 | DY24: =(AVERAGE(OFFSET(WWTP_To_SW!$HL$10,12*$A24,(4*(PlotControl!$C$6-1)),12,1))) -> 0.001181825 | DZ24: =(AVERAGE(OFFSET(WWTP_To_SW!$HM$10,12*$A24,(4*(PlotControl!$C$6-1)),12,1))) -> 0.001396408333 | EA24: =(AVERAGE(OFFSET(CL_To_SW!$HK$10,12*$A24,(4*(PlotControl!$C$6-1)),12,1))) -> 0 | EB24: =(AVERAGE(OFFSET(CL_To_SW!$HL$10,12*$A24,(4*(PlotControl!$C$6-1)),12,1))) -> 0 | EC24: =(AVERAGE(OFFSET(CL_To_SW!$HM$10,12*$A24,(4*(PlotControl!$C$6-1)),12,1))) -> 0 | EG24: =(AVERAGE(OFFSET(FPs!$DG$10,12*$A24,(4*(PlotControl!$C$6-1)),12,1))) -> 2.555875e-05 | EH24: =(AVERAGE(OFFSET(FPs!$DH$10,12*$A24,(4*(PlotControl!$C$6-1)),12,1))) -> 3.822725e-05 | EI24: =(AVERAGE(OFFSET(FPs!$DI$10,12*$A24,(4*(PlotControl!$C$6-1)),12,1))) -> 5.732133333e-05 | EM24: =(AVERAGE(OFFSET(Toes!$DG$10,12*$A24,(4*(PlotControl!$C$6-1)),12,1))) -> 0 | EN24: =(AVERAGE(OFFSET(Toes!$DH$10,12*$A24,(4*(PlotControl!$C$6-1)),12,1))) -> 0 | EO24: =(AVERAGE(OFFSET(Toes!$DI$10,12*$A24,(4*(PlotControl!$C$6-1)),12,1))) -> 0 | EP24: =(AVERAGE(OFFSET(Toes!$HK$10,12*$A24,(4*(PlotControl!$C$6-1)),12,1))) -> 0 | EQ24: =(AVERAGE(OFFSET(Toes!$HL$10,12*$A24,(4*(PlotControl!$C$6-1)),12,1))) -> 0 | ER24: =(AVERAGE(OFFSET(Toes!$HM$10,12*$A24,(4*(PlotControl!$C$6-1)),12,1))) -> 0 | EW24: 19 | EX24: =AVERAGE(OFFSET(GW!$PS$10,12*$A24,(4*(PlotControl!$C$6-1)),12,1)) -> 1.825166667e-05 | EY24: =AVERAGE(OFFSET(GW!$PT$10,12*$A24,(4*(PlotControl!$C$6-1)),12,1)) -> 2.191616667e-05 | EZ24: =AVERAGE(OFFSET(GW!$PU$10,12*$A24,(4*(PlotControl!$C$6-1)),12,1)) -> 2.526741667e-05 | FA24: =AVERAGE(OFFSET(SW!$PS$10,12*$A24,(4*(PlotControl!$C$6-1)),12,1)) -> 9.9525875e-05 | FB24: =AVERAGE(OFFSET(SW!$PT$10,12*$A24,(4*(PlotControl!$C$6-1)),12,1)) -> 0.0005486795833 | FC24: =AVERAGE(OFFSET(SW!$PU$10,12*$A24,(4*(PlotControl!$C$6-1)),12,1)) -> 0.00203291075 | FJ24: =(AVERAGE(OFFSET(WWTP_To_SW!$LO$10,12*$A24,(4*(PlotControl!$C$6-1)),12,1))) -> 0 | FK24: =(AVERAGE(OFFSET(WWTP_To_SW!$LP$10,12*$A24,(4*(PlotControl!$C$6-1)),12,1))) -> 0 | FL24: =(AVERAGE(OFFSET(WWTP_To_SW!$LQ$10,12*$A24,(4*(PlotControl!$C$6-1)),12,1))) -> 0 | FM24: =(AVERAGE(OFFSET(CL_To_SW!$LO$10,12*$A24,(4*(PlotControl!$C$6-1)),12,1))) -> 0 | FN24: =(AVERAGE(OFFSET(CL_To_SW!$LP$10,12*$A24,(4*(PlotControl!$C$6-1)),12,1))) -> 0 | FO24: =(AVERAGE(OFFSET(CL_To_SW!$LQ$10,12*$A24,(4*(PlotControl!$C$6-1)),12,1))) -> 0 | FP24: =(AVERAGE(OFFSET(FPs!$C$10,12*$A24,(4*(PlotControl!$C$6-1)),12,1))) -> 2.26185e-05 | FQ24: =(AVERAGE(OFFSET(FPs!$D$10,12*$A24,(4*(PlotControl!$C$6-1)),12,1))) -> 3.347791667e-05 | FR24: =(AVERAGE(OFFSET(FPs!$E$10,12*$A24,(4*(PlotControl!$C$6-1)),12,1))) -> 4.8581e-05 | FY24: =(AVERAGE(OFFSET(Toes!$C$10,12*$A24,(4*(PlotControl!$C$6-1)),12,1))) -> 0 | FZ24: =(AVERAGE(OFFSET(Toes!$D$10,12*$A24,(4*(PlotControl!$C$6-1)),12,1))) -> 0 | GA24: =(AVERAGE(OFFSET(Toes!$E$10,12*$A24,(4*(PlotControl!$C$6-1)),12,1))) -> 0
A25: 20 | B25: =AVERAGE(OFFSET(GW!$C$10,12*$A25,(4*(PlotControl!$C$6-1)),12,1)) -> 0.0001275 | C25: =AVERAGE(OFFSET(GW!$D$10,12*$A25,(4*(PlotControl!$C$6-1)),12,1)) -> 0.0001541116667 | D25: =AVERAGE(OFFSET(GW!$E$10,12*$A25,(4*(PlotControl!$C$6-1)),12,1)) -> 0.0001780533333 | E25: =AVERAGE(OFFSET(SW!$C$10,12*$A25,(4*(PlotControl!$C$6-1)),12,1)) -> 0.0004328648333 | F25: =AVERAGE(OFFSET(SW!$D$10,12*$A25,(4*(PlotControl!$C$6-1)),12,1)) -> 0.002230771 | G25: =AVERAGE(OFFSET(SW!$E$10,12*$A25,(4*(PlotControl!$C$6-1)),12,1)) -> 0.008185620833 | H25: =AVERAGE(OFFSET(PointSources!$C$10,12*$A25,(4*(PlotControl!$C$6-1)),12,1)) -> 8.653325e-05 | I25: =AVERAGE(OFFSET(PointSources!$D$10,12*$A25,(4*(PlotControl!$C$6-1)),12,1)) -> 9.429558333e-05 | J25: =AVERAGE(OFFSET(PointSources!$E$10,12*$A25,(4*(PlotControl!$C$6-1)),12,1)) -> 0.0001026925 | AM25: 20 | AN25: =AVERAGE(OFFSET(GW!$DG$10,12*$A25,(4*(PlotControl!$C$6-1)),12,1)) -> 0.0006332733333 | AO25: =AVERAGE(OFFSET(GW!$DH$10,12*$A25,(4*(PlotControl!$C$6-1)),12,1)) -> 0.0007654458333 | AP25: =AVERAGE(OFFSET(GW!$DI$10,12*$A25,(4*(PlotControl!$C$6-1)),12,1)) -> 0.0008843458333 | AQ25: =AVERAGE(OFFSET(SW!$DG$10,12*$A25,(4*(PlotControl!$C$6-1)),12,1)) -> 0.002407970833 | AR25: =AVERAGE(OFFSET(SW!$DH$10,12*$A25,(4*(PlotControl!$C$6-1)),12,1)) -> 0.0124097175 | AS25: =AVERAGE(OFFSET(SW!$DI$10,12*$A25,(4*(PlotControl!$C$6-1)),12,1)) -> 0.045536375 | AT25: =AVERAGE(OFFSET(PointSources!$C$10,12*$A25,(4*(PlotControl!$C$6-1)),12,1)) -> 8.653325e-05 | AU25: =AVERAGE(OFFSET(PointSources!$D$10,12*$A25,(4*(PlotControl!$C$6-1)),12,1)) -> 9.429558333e-05 | AV25: =AVERAGE(OFFSET(PointSources!$E$10,12*$A25,(4*(PlotControl!$C$6-1)),12,1)) -> 0.0001026925 | AW25: =AVERAGE(OFFSET(PointSources!$DG$10,12*$A25,(4*(PlotControl!$C$6-1)),12,1)) -> 0.000214815 | AX25: =AVERAGE(OFFSET(PointSources!$DH$10,12*$A25,(4*(PlotControl!$C$6-1)),12,1)) -> 0.0005244375 | AY25: =AVERAGE(OFFSET(PointSources!$DI$10,12*$A25,(4*(PlotControl!$C$6-1)),12,1)) -> 0.001264904167 | AZ25: =(AVERAGE(OFFSET(WWTP_To_SW!$C$10,12*$A25,(4*(PlotControl!$C$6-1)),12,1))) -> 0.001318058333 | BA25: =(AVERAGE(OFFSET(WWTP_To_SW!$D$10,12*$A25,(4*(PlotControl!$C$6-1)),12,1))) -> 0.001412308333 | BB25: =(AVERAGE(OFFSET(WWTP_To_SW!$E$10,12*$A25,(4*(PlotControl!$C$6-1)),12,1))) -> 0.001528616667 | BC25: =(AVERAGE(OFFSET(CL_To_SW!$C$10,12*$A25,(4*(PlotControl!$C$6-1)),12,1))) -> 0 | BD25: =(AVERAGE(OFFSET(CL_To_SW!$D$10,12*$A25,(4*(PlotControl!$C$6-1)),12,1))) -> 0 | BE25: =(AVERAGE(OFFSET(CL_To_SW!$E$10,12*$A25,(4*(PlotControl!$C$6-1)),12,1))) -> 0 | BF25: =(AVERAGE(OFFSET(FPs!$C$10,12*$A25,(4*(PlotControl!$C$6-1)),12,1))) -> 2.238375e-05 | BG25: =(AVERAGE(OFFSET(FPs!$D$10,12*$A25,(4*(PlotControl!$C$6-1)),12,1))) -> 3.349925e-05 | BH25: =(AVERAGE(OFFSET(FPs!$E$10,12*$A25,(4*(PlotControl!$C$6-1)),12,1))) -> 4.8473e-05 | BI25: =(AVERAGE(OFFSET(FPs!$DG$10,12*$A25,(4*(PlotControl!$C$6-1)),12,1))) -> 2.539241667e-05 | BJ25: =(AVERAGE(OFFSET(FPs!$DH$10,12*$A25,(4*(PlotControl!$C$6-1)),12,1))) -> 3.816183333e-05 | BK25: =(AVERAGE(OFFSET(FPs!$DI$10,12*$A25,(4*(PlotControl!$C$6-1)),12,1))) -> 5.708458333e-05 | BL25: =(AVERAGE(OFFSET(FPs!$HK$10,12*$A25,(4*(PlotControl!$C$6-1)),12,1))) -> 5.358141667e-05 | BM25: =(AVERAGE(OFFSET(FPs!$HL$10,12*$A25,(4*(PlotControl!$C$6-1)),12,1))) -> 7.723683333e-05 | BN25: =(AVERAGE(OFFSET(FPs!$HM$10,12*$A25,(4*(PlotControl!$C$6-1)),12,1))) -> 0.0001059641667 | BO25: =(AVERAGE(OFFSET(Toes!$C$10,12*$A25,(4*(PlotControl!$C$6-1)),12,1))) + (AVERAGE(OFFSET(Toes!$DG$10,12*$A25,(4*(PlotControl!$C$6-1)),12,1))) -> 0 | BP25: =(AVERAGE(OFFSET(Toes!$D$10,12*$A25,(4*(PlotControl!$C$6-1)),12,1))) + (AVERAGE(OFFSET(Toes!$DH$10,12*$A25,(4*(PlotControl!$C$6-1)),12,1))) -> 0 | BQ25: =(AVERAGE(OFFSET(Toes!$E$10,12*$A25,(4*(PlotControl!$C$6-1)),12,1))) + (AVERAGE(OFFSET(Toes!$DI$10,12*$A25,(4*(PlotControl!$C$6-1)),12,1))) -> 0 | BR25: =(AVERAGE(OFFSET(Toes!$HK$10,12*$A25,(4*(PlotControl!$C$6-1)),12,1))) -> 0 | BS25: =(AVERAGE(OFFSET(Toes!$HL$10,12*$A25,(4*(PlotControl!$C$6-1)),12,1))) -> 0 | BT25: =(AVERAGE(OFFSET(Toes!$HM$10,12*$A25,(4*(PlotControl!$C$6-1)),12,1))) -> 0 | BU25: =(AVERAGE(OFFSET(Toes!$LO$10,12*$A25,(4*(PlotControl!$C$6-1)),12,1))) -> 0 | BV25: =(AVERAGE(OFFSET(Toes!$LP$10,12*$A25,(4*(PlotControl!$C$6-1)),12,1))) -> 0 | BW25: =(AVERAGE(OFFSET(Toes!$LQ$10,12*$A25,(4*(PlotControl!$C$6-1)),12,1))) -> 0 | BY25: 20 | BZ25: =AVERAGE(OFFSET(GW!$HK$10,12*$A25,(4*(PlotControl!$C$6-1)),12,1)) -> 0 | CA25: =AVERAGE(OFFSET(GW!$HL$10,12*$A25,(4*(PlotControl!$C$6-1)),12,1)) -> 0 | CB25: =AVERAGE(OFFSET(GW!$HM$10,12*$A25,(4*(PlotControl!$C$6-1)),12,1)) -> 0 | CC25: =AVERAGE(OFFSET(SW!$HK$10,12*$A25,(4*(PlotControl!$C$6-1)),12,1)) -> 6.548794167e-05 | CD25: =AVERAGE(OFFSET(SW!$HL$10,12*$A25,(4*(PlotControl!$C$6-1)),12,1)) -> 0.00033749615 | CE25: =AVERAGE(OFFSET(SW!$HM$10,12*$A25,(4*(PlotControl!$C$6-1)),12,1)) -> 0.0012384075 | CL25: =(AVERAGE(OFFSET(WWTP_To_SW!$DG$10,12*$A25,(4*(PlotControl!$C$6-1)),12,1))) -> 0.0002925258333 | CM25: =(AVERAGE(OFFSET(WWTP_To_SW!$DH$10,12*$A25,(4*(PlotControl!$C$6-1)),12,1))) -> 0.0003134416667 | CN25: =(AVERAGE(OFFSET(WWTP_To_SW!$DI$10,12*$A25,(4*(PlotControl!$C$6-1)),12,1))) -> 0.0003392533333 | CO25: =(AVERAGE(OFFSET(CL_To_SW!$DG$10,12*$A25,(4*(PlotControl!$C$6-1)),12,1))) -> 0 | CP25: =(AVERAGE(OFFSET(CL_To_SW!$DH$10,12*$A25,(4*(PlotControl!$C$6-1)),12,1))) -> 0 | CQ25: =(AVERAGE(OFFSET(CL_To_SW!$DI$10,12*$A25,(4*(PlotControl!$C$6-1)),12,1))) -> 0 | DG25: =(AVERAGE(OFFSET(Toes!$LO$10,12*$A25,(4*(PlotControl!$C$6-1)),12,1))) -> 0 | DH25: =(AVERAGE(OFFSET(Toes!$LP$10,12*$A25,(4*(PlotControl!$C$6-1)),12,1))) -> 0 | DI25: =(AVERAGE(OFFSET(Toes!$LQ$10,12*$A25,(4*(PlotControl!$C$6-1)),12,1))) -> 0 | DK25: 20 | DL25: =AVERAGE(OFFSET(GW!$LO$10,12*$A25,(4*(PlotControl!$C$6-1)),12,1)) -> 0 | DM25: =AVERAGE(OFFSET(GW!$LP$10,12*$A25,(4*(PlotControl!$C$6-1)),12,1)) -> 0 | DN25: =AVERAGE(OFFSET(GW!$LQ$10,12*$A25,(4*(PlotControl!$C$6-1)),12,1)) -> 0 | DO25: =AVERAGE(OFFSET(SW!$LO$10,12*$A25,(4*(PlotControl!$C$6-1)),12,1)) -> 8.191689167e-05 | DP25: =AVERAGE(OFFSET(SW!$LP$10,12*$A25,(4*(PlotControl!$C$6-1)),12,1)) -> 0.0004221616583 | DQ25: =AVERAGE(OFFSET(SW!$LQ$10,12*$A25,(4*(PlotControl!$C$6-1)),12,1)) -> 0.001549090083 | DX25: =(AVERAGE(OFFSET(WWTP_To_SW!$HK$10,12*$A25,(4*(PlotControl!$C$6-1)),12,1))) -> 0.001025539167 | DY25: =(AVERAGE(OFFSET(WWTP_To_SW!$HL$10,12*$A25,(4*(PlotControl!$C$6-1)),12,1))) -> 0.001098866667 | DZ25: =(AVERAGE(OFFSET(WWTP_To_SW!$HM$10,12*$A25,(4*(PlotControl!$C$6-1)),12,1))) -> 0.001189366667 | EA25: =(AVERAGE(OFFSET(CL_To_SW!$HK$10,12*$A25,(4*(PlotControl!$C$6-1)),12,1))) -> 0 | EB25: =(AVERAGE(OFFSET(CL_To_SW!$HL$10,12*$A25,(4*(PlotControl!$C$6-1)),12,1))) -> 0 | EC25: =(AVERAGE(OFFSET(CL_To_SW!$HM$10,12*$A25,(4*(PlotControl!$C$6-1)),12,1))) -> 0 | EG25: =(AVERAGE(OFFSET(FPs!$DG$10,12*$A25,(4*(PlotControl!$C$6-1)),12,1))) -> 2.539241667e-05 | EH25: =(AVERAGE(OFFSET(FPs!$DH$10,12*$A25,(4*(PlotControl!$C$6-1)),12,1))) -> 3.816183333e-05 | EI25: =(AVERAGE(OFFSET(FPs!$DI$10,12*$A25,(4*(PlotControl!$C$6-1)),12,1))) -> 5.708458333e-05 | EM25: =(AVERAGE(OFFSET(Toes!$DG$10,12*$A25,(4*(PlotControl!$C$6-1)),12,1))) -> 0 | EN25: =(AVERAGE(OFFSET(Toes!$DH$10,12*$A25,(4*(PlotControl!$C$6-1)),12,1))) -> 0 | EO25: =(AVERAGE(OFFSET(Toes!$DI$10,12*$A25,(4*(PlotControl!$C$6-1)),12,1))) -> 0 | EP25: =(AVERAGE(OFFSET(Toes!$HK$10,12*$A25,(4*(PlotControl!$C$6-1)),12,1))) -> 0 | EQ25: =(AVERAGE(OFFSET(Toes!$HL$10,12*$A25,(4*(PlotControl!$C$6-1)),12,1))) -> 0 | ER25: =(AVERAGE(OFFSET(Toes!$HM$10,12*$A25,(4*(PlotControl!$C$6-1)),12,1))) -> 0 | EW25: 20 | EX25: =AVERAGE(OFFSET(GW!$PS$10,12*$A25,(4*(PlotControl!$C$6-1)),12,1)) -> 1.808025e-05 | EY25: =AVERAGE(OFFSET(GW!$PT$10,12*$A25,(4*(PlotControl!$C$6-1)),12,1)) -> 2.185358333e-05 | EZ25: =AVERAGE(OFFSET(GW!$PU$10,12*$A25,(4*(PlotControl!$C$6-1)),12,1)) -> 2.524808333e-05 | FA25: =AVERAGE(OFFSET(SW!$PS$10,12*$A25,(4*(PlotControl!$C$6-1)),12,1)) -> 0.0001006284 | FB25: =AVERAGE(OFFSET(SW!$PT$10,12*$A25,(4*(PlotControl!$C$6-1)),12,1)) -> 0.0005185903417 | FC25: =AVERAGE(OFFSET(SW!$PU$10,12*$A25,(4*(PlotControl!$C$6-1)),12,1)) -> 0.001902925917 | FJ25: =(AVERAGE(OFFSET(WWTP_To_SW!$LO$10,12*$A25,(4*(PlotControl!$C$6-1)),12,1))) -> 0 | FK25: =(AVERAGE(OFFSET(WWTP_To_SW!$LP$10,12*$A25,(4*(PlotControl!$C$6-1)),12,1))) -> 0 | FL25: =(AVERAGE(OFFSET(WWTP_To_SW!$LQ$10,12*$A25,(4*(PlotControl!$C$6-1)),12,1))) -> 0 | FM25: =(AVERAGE(OFFSET(CL_To_SW!$LO$10,12*$A25,(4*(PlotControl!$C$6-1)),12,1))) -> 0 | FN25: =(AVERAGE(OFFSET(CL_To_SW!$LP$10,12*$A25,(4*(PlotControl!$C$6-1)),12,1))) -> 0 | FO25: =(AVERAGE(OFFSET(CL_To_SW!$LQ$10,12*$A25,(4*(PlotControl!$C$6-1)),12,1))) -> 0 | FP25: =(AVERAGE(OFFSET(FPs!$C$10,12*$A25,(4*(PlotControl!$C$6-1)),12,1))) -> 2.238375e-05 | FQ25: =(AVERAGE(OFFSET(FPs!$D$10,12*$A25,(4*(PlotControl!$C$6-1)),12,1))) -> 3.349925e-05 | FR25: =(AVERAGE(OFFSET(FPs!$E$10,12*$A25,(4*(PlotControl!$C$6-1)),12,1))) -> 4.8473e-05 | FY25: =(AVERAGE(OFFSET(Toes!$C$10,12*$A25,(4*(PlotControl!$C$6-1)),12,1))) -> 0 | FZ25: =(AVERAGE(OFFSET(Toes!$D$10,12*$A25,(4*(PlotControl!$C$6-1)),12,1))) -> 0 | GA25: =(AVERAGE(OFFSET(Toes!$E$10,12*$A25,(4*(PlotControl!$C$6-1)),12,1))) -> 0
A26: 21 | B26: =AVERAGE(OFFSET(GW!$C$10,12*$A26,(4*(PlotControl!$C$6-1)),12,1)) -> 0.0001275445833 | C26: =AVERAGE(OFFSET(GW!$D$10,12*$A26,(4*(PlotControl!$C$6-1)),12,1)) -> 0.0001541758333 | D26: =AVERAGE(OFFSET(GW!$E$10,12*$A26,(4*(PlotControl!$C$6-1)),12,1)) -> 0.00017773 | E26: =AVERAGE(OFFSET(SW!$C$10,12*$A26,(4*(PlotControl!$C$6-1)),12,1)) -> 0.00041275075 | F26: =AVERAGE(OFFSET(SW!$D$10,12*$A26,(4*(PlotControl!$C$6-1)),12,1)) -> 0.002205704667 | G26: =AVERAGE(OFFSET(SW!$E$10,12*$A26,(4*(PlotControl!$C$6-1)),12,1)) -> 0.008062595 | H26: =AVERAGE(OFFSET(PointSources!$C$10,12*$A26,(4*(PlotControl!$C$6-1)),12,1)) -> 8.634541667e-05 | I26: =AVERAGE(OFFSET(PointSources!$D$10,12*$A26,(4*(PlotControl!$C$6-1)),12,1)) -> 9.424625e-05 | J26: =AVERAGE(OFFSET(PointSources!$E$10,12*$A26,(4*(PlotControl!$C$6-1)),12,1)) -> 0.0001028125 | AM26: 21 | AN26: =AVERAGE(OFFSET(GW!$DG$10,12*$A26,(4*(PlotControl!$C$6-1)),12,1)) -> 0.0006334991667 | AO26: =AVERAGE(OFFSET(GW!$DH$10,12*$A26,(4*(PlotControl!$C$6-1)),12,1)) -> 0.0007657608333 | AP26: =AVERAGE(OFFSET(GW!$DI$10,12*$A26,(4*(PlotControl!$C$6-1)),12,1)) -> 0.0008827416667 | AQ26: =AVERAGE(OFFSET(SW!$DG$10,12*$A26,(4*(PlotControl!$C$6-1)),12,1)) -> 0.00229617 | AR26: =AVERAGE(OFFSET(SW!$DH$10,12*$A26,(4*(PlotControl!$C$6-1)),12,1)) -> 0.01227019167 | AS26: =AVERAGE(OFFSET(SW!$DI$10,12*$A26,(4*(PlotControl!$C$6-1)),12,1)) -> 0.044852125 | AT26: =AVERAGE(OFFSET(PointSources!$C$10,12*$A26,(4*(PlotControl!$C$6-1)),12,1)) -> 8.634541667e-05 | AU26: =AVERAGE(OFFSET(PointSources!$D$10,12*$A26,(4*(PlotControl!$C$6-1)),12,1)) -> 9.424625e-05 | AV26: =AVERAGE(OFFSET(PointSources!$E$10,12*$A26,(4*(PlotControl!$C$6-1)),12,1)) -> 0.0001028125 | AW26: =AVERAGE(OFFSET(PointSources!$DG$10,12*$A26,(4*(PlotControl!$C$6-1)),12,1)) -> 0.0002089775 | AX26: =AVERAGE(OFFSET(PointSources!$DH$10,12*$A26,(4*(PlotControl!$C$6-1)),12,1)) -> 0.0005223383333 | AY26: =AVERAGE(OFFSET(PointSources!$DI$10,12*$A26,(4*(PlotControl!$C$6-1)),12,1)) -> 0.001224634167 | AZ26: =(AVERAGE(OFFSET(WWTP_To_SW!$C$10,12*$A26,(4*(PlotControl!$C$6-1)),12,1))) -> 0.001270383333 | BA26: =(AVERAGE(OFFSET(WWTP_To_SW!$D$10,12*$A26,(4*(PlotControl!$C$6-1)),12,1))) -> 0.001367933333 | BB26: =(AVERAGE(OFFSET(WWTP_To_SW!$E$10,12*$A26,(4*(PlotControl!$C$6-1)),12,1))) -> 0.001510316667 | BC26: =(AVERAGE(OFFSET(CL_To_SW!$C$10,12*$A26,(4*(PlotControl!$C$6-1)),12,1))) -> 0 | BD26: =(AVERAGE(OFFSET(CL_To_SW!$D$10,12*$A26,(4*(PlotControl!$C$6-1)),12,1))) -> 0 | BE26: =(AVERAGE(OFFSET(CL_To_SW!$E$10,12*$A26,(4*(PlotControl!$C$6-1)),12,1))) -> 0 | BF26: =(AVERAGE(OFFSET(FPs!$C$10,12*$A26,(4*(PlotControl!$C$6-1)),12,1))) -> 2.241358333e-05 | BG26: =(AVERAGE(OFFSET(FPs!$D$10,12*$A26,(4*(PlotControl!$C$6-1)),12,1))) -> 3.347758333e-05 | BH26: =(AVERAGE(OFFSET(FPs!$E$10,12*$A26,(4*(PlotControl!$C$6-1)),12,1))) -> 4.85075e-05 | BI26: =(AVERAGE(OFFSET(FPs!$DG$10,12*$A26,(4*(PlotControl!$C$6-1)),12,1))) -> 2.534016667e-05 | BJ26: =(AVERAGE(OFFSET(FPs!$DH$10,12*$A26,(4*(PlotControl!$C$6-1)),12,1))) -> 3.8304e-05 | BK26: =(AVERAGE(OFFSET(FPs!$DI$10,12*$A26,(4*(PlotControl!$C$6-1)),12,1))) -> 5.706425e-05 | BL26: =(AVERAGE(OFFSET(FPs!$HK$10,12*$A26,(4*(PlotControl!$C$6-1)),12,1))) -> 5.380733333e-05 | BM26: =(AVERAGE(OFFSET(FPs!$HL$10,12*$A26,(4*(PlotControl!$C$6-1)),12,1))) -> 7.700666667e-05 | BN26: =(AVERAGE(OFFSET(FPs!$HM$10,12*$A26,(4*(PlotControl!$C$6-1)),12,1))) -> 0.0001048875 | BO26: =(AVERAGE(OFFSET(Toes!$C$10,12*$A26,(4*(PlotControl!$C$6-1)),12,1))) + (AVERAGE(OFFSET(Toes!$DG$10,12*$A26,(4*(PlotControl!$C$6-1)),12,1))) -> 0 | BP26: =(AVERAGE(OFFSET(Toes!$D$10,12*$A26,(4*(PlotControl!$C$6-1)),12,1))) + (AVERAGE(OFFSET(Toes!$DH$10,12*$A26,(4*(PlotControl!$C$6-1)),12,1))) -> 0 | BQ26: =(AVERAGE(OFFSET(Toes!$E$10,12*$A26,(4*(PlotControl!$C$6-1)),12,1))) + (AVERAGE(OFFSET(Toes!$DI$10,12*$A26,(4*(PlotControl!$C$6-1)),12,1))) -> 0 | BR26: =(AVERAGE(OFFSET(Toes!$HK$10,12*$A26,(4*(PlotControl!$C$6-1)),12,1))) -> 0 | BS26: =(AVERAGE(OFFSET(Toes!$HL$10,12*$A26,(4*(PlotControl!$C$6-1)),12,1))) -> 0 | BT26: =(AVERAGE(OFFSET(Toes!$HM$10,12*$A26,(4*(PlotControl!$C$6-1)),12,1))) -> 0 | BU26: =(AVERAGE(OFFSET(Toes!$LO$10,12*$A26,(4*(PlotControl!$C$6-1)),12,1))) -> 0 | BV26: =(AVERAGE(OFFSET(Toes!$LP$10,12*$A26,(4*(PlotControl!$C$6-1)),12,1))) -> 0 | BW26: =(AVERAGE(OFFSET(Toes!$LQ$10,12*$A26,(4*(PlotControl!$C$6-1)),12,1))) -> 0 | BY26: 21 | BZ26: =AVERAGE(OFFSET(GW!$HK$10,12*$A26,(4*(PlotControl!$C$6-1)),12,1)) -> 0 | CA26: =AVERAGE(OFFSET(GW!$HL$10,12*$A26,(4*(PlotControl!$C$6-1)),12,1)) -> 0 | CB26: =AVERAGE(OFFSET(GW!$HM$10,12*$A26,(4*(PlotControl!$C$6-1)),12,1)) -> 0 | CC26: =AVERAGE(OFFSET(SW!$HK$10,12*$A26,(4*(PlotControl!$C$6-1)),12,1)) -> 6.244641667e-05 | CD26: =AVERAGE(OFFSET(SW!$HL$10,12*$A26,(4*(PlotControl!$C$6-1)),12,1)) -> 0.0003337056917 | CE26: =AVERAGE(OFFSET(SW!$HM$10,12*$A26,(4*(PlotControl!$C$6-1)),12,1)) -> 0.001219797583 | CL26: =(AVERAGE(OFFSET(WWTP_To_SW!$DG$10,12*$A26,(4*(PlotControl!$C$6-1)),12,1))) -> 0.0002819433333 | CM26: =(AVERAGE(OFFSET(WWTP_To_SW!$DH$10,12*$A26,(4*(PlotControl!$C$6-1)),12,1))) -> 0.000303595 | CN26: =(AVERAGE(OFFSET(WWTP_To_SW!$DI$10,12*$A26,(4*(PlotControl!$C$6-1)),12,1))) -> 0.0003351933333 | CO26: =(AVERAGE(OFFSET(CL_To_SW!$DG$10,12*$A26,(4*(PlotControl!$C$6-1)),12,1))) -> 0 | CP26: =(AVERAGE(OFFSET(CL_To_SW!$DH$10,12*$A26,(4*(PlotControl!$C$6-1)),12,1))) -> 0 | CQ26: =(AVERAGE(OFFSET(CL_To_SW!$DI$10,12*$A26,(4*(PlotControl!$C$6-1)),12,1))) -> 0 | DG26: =(AVERAGE(OFFSET(Toes!$LO$10,12*$A26,(4*(PlotControl!$C$6-1)),12,1))) -> 0 | DH26: =(AVERAGE(OFFSET(Toes!$LP$10,12*$A26,(4*(PlotControl!$C$6-1)),12,1))) -> 0 | DI26: =(AVERAGE(OFFSET(Toes!$LQ$10,12*$A26,(4*(PlotControl!$C$6-1)),12,1))) -> 0 | DK26: 21 | DL26: =AVERAGE(OFFSET(GW!$LO$10,12*$A26,(4*(PlotControl!$C$6-1)),12,1)) -> 0 | DM26: =AVERAGE(OFFSET(GW!$LP$10,12*$A26,(4*(PlotControl!$C$6-1)),12,1)) -> 0 | DN26: =AVERAGE(OFFSET(GW!$LQ$10,12*$A26,(4*(PlotControl!$C$6-1)),12,1)) -> 0 | DO26: =AVERAGE(OFFSET(SW!$LO$10,12*$A26,(4*(PlotControl!$C$6-1)),12,1)) -> 7.81115e-05 | DP26: =AVERAGE(OFFSET(SW!$LP$10,12*$A26,(4*(PlotControl!$C$6-1)),12,1)) -> 0.0004174227583 | DQ26: =AVERAGE(OFFSET(SW!$LQ$10,12*$A26,(4*(PlotControl!$C$6-1)),12,1)) -> 0.00152581775 | DX26: =(AVERAGE(OFFSET(WWTP_To_SW!$HK$10,12*$A26,(4*(PlotControl!$C$6-1)),12,1))) -> 0.0009884475 | DY26: =(AVERAGE(OFFSET(WWTP_To_SW!$HL$10,12*$A26,(4*(PlotControl!$C$6-1)),12,1))) -> 0.00106435 | DZ26: =(AVERAGE(OFFSET(WWTP_To_SW!$HM$10,12*$A26,(4*(PlotControl!$C$6-1)),12,1))) -> 0.001175125 | EA26: =(AVERAGE(OFFSET(CL_To_SW!$HK$10,12*$A26,(4*(PlotControl!$C$6-1)),12,1))) -> 0 | EB26: =(AVERAGE(OFFSET(CL_To_SW!$HL$10,12*$A26,(4*(PlotControl!$C$6-1)),12,1))) -> 0 | EC26: =(AVERAGE(OFFSET(CL_To_SW!$HM$10,12*$A26,(4*(PlotControl!$C$6-1)),12,1))) -> 0 | EG26: =(AVERAGE(OFFSET(FPs!$DG$10,12*$A26,(4*(PlotControl!$C$6-1)),12,1))) -> 2.534016667e-05 | EH26: =(AVERAGE(OFFSET(FPs!$DH$10,12*$A26,(4*(PlotControl!$C$6-1)),12,1))) -> 3.8304e-05 | EI26: =(AVERAGE(OFFSET(FPs!$DI$10,12*$A26,(4*(PlotControl!$C$6-1)),12,1))) -> 5.706425e-05 | EM26: =(AVERAGE(OFFSET(Toes!$DG$10,12*$A26,(4*(PlotControl!$C$6-1)),12,1))) -> 0 | EN26: =(AVERAGE(OFFSET(Toes!$DH$10,12*$A26,(4*(PlotControl!$C$6-1)),12,1))) -> 0 | EO26: =(AVERAGE(OFFSET(Toes!$DI$10,12*$A26,(4*(PlotControl!$C$6-1)),12,1))) -> 0 | EP26: =(AVERAGE(OFFSET(Toes!$HK$10,12*$A26,(4*(PlotControl!$C$6-1)),12,1))) -> 0 | EQ26: =(AVERAGE(OFFSET(Toes!$HL$10,12*$A26,(4*(PlotControl!$C$6-1)),12,1))) -> 0 | ER26: =(AVERAGE(OFFSET(Toes!$HM$10,12*$A26,(4*(PlotControl!$C$6-1)),12,1))) -> 0 | EW26: 21 | EX26: =AVERAGE(OFFSET(GW!$PS$10,12*$A26,(4*(PlotControl!$C$6-1)),12,1)) -> 1.808658333e-05 | EY26: =AVERAGE(OFFSET(GW!$PT$10,12*$A26,(4*(PlotControl!$C$6-1)),12,1)) -> 2.18625e-05 | EZ26: =AVERAGE(OFFSET(GW!$PU$10,12*$A26,(4*(PlotControl!$C$6-1)),12,1)) -> 2.520233333e-05 | FA26: =AVERAGE(OFFSET(SW!$PS$10,12*$A26,(4*(PlotControl!$C$6-1)),12,1)) -> 9.595341667e-05 | FB26: =AVERAGE(OFFSET(SW!$PT$10,12*$A26,(4*(PlotControl!$C$6-1)),12,1)) -> 0.0005127629167 | FC26: =AVERAGE(OFFSET(SW!$PU$10,12*$A26,(4*(PlotControl!$C$6-1)),12,1)) -> 0.001874330667 | FJ26: =(AVERAGE(OFFSET(WWTP_To_SW!$LO$10,12*$A26,(4*(PlotControl!$C$6-1)),12,1))) -> 0 | FK26: =(AVERAGE(OFFSET(WWTP_To_SW!$LP$10,12*$A26,(4*(PlotControl!$C$6-1)),12,1))) -> 0 | FL26: =(AVERAGE(OFFSET(WWTP_To_SW!$LQ$10,12*$A26,(4*(PlotControl!$C$6-1)),12,1))) -> 0 | FM26: =(AVERAGE(OFFSET(CL_To_SW!$LO$10,12*$A26,(4*(PlotControl!$C$6-1)),12,1))) -> 0 | FN26: =(AVERAGE(OFFSET(CL_To_SW!$LP$10,12*$A26,(4*(PlotControl!$C$6-1)),12,1))) -> 0 | FO26: =(AVERAGE(OFFSET(CL_To_SW!$LQ$10,12*$A26,(4*(PlotControl!$C$6-1)),12,1))) -> 0 | FP26: =(AVERAGE(OFFSET(FPs!$C$10,12*$A26,(4*(PlotControl!$C$6-1)),12,1))) -> 2.241358333e-05 | FQ26: =(AVERAGE(OFFSET(FPs!$D$10,12*$A26,(4*(PlotControl!$C$6-1)),12,1))) -> 3.347758333e-05 | FR26: =(AVERAGE(OFFSET(FPs!$E$10,12*$A26,(4*(PlotControl!$C$6-1)),12,1))) -> 4.85075e-05 | FY26: =(AVERAGE(OFFSET(Toes!$C$10,12*$A26,(4*(PlotControl!$C$6-1)),12,1))) -> 0 | FZ26: =(AVERAGE(OFFSET(Toes!$D$10,12*$A26,(4*(PlotControl!$C$6-1)),12,1))) -> 0 | GA26: =(AVERAGE(OFFSET(Toes!$E$10,12*$A26,(4*(PlotControl!$C$6-1)),12,1))) -> 0
A27: 22 | B27: =AVERAGE(OFFSET(GW!$C$10,12*$A27,(4*(PlotControl!$C$6-1)),12,1)) -> 0.0001282628333 | C27: =AVERAGE(OFFSET(GW!$D$10,12*$A27,(4*(PlotControl!$C$6-1)),12,1)) -> 0.0001542791667 | D27: =AVERAGE(OFFSET(GW!$E$10,12*$A27,(4*(PlotControl!$C$6-1)),12,1)) -> 0.000178055 | E27: =AVERAGE(OFFSET(SW!$C$10,12*$A27,(4*(PlotControl!$C$6-1)),12,1)) -> 0.0004182645167 | F27: =AVERAGE(OFFSET(SW!$D$10,12*$A27,(4*(PlotControl!$C$6-1)),12,1)) -> 0.002227071667 | G27: =AVERAGE(OFFSET(SW!$E$10,12*$A27,(4*(PlotControl!$C$6-1)),12,1)) -> 0.007955345833 | H27: =AVERAGE(OFFSET(PointSources!$C$10,12*$A27,(4*(PlotControl!$C$6-1)),12,1)) -> 8.642133333e-05 | I27: =AVERAGE(OFFSET(PointSources!$D$10,12*$A27,(4*(PlotControl!$C$6-1)),12,1)) -> 9.424616667e-05 | J27: =AVERAGE(OFFSET(PointSources!$E$10,12*$A27,(4*(PlotControl!$C$6-1)),12,1)) -> 0.0001028225 | AM27: 22 | AN27: =AVERAGE(OFFSET(GW!$DG$10,12*$A27,(4*(PlotControl!$C$6-1)),12,1)) -> 0.0006370591667 | AO27: =AVERAGE(OFFSET(GW!$DH$10,12*$A27,(4*(PlotControl!$C$6-1)),12,1)) -> 0.0007662625 | AP27: =AVERAGE(OFFSET(GW!$DI$10,12*$A27,(4*(PlotControl!$C$6-1)),12,1)) -> 0.000884355 | AQ27: =AVERAGE(OFFSET(SW!$DG$10,12*$A27,(4*(PlotControl!$C$6-1)),12,1)) -> 0.002326783 | AR27: =AVERAGE(OFFSET(SW!$DH$10,12*$A27,(4*(PlotControl!$C$6-1)),12,1)) -> 0.01238916583 | AS27: =AVERAGE(OFFSET(SW!$DI$10,12*$A27,(4*(PlotControl!$C$6-1)),12,1)) -> 0.04425540833 | AT27: =AVERAGE(OFFSET(PointSources!$C$10,12*$A27,(4*(PlotControl!$C$6-1)),12,1)) -> 8.642133333e-05 | AU27: =AVERAGE(OFFSET(PointSources!$D$10,12*$A27,(4*(PlotControl!$C$6-1)),12,1)) -> 9.424616667e-05 | AV27: =AVERAGE(OFFSET(PointSources!$E$10,12*$A27,(4*(PlotControl!$C$6-1)),12,1)) -> 0.0001028225 | AW27: =AVERAGE(OFFSET(PointSources!$DG$10,12*$A27,(4*(PlotControl!$C$6-1)),12,1)) -> 0.0002117275 | AX27: =AVERAGE(OFFSET(PointSources!$DH$10,12*$A27,(4*(PlotControl!$C$6-1)),12,1)) -> 0.0005220791667 | AY27: =AVERAGE(OFFSET(PointSources!$DI$10,12*$A27,(4*(PlotControl!$C$6-1)),12,1)) -> 0.001255193333 | AZ27: =(AVERAGE(OFFSET(WWTP_To_SW!$C$10,12*$A27,(4*(PlotControl!$C$6-1)),12,1))) -> 0.001251141667 | BA27: =(AVERAGE(OFFSET(WWTP_To_SW!$D$10,12*$A27,(4*(PlotControl!$C$6-1)),12,1))) -> 0.001343025 | BB27: =(AVERAGE(OFFSET(WWTP_To_SW!$E$10,12*$A27,(4*(PlotControl!$C$6-1)),12,1))) -> 0.001496708333 | BC27: =(AVERAGE(OFFSET(CL_To_SW!$C$10,12*$A27,(4*(PlotControl!$C$6-1)),12,1))) -> 0 | BD27: =(AVERAGE(OFFSET(CL_To_SW!$D$10,12*$A27,(4*(PlotControl!$C$6-1)),12,1))) -> 0 | BE27: =(AVERAGE(OFFSET(CL_To_SW!$E$10,12*$A27,(4*(PlotControl!$C$6-1)),12,1))) -> 0 | BF27: =(AVERAGE(OFFSET(FPs!$C$10,12*$A27,(4*(PlotControl!$C$6-1)),12,1))) -> 2.245991667e-05 | BG27: =(AVERAGE(OFFSET(FPs!$D$10,12*$A27,(4*(PlotControl!$C$6-1)),12,1))) -> 3.359291667e-05 | BH27: =(AVERAGE(OFFSET(FPs!$E$10,12*$A27,(4*(PlotControl!$C$6-1)),12,1))) -> 4.836433333e-05 | BI27: =(AVERAGE(OFFSET(FPs!$DG$10,12*$A27,(4*(PlotControl!$C$6-1)),12,1))) -> 2.550575e-05 | BJ27: =(AVERAGE(OFFSET(FPs!$DH$10,12*$A27,(4*(PlotControl!$C$6-1)),12,1))) -> 3.821375e-05 | BK27: =(AVERAGE(OFFSET(FPs!$DI$10,12*$A27,(4*(PlotControl!$C$6-1)),12,1))) -> 5.724766667e-05 | BL27: =(AVERAGE(OFFSET(FPs!$HK$10,12*$A27,(4*(PlotControl!$C$6-1)),12,1))) -> 5.342425e-05 | BM27: =(AVERAGE(OFFSET(FPs!$HL$10,12*$A27,(4*(PlotControl!$C$6-1)),12,1))) -> 7.679058333e-05 | BN27: =(AVERAGE(OFFSET(FPs!$HM$10,12*$A27,(4*(PlotControl!$C$6-1)),12,1))) -> 0.0001047666667 | BO27: =(AVERAGE(OFFSET(Toes!$C$10,12*$A27,(4*(PlotControl!$C$6-1)),12,1))) + (AVERAGE(OFFSET(Toes!$DG$10,12*$A27,(4*(PlotControl!$C$6-1)),12,1))) -> 0 | BP27: =(AVERAGE(OFFSET(Toes!$D$10,12*$A27,(4*(PlotControl!$C$6-1)),12,1))) + (AVERAGE(OFFSET(Toes!$DH$10,12*$A27,(4*(PlotControl!$C$6-1)),12,1))) -> 0 | BQ27: =(AVERAGE(OFFSET(Toes!$E$10,12*$A27,(4*(PlotControl!$C$6-1)),12,1))) + (AVERAGE(OFFSET(Toes!$DI$10,12*$A27,(4*(PlotControl!$C$6-1)),12,1))) -> 0 | BR27: =(AVERAGE(OFFSET(Toes!$HK$10,12*$A27,(4*(PlotControl!$C$6-1)),12,1))) -> 0 | BS27: =(AVERAGE(OFFSET(Toes!$HL$10,12*$A27,(4*(PlotControl!$C$6-1)),12,1))) -> 0 | BT27: =(AVERAGE(OFFSET(Toes!$HM$10,12*$A27,(4*(PlotControl!$C$6-1)),12,1))) -> 0 | BU27: =(AVERAGE(OFFSET(Toes!$LO$10,12*$A27,(4*(PlotControl!$C$6-1)),12,1))) -> 0 | BV27: =(AVERAGE(OFFSET(Toes!$LP$10,12*$A27,(4*(PlotControl!$C$6-1)),12,1))) -> 0 | BW27: =(AVERAGE(OFFSET(Toes!$LQ$10,12*$A27,(4*(PlotControl!$C$6-1)),12,1))) -> 0 | BY27: 22 | BZ27: =AVERAGE(OFFSET(GW!$HK$10,12*$A27,(4*(PlotControl!$C$6-1)),12,1)) -> 0 | CA27: =AVERAGE(OFFSET(GW!$HL$10,12*$A27,(4*(PlotControl!$C$6-1)),12,1)) -> 0 | CB27: =AVERAGE(OFFSET(GW!$HM$10,12*$A27,(4*(PlotControl!$C$6-1)),12,1)) -> 0 | CC27: =AVERAGE(OFFSET(SW!$HK$10,12*$A27,(4*(PlotControl!$C$6-1)),12,1)) -> 6.32792125e-05 | CD27: =AVERAGE(OFFSET(SW!$HL$10,12*$A27,(4*(PlotControl!$C$6-1)),12,1)) -> 0.0003369388333 | CE27: =AVERAGE(OFFSET(SW!$HM$10,12*$A27,(4*(PlotControl!$C$6-1)),12,1)) -> 0.001203579917 | CL27: =(AVERAGE(OFFSET(WWTP_To_SW!$DG$10,12*$A27,(4*(PlotControl!$C$6-1)),12,1))) -> 0.0002776708333 | CM27: =(AVERAGE(OFFSET(WWTP_To_SW!$DH$10,12*$A27,(4*(PlotControl!$C$6-1)),12,1))) -> 0.0002980683333 | CN27: =(AVERAGE(OFFSET(WWTP_To_SW!$DI$10,12*$A27,(4*(PlotControl!$C$6-1)),12,1))) -> 0.0003321725 | CO27: =(AVERAGE(OFFSET(CL_To_SW!$DG$10,12*$A27,(4*(PlotControl!$C$6-1)),12,1))) -> 0 | CP27: =(AVERAGE(OFFSET(CL_To_SW!$DH$10,12*$A27,(4*(PlotControl!$C$6-1)),12,1))) -> 0 | CQ27: =(AVERAGE(OFFSET(CL_To_SW!$DI$10,12*$A27,(4*(PlotControl!$C$6-1)),12,1))) -> 0 | DG27: =(AVERAGE(OFFSET(Toes!$LO$10,12*$A27,(4*(PlotControl!$C$6-1)),12,1))) -> 0 | DH27: =(AVERAGE(OFFSET(Toes!$LP$10,12*$A27,(4*(PlotControl!$C$6-1)),12,1))) -> 0 | DI27: =(AVERAGE(OFFSET(Toes!$LQ$10,12*$A27,(4*(PlotControl!$C$6-1)),12,1))) -> 0 | DK27: 22 | DL27: =AVERAGE(OFFSET(GW!$LO$10,12*$A27,(4*(PlotControl!$C$6-1)),12,1)) -> 0 | DM27: =AVERAGE(OFFSET(GW!$LP$10,12*$A27,(4*(PlotControl!$C$6-1)),12,1)) -> 0 | DN27: =AVERAGE(OFFSET(GW!$LQ$10,12*$A27,(4*(PlotControl!$C$6-1)),12,1)) -> 0 | DO27: =AVERAGE(OFFSET(SW!$LO$10,12*$A27,(4*(PlotControl!$C$6-1)),12,1)) -> 7.915463167e-05 | DP27: =AVERAGE(OFFSET(SW!$LP$10,12*$A27,(4*(PlotControl!$C$6-1)),12,1)) -> 0.0004214708333 | DQ27: =AVERAGE(OFFSET(SW!$LQ$10,12*$A27,(4*(PlotControl!$C$6-1)),12,1)) -> 0.0015055205 | DX27: =(AVERAGE(OFFSET(WWTP_To_SW!$HK$10,12*$A27,(4*(PlotControl!$C$6-1)),12,1))) -> 0.0009734641667 | DY27: =(AVERAGE(OFFSET(WWTP_To_SW!$HL$10,12*$A27,(4*(PlotControl!$C$6-1)),12,1))) -> 0.001044966667 | DZ27: =(AVERAGE(OFFSET(WWTP_To_SW!$HM$10,12*$A27,(4*(PlotControl!$C$6-1)),12,1))) -> 0.001164533333 | EA27: =(AVERAGE(OFFSET(CL_To_SW!$HK$10,12*$A27,(4*(PlotControl!$C$6-1)),12,1))) -> 0 | EB27: =(AVERAGE(OFFSET(CL_To_SW!$HL$10,12*$A27,(4*(PlotControl!$C$6-1)),12,1))) -> 0 | EC27: =(AVERAGE(OFFSET(CL_To_SW!$HM$10,12*$A27,(4*(PlotControl!$C$6-1)),12,1))) -> 0 | EG27: =(AVERAGE(OFFSET(FPs!$DG$10,12*$A27,(4*(PlotControl!$C$6-1)),12,1))) -> 2.550575e-05 | EH27: =(AVERAGE(OFFSET(FPs!$DH$10,12*$A27,(4*(PlotControl!$C$6-1)),12,1))) -> 3.821375e-05 | EI27: =(AVERAGE(OFFSET(FPs!$DI$10,12*$A27,(4*(PlotControl!$C$6-1)),12,1))) -> 5.724766667e-05 | EM27: =(AVERAGE(OFFSET(Toes!$DG$10,12*$A27,(4*(PlotControl!$C$6-1)),12,1))) -> 0 | EN27: =(AVERAGE(OFFSET(Toes!$DH$10,12*$A27,(4*(PlotControl!$C$6-1)),12,1))) -> 0 | EO27: =(AVERAGE(OFFSET(Toes!$DI$10,12*$A27,(4*(PlotControl!$C$6-1)),12,1))) -> 0 | EP27: =(AVERAGE(OFFSET(Toes!$HK$10,12*$A27,(4*(PlotControl!$C$6-1)),12,1))) -> 0 | EQ27: =(AVERAGE(OFFSET(Toes!$HL$10,12*$A27,(4*(PlotControl!$C$6-1)),12,1))) -> 0 | ER27: =(AVERAGE(OFFSET(Toes!$HM$10,12*$A27,(4*(PlotControl!$C$6-1)),12,1))) -> 0 | EW27: 22 | EX27: =AVERAGE(OFFSET(GW!$PS$10,12*$A27,(4*(PlotControl!$C$6-1)),12,1)) -> 1.818833333e-05 | EY27: =AVERAGE(OFFSET(GW!$PT$10,12*$A27,(4*(PlotControl!$C$6-1)),12,1)) -> 2.187708333e-05 | EZ27: =AVERAGE(OFFSET(GW!$PU$10,12*$A27,(4*(PlotControl!$C$6-1)),12,1)) -> 2.524833333e-05 | FA27: =AVERAGE(OFFSET(SW!$PS$10,12*$A27,(4*(PlotControl!$C$6-1)),12,1)) -> 9.7234e-05 | FB27: =AVERAGE(OFFSET(SW!$PT$10,12*$A27,(4*(PlotControl!$C$6-1)),12,1)) -> 0.0005177404167 | FC27: =AVERAGE(OFFSET(SW!$PU$10,12*$A27,(4*(PlotControl!$C$6-1)),12,1)) -> 0.001849410917 | FJ27: =(AVERAGE(OFFSET(WWTP_To_SW!$LO$10,12*$A27,(4*(PlotControl!$C$6-1)),12,1))) -> 0 | FK27: =(AVERAGE(OFFSET(WWTP_To_SW!$LP$10,12*$A27,(4*(PlotControl!$C$6-1)),12,1))) -> 0 | FL27: =(AVERAGE(OFFSET(WWTP_To_SW!$LQ$10,12*$A27,(4*(PlotControl!$C$6-1)),12,1))) -> 0 | FM27: =(AVERAGE(OFFSET(CL_To_SW!$LO$10,12*$A27,(4*(PlotControl!$C$6-1)),12,1))) -> 0 | FN27: =(AVERAGE(OFFSET(CL_To_SW!$LP$10,12*$A27,(4*(PlotControl!$C$6-1)),12,1))) -> 0 | FO27: =(AVERAGE(OFFSET(CL_To_SW!$LQ$10,12*$A27,(4*(PlotControl!$C$6-1)),12,1))) -> 0 | FP27: =(AVERAGE(OFFSET(FPs!$C$10,12*$A27,(4*(PlotControl!$C$6-1)),12,1))) -> 2.245991667e-05 | FQ27: =(AVERAGE(OFFSET(FPs!$D$10,12*$A27,(4*(PlotControl!$C$6-1)),12,1))) -> 3.359291667e-05 | FR27: =(AVERAGE(OFFSET(FPs!$E$10,12*$A27,(4*(PlotControl!$C$6-1)),12,1))) -> 4.836433333e-05 | FY27: =(AVERAGE(OFFSET(Toes!$C$10,12*$A27,(4*(PlotControl!$C$6-1)),12,1))) -> 0 | FZ27: =(AVERAGE(OFFSET(Toes!$D$10,12*$A27,(4*(PlotControl!$C$6-1)),12,1))) -> 0 | GA27: =(AVERAGE(OFFSET(Toes!$E$10,12*$A27,(4*(PlotControl!$C$6-1)),12,1))) -> 0
A28: 23 | B28: =AVERAGE(OFFSET(GW!$C$10,12*$A28,(4*(PlotControl!$C$6-1)),12,1)) -> 0.0001280290833 | C28: =AVERAGE(OFFSET(GW!$D$10,12*$A28,(4*(PlotControl!$C$6-1)),12,1)) -> 0.0001541925 | D28: =AVERAGE(OFFSET(GW!$E$10,12*$A28,(4*(PlotControl!$C$6-1)),12,1)) -> 0.0001778908333 | E28: =AVERAGE(OFFSET(SW!$C$10,12*$A28,(4*(PlotControl!$C$6-1)),12,1)) -> 0.0004989825833 | F28: =AVERAGE(OFFSET(SW!$D$10,12*$A28,(4*(PlotControl!$C$6-1)),12,1)) -> 0.0023842425 | G28: =AVERAGE(OFFSET(SW!$E$10,12*$A28,(4*(PlotControl!$C$6-1)),12,1)) -> 0.0080280675 | H28: =AVERAGE(OFFSET(PointSources!$C$10,12*$A28,(4*(PlotControl!$C$6-1)),12,1)) -> 8.634783333e-05 | I28: =AVERAGE(OFFSET(PointSources!$D$10,12*$A28,(4*(PlotControl!$C$6-1)),12,1)) -> 9.425158333e-05 | J28: =AVERAGE(OFFSET(PointSources!$E$10,12*$A28,(4*(PlotControl!$C$6-1)),12,1)) -> 0.000102665 | AM28: 23 | AN28: =AVERAGE(OFFSET(GW!$DG$10,12*$A28,(4*(PlotControl!$C$6-1)),12,1)) -> 0.0006359 | AO28: =AVERAGE(OFFSET(GW!$DH$10,12*$A28,(4*(PlotControl!$C$6-1)),12,1)) -> 0.0007658375 | AP28: =AVERAGE(OFFSET(GW!$DI$10,12*$A28,(4*(PlotControl!$C$6-1)),12,1)) -> 0.0008835383333 | AQ28: =AVERAGE(OFFSET(SW!$DG$10,12*$A28,(4*(PlotControl!$C$6-1)),12,1)) -> 0.002775803917 | AR28: =AVERAGE(OFFSET(SW!$DH$10,12*$A28,(4*(PlotControl!$C$6-1)),12,1)) -> 0.01326345417 | AS28: =AVERAGE(OFFSET(SW!$DI$10,12*$A28,(4*(PlotControl!$C$6-1)),12,1)) -> 0.0446607 | AT28: =AVERAGE(OFFSET(PointSources!$C$10,12*$A28,(4*(PlotControl!$C$6-1)),12,1)) -> 8.634783333e-05 | AU28: =AVERAGE(OFFSET(PointSources!$D$10,12*$A28,(4*(PlotControl!$C$6-1)),12,1)) -> 9.425158333e-05 | AV28: =AVERAGE(OFFSET(PointSources!$E$10,12*$A28,(4*(PlotControl!$C$6-1)),12,1)) -> 0.000102665 | AW28: =AVERAGE(OFFSET(PointSources!$DG$10,12*$A28,(4*(PlotControl!$C$6-1)),12,1)) -> 0.0002189833333 | AX28: =AVERAGE(OFFSET(PointSources!$DH$10,12*$A28,(4*(PlotControl!$C$6-1)),12,1)) -> 0.0005390841667 | AY28: =AVERAGE(OFFSET(PointSources!$DI$10,12*$A28,(4*(PlotControl!$C$6-1)),12,1)) -> 0.0012397525 | AZ28: =(AVERAGE(OFFSET(WWTP_To_SW!$C$10,12*$A28,(4*(PlotControl!$C$6-1)),12,1))) -> 0.001221141667 | BA28: =(AVERAGE(OFFSET(WWTP_To_SW!$D$10,12*$A28,(4*(PlotControl!$C$6-1)),12,1))) -> 0.001312708333 | BB28: =(AVERAGE(OFFSET(WWTP_To_SW!$E$10,12*$A28,(4*(PlotControl!$C$6-1)),12,1))) -> 0.001476966667 | BC28: =(AVERAGE(OFFSET(CL_To_SW!$C$10,12*$A28,(4*(PlotControl!$C$6-1)),12,1))) -> 0 | BD28: =(AVERAGE(OFFSET(CL_To_SW!$D$10,12*$A28,(4*(PlotControl!$C$6-1)),12,1))) -> 0 | BE28: =(AVERAGE(OFFSET(CL_To_SW!$E$10,12*$A28,(4*(PlotControl!$C$6-1)),12,1))) -> 0 | BF28: =(AVERAGE(OFFSET(FPs!$C$10,12*$A28,(4*(PlotControl!$C$6-1)),12,1))) -> 2.239441667e-05 | BG28: =(AVERAGE(OFFSET(FPs!$D$10,12*$A28,(4*(PlotControl!$C$6-1)),12,1))) -> 3.344691667e-05 | BH28: =(AVERAGE(OFFSET(FPs!$E$10,12*$A28,(4*(PlotControl!$C$6-1)),12,1))) -> 4.851183333e-05 | BI28: =(AVERAGE(OFFSET(FPs!$DG$10,12*$A28,(4*(PlotControl!$C$6-1)),12,1))) -> 2.527325e-05 | BJ28: =(AVERAGE(OFFSET(FPs!$DH$10,12*$A28,(4*(PlotControl!$C$6-1)),12,1))) -> 3.81355e-05 | BK28: =(AVERAGE(OFFSET(FPs!$DI$10,12*$A28,(4*(PlotControl!$C$6-1)),12,1))) -> 5.692208333e-05 | BL28: =(AVERAGE(OFFSET(FPs!$HK$10,12*$A28,(4*(PlotControl!$C$6-1)),12,1))) -> 5.361675e-05 | BM28: =(AVERAGE(OFFSET(FPs!$HL$10,12*$A28,(4*(PlotControl!$C$6-1)),12,1))) -> 7.683258333e-05 | BN28: =(AVERAGE(OFFSET(FPs!$HM$10,12*$A28,(4*(PlotControl!$C$6-1)),12,1))) -> 0.00010411 | BO28: =(AVERAGE(OFFSET(Toes!$C$10,12*$A28,(4*(PlotControl!$C$6-1)),12,1))) + (AVERAGE(OFFSET(Toes!$DG$10,12*$A28,(4*(PlotControl!$C$6-1)),12,1))) -> 0 | BP28: =(AVERAGE(OFFSET(Toes!$D$10,12*$A28,(4*(PlotControl!$C$6-1)),12,1))) + (AVERAGE(OFFSET(Toes!$DH$10,12*$A28,(4*(PlotControl!$C$6-1)),12,1))) -> 0 | BQ28: =(AVERAGE(OFFSET(Toes!$E$10,12*$A28,(4*(PlotControl!$C$6-1)),12,1))) + (AVERAGE(OFFSET(Toes!$DI$10,12*$A28,(4*(PlotControl!$C$6-1)),12,1))) -> 0 | BR28: =(AVERAGE(OFFSET(Toes!$HK$10,12*$A28,(4*(PlotControl!$C$6-1)),12,1))) -> 0 | BS28: =(AVERAGE(OFFSET(Toes!$HL$10,12*$A28,(4*(PlotControl!$C$6-1)),12,1))) -> 0 | BT28: =(AVERAGE(OFFSET(Toes!$HM$10,12*$A28,(4*(PlotControl!$C$6-1)),12,1))) -> 0 | BU28: =(AVERAGE(OFFSET(Toes!$LO$10,12*$A28,(4*(PlotControl!$C$6-1)),12,1))) -> 0 | BV28: =(AVERAGE(OFFSET(Toes!$LP$10,12*$A28,(4*(PlotControl!$C$6-1)),12,1))) -> 0 | BW28: =(AVERAGE(OFFSET(Toes!$LQ$10,12*$A28,(4*(PlotControl!$C$6-1)),12,1))) -> 0 | BY28: 23 | BZ28: =AVERAGE(OFFSET(GW!$HK$10,12*$A28,(4*(PlotControl!$C$6-1)),12,1)) -> 0 | CA28: =AVERAGE(OFFSET(GW!$HL$10,12*$A28,(4*(PlotControl!$C$6-1)),12,1)) -> 0 | CB28: =AVERAGE(OFFSET(GW!$HM$10,12*$A28,(4*(PlotControl!$C$6-1)),12,1)) -> 0 | CC28: =AVERAGE(OFFSET(SW!$HK$10,12*$A28,(4*(PlotControl!$C$6-1)),12,1)) -> 7.549248333e-05 | CD28: =AVERAGE(OFFSET(SW!$HL$10,12*$A28,(4*(PlotControl!$C$6-1)),12,1)) -> 0.0003607135 | CE28: =AVERAGE(OFFSET(SW!$HM$10,12*$A28,(4*(PlotControl!$C$6-1)),12,1)) -> 0.001214580583 | CL28: =(AVERAGE(OFFSET(WWTP_To_SW!$DG$10,12*$A28,(4*(PlotControl!$C$6-1)),12,1))) -> 0.0002710191667 | CM28: =(AVERAGE(OFFSET(WWTP_To_SW!$DH$10,12*$A28,(4*(PlotControl!$C$6-1)),12,1))) -> 0.0002913375 | CN28: =(AVERAGE(OFFSET(WWTP_To_SW!$DI$10,12*$A28,(4*(PlotControl!$C$6-1)),12,1))) -> 0.00032779 | CO28: =(AVERAGE(OFFSET(CL_To_SW!$DG$10,12*$A28,(4*(PlotControl!$C$6-1)),12,1))) -> 0 | CP28: =(AVERAGE(OFFSET(CL_To_SW!$DH$10,12*$A28,(4*(PlotControl!$C$6-1)),12,1))) -> 0 | CQ28: =(AVERAGE(OFFSET(CL_To_SW!$DI$10,12*$A28,(4*(PlotControl!$C$6-1)),12,1))) -> 0 | DG28: =(AVERAGE(OFFSET(Toes!$LO$10,12*$A28,(4*(PlotControl!$C$6-1)),12,1))) -> 0 | DH28: =(AVERAGE(OFFSET(Toes!$LP$10,12*$A28,(4*(PlotControl!$C$6-1)),12,1))) -> 0 | DI28: =(AVERAGE(OFFSET(Toes!$LQ$10,12*$A28,(4*(PlotControl!$C$6-1)),12,1))) -> 0 | DK28: 23 | DL28: =AVERAGE(OFFSET(GW!$LO$10,12*$A28,(4*(PlotControl!$C$6-1)),12,1)) -> 0 | DM28: =AVERAGE(OFFSET(GW!$LP$10,12*$A28,(4*(PlotControl!$C$6-1)),12,1)) -> 0 | DN28: =AVERAGE(OFFSET(GW!$LQ$10,12*$A28,(4*(PlotControl!$C$6-1)),12,1)) -> 0 | DO28: =AVERAGE(OFFSET(SW!$LO$10,12*$A28,(4*(PlotControl!$C$6-1)),12,1)) -> 9.4431095e-05 | DP28: =AVERAGE(OFFSET(SW!$LP$10,12*$A28,(4*(PlotControl!$C$6-1)),12,1)) -> 0.0004512067583 | DQ28: =AVERAGE(OFFSET(SW!$LQ$10,12*$A28,(4*(PlotControl!$C$6-1)),12,1)) -> 0.00151929825 | DX28: =(AVERAGE(OFFSET(WWTP_To_SW!$HK$10,12*$A28,(4*(PlotControl!$C$6-1)),12,1))) -> 0.0009501375 | DY28: =(AVERAGE(OFFSET(WWTP_To_SW!$HL$10,12*$A28,(4*(PlotControl!$C$6-1)),12,1))) -> 0.001021373333 | DZ28: =(AVERAGE(OFFSET(WWTP_To_SW!$HM$10,12*$A28,(4*(PlotControl!$C$6-1)),12,1))) -> 0.001149175 | EA28: =(AVERAGE(OFFSET(CL_To_SW!$HK$10,12*$A28,(4*(PlotControl!$C$6-1)),12,1))) -> 0 | EB28: =(AVERAGE(OFFSET(CL_To_SW!$HL$10,12*$A28,(4*(PlotControl!$C$6-1)),12,1))) -> 0 | EC28: =(AVERAGE(OFFSET(CL_To_SW!$HM$10,12*$A28,(4*(PlotControl!$C$6-1)),12,1))) -> 0 | EG28: =(AVERAGE(OFFSET(FPs!$DG$10,12*$A28,(4*(PlotControl!$C$6-1)),12,1))) -> 2.527325e-05 | EH28: =(AVERAGE(OFFSET(FPs!$DH$10,12*$A28,(4*(PlotControl!$C$6-1)),12,1))) -> 3.81355e-05 | EI28: =(AVERAGE(OFFSET(FPs!$DI$10,12*$A28,(4*(PlotControl!$C$6-1)),12,1))) -> 5.692208333e-05 | EM28: =(AVERAGE(OFFSET(Toes!$DG$10,12*$A28,(4*(PlotControl!$C$6-1)),12,1))) -> 0 | EN28: =(AVERAGE(OFFSET(Toes!$DH$10,12*$A28,(4*(PlotControl!$C$6-1)),12,1))) -> 0 | EO28: =(AVERAGE(OFFSET(Toes!$DI$10,12*$A28,(4*(PlotControl!$C$6-1)),12,1))) -> 0 | EP28: =(AVERAGE(OFFSET(Toes!$HK$10,12*$A28,(4*(PlotControl!$C$6-1)),12,1))) -> 0 | EQ28: =(AVERAGE(OFFSET(Toes!$HL$10,12*$A28,(4*(PlotControl!$C$6-1)),12,1))) -> 0 | ER28: =(AVERAGE(OFFSET(Toes!$HM$10,12*$A28,(4*(PlotControl!$C$6-1)),12,1))) -> 0 | EW28: 23 | EX28: =AVERAGE(OFFSET(GW!$PS$10,12*$A28,(4*(PlotControl!$C$6-1)),12,1)) -> 1.815533333e-05 | EY28: =AVERAGE(OFFSET(GW!$PT$10,12*$A28,(4*(PlotControl!$C$6-1)),12,1)) -> 2.186491667e-05 | EZ28: =AVERAGE(OFFSET(GW!$PU$10,12*$A28,(4*(PlotControl!$C$6-1)),12,1)) -> 2.5225e-05 | FA28: =AVERAGE(OFFSET(SW!$PS$10,12*$A28,(4*(PlotControl!$C$6-1)),12,1)) -> 0.0001160000442 | FB28: =AVERAGE(OFFSET(SW!$PT$10,12*$A28,(4*(PlotControl!$C$6-1)),12,1)) -> 0.00055427425 | FC28: =AVERAGE(OFFSET(SW!$PU$10,12*$A28,(4*(PlotControl!$C$6-1)),12,1)) -> 0.00186630275 | FJ28: =(AVERAGE(OFFSET(WWTP_To_SW!$LO$10,12*$A28,(4*(PlotControl!$C$6-1)),12,1))) -> 0 | FK28: =(AVERAGE(OFFSET(WWTP_To_SW!$LP$10,12*$A28,(4*(PlotControl!$C$6-1)),12,1))) -> 0 | FL28: =(AVERAGE(OFFSET(WWTP_To_SW!$LQ$10,12*$A28,(4*(PlotControl!$C$6-1)),12,1))) -> 0 | FM28: =(AVERAGE(OFFSET(CL_To_SW!$LO$10,12*$A28,(4*(PlotControl!$C$6-1)),12,1))) -> 0 | FN28: =(AVERAGE(OFFSET(CL_To_SW!$LP$10,12*$A28,(4*(PlotControl!$C$6-1)),12,1))) -> 0 | FO28: =(AVERAGE(OFFSET(CL_To_SW!$LQ$10,12*$A28,(4*(PlotControl!$C$6-1)),12,1))) -> 0 | FP28: =(AVERAGE(OFFSET(FPs!$C$10,12*$A28,(4*(PlotControl!$C$6-1)),12,1))) -> 2.239441667e-05 | FQ28: =(AVERAGE(OFFSET(FPs!$D$10,12*$A28,(4*(PlotControl!$C$6-1)),12,1))) -> 3.344691667e-05 | FR28: =(AVERAGE(OFFSET(FPs!$E$10,12*$A28,(4*(PlotControl!$C$6-1)),12,1))) -> 4.851183333e-05 | FY28: =(AVERAGE(OFFSET(Toes!$C$10,12*$A28,(4*(PlotControl!$C$6-1)),12,1))) -> 0 | FZ28: =(AVERAGE(OFFSET(Toes!$D$10,12*$A28,(4*(PlotControl!$C$6-1)),12,1))) -> 0 | GA28: =(AVERAGE(OFFSET(Toes!$E$10,12*$A28,(4*(PlotControl!$C$6-1)),12,1))) -> 0
A29: 24 | B29: =AVERAGE(OFFSET(GW!$C$10,12*$A29,(4*(PlotControl!$C$6-1)),12,1)) -> 0.0001275874167 | C29: =AVERAGE(OFFSET(GW!$D$10,12*$A29,(4*(PlotControl!$C$6-1)),12,1)) -> 0.0001543258333 | D29: =AVERAGE(OFFSET(GW!$E$10,12*$A29,(4*(PlotControl!$C$6-1)),12,1)) -> 0.0001778233333 | E29: =AVERAGE(OFFSET(SW!$C$10,12*$A29,(4*(PlotControl!$C$6-1)),12,1)) -> 0.0004321961667 | F29: =AVERAGE(OFFSET(SW!$D$10,12*$A29,(4*(PlotControl!$C$6-1)),12,1)) -> 0.002264388833 | G29: =AVERAGE(OFFSET(SW!$E$10,12*$A29,(4*(PlotControl!$C$6-1)),12,1)) -> 0.008283005833 | H29: =AVERAGE(OFFSET(PointSources!$C$10,12*$A29,(4*(PlotControl!$C$6-1)),12,1)) -> 8.633575e-05 | I29: =AVERAGE(OFFSET(PointSources!$D$10,12*$A29,(4*(PlotControl!$C$6-1)),12,1)) -> 9.435216667e-05 | J29: =AVERAGE(OFFSET(PointSources!$E$10,12*$A29,(4*(PlotControl!$C$6-1)),12,1)) -> 0.0001029783333 | AM29: 24 | AN29: =AVERAGE(OFFSET(GW!$DG$10,12*$A29,(4*(PlotControl!$C$6-1)),12,1)) -> 0.0006337091667 | AO29: =AVERAGE(OFFSET(GW!$DH$10,12*$A29,(4*(PlotControl!$C$6-1)),12,1)) -> 0.0007665025 | AP29: =AVERAGE(OFFSET(GW!$DI$10,12*$A29,(4*(PlotControl!$C$6-1)),12,1)) -> 0.0008832025 | AQ29: =AVERAGE(OFFSET(SW!$DG$10,12*$A29,(4*(PlotControl!$C$6-1)),12,1)) -> 0.002404276667 | AR29: =AVERAGE(OFFSET(SW!$DH$10,12*$A29,(4*(PlotControl!$C$6-1)),12,1)) -> 0.01259674917 | AS29: =AVERAGE(OFFSET(SW!$DI$10,12*$A29,(4*(PlotControl!$C$6-1)),12,1)) -> 0.04607811667 | AT29: =AVERAGE(OFFSET(PointSources!$C$10,12*$A29,(4*(PlotControl!$C$6-1)),12,1)) -> 8.633575e-05 | AU29: =AVERAGE(OFFSET(PointSources!$D$10,12*$A29,(4*(PlotControl!$C$6-1)),12,1)) -> 9.435216667e-05 | AV29: =AVERAGE(OFFSET(PointSources!$E$10,12*$A29,(4*(PlotControl!$C$6-1)),12,1)) -> 0.0001029783333 | AW29: =AVERAGE(OFFSET(PointSources!$DG$10,12*$A29,(4*(PlotControl!$C$6-1)),12,1)) -> 0.0002154291667 | AX29: =AVERAGE(OFFSET(PointSources!$DH$10,12*$A29,(4*(PlotControl!$C$6-1)),12,1)) -> 0.0005228758333 | AY29: =AVERAGE(OFFSET(PointSources!$DI$10,12*$A29,(4*(PlotControl!$C$6-1)),12,1)) -> 0.001261558333 | AZ29: =(AVERAGE(OFFSET(WWTP_To_SW!$C$10,12*$A29,(4*(PlotControl!$C$6-1)),12,1))) -> 0.001190058333 | BA29: =(AVERAGE(OFFSET(WWTP_To_SW!$D$10,12*$A29,(4*(PlotControl!$C$6-1)),12,1))) -> 0.001279575 | BB29: =(AVERAGE(OFFSET(WWTP_To_SW!$E$10,12*$A29,(4*(PlotControl!$C$6-1)),12,1))) -> 0.00145385 | BC29: =(AVERAGE(OFFSET(CL_To_SW!$C$10,12*$A29,(4*(PlotControl!$C$6-1)),12,1))) -> 0 | BD29: =(AVERAGE(OFFSET(CL_To_SW!$D$10,12*$A29,(4*(PlotControl!$C$6-1)),12,1))) -> 0 | BE29: =(AVERAGE(OFFSET(CL_To_SW!$E$10,12*$A29,(4*(PlotControl!$C$6-1)),12,1))) -> 0 | BF29: =(AVERAGE(OFFSET(FPs!$C$10,12*$A29,(4*(PlotControl!$C$6-1)),12,1))) -> 2.233208333e-05 | BG29: =(AVERAGE(OFFSET(FPs!$D$10,12*$A29,(4*(PlotControl!$C$6-1)),12,1))) -> 3.341375e-05 | BH29: =(AVERAGE(OFFSET(FPs!$E$10,12*$A29,(4*(PlotControl!$C$6-1)),12,1))) -> 4.838158333e-05 | BI29: =(AVERAGE(OFFSET(FPs!$DG$10,12*$A29,(4*(PlotControl!$C$6-1)),12,1))) -> 2.532641667e-05 | BJ29: =(AVERAGE(OFFSET(FPs!$DH$10,12*$A29,(4*(PlotControl!$C$6-1)),12,1))) -> 3.816316667e-05 | BK29: =(AVERAGE(OFFSET(FPs!$DI$10,12*$A29,(4*(PlotControl!$C$6-1)),12,1))) -> 5.722325e-05 | BL29: =(AVERAGE(OFFSET(FPs!$HK$10,12*$A29,(4*(PlotControl!$C$6-1)),12,1))) -> 5.358158333e-05 | BM29: =(AVERAGE(OFFSET(FPs!$HL$10,12*$A29,(4*(PlotControl!$C$6-1)),12,1))) -> 7.632425e-05 | BN29: =(AVERAGE(OFFSET(FPs!$HM$10,12*$A29,(4*(PlotControl!$C$6-1)),12,1))) -> 0.0001033318333 | BO29: =(AVERAGE(OFFSET(Toes!$C$10,12*$A29,(4*(PlotControl!$C$6-1)),12,1))) + (AVERAGE(OFFSET(Toes!$DG$10,12*$A29,(4*(PlotControl!$C$6-1)),12,1))) -> 0 | BP29: =(AVERAGE(OFFSET(Toes!$D$10,12*$A29,(4*(PlotControl!$C$6-1)),12,1))) + (AVERAGE(OFFSET(Toes!$DH$10,12*$A29,(4*(PlotControl!$C$6-1)),12,1))) -> 0 | BQ29: =(AVERAGE(OFFSET(Toes!$E$10,12*$A29,(4*(PlotControl!$C$6-1)),12,1))) + (AVERAGE(OFFSET(Toes!$DI$10,12*$A29,(4*(PlotControl!$C$6-1)),12,1))) -> 0 | BR29: =(AVERAGE(OFFSET(Toes!$HK$10,12*$A29,(4*(PlotControl!$C$6-1)),12,1))) -> 0 | BS29: =(AVERAGE(OFFSET(Toes!$HL$10,12*$A29,(4*(PlotControl!$C$6-1)),12,1))) -> 0 | BT29: =(AVERAGE(OFFSET(Toes!$HM$10,12*$A29,(4*(PlotControl!$C$6-1)),12,1))) -> 0 | BU29: =(AVERAGE(OFFSET(Toes!$LO$10,12*$A29,(4*(PlotControl!$C$6-1)),12,1))) -> 0 | BV29: =(AVERAGE(OFFSET(Toes!$LP$10,12*$A29,(4*(PlotControl!$C$6-1)),12,1))) -> 0 | BW29: =(AVERAGE(OFFSET(Toes!$LQ$10,12*$A29,(4*(PlotControl!$C$6-1)),12,1))) -> 0 | BY29: 24 | BZ29: =AVERAGE(OFFSET(GW!$HK$10,12*$A29,(4*(PlotControl!$C$6-1)),12,1)) -> 0 | CA29: =AVERAGE(OFFSET(GW!$HL$10,12*$A29,(4*(PlotControl!$C$6-1)),12,1)) -> 0 | CB29: =AVERAGE(OFFSET(GW!$HM$10,12*$A29,(4*(PlotControl!$C$6-1)),12,1)) -> 0 | CC29: =AVERAGE(OFFSET(SW!$HK$10,12*$A29,(4*(PlotControl!$C$6-1)),12,1)) -> 6.538756667e-05 | CD29: =AVERAGE(OFFSET(SW!$HL$10,12*$A29,(4*(PlotControl!$C$6-1)),12,1)) -> 0.000342583075 | CE29: =AVERAGE(OFFSET(SW!$HM$10,12*$A29,(4*(PlotControl!$C$6-1)),12,1)) -> 0.0012531605 | CL29: =(AVERAGE(OFFSET(WWTP_To_SW!$DG$10,12*$A29,(4*(PlotControl!$C$6-1)),12,1))) -> 0.0002641191667 | CM29: =(AVERAGE(OFFSET(WWTP_To_SW!$DH$10,12*$A29,(4*(PlotControl!$C$6-1)),12,1))) -> 0.0002839808333 | CN29: =(AVERAGE(OFFSET(WWTP_To_SW!$DI$10,12*$A29,(4*(PlotControl!$C$6-1)),12,1))) -> 0.0003226608333 | CO29: =(AVERAGE(OFFSET(CL_To_SW!$DG$10,12*$A29,(4*(PlotControl!$C$6-1)),12,1))) -> 0 | CP29: =(AVERAGE(OFFSET(CL_To_SW!$DH$10,12*$A29,(4*(PlotControl!$C$6-1)),12,1))) -> 0 | CQ29: =(AVERAGE(OFFSET(CL_To_SW!$DI$10,12*$A29,(4*(PlotControl!$C$6-1)),12,1))) -> 0 | DG29: =(AVERAGE(OFFSET(Toes!$LO$10,12*$A29,(4*(PlotControl!$C$6-1)),12,1))) -> 0 | DH29: =(AVERAGE(OFFSET(Toes!$LP$10,12*$A29,(4*(PlotControl!$C$6-1)),12,1))) -> 0 | DI29: =(AVERAGE(OFFSET(Toes!$LQ$10,12*$A29,(4*(PlotControl!$C$6-1)),12,1))) -> 0 | DK29: 24 | DL29: =AVERAGE(OFFSET(GW!$LO$10,12*$A29,(4*(PlotControl!$C$6-1)),12,1)) -> 0 | DM29: =AVERAGE(OFFSET(GW!$LP$10,12*$A29,(4*(PlotControl!$C$6-1)),12,1)) -> 0 | DN29: =AVERAGE(OFFSET(GW!$LQ$10,12*$A29,(4*(PlotControl!$C$6-1)),12,1)) -> 0 | DO29: =AVERAGE(OFFSET(SW!$LO$10,12*$A29,(4*(PlotControl!$C$6-1)),12,1)) -> 8.17908e-05 | DP29: =AVERAGE(OFFSET(SW!$LP$10,12*$A29,(4*(PlotControl!$C$6-1)),12,1)) -> 0.0004285210083 | DQ29: =AVERAGE(OFFSET(SW!$LQ$10,12*$A29,(4*(PlotControl!$C$6-1)),12,1)) -> 0.0015675435 | DX29: =(AVERAGE(OFFSET(WWTP_To_SW!$HK$10,12*$A29,(4*(PlotControl!$C$6-1)),12,1))) -> 0.00092595 | DY29: =(AVERAGE(OFFSET(WWTP_To_SW!$HL$10,12*$A29,(4*(PlotControl!$C$6-1)),12,1))) -> 0.0009955708333 | DZ29: =(AVERAGE(OFFSET(WWTP_To_SW!$HM$10,12*$A29,(4*(PlotControl!$C$6-1)),12,1))) -> 0.001131175 | EA29: =(AVERAGE(OFFSET(CL_To_SW!$HK$10,12*$A29,(4*(PlotControl!$C$6-1)),12,1))) -> 0 | EB29: =(AVERAGE(OFFSET(CL_To_SW!$HL$10,12*$A29,(4*(PlotControl!$C$6-1)),12,1))) -> 0 | EC29: =(AVERAGE(OFFSET(CL_To_SW!$HM$10,12*$A29,(4*(PlotControl!$C$6-1)),12,1))) -> 0 | EG29: =(AVERAGE(OFFSET(FPs!$DG$10,12*$A29,(4*(PlotControl!$C$6-1)),12,1))) -> 2.532641667e-05 | EH29: =(AVERAGE(OFFSET(FPs!$DH$10,12*$A29,(4*(PlotControl!$C$6-1)),12,1))) -> 3.816316667e-05 | EI29: =(AVERAGE(OFFSET(FPs!$DI$10,12*$A29,(4*(PlotControl!$C$6-1)),12,1))) -> 5.722325e-05 | EM29: =(AVERAGE(OFFSET(Toes!$DG$10,12*$A29,(4*(PlotControl!$C$6-1)),12,1))) -> 0 | EN29: =(AVERAGE(OFFSET(Toes!$DH$10,12*$A29,(4*(PlotControl!$C$6-1)),12,1))) -> 0 | EO29: =(AVERAGE(OFFSET(Toes!$DI$10,12*$A29,(4*(PlotControl!$C$6-1)),12,1))) -> 0 | EP29: =(AVERAGE(OFFSET(Toes!$HK$10,12*$A29,(4*(PlotControl!$C$6-1)),12,1))) -> 0 | EQ29: =(AVERAGE(OFFSET(Toes!$HL$10,12*$A29,(4*(PlotControl!$C$6-1)),12,1))) -> 0 | ER29: =(AVERAGE(OFFSET(Toes!$HM$10,12*$A29,(4*(PlotControl!$C$6-1)),12,1))) -> 0 | EW29: 24 | EX29: =AVERAGE(OFFSET(GW!$PS$10,12*$A29,(4*(PlotControl!$C$6-1)),12,1)) -> 1.809266667e-05 | EY29: =AVERAGE(OFFSET(GW!$PT$10,12*$A29,(4*(PlotControl!$C$6-1)),12,1)) -> 2.188375e-05 | EZ29: =AVERAGE(OFFSET(GW!$PU$10,12*$A29,(4*(PlotControl!$C$6-1)),12,1)) -> 2.52155e-05 | FA29: =AVERAGE(OFFSET(SW!$PS$10,12*$A29,(4*(PlotControl!$C$6-1)),12,1)) -> 0.000100473425 | FB29: =AVERAGE(OFFSET(SW!$PT$10,12*$A29,(4*(PlotControl!$C$6-1)),12,1)) -> 0.0005264073167 | FC29: =AVERAGE(OFFSET(SW!$PU$10,12*$A29,(4*(PlotControl!$C$6-1)),12,1)) -> 0.001925585083 | FJ29: =(AVERAGE(OFFSET(WWTP_To_SW!$LO$10,12*$A29,(4*(PlotControl!$C$6-1)),12,1))) -> 0 | FK29: =(AVERAGE(OFFSET(WWTP_To_SW!$LP$10,12*$A29,(4*(PlotControl!$C$6-1)),12,1))) -> 0 | FL29: =(AVERAGE(OFFSET(WWTP_To_SW!$LQ$10,12*$A29,(4*(PlotControl!$C$6-1)),12,1))) -> 0 | FM29: =(AVERAGE(OFFSET(CL_To_SW!$LO$10,12*$A29,(4*(PlotControl!$C$6-1)),12,1))) -> 0 | FN29: =(AVERAGE(OFFSET(CL_To_SW!$LP$10,12*$A29,(4*(PlotControl!$C$6-1)),12,1))) -> 0 | FO29: =(AVERAGE(OFFSET(CL_To_SW!$LQ$10,12*$A29,(4*(PlotControl!$C$6-1)),12,1))) -> 0 | FP29: =(AVERAGE(OFFSET(FPs!$C$10,12*$A29,(4*(PlotControl!$C$6-1)),12,1))) -> 2.233208333e-05 | FQ29: =(AVERAGE(OFFSET(FPs!$D$10,12*$A29,(4*(PlotControl!$C$6-1)),12,1))) -> 3.341375e-05 | FR29: =(AVERAGE(OFFSET(FPs!$E$10,12*$A29,(4*(PlotControl!$C$6-1)),12,1))) -> 4.838158333e-05 | FY29: =(AVERAGE(OFFSET(Toes!$C$10,12*$A29,(4*(PlotControl!$C$6-1)),12,1))) -> 0 | FZ29: =(AVERAGE(OFFSET(Toes!$D$10,12*$A29,(4*(PlotControl!$C$6-1)),12,1))) -> 0 | GA29: =(AVERAGE(OFFSET(Toes!$E$10,12*$A29,(4*(PlotControl!$C$6-1)),12,1))) -> 0
A30: 25 | B30: =AVERAGE(OFFSET(GW!$C$10,12*$A30,(4*(PlotControl!$C$6-1)),12,1)) -> 0.0001277610833 | C30: =AVERAGE(OFFSET(GW!$D$10,12*$A30,(4*(PlotControl!$C$6-1)),12,1)) -> 0.0001541858333 | D30: =AVERAGE(OFFSET(GW!$E$10,12*$A30,(4*(PlotControl!$C$6-1)),12,1)) -> 0.0001778191667 | E30: =AVERAGE(OFFSET(SW!$C$10,12*$A30,(4*(PlotControl!$C$6-1)),12,1)) -> 0.000471632725 | F30: =AVERAGE(OFFSET(SW!$D$10,12*$A30,(4*(PlotControl!$C$6-1)),12,1)) -> 0.002269338667 | G30: =AVERAGE(OFFSET(SW!$E$10,12*$A30,(4*(PlotControl!$C$6-1)),12,1)) -> 0.008389815833 | H30: =AVERAGE(OFFSET(PointSources!$C$10,12*$A30,(4*(PlotControl!$C$6-1)),12,1)) -> 8.649133333e-05 | I30: =AVERAGE(OFFSET(PointSources!$D$10,12*$A30,(4*(PlotControl!$C$6-1)),12,1)) -> 9.42725e-05 | J30: =AVERAGE(OFFSET(PointSources!$E$10,12*$A30,(4*(PlotControl!$C$6-1)),12,1)) -> 0.0001029683333 | AM30: 25 | AN30: =AVERAGE(OFFSET(GW!$DG$10,12*$A30,(4*(PlotControl!$C$6-1)),12,1)) -> 0.0006345683333 | AO30: =AVERAGE(OFFSET(GW!$DH$10,12*$A30,(4*(PlotControl!$C$6-1)),12,1)) -> 0.0007658133333 | AP30: =AVERAGE(OFFSET(GW!$DI$10,12*$A30,(4*(PlotControl!$C$6-1)),12,1)) -> 0.0008831875 | AQ30: =AVERAGE(OFFSET(SW!$DG$10,12*$A30,(4*(PlotControl!$C$6-1)),12,1)) -> 0.002623728417 | AR30: =AVERAGE(OFFSET(SW!$DH$10,12*$A30,(4*(PlotControl!$C$6-1)),12,1)) -> 0.0126243425 | AS30: =AVERAGE(OFFSET(SW!$DI$10,12*$A30,(4*(PlotControl!$C$6-1)),12,1)) -> 0.04667148333 | AT30: =AVERAGE(OFFSET(PointSources!$C$10,12*$A30,(4*(PlotControl!$C$6-1)),12,1)) -> 8.649133333e-05 | AU30: =AVERAGE(OFFSET(PointSources!$D$10,12*$A30,(4*(PlotControl!$C$6-1)),12,1)) -> 9.42725e-05 | AV30: =AVERAGE(OFFSET(PointSources!$E$10,12*$A30,(4*(PlotControl!$C$6-1)),12,1)) -> 0.0001029683333 | AW30: =AVERAGE(OFFSET(PointSources!$DG$10,12*$A30,(4*(PlotControl!$C$6-1)),12,1)) -> 0.0002180966667 | AX30: =AVERAGE(OFFSET(PointSources!$DH$10,12*$A30,(4*(PlotControl!$C$6-1)),12,1)) -> 0.0005265466667 | AY30: =AVERAGE(OFFSET(PointSources!$DI$10,12*$A30,(4*(PlotControl!$C$6-1)),12,1)) -> 0.001249806667 | AZ30: =(AVERAGE(OFFSET(WWTP_To_SW!$C$10,12*$A30,(4*(PlotControl!$C$6-1)),12,1))) -> 0.001146175 | BA30: =(AVERAGE(OFFSET(WWTP_To_SW!$D$10,12*$A30,(4*(PlotControl!$C$6-1)),12,1))) -> 0.001230525 | BB30: =(AVERAGE(OFFSET(WWTP_To_SW!$E$10,12*$A30,(4*(PlotControl!$C$6-1)),12,1))) -> 0.001438933333 | BC30: =(AVERAGE(OFFSET(CL_To_SW!$C$10,12*$A30,(4*(PlotControl!$C$6-1)),12,1))) -> 0 | BD30: =(AVERAGE(OFFSET(CL_To_SW!$D$10,12*$A30,(4*(PlotControl!$C$6-1)),12,1))) -> 0 | BE30: =(AVERAGE(OFFSET(CL_To_SW!$E$10,12*$A30,(4*(PlotControl!$C$6-1)),12,1))) -> 0 | BF30: =(AVERAGE(OFFSET(FPs!$C$10,12*$A30,(4*(PlotControl!$C$6-1)),12,1))) -> 2.23905e-05 | BG30: =(AVERAGE(OFFSET(FPs!$D$10,12*$A30,(4*(PlotControl!$C$6-1)),12,1))) -> 3.335408333e-05 | BH30: =(AVERAGE(OFFSET(FPs!$E$10,12*$A30,(4*(PlotControl!$C$6-1)),12,1))) -> 4.8314e-05 | BI30: =(AVERAGE(OFFSET(FPs!$DG$10,12*$A30,(4*(PlotControl!$C$6-1)),12,1))) -> 2.54075e-05 | BJ30: =(AVERAGE(OFFSET(FPs!$DH$10,12*$A30,(4*(PlotControl!$C$6-1)),12,1))) -> 3.800066667e-05 | BK30: =(AVERAGE(OFFSET(FPs!$DI$10,12*$A30,(4*(PlotControl!$C$6-1)),12,1))) -> 5.688141667e-05 | BL30: =(AVERAGE(OFFSET(FPs!$HK$10,12*$A30,(4*(PlotControl!$C$6-1)),12,1))) -> 5.310616667e-05 | BM30: =(AVERAGE(OFFSET(FPs!$HL$10,12*$A30,(4*(PlotControl!$C$6-1)),12,1))) -> 7.609841667e-05 | BN30: =(AVERAGE(OFFSET(FPs!$HM$10,12*$A30,(4*(PlotControl!$C$6-1)),12,1))) -> 0.0001027404167 | BO30: =(AVERAGE(OFFSET(Toes!$C$10,12*$A30,(4*(PlotControl!$C$6-1)),12,1))) + (AVERAGE(OFFSET(Toes!$DG$10,12*$A30,(4*(PlotControl!$C$6-1)),12,1))) -> 0 | BP30: =(AVERAGE(OFFSET(Toes!$D$10,12*$A30,(4*(PlotControl!$C$6-1)),12,1))) + (AVERAGE(OFFSET(Toes!$DH$10,12*$A30,(4*(PlotControl!$C$6-1)),12,1))) -> 0 | BQ30: =(AVERAGE(OFFSET(Toes!$E$10,12*$A30,(4*(PlotControl!$C$6-1)),12,1))) + (AVERAGE(OFFSET(Toes!$DI$10,12*$A30,(4*(PlotControl!$C$6-1)),12,1))) -> 0 | BR30: =(AVERAGE(OFFSET(Toes!$HK$10,12*$A30,(4*(PlotControl!$C$6-1)),12,1))) -> 0 | BS30: =(AVERAGE(OFFSET(Toes!$HL$10,12*$A30,(4*(PlotControl!$C$6-1)),12,1))) -> 0 | BT30: =(AVERAGE(OFFSET(Toes!$HM$10,12*$A30,(4*(PlotControl!$C$6-1)),12,1))) -> 0 | BU30: =(AVERAGE(OFFSET(Toes!$LO$10,12*$A30,(4*(PlotControl!$C$6-1)),12,1))) -> 0 | BV30: =(AVERAGE(OFFSET(Toes!$LP$10,12*$A30,(4*(PlotControl!$C$6-1)),12,1))) -> 0 | BW30: =(AVERAGE(OFFSET(Toes!$LQ$10,12*$A30,(4*(PlotControl!$C$6-1)),12,1))) -> 0 | BY30: 25 | BZ30: =AVERAGE(OFFSET(GW!$HK$10,12*$A30,(4*(PlotControl!$C$6-1)),12,1)) -> 0 | CA30: =AVERAGE(OFFSET(GW!$HL$10,12*$A30,(4*(PlotControl!$C$6-1)),12,1)) -> 0 | CB30: =AVERAGE(OFFSET(GW!$HM$10,12*$A30,(4*(PlotControl!$C$6-1)),12,1)) -> 0 | CC30: =AVERAGE(OFFSET(SW!$HK$10,12*$A30,(4*(PlotControl!$C$6-1)),12,1)) -> 7.135369833e-05 | CD30: =AVERAGE(OFFSET(SW!$HL$10,12*$A30,(4*(PlotControl!$C$6-1)),12,1)) -> 0.0003433271833 | CE30: =AVERAGE(OFFSET(SW!$HM$10,12*$A30,(4*(PlotControl!$C$6-1)),12,1)) -> 0.001269307083 | CL30: =(AVERAGE(OFFSET(WWTP_To_SW!$DG$10,12*$A30,(4*(PlotControl!$C$6-1)),12,1))) -> 0.0002543791667 | CM30: =(AVERAGE(OFFSET(WWTP_To_SW!$DH$10,12*$A30,(4*(PlotControl!$C$6-1)),12,1))) -> 0.0002730975 | CN30: =(AVERAGE(OFFSET(WWTP_To_SW!$DI$10,12*$A30,(4*(PlotControl!$C$6-1)),12,1))) -> 0.0003193491667 | CO30: =(AVERAGE(OFFSET(CL_To_SW!$DG$10,12*$A30,(4*(PlotControl!$C$6-1)),12,1))) -> 0 | CP30: =(AVERAGE(OFFSET(CL_To_SW!$DH$10,12*$A30,(4*(PlotControl!$C$6-1)),12,1))) -> 0 | CQ30: =(AVERAGE(OFFSET(CL_To_SW!$DI$10,12*$A30,(4*(PlotControl!$C$6-1)),12,1))) -> 0 | DG30: =(AVERAGE(OFFSET(Toes!$LO$10,12*$A30,(4*(PlotControl!$C$6-1)),12,1))) -> 0 | DH30: =(AVERAGE(OFFSET(Toes!$LP$10,12*$A30,(4*(PlotControl!$C$6-1)),12,1))) -> 0 | DI30: =(AVERAGE(OFFSET(Toes!$LQ$10,12*$A30,(4*(PlotControl!$C$6-1)),12,1))) -> 0 | DK30: 25 | DL30: =AVERAGE(OFFSET(GW!$LO$10,12*$A30,(4*(PlotControl!$C$6-1)),12,1)) -> 0 | DM30: =AVERAGE(OFFSET(GW!$LP$10,12*$A30,(4*(PlotControl!$C$6-1)),12,1)) -> 0 | DN30: =AVERAGE(OFFSET(GW!$LQ$10,12*$A30,(4*(PlotControl!$C$6-1)),12,1)) -> 0 | DO30: =AVERAGE(OFFSET(SW!$LO$10,12*$A30,(4*(PlotControl!$C$6-1)),12,1)) -> 8.925530667e-05 | DP30: =AVERAGE(OFFSET(SW!$LP$10,12*$A30,(4*(PlotControl!$C$6-1)),12,1)) -> 0.000429466675 | DQ30: =AVERAGE(OFFSET(SW!$LQ$10,12*$A30,(4*(PlotControl!$C$6-1)),12,1)) -> 0.00158772825 | DX30: =(AVERAGE(OFFSET(WWTP_To_SW!$HK$10,12*$A30,(4*(PlotControl!$C$6-1)),12,1))) -> 0.0008918066667 | DY30: =(AVERAGE(OFFSET(WWTP_To_SW!$HL$10,12*$A30,(4*(PlotControl!$C$6-1)),12,1))) -> 0.0009574308333 | DZ30: =(AVERAGE(OFFSET(WWTP_To_SW!$HM$10,12*$A30,(4*(PlotControl!$C$6-1)),12,1))) -> 0.001119566667 | EA30: =(AVERAGE(OFFSET(CL_To_SW!$HK$10,12*$A30,(4*(PlotControl!$C$6-1)),12,1))) -> 0 | EB30: =(AVERAGE(OFFSET(CL_To_SW!$HL$10,12*$A30,(4*(PlotControl!$C$6-1)),12,1))) -> 0 | EC30: =(AVERAGE(OFFSET(CL_To_SW!$HM$10,12*$A30,(4*(PlotControl!$C$6-1)),12,1))) -> 0 | EG30: =(AVERAGE(OFFSET(FPs!$DG$10,12*$A30,(4*(PlotControl!$C$6-1)),12,1))) -> 2.54075e-05 | EH30: =(AVERAGE(OFFSET(FPs!$DH$10,12*$A30,(4*(PlotControl!$C$6-1)),12,1))) -> 3.800066667e-05 | EI30: =(AVERAGE(OFFSET(FPs!$DI$10,12*$A30,(4*(PlotControl!$C$6-1)),12,1))) -> 5.688141667e-05 | EM30: =(AVERAGE(OFFSET(Toes!$DG$10,12*$A30,(4*(PlotControl!$C$6-1)),12,1))) -> 0 | EN30: =(AVERAGE(OFFSET(Toes!$DH$10,12*$A30,(4*(PlotControl!$C$6-1)),12,1))) -> 0 | EO30: =(AVERAGE(OFFSET(Toes!$DI$10,12*$A30,(4*(PlotControl!$C$6-1)),12,1))) -> 0 | EP30: =(AVERAGE(OFFSET(Toes!$HK$10,12*$A30,(4*(PlotControl!$C$6-1)),12,1))) -> 0 | EQ30: =(AVERAGE(OFFSET(Toes!$HL$10,12*$A30,(4*(PlotControl!$C$6-1)),12,1))) -> 0 | ER30: =(AVERAGE(OFFSET(Toes!$HM$10,12*$A30,(4*(PlotControl!$C$6-1)),12,1))) -> 0 | EW30: 25 | EX30: =AVERAGE(OFFSET(GW!$PS$10,12*$A30,(4*(PlotControl!$C$6-1)),12,1)) -> 1.811725e-05 | EY30: =AVERAGE(OFFSET(GW!$PT$10,12*$A30,(4*(PlotControl!$C$6-1)),12,1)) -> 2.1864e-05 | EZ30: =AVERAGE(OFFSET(GW!$PU$10,12*$A30,(4*(PlotControl!$C$6-1)),12,1)) -> 2.5215e-05 | FA30: =AVERAGE(OFFSET(SW!$PS$10,12*$A30,(4*(PlotControl!$C$6-1)),12,1)) -> 0.0001096423083 | FB30: =AVERAGE(OFFSET(SW!$PT$10,12*$A30,(4*(PlotControl!$C$6-1)),12,1)) -> 0.000527555625 | FC30: =AVERAGE(OFFSET(SW!$PU$10,12*$A30,(4*(PlotControl!$C$6-1)),12,1)) -> 0.001950376333 | FJ30: =(AVERAGE(OFFSET(WWTP_To_SW!$LO$10,12*$A30,(4*(PlotControl!$C$6-1)),12,1))) -> 0 | FK30: =(AVERAGE(OFFSET(WWTP_To_SW!$LP$10,12*$A30,(4*(PlotControl!$C$6-1)),12,1))) -> 0 | FL30: =(AVERAGE(OFFSET(WWTP_To_SW!$LQ$10,12*$A30,(4*(PlotControl!$C$6-1)),12,1))) -> 0 | FM30: =(AVERAGE(OFFSET(CL_To_SW!$LO$10,12*$A30,(4*(PlotControl!$C$6-1)),12,1))) -> 0 | FN30: =(AVERAGE(OFFSET(CL_To_SW!$LP$10,12*$A30,(4*(PlotControl!$C$6-1)),12,1))) -> 0 | FO30: =(AVERAGE(OFFSET(CL_To_SW!$LQ$10,12*$A30,(4*(PlotControl!$C$6-1)),12,1))) -> 0 | FP30: =(AVERAGE(OFFSET(FPs!$C$10,12*$A30,(4*(PlotControl!$C$6-1)),12,1))) -> 2.23905e-05 | FQ30: =(AVERAGE(OFFSET(FPs!$D$10,12*$A30,(4*(PlotControl!$C$6-1)),12,1))) -> 3.335408333e-05 | FR30: =(AVERAGE(OFFSET(FPs!$E$10,12*$A30,(4*(PlotControl!$C$6-1)),12,1))) -> 4.8314e-05 | FY30: =(AVERAGE(OFFSET(Toes!$C$10,12*$A30,(4*(PlotControl!$C$6-1)),12,1))) -> 0 | FZ30: =(AVERAGE(OFFSET(Toes!$D$10,12*$A30,(4*(PlotControl!$C$6-1)),12,1))) -> 0 | GA30: =(AVERAGE(OFFSET(Toes!$E$10,12*$A30,(4*(PlotControl!$C$6-1)),12,1))) -> 0
